Workbook

Sheet INDICE
F1: TODO O MUNDO - DÉCADA
F2: Trocas comerciais com Portugal (PT) 2011-2020 Bebidas, líquidos alcoólicos e vinagres (NC 22)
C3: Fonte
D4: Estatísticas do Comércio Internacional | F4: 1. Todo o Mundo - Síntese
D5: dados: 2019 provisórios; 2020 preliminares | F5: 2. Evolução da balança comercial
F6: 3. Principais transações de Bebidas (NC 2 e 4 dígitos)
C7: Data | D7: 2021-12-30 | F7: 3A Principais produtos agrícolas e agroalimentares transacionados (NC 2D)
F8: 3B Principais origens/destinos para Bebidas
F9: 3C Principais origens/destinos produtos agrícolas e agroalimentares
F10: 4. Evolução da balança comercial por país e produto
F11: 4A Evolução da balança comercial por produto
F12: 5.1. Trocas comerciais por país
F13: 5.1A Trocas comerciais por país (produtos agrícolas e agroalimentares)

Sheet 1
A1: Todo o Mundo - Síntese para Bebidas, líquidos alcoólicos e vinagres (NC 22) 2011-2020
A3: • As trocas comerciais de bens transacionáveis (excluindo serviços) entre Portugal e Todo o Mundo representam um total de 51 mil milhões de € em exportações e 64,7 mil milhões de € em importações, na média do período 2011-2020, correspondendo a um saldo negativo da balança comercial de cerca de -13,7 mil milhões. No que se refere ao total da economia (incluindo serviços), as exportações totalizam 67,5 mil milhões de € e as importações 67,4 mil milhões, correspondendo a um saldo positivo de cerca de 0,1 mil milhões.
A4: • No que respeita aos produtos dos setores agrícola e agroalimentar, mar e florestas, Portugal exportou para Todo o Mundo 10,4 mil milhões de € em média anual, no mesmo período, enquanto as importações ascenderam a 12,1 mil milhões de € . Estes setores representam perto de 20,4% do total de exportações de bens transacionáveis e as importações 18,7% das correspondentes importações. Se nos referirmos apenas ao setor agrícola e agroalimentar, as exportações representam, em média, 5,4 mil milhões de € e as importações 8,2 mil milhões. Quanto ao setor Bebidas, corresponde a 1093,3 milhões de € de exportações e a 440 milhões de importações.
A5: • As principais exportações do setor Bebidas (NC 4 dígitos) neste período são Vinhos de uvas frescas (69%), Cervejas de malte (16%) e Águas com açúcar ou outros produtos; outras bebidas (9%). As importações mais relevantes do mesmo setor referem-se a Vinhos de uvas frescas (29%), Águas com açúcar ou outros produtos; outras bebidas (27%) e Álcool etílico <80%; aguardentes, etc. (26%).
A6: • Os principais destinos das exportações do setor Bebidas no mesmo período são Angola (14%), França (13%) e Espanha (11%). As principais origens das importações são Espanha (60%), Reino Unido (9%) e França (8%).
A8: Trocas PT-Todo o Mundo (milhões de euros) Bebidas | H8: Trocas PT-Todo o Mundo (milhões de euros) produtos agrícolas e agroalimentares, do mar e da floresta
B10: 2018 | C10: 2019 | D10: 2020 | E10: média 2011-2020 | F10: TVMA* 2011-2020 | G10: TVT* 2011-2020 | I10: 2018 | J10: 2019 | K10: 2020 | L10: média 2011-2020 | M10: TVMA* 2011-2020 | N10: TVT* 2011-2020
A11: Exportações | B11: 1090.840732 | C11: 1135.764179 | D11: 1167.695485 | E11: 1093.27927 | F11: 0.01385121028 | G11: 0.131795637 | H11: Exportações | I11: 11650.70959 | J11: 11827.78062 | K11: 11535.40309 | L11: 10420.46897 | M11: 0.03226116554 | N11: 0.3307801135
A12: Importações | B12: 489.848927 | C12: 522.638668 | D12: 479.026576 | E12: 440.0165119 | F12: 0.01822285996 | G12: 0.176482815 | H12: Importações | I12: 13630.59679 | J12: 13833.32078 | K12: 13045.35199 | L12: 12077.58541 | M12: 0.01703303514 | N12: 0.1641676815
A13: Saldo | B13: 600.991805 | C13: 613.125511 | D13: 688.668909 | E13: 653.2627581 | H13: Saldo | I13: -1979.8872 | J13: -2005.540159 | K13: -1509.948902 | L13: -1657.116437
A14: *TVMA - Taxa de variação média anual; TVT - Taxa de variação total
C15: Saldo da Balança Comercial PT-Todo o Mundo (milhões de euros)
C16: 2011 | D16: 2012 | E16: 2013 | F16: 2014 | G16: 2015 | H16: 2016 | I16: 2017 | J16: 2018 | K16: 2019 | L16: 2020 | M16: média 2011-2020
A17: Total Economia (bens e serviços) | C17: -7378.114 | D17: -832.742 | E17: 1872.986 | F17: 258.937 | G17: 1328.685 | H17: 2139.817 | I17: 1977.876 | J17: 949.34 | K17: 813.713 | L17: -4010.291 | M17: 113.0498
A18: Total bens transacionáveis* | C18: -16723.40841 | D18: -11161.06726 | E18: -9709.911546 | F18: -10978.42505 | G18: -10710.79818 | H18: -11385.17367 | I18: -14670.57693 | J18: -17589.25468 | K18: -20074.3184 | L18: -14388.17541 | M18: -13739.11095
A19: Agrícola e Agroalimentar (AA) | C19: -3495.734942 | D19: -2982.54503 | E19: -3010.443241 | F19: -2379.878712 | G19: -2384.775008 | H19: -2504.559947 | I19: -2848.388302 | J19: -2988.999761 | K19: -3025.413711 | L19: -2467.369548 | M19: -2808.81082
B20: Mar (M) | C20: -712.442204 | D20: -676.287217 | E20: -626.201725 | F20: -676.327948 | G20: -865.883351 | H20: -969.930835 | I20: -1076.900088 | J20: -1113.427774 | K20: -1110.955306 | L20: -1025.197342 | M20: -885.355379
B21: Florestas (F) | C21: 1670.595419 | D21: 2049.489449 | E21: 2127.812011 | F21: 2017.282822 | G21: 2163.388095 | H21: 2067.075817 | I21: 2038.866826 | J21: 2122.540335 | K21: 2130.828858 | L21: 1982.617988 | M21: 2037.049762
B22: AA + M + F | C22: -2537.581727 | D22: -1609.342798 | E22: -1508.832955 | F22: -1038.923838 | G22: -1087.270264 | H22: -1407.414965 | I22: -1886.421564 | J22: -1979.8872 | K22: -2005.540159 | L22: -1509.948902 | M22: -1657.116437
B23: Bebidas | C23: 624.551015 | D23: 726.930779 | E23: 681.248103 | F23: 757.281007 | G23: 639.6708 | H23: 591.390891 | I23: 608.768761 | J23: 600.991805 | K23: 613.125511 | L23: 688.668909 | M23: 653.2627581
B24: *exclui serviços
A25: Evolução das trocas comerciais PT-Todo o Mundo (em milhões de euros 2011-2020)
F34: Exportações | H34: Importações | J34: Saldo
A35: Principais transações de Bebidas (NC 4 dígitos) em milhões de euros
A61: Principais origens e destinos em Todo o Mundo para Bebidas (média 2011-2020)
A81: Fonte: GPP a partir de dados INE/Comércio Internacional (2019 provisórios; 2020 preliminares) | L81: 2021-12-30

Sheet 2
A1: Evolução da balança comercial Portugal-Todo o Mundo 2011-2020 em milhões de euros
A3: Total da Economia (TE)(1) | B3: 2011 | C3: 2012 | D3: 2013 | E3: 2014 | F3: 2015 | G3: 2016 | H3: 2017 | I3: 2018 | J3: 2019 | K3: 2020 | L3: média período | M3: var. 11/12 | N3: var. 12/13 | O3: var. 13/14 | P3: var. 14/15 | Q3: var. 15/16 | R3: var. 16/17 | S3: var. 17/18 | T3: var. 18/19 | U3: var. 19/20 | V3: TVMA* 2011-2020 | W3: TVT* 2011-2020
A4: Exportações | B4: 60673.692 | C4: 63578.725 | D4: 67526.029 | E4: 69595.217 | F4: 72990.707 | G4: 74989.089 | H4: 83717.008 | I4: 89143.718 | J4: 93162.742 | K4: 74302.273 | L4: 67537.6927 | M4: 0.04787961478 | N4: 0.06208529661 | O4: 0.03064282071 | P4: 0.04878912871 | Q4: 0.02737858122 | R4: 0.1163891856 | S4: 0.06482207295 | T4: 0.04508476974 | U4: -0.202446478 | V4: 0.02276996076 | W4: 0.224620928
A5: Importações | B5: 68051.806 | C5: 64411.467 | D5: 65653.043 | E5: 69336.28 | F5: 71662.022 | G5: 72849.272 | H5: 81739.132 | I5: 88194.378 | J5: 92349.029 | K5: 78312.564 | L5: 67424.6429 | M5: -0.05349364277 | N5: 0.01927569822 | O5: 0.05610154277 | P5: 0.03354293019 | Q5: 0.01656735279 | R5: 0.1220308694 | S5: 0.07897375274 | T5: 0.04710788935 | U5: -0.1519936393 | V5: 0.01572669206 | W5: 0.1507786289
A6: Saldo (exp-imp) | B6: -7378.114 | C6: -832.742 | D6: 1872.986 | E6: 258.937 | F6: 1328.685 | G6: 2139.817 | H6: 1977.876 | I6: 949.34 | J6: 813.713 | K6: -4010.291 | L6: 113.0498
A7: Cobertura (exp/imp) | B7: 0.8915809229 | C7: 0.9870715256 | D7: 1.028528548 | E7: 1.00373451 | F7: 1.018540992 | G7: 1.02937321 | H7: 1.024197419 | I7: 1.010764178 | J7: 1.008811278 | K7: 0.9487912182 | L7: 1.001676684
A8: (1) Todas as transações entre PT e Todo o Mundo (inclui bens e serviços) | H8: *TVMA - Taxa de variação média anual; TVT - Taxa de variação total | V8: Exportações
A9: Fonte: GPP a partir de INE/Contas Nacionais (2019 provisórios; 2020 preliminares) | V9: Importações
A24: Total de Bens Transacionáveis (BT)(1) | B24: 2011 | C24: 2012 | D24: 2013 | E24: 2014 | F24: 2015 | G24: 2016 | H24: 2017 | I24: 2018 | J24: 2019 | K24: 2020 | L24: média período | M24: var. 11/12 | N24: var. 12/13 | O24: var. 13/14 | P24: var. 14/15 | Q24: var. 15/16 | R24: var. 16/17 | S24: var. 17/18 | T24: var. 18/19 | U24: var. 19/20 | V24: TVMA* 2011-2020 | W24: TVT* 2011-2020
A25: Exportações | B25: 42828.03339 | C25: 45213.01563 | D25: 47302.91332 | E25: 48053.69564 | F25: 49634.00136 | G25: 50038.84123 | H25: 55017.9877 | I25: 57849.99162 | J25: 59902.80994 | K25: 53757.39256 | L25: 50959.86824 | M25: 0.05568740956 | N25: 0.04622336427 | O25: 0.01587179885 | P25: 0.03288624731 | Q25: 0.008156502718 | R25: 0.09950563092 | S25: 0.05147414581 | T25: 0.0354851966 | U25: -0.1025898015 | V25: 0.02557584797 | W25: 0.2551917122
A26: Importações | B26: 59551.44181 | C26: 56374.08289 | D26: 57012.82486 | E26: 59032.12069 | F26: 60344.79954 | G26: 61424.0149 | H26: 69688.56463 | I26: 75439.2463 | J26: 79977.12835 | K26: 68145.56797 | L26: 64698.97919 | M26: -0.05335486127 | N26: 0.01133041893 | O26: 0.03541827359 | P26: 0.02223668799 | Q26: 0.0178841485 | R26: 0.1345491619 | S26: 0.08251973197 | T26: 0.06015280199 | U26: -0.1479367992 | V26: 0.01509114015 | W26: 0.1443143257
A27: Saldo (exp-imp) | B27: -16723.40841 | C27: -11161.06726 | D27: -9709.911546 | E27: -10978.42505 | F27: -10710.79818 | G27: -11385.17367 | H27: -14670.57693 | I27: -17589.25468 | J27: -20074.3184 | K27: -14388.17541 | L27: -13739.11095
A28: Cobertura (exp/imp) | B28: 0.7191771029 | C28: 0.8020177591 | D28: 0.8296889942 | E28: 0.8140262467 | F28: 0.8225066905 | G28: 0.8146462147 | H28: 0.7894837265 | I28: 0.7668421207 | J28: 0.74899926 | K28: 0.7888611712 | L28: 0.7876456302
A29: Exp BT / Exp TE | B29: 0.7058748525 | C29: 0.7451831945 | D29: 0.7440053779 | E29: 0.7116321862 | F29: 0.7131812142 | G29: 0.6855508501 | H29: 0.733679905 | I29: 0.6910183844 | J29: 0.6719801607 | K29: 0.577026732 | L29: 0.7545396682 | V29: Exportações
A30: Imp BT / Imp TE | B30: 0.8750898074 | C30: 0.8283995121 | D30: 0.8851347054 | E30: 0.8991528495 | F30: 0.8703206971 | G30: 0.857134828 | H30: 0.9566130548 | I30: 0.9229269317 | J30: 0.9068279652 | K30: 0.737913205 | L30: 0.959574666 | V30: Importações
A31: (1) Todos os produtos transacionados entre PT e Todo o Mundo (exclui serviços) | D31: TE - Total da Economia (bens e serviços) | H31: *TVMA - Taxa de variação média anual; TVT - Taxa de variação total
A43: Agro(1) + Mar + Florestas (AMF) | B43: 2011 | C43: 2012 | D43: 2013 | E43: 2014 | F43: 2015 | G43: 2016 | H43: 2017 | I43: 2018 | J43: 2019 | K43: 2020 | L43: média período | M43: var. 11/12 | N43: var. 12/13 | O43: var. 13/14 | P43: var. 14/15 | Q43: var. 15/16 | R43: var. 16/17 | S43: var. 17/18 | T43: var. 18/19 | U43: var. 19/20 | V43: TVMA* 2011-2020 | W43: TVT* 2011-2020
A44: Exportações | B44: 8668.151088 | C44: 8976.636159 | D44: 9515.868858 | E44: 9967.994201 | F44: 10404.70208 | G44: 10510.5231 | H44: 11146.92093 | I44: 11650.70959 | J44: 11827.78062 | K44: 11535.40309 | L44: 10420.46897 | M44: 0.03558833572 | N44: 0.06007068677 | O44: 0.04751277574 | P44: 0.04381100873 | Q44: 0.01017049995 | R44: 0.06054863442 | S44: 0.04519532079 | T44: 0.01519830415 | U44: -0.02471955986 | V44: 0.03226116554 | W44: 0.3307801135
A45: Importações | B45: 11205.73281 | C45: 10585.97896 | D45: 11024.70181 | E45: 11006.91804 | F45: 11491.97235 | G45: 11917.93807 | H45: 13033.34249 | I45: 13630.59679 | J45: 13833.32078 | K45: 13045.35199 | L45: 12077.58541 | M45: -0.05530685661 | N45: 0.04144376801 | O45: -0.001613084354 | P45: 0.04406813109 | Q45: 0.03706637209 | R45: 0.09359038565 | S45: 0.04582510615 | T45: 0.01487271541 | U45: -0.05696165083 | V45: 0.01703303514 | W45: 0.1641676815
A46: Saldo (exp-imp) | B46: -2537.581727 | C46: -1609.342798 | D46: -1508.832955 | E46: -1038.923838 | F46: -1087.270264 | G46: -1407.414965 | H46: -1886.421564 | I46: -1979.8872 | J46: -2005.540159 | K46: -1509.948902 | L46: -1657.116437
A47: Cobertura (exp/imp) | B47: 0.7735461153 | C47: 0.847974117 | D47: 0.8631407016 | E47: 0.9056117403 | F47: 0.9053887156 | G47: 0.8819078471 | H47: 0.8552618743 | I47: 0.8547468442 | J47: 0.8550210618 | K47: 0.8842538781 | L47: 0.8627940618
A48: Exp AMF / Exp BT | B48: 0.2023943292 | C48: 0.198540974 | D48: 0.2011687693 | E48: 0.2074344973 | F48: 0.2096285167 | G48: 0.2100472922 | H48: 0.2026050278 | I48: 0.201395182 | J48: 0.1974495125 | K48: 0.2145826376 | L48: 0.2044838288 | V48: Exportações
A49: Imp AMF / Imp BT | B49: 0.1881689591 | C49: 0.1877809521 | D49: 0.193372313 | E49: 0.1864564225 | F49: 0.1904384874 | G49: 0.1940273375 | H49: 0.1870226853 | I49: 0.1806830988 | J49: 0.17296596 | K49: 0.1914336087 | L49: 0.186673508 | V49: Importações
A50: Exp AMF / Exp TE | B50: 0.1428650673 | C50: 0.1479493972 | D50: 0.1496706462 | E50: 0.1476170648 | F50: 0.14950312 | G50: 0.1439980997 | H50: 0.1486472375 | I50: 0.1391677733 | J50: 0.1326821551 | K50: 0.1238199181 | L50: 0.1542911603
A51: Imp AMF / Imp TE | B51: 0.1646647381 | C51: 0.1555576491 | D51: 0.1711605453 | E51: 0.1676528236 | F51: 0.1657425571 | G51: 0.1663075885 | H51: 0.1789083423 | I51: 0.166757298 | J51: 0.1568503695 | K51: 0.1412613877 | L51: 0.1791271691
A52: (1) Produtos agrícolas e agroalimentares | B52: BT - Total de Bens Transacionáveis (exclui serviços); TE - Total da Economia (bens e serviços) | M52: *TVMA - Taxa de variação média anual; TVT - Taxa de variação total
A64: Bebidas | B64: 2011 | C64: 2012 | D64: 2013 | E64: 2014 | F64: 2015 | G64: 2016 | H64: 2017 | I64: 2018 | J64: 2019 | K64: 2020 | L64: média período | M64: var. 11/12 | N64: var. 12/13 | O64: var. 13/14 | P64: var. 14/15 | Q64: var. 15/16 | R64: var. 16/17 | S64: var. 17/18 | T64: var. 18/19 | U64: var. 19/20 | V64: TVMA* 2011-2020 | W64: TVT* 2011-2020
A65: Exportações | B65: 1031.719373 | C65: 1106.47112 | D65: 1097.151762 | E65: 1159.344139 | F65: 1059.288431 | G65: 1006.119222 | H65: 1078.398257 | I65: 1090.840732 | J65: 1135.764179 | K65: 1167.695485 | L65: 1093.27927 | M65: 0.07245356534 | N65: -0.008422594889 | O65: 0.05668530021 | P65: -0.08630371659 | Q65: -0.05019332549 | R65: 0.07183943356 | S65: 0.01153792202 | T65: 0.041182407 | U65: 0.02811438025 | V65: 0.01385121028 | W65: 0.131795637
A66: Importações | B66: 407.168358 | C66: 379.540341 | D66: 415.903659 | E66: 402.063132 | F66: 419.617631 | G66: 414.728331 | H66: 469.629496 | I66: 489.848927 | J66: 522.638668 | K66: 479.026576 | L66: 440.0165119 | M66: -0.06785403742 | N66: 0.09580883525 | O66: -0.03327820446 | P66: 0.04366105122 | Q66: -0.0116517983 | R66: 0.1323786221 | S66: 0.0430540057 | T66: 0.06693847673 | U66: -0.08344597266 | V66: 0.01822285996 | W66: 0.176482815
A67: Saldo (exp-imp) | B67: 624.551015 | C67: 726.930779 | D67: 681.248103 | E67: 757.281007 | F67: 639.6708 | G67: 591.390891 | H67: 608.768761 | I67: 600.991805 | J67: 613.125511 | K67: 688.668909 | L67: 653.2627581
A68: Cobertura (exp/imp) | B68: 2.533888876 | C68: 2.915292527 | D68: 2.637994974 | E68: 2.883487808 | F68: 2.524413544 | G68: 2.425971767 | H68: 2.296274544 | I68: 2.226892154 | J68: 2.173134612 | K68: 2.437642385 | L68: 2.484632373
A69: Exp Agrícola & Agroalimentar / Exp TE | B69: 0.01700439414 | C69: 0.01823642313 | D69: 0.01725658641 | E69: 0.01716884816 | F69: 0.01522070735 | G69: 0.01378420984 | H69: 0.01438073554 | I69: 0.01303009697 | J69: 0.01274082128 | K69: 0.01253393213 | L69: 0.01618769055 | V69: Exportações
A70: Imp Bebidas / Imp TE | B70: 0.005983211643 | C70: 0.005577226576 | D70: 0.006456981627 | E70: 0.006124059352 | F70: 0.006051920164 | G70: 0.005787282014 | H70: 0.006446591477 | I70: 0.005992832503 | J70: 0.005925986212 | K70: 0.005187131702 | L70: 0.00652604883 | V70: Importações
A71: Exp Bebidas / Exp BT | B71: 0.02408981434 | C71: 0.02447240257 | D71: 0.02319416892 | E71: 0.02412601411 | F71: 0.02134199142 | G71: 0.02010676501 | H71: 0.0196008306 | I71: 0.01885636802 | J71: 0.01896011523 | K71: 0.02172157966 | L71: 0.02145373031
A72: Imp Bebidas / Imp BT | B72: 0.006837254408 | C72: 0.006732532425 | D72: 0.007294914083 | E72: 0.006810921364 | F72: 0.006953666831 | G72: 0.006751892264 | H72: 0.006738975017 | I72: 0.00649329031 | J72: 0.006534851636 | K72: 0.007029460466 | L72: 0.006800980748
A73: Exp Bebidas / Exp AMF | B73: 0.1190241567 | C73: 0.1232612195 | D73: 0.1152970662 | E73: 0.1163066627 | F73: 0.1018086268 | G73: 0.09572494271 | H73: 0.09674404836 | I73: 0.09362869475 | J73: 0.09602513062 | K73: 0.1012271072 | L73: 0.1049165132
A74: Imp Bebidas / Imp AMF | B74: 0.03633571893 | C74: 0.0358531169 | D74: 0.03772470821 | E74: 0.03652822076 | F74: 0.03651397849 | G74: 0.03479866472 | H74: 0.03603292834 | I74: 0.03593745266 | J74: 0.03778114282 | K74: 0.03672009589 | L74: 0.03643249019
A75: Exp Bebidas / Exp AA | B75: 0.2482260385 | C75: 0.2473074968 | D75: 0.227444179 | E75: 0.2249050079 | F75: 0.1969229803 | G75: 0.1839323496 | H75: 0.1831212217 | I75: 0.1786249773 | J75: 0.1805190174 | K75: 0.1764668399 | L75: 0.2011074509
A76: Imp Bebidas / Imp AA | B76: 0.05320997775 | C76: 0.05089981519 | D76: 0.05308772292 | E76: 0.05336156256 | F76: 0.05404674004 | G76: 0.05200609348 | H76: 0.05374950135 | I76: 0.05385395493 | J76: 0.05609472629 | K76: 0.05273038144 | L76: 0.05336699903
A77: AA - Produtos agrícolas e agroalimentares; AMF - Agroalimentar, Mar e Florestas; BT - Total de Bens Transacionáveis (exclui serviços); TE - Total da Economia (bens e serviços) | M77: *TVMA - Taxa de variação média anual; TVT - Taxa de variação total
A89: Agroalimentar (AA)(1) | B89: 2011 | C89: 2012 | D89: 2013 | E89: 2014 | F89: 2015 | G89: 2016 | H89: 2017 | I89: 2018 | J89: 2019 | K89: 2020 | L89: média período | M89: var. 11/12 | N89: var. 12/13 | O89: var. 13/14 | P89: var. 14/15 | Q89: var. 15/16 | R89: var. 16/17 | S89: var. 17/18 | T89: var. 18/19 | U89: var. 19/20 | V89: TVMA* 2011-2020 | W89: TVT* 2011-2020
A90: Exportações | B90: 4156.370456 | C90: 4474.070275 | D90: 4823.828717 | E90: 5154.816914 | F90: 5379.201704 | G90: 5470.050396 | H90: 5888.985705 | I90: 6106.876812 | J90: 6291.659436 | K90: 6617.081634 | L90: 5436.294205 | M90: 0.07643683891 | N90: 0.07817455259 | O90: 0.06861524661 | P90: 0.04352914832 | Q90: 0.01688887999 | R90: 0.07658710225 | S90: 0.03699976837 | T90: 0.03025812206 | U90: 0.0517227929 | V90: 0.05302610615 | W90: 0.5920336515
A91: Importações | B91: 7652.105398 | C91: 7456.615305 | D91: 7834.271958 | E91: 7534.695626 | F91: 7763.976712 | G91: 7974.610343 | H91: 8737.374007 | I91: 9095.876573 | J91: 9317.073147 | K91: 9084.451182 | L91: 8245.105025 | M91: -0.02554722953 | N91: 0.05064719548 | O91: -0.03823920507 | P91: 0.03043003956 | Q91: 0.02712960623 | R91: 0.09564901998 | S91: 0.04103092825 | T91: 0.02431833504 | U91: -0.02496727903 | V91: 0.01924772378 | W91: 0.1871832273
A92: Saldo (exp-imp) | B92: -3495.734942 | C92: -2982.54503 | D92: -3010.443241 | E92: -2379.878712 | F92: -2384.775008 | G92: -2504.559947 | H92: -2848.388302 | I92: -2988.999761 | J92: -3025.413711 | K92: -2467.369548 | L92: -2808.81082
A93: Cobertura (exp/imp) | B93: 0.5431669116 | C93: 0.6000135574 | D93: 0.6157341413 | E93: 0.6841440146 | F93: 0.6928410406 | G93: 0.6859332507 | H93: 0.6739994992 | I93: 0.6713895866 | J93: 0.6752828208 | K93: 0.7283964107 | L93: 0.6593359561
A94: Exp AA / Exp AMF | B94: 0.4794990782 | C94: 0.4984127902 | D94: 0.5069246738 | E94: 0.5171368291 | F94: 0.5169971866 | G94: 0.5204355998 | H94: 0.5283060447 | I94: 0.5241635081 | J94: 0.5319391387 | K94: 0.5736324585 | L94: 0.5216938143 | V94: Exportações
A95: Imp AA / Imp AMF | B95: 0.6828741613 | C95: 0.7043859935 | D95: 0.7106107803 | E95: 0.6845418126 | F95: 0.675600017 | G95: 0.6691266809 | H95: 0.6703862815 | I95: 0.6673131567 | J95: 0.6735239713 | K95: 0.6963745546 | L95: 0.6826782627 | V95: Importações
A96: Exp AA / Exp BT | B96: 0.09704789426 | C96: 0.09895536081 | D96: 0.1019774128 | E96: 0.1072720182 | F96: 0.1083773534 | G96: 0.1093160885 | H96: 0.1070374609 | I96: 0.1055640051 | J96: 0.1050311236 | K96: 0.123091566 | L96: 0.1066779486
A97: Imp AA / Imp BT | B97: 0.1284957201 | C97: 0.1322702725 | D97: 0.1374124502 | E97: 0.1276372175 | F97: 0.1286602453 | G97: 0.1298288683 | H97: 0.1253774425 | I97: 0.120572209 | J97: 0.1164967202 | K97: 0.133309494 | L97: 0.1274379461
A98: Exp AA / Exp TE | B98: 0.06850366805 | C98: 0.07373987189 | D98: 0.07587174353 | E98: 0.07633822084 | F98: 0.07729269246 | G98: 0.07494173739 | H98: 0.07853123412 | I98: 0.07294666828 | J98: 0.07057883132 | K98: 0.07102712406 | L98: 0.08049274394
A99: Imp AA / Imp TE | B99: 0.112445295 | C99: 0.1095726292 | D99: 0.1216285286 | E99: 0.1147653678 | F99: 0.1119756744 | G99: 0.1112808447 | H99: 0.1199376983 | I99: 0.1112793389 | J99: 0.1056424838 | K99: 0.09837083595 | L99: 0.1222862246
A100: (1) Produtos agrícolas e agroalimentares | B100: AMF - Agroalimentar, Mar e Florestas; BT - Total de Bens Transacionáveis (exclui serviços); TE - Total da Economia (bens e serviços) | M100: *TVMA - Taxa de variação média anual; TVT - Taxa de variação total
A112: Mar (M) | B112: 2011 | C112: 2012 | D112: 2013 | E112: 2014 | F112: 2015 | G112: 2016 | H112: 2017 | I112: 2018 | J112: 2019 | K112: 2020 | L112: média período | M112: var. 11/12 | N112: var. 12/13 | O112: var. 13/14 | P112: var. 14/15 | Q112: var. 15/16 | R112: var. 16/17 | S112: var. 17/18 | T112: var. 18/19 | U112: var. 19/20 | V112: TVMA* 2011-2020 | W112: TVT* 2011-2020
A113: Exportações | B113: 796.110497 | C113: 784.329728 | D113: 817.063244 | E113: 897.358068 | F113: 897.821496 | G113: 959.898484 | H113: 1060.042797 | I113: 1090.807087 | J113: 1068.342159 | K113: 899.633733 | L113: 927.1407293 | M113: -0.01479790688 | N113: 0.04173438139 | O113: 0.09827247106 | P113: 0.0005164359875 | Q113: 0.06914179297 | R113: 0.104328025 | S113: 0.02902174336 | T113: -0.02059477635 | U113: -0.1579160989 | V113: 0.01367597503 | W113: 0.1300362656
A114: Importações | B114: 1508.552701 | C114: 1460.616945 | D114: 1443.264969 | E114: 1573.686016 | F114: 1763.704847 | G114: 1929.829319 | H114: 2136.942885 | I114: 2204.234861 | J114: 2179.297465 | K114: 1924.831075 | L114: 1812.496108 | M114: -0.0317759903 | N114: -0.01187989504 | O114: 0.09036528275 | P114: 0.1207476136 | Q114: 0.09419063075 | R114: 0.1073222196 | S114: 0.03148983366 | T114: -0.01131340242 | U114: -0.1167653311 | V114: 0.02744628474 | W114: 0.2759455296
A115: Saldo (exp-imp) | B115: -712.442204 | C115: -676.287217 | D115: -626.201725 | E115: -676.327948 | F115: -865.883351 | G115: -969.930835 | H115: -1076.900088 | I115: -1113.427774 | J115: -1110.955306 | K115: -1025.197342 | L115: -885.355379
A116: Cobertura (exp/imp) | B116: 0.5277313126 | C116: 0.5369852313 | D116: 0.566121441 | E116: 0.5702268806 | F116: 0.5090542772 | G116: 0.4974007155 | H116: 0.496055746 | I116: 0.494868812 | J116: 0.4902231917 | K116: 0.4673832134 | L116: 0.5115270179
A117: Exp M / Exp AMF | B117: 0.09184317266 | C117: 0.0873745704 | D117: 0.0858632308 | E117: 0.0900239356 | F117: 0.08628997629 | G117: 0.09132737491 | H117: 0.09509736403 | I117: 0.09362580694 | J117: 0.0903248203 | K117: 0.07798892904 | L117: 0.08897303296 | V117: Exportações
A118: Imp M/ Imp AMF | B118: 0.1346232974 | C118: 0.1379765585 | D118: 0.1309119279 | E118: 0.1429724479 | F118: 0.1534727716 | G118: 0.161926443 | H118: 0.163959697 | I118: 0.1617122782 | J118: 0.1575397188 | K118: 0.1475491866 | L118: 0.1500710653 | V118: Importações
A119: Exp M / Exp BT | B119: 0.01858853732 | C119: 0.01734743231 | D119: 0.01727300047 | E119: 0.01867406983 | F119: 0.01808883973 | G119: 0.0191830678 | H119: 0.01926720408 | I119: 0.01885578643 | J119: 0.01783459173 | K119: 0.0167350701 | L119: 0.01819354644
A120: Imp M / Imp BT | B120: 0.02533192573 | C120: 0.02590936952 | D120: 0.0253147423 | E120: 0.02665813116 | F120: 0.02922712248 | G120: 0.0314181566 | H120: 0.0306641828 | I120: 0.02921867555 | J120: 0.02724900869 | K120: 0.02824587324 | L120: 0.0280142922
A121: Exp M / Exp TE | B121: 0.01312118104 | C121: 0.01292701502 | D121: 0.01285120524 | E121: 0.01328906914 | F121: 0.01290062068 | G121: 0.01315096844 | H121: 0.01413596046 | I121: 0.01302969508 | J121: 0.01198449182 | K121: 0.009656582811 | L121: 0.01372775249
A122: Imp M / Imp TE | B122: 0.02216771001 | C122: 0.02146330907 | D122: 0.02240695696 | E122: 0.02396973459 | F122: 0.02543696961 | G122: 0.02692959625 | H122: 0.02933375758 | I122: 0.02696670257 | J122: 0.0247101631 | K122: 0.02084300285 | L122: 0.02688180508
A123: AMF - Agroalimentar, Mar e Florestas; BT - Total de Bens Transacionáveis (exclui serviços); TE - Total da Economia (bens e serviços) | M123: *TVMA - Taxa de variação média anual; TVT - Taxa de variação total
A135: Florestas (F) | B135: 2011 | C135: 2012 | D135: 2013 | E135: 2014 | F135: 2015 | G135: 2016 | H135: 2017 | I135: 2018 | J135: 2019 | K135: 2020 | L135: média período | M135: var. 11/12 | N135: var. 12/13 | O135: var. 13/14 | P135: var. 14/15 | Q135: var. 15/16 | R135: var. 16/17 | S135: var. 17/18 | T135: var. 18/19 | U135: var. 19/20 | V135: TVMA* 2011-2020 | W135: TVT* 2011-2020
A136: Exportações | B136: 3715.670135 | C136: 3718.236156 | D136: 3874.976897 | E136: 3915.819219 | F136: 4127.678882 | G136: 4080.574224 | H136: 4197.892423 | I136: 4453.025693 | J136: 4467.779025 | K136: 4018.687722 | L136: 4057.034038 | M136: 0.0006905944034 | N136: 0.04215459547 | O136: 0.0105400169 | P136: 0.05410353521 | Q136: -0.01141189985 | R136: 0.02875041417 | S136: 0.06077651457 | T136: 0.003313102824 | U136: -0.1005177965 | V136: 0.0087487557 | W136: 0.08155126155
A137: Importações | B137: 2045.074716 | C137: 1668.746707 | D137: 1747.164886 | E137: 1898.536397 | F137: 1964.290787 | G137: 2013.498407 | H137: 2159.025597 | I137: 2330.485358 | J137: 2336.950167 | K137: 2036.069734 | L137: 2019.984276 | M137: -0.1840167531 | N137: 0.04699225992 | O137: 0.08663836608 | P137: 0.03463425305 | Q137: 0.02505108731 | R137: 0.07227579098 | S137: 0.07941534424 | T137: 0.002774018287 | U137: -0.1287491865 | V137: -0.0004902104938 | W137: -0.004403253304
A138: Saldo (exp-imp) | B138: 1670.595419 | C138: 2049.489449 | D138: 2127.812011 | E138: 2017.282822 | F138: 2163.388095 | G138: 2067.075817 | H138: 2038.866826 | I138: 2122.540335 | J138: 2130.828858 | K138: 1982.617988 | L138: 2037.049762
A139: Cobertura (exp/imp) | B139: 1.81688723 | C139: 2.228160895 | D139: 2.217865599 | E139: 2.062546299 | F139: 2.101358368 | G139: 2.026609115 | H139: 1.944345833 | I139: 1.910771796 | J139: 1.911799014 | K139: 1.973747586 | L139: 2.008448326
A140: Exp F / Exp AMF | B140: 0.4286577492 | C140: 0.4142126394 | D140: 0.4072120954 | E140: 0.3928392353 | F140: 0.3967128371 | G140: 0.3882370253 | H140: 0.3765965912 | I140: 0.3822106849 | J140: 0.377736041 | K140: 0.3483786124 | L140: 0.3893331527 | V140: Exportações
A141: Imp F / Imp AMF | B141: 0.1825025413 | C141: 0.157637448 | D141: 0.1584772918 | E141: 0.1724857394 | F141: 0.1709272114 | G141: 0.1689468762 | H141: 0.1656540215 | I141: 0.1709745651 | J141: 0.16893631 | K141: 0.1560762588 | L141: 0.167250672 | V141: Importações
A142: Exp F / Exp BT | B142: 0.08675789759 | C142: 0.08223818085 | D142: 0.08191835608 | E142: 0.0814884093 | F142: 0.08316232358 | G142: 0.08154813588 | H142: 0.07630036282 | I142: 0.07697539046 | J142: 0.07458379714 | K142: 0.07475600155 | L142: 0.07961233374
A143: Imp F / Imp BT | B143: 0.03434131322 | C143: 0.02960131006 | D143: 0.03064512046 | E143: 0.03216107392 | F143: 0.0325511196 | G143: 0.03278031256 | H143: 0.03098105993 | I143: 0.03089221423 | J143: 0.02922023103 | K143: 0.02987824146 | L143: 0.03122126965
A144: Exp F / Exp TE | B144: 0.06124021817 | C144: 0.06128251032 | D144: 0.06094769747 | E144: 0.05798977486 | F144: 0.05930980691 | G144: 0.05590539387 | H144: 0.05598004295 | I144: 0.05319140996 | J144: 0.05011883199 | K144: 0.04313621128 | L144: 0.06007066388
A145: Imp F / Imp TE | B145: 0.03005173318 | C145: 0.02452171081 | D145: 0.02712505967 | E145: 0.02891772125 | F145: 0.0283299131 | G145: 0.02809714757 | H145: 0.02963688638 | I145: 0.02851125649 | J145: 0.02649772264 | K145: 0.02204754891 | L145: 0.0299591394
A146: AMF - Agroalimentar, Mar e Florestas; BT - Total de Bens Transacionáveis (exclui serviços); TE - Total da Economia (bens e serviços) | M146: *TVMA - Taxa de variação média anual; TVT - Taxa de variação total
A157: Fonte: GPP a partir de dados INE/Comércio Internacional (2019 provisórios; 2020 preliminares) | M157: 2021-12-30

Sheet 3
A1: Principais transações de Bebidas, líquidos alcoólicos e vinagres (NC 22) entre Portugal e Todo o Mundo em 2011-2020 (NC a 4 dígitos) em milhões de euros
AC8: DESAGREGAÇÃO A 4 DÍGITOS | AN8: DESAGREGAÇÃO A 4 DÍGITOS
AC10: P | AE10: Cód.NC | AF10: Descritivo | AG10: Média export quinquénio | AH10: % do total | AI10: % acumulada | AN10: P | AO10: NC | AP10: Exportações | AQ10: 2011 | AR10: 2012 | AS10: 2013 | AT10: 2014 | AU10: 2015 | AV10: 2016 | AW10: 2017 | AX10: 2018 | AY10: 2019 | AZ10: 2020 | BA10: média período
AC11: 1 | AD11: º | AE11: 2204 | AF11: Vinhos de uvas frescas | AG11: 752.1858702 | AH11: 0.6880089021 | AN11: 1º | AO11: 2204 | AP11: Vinhos de uvas frescas | AQ11: 656.91826 | AR11: 703.504835 | AS11: 720.793562 | AT11: 726.284803 | AU11: 735.533905 | AV11: 723.973625 | AW11: 778.041 | AX11: 801.216698 | AY11: 819.402338 | AZ11: 856.189676 | BA11: 752.1858702
AC12: 2 | AD12: º | AE12: 2203 | AF12: Cervejas de malte | AG12: 171.0978578 | AH12: 0.1564996817 | AN12: 2º | AO12: 2203 | AP12: Cervejas de malte | AQ12: 209.58127 | AR12: 233.37706 | AS12: 199.19682 | AT12: 224.011815 | AU12: 156.561137 | AV12: 135.618392 | AW12: 157.187226 | AX12: 129.220632 | AY12: 131.545094 | AZ12: 134.679132 | BA12: 171.0978578
AC13: 3 | AD13: º | AE13: 2202 | AF13: Águas com açúcar ou outros produtos; outras bebidas | AG13: 99.928756 | AH13: 0.09140277214 | AI13: 0.9359113559 | AN13: 3º | AO13: 2202 | AP13: Águas com açúcar ou outros produtos; outras bebidas | AQ13: 93.292115 | AR13: 100.673585 | AS13: 104.358465 | AT13: 142.444785 | AU13: 102.200769 | AV13: 82.03216 | AW13: 79.310227 | AX13: 87.562825 | AY13: 105.837945 | AZ13: 101.574684 | BA13: 99.928756
AC14: 4 | AD14: º | AE14: 2208 | AF14: Álcool etílico <80%; aguardentes, etc. | AG14: 45.4716629 | AH14: 0.04159199223 | AN14: - | AO14: - | AP14: Outros | AQ14: 71.927728 | AR14: 68.91564 | AS14: 72.802915 | AT14: 66.602736 | AU14: 64.99262 | AV14: 64.495045 | AW14: 63.859804 | AX14: 72.840577 | AY14: 78.978802 | AZ14: 75.251993 | BA14: 70.066786
AC15: 5 | AD15: º | AE15: 2201 | AF15: Águas sem açúcar ou outros produtos | AG15: 14.8073964 | AH15: 0.01354402009 | AP15: Total | AQ15: 1031.719373 | AR15: 1106.47112 | AS15: 1097.151762 | AT15: 1159.344139 | AU15: 1059.288431 | AV15: 1006.119222 | AW15: 1078.398257 | AX15: 1090.840732 | AY15: 1135.764179 | AZ15: 1167.695485 | BA15: 1093.27927
AC16: 6 | AD16: º | AE16: 2209 | AF16: Vinagres para usos alimentares | AG16: 4.7542975 | AH16: 0.004348657869
AC17: 7 | AD17: º | AE17: 2207 | AF17: Álcool etílico teor alcoólico =>80%; aguardentes desnaturadas | AG17: 2.1531532 | AH17: 0.001969444824
AC18: 8 | AD18: º | AE18: 2205 | AF18: Vermutes, etc. | AG18: 1.7208218 | AH18: 0.001574000209
AC19: 9 | AD19: º | AE19: 2206 | AF19: Sidra, perada e outras bebidas fermentadas | AG19: 1.1594542 | AH19: 0.001060528844
AC20: 10 | AD20: º | AG20: 0 | AH20: 0 | AI20: 1
AG21: 0 | AH21: 0
AE22: Total | AG22: 1093.27927 | AH22: 1
AC31: DESAGREGAÇÃO A 4 DÍGITOS | AN31: DESAGREGAÇÃO A 4 DÍGITOS
G33: média 2011-2020 em milhões de euros | I33: Cód. NC | J33: Descritivo | K33: Export | L33: Import | M33: Saldo | AC33: P | AE33: Cód.NC | AF33: Descritivo | AG33: Média import quinquénio | AH33: % do total | AI33: % acumulada | AN33: P | AO33: NC | AP33: Importações | AQ33: 2011 | AR33: 2012 | AS33: 2013 | AT33: 2014 | AU33: 2015 | AV33: 2016 | AW33: 2017 | AX33: 2018 | AY33: 2019 | AZ33: 2020 | BA33: média período
I34: 2204 | J34: Vinhos de uvas frescas | K34: 752.1858702 | L34: 127.3557675 | M34: 624.8301027 | AC34: 1 | AD34: º | AE34: 2204 | AF34: Vinhos de uvas frescas | AG34: 127.3557675 | AH34: 0.2894340645 | AN34: 1º | AO34: 2204 | AP34: Vinhos de uvas frescas | AQ34: 81.914569 | AR34: 86.3713 | AS34: 122.399001 | AT34: 125.153991 | AU34: 116.754909 | AV34: 110.190536 | AW34: 137.205926 | AX34: 158.104392 | AY34: 169.208338 | AZ34: 166.254713 | BA34: 127.3557675
I35: 2203 | J35: Cervejas de malte | K35: 171.0978578 | L35: 34.39058 | M35: 136.7072778 | AC35: 2 | AD35: º | AE35: 2202 | AF35: Águas com açúcar ou outros produtos; outras bebidas | AG35: 119.5788186 | AH35: 0.2717598439 | AN35: 2º | AO35: 2202 | AP35: Águas com açúcar ou outros produtos; outras bebidas | AQ35: 135.256201 | AR35: 124.42443 | AS35: 116.35964 | AT35: 106.746208 | AU35: 109.119446 | AV35: 109.940548 | AW35: 125.120074 | AX35: 124.68805 | AY35: 127.44408 | AZ35: 116.689509 | BA35: 119.5788186
I36: 2201 | J36: Águas sem açúcar ou outros produtos | K36: 14.8073964 | L36: 4.790019 | M36: 10.0173774 | AC36: 3 | AD36: º | AE36: 2208 | AF36: Álcool etílico <80%; aguardentes, etc. | AG36: 112.8111081 | AH36: 0.2563792609 | AI36: 0.8175731693 | AN36: 3º | AO36: 2208 | AP36: Álcool etílico <80%; aguardentes, etc. | AQ36: 122.32267 | AR36: 106.107926 | AS36: 117.190666 | AT36: 109.131651 | AU36: 113.357159 | AV36: 104.910753 | AW36: 112.876857 | AX36: 114.398759 | AY36: 135.139468 | AZ36: 92.675172 | BA36: 112.8111081
I37: 2209 | J37: Vinagres para usos alimentares | K37: 4.7542975 | L37: 2.4260726 | M37: 2.3282249 | AC37: 4 | AD37: º | AE37: 2203 | AF37: Cervejas de malte | AG37: 34.39058 | AH37: 0.07815747607 | AN37: - | AO37: - | AP37: Outros | AQ37: 67.674918 | AR37: 62.636685 | AS37: 59.954352 | AT37: 61.031282 | AU37: 80.386117 | AV37: 89.686494 | AW37: 94.426639 | AX37: 92.657726 | AY37: 90.846782 | AZ37: 103.407182 | BA37: 80.2708177
M38: 0 | AC38: 5 | AD38: º | AE38: 2207 | AF38: Álcool etílico teor alcoólico =>80%; aguardentes desnaturadas | AG38: 20.1003109 | AH38: 0.04568081051 | AP38: Total | AQ38: 407.168358 | AR38: 379.540341 | AS38: 415.903659 | AT38: 402.063132 | AU38: 419.617631 | AV38: 414.728331 | AW38: 469.629496 | AX38: 489.848927 | AY38: 522.638668 | AZ38: 479.026576 | BA38: 440.0165119
M39: 0 | AC39: 6 | AD39: º | AE39: 2205 | AF39: Vermutes, etc. | AG39: 12.6430236 | AH39: 0.02873306628
M40: 0 | AC40: 7 | AD40: º | AE40: 2206 | AF40: Sidra, perada e outras bebidas fermentadas | AG40: 5.9208116 | AH40: 0.01345588504
M41: 0 | AC41: 8 | AD41: º | AE41: 2201 | AF41: Águas sem açúcar ou outros produtos | AG41: 4.790019 | AH41: 0.0108859983
M42: 0 | AC42: 9 | AD42: º | AE42: 2209 | AF42: Vinagres para usos alimentares | AG42: 2.4260726 | AH42: 0.005513594455
M43: 0 | AC43: 10 | AD43: º | AG43: 0 | AH43: 0 | AI43: 1
I44: - | J44: Outros | K44: 0 | L44: 0 | M44: 0 | AG44: 0 | AH44: 0
M45: 0 | AE45: Total | AG45: 440.0165119 | AH45: 1
M46: 0
M47: 0
M48: 0
M49: 0
I50: 2206 | J50: Sidra, perada e outras bebidas fermentadas | K50: 1.1594542 | L50: 5.9208116 | M50: -4.7613574
I51: 2205 | J51: Vermutes, etc. | K51: 1.7208218 | L51: 12.6430236 | M51: -10.9222018
I52: 2207 | J52: Álcool etílico teor alcoólico =>80%; aguardentes desnaturadas | K52: 2.1531532 | L52: 20.1003109 | M52: -17.9471577
I53: 2202 | J53: Águas com açúcar ou outros produtos; outras bebidas | K53: 99.928756 | L53: 119.5788186 | M53: -19.6500626
I54: 2208 | J54: Álcool etílico <80%; aguardentes, etc. | K54: 45.4716629 | L54: 112.8111081 | M54: -67.3394452
I55: Total | K55: 1093.27927 | L55: 440.0165119 | M55: 653.2627581
A62: Fonte: GPP a partir de dados INE/Comércio Internacional (2019 provisórios; 2020 preliminares) | Y62: 2021-12-30

Sheet 3A
A1: Principais produtos agrícolas e agroalimentares transacionados entre Portugal e Todo o Mundo em 2011-2020 (NC 2 dígitos) em milhões de euros
AC4: P | AE4: Cód.NC | AF4: Descritivo | AG4: Média export quinquénio | AH4: % do total | AI4: % acumulada | AN4: P | AO4: NC | AP4: Exportações | AQ4: 2011 | AR4: 2012 | AS4: 2013 | AT4: 2014 | AU4: 2015 | AV4: 2016 | AW4: 2017 | AX4: 2018 | AY4: 2019 | AZ4: 2020 | BA4: média período
AC5: 1 | AD5: º | AE5: 22 | AF5: Bebidas, líquidos alcoólicos e vinagres | AG5: 1093.27927 | AH5: 0.2011074509 | AN5: 1º | AO5: 22 | AP5: Bebidas, líquidos alcoólicos e vinagres | AQ5: 1031.719373 | AR5: 1106.47112 | AS5: 1097.151762 | AT5: 1159.344139 | AU5: 1059.288431 | AV5: 1006.119222 | AW5: 1078.398257 | AX5: 1090.840732 | AY5: 1135.764179 | AZ5: 1167.695485 | BA5: 1093.27927
AC6: 2 | AD6: º | AE6: 15 | AF6: Gorduras e óleos animais ou vegetais | AG6: 625.9009827 | AH6: 0.1151337582 | AN6: 2º | AO6: 15 | AP6: Gorduras e óleos animais ou vegetais | AQ6: 415.709734 | AR6: 439.942097 | AS6: 536.384637 | AT6: 524.803551 | AU6: 592.20783 | AV6: 599.135721 | AW6: 759.753283 | AX6: 816.699821 | AY6: 771.591783 | AZ6: 802.78137 | BA6: 625.9009827
AC7: 3 | AD7: º | AE7: 24 | AF7: Tabaco | AG7: 562.850908 | AH7: 0.1035357703 | AI7: 0.4197769794 | AN7: 3º | AO7: 24 | AP7: Tabaco | AQ7: 387.429433 | AR7: 411.528998 | AS7: 460.428646 | AT7: 563.697778 | AU7: 714.552027 | AV7: 656.199074 | AW7: 553.167679 | AX7: 587.898534 | AY7: 607.806963 | AZ7: 685.799948 | BA7: 562.850908
AC8: 4 | AD8: º | AE8: 08 | AF8: Frutas | AG8: 522.0830083 | AH8: 0.09603656252 | AO8: - | AP8: Outros | AQ8: 2321.511916 | AR8: 2516.12806 | AS8: 2729.863672 | AT8: 2906.971446 | AU8: 3013.153416 | AV8: 3208.596379 | AW8: 3497.666486 | AX8: 3611.437725 | AY8: 3776.496511 | AZ8: 3960.804831 | BA8: 3154.263044
AC9: 5 | AD9: º | AE9: 20 | AF9: Preparações de produtos vegetais | AG9: 410.4087216 | AH9: 0.07549420729 | AP9: Total | AQ9: 4156.370456 | AR9: 4474.070275 | AS9: 4823.828717 | AT9: 5154.816914 | AU9: 5379.201704 | AV9: 5470.050396 | AW9: 5888.985705 | AX9: 6106.876812 | AY9: 6291.659436 | AZ9: 6617.081634 | BA9: 5436.294205
AC10: 6 | AD10: º | AE10: 04 | AF10: Leite e laticínios; ovos; mel, etc. | AG10: 331.5355528 | AH10: 0.06098557957
AC11: 7 | AD11: º | AE11: 19a | AF11: Preparações à base de cereais (exc. NC 19022010) (a) | AG11: 311.1304255 | AH11: 0.05723208012
AC12: 8 | AD12: º | AE12: 07 | AF12: Produtos hortícolas | AG12: 256.3863117 | AH12: 0.04716196402
AC13: 9 | AD13: º | AE13: 02 | AF13: Carnes e miudezas | AG13: 193.5357365 | AH13: 0.03560067377
AC14: 10 | AD14: º | AE14: 21 | AF14: Preparações alimentícias diversas | AG14: 167.8498288 | AH14: 0.0308757809 | AI14: 0.8231638276
AE15: - | AF15: Outros | AG15: 961.333459 | AH15: 0.1768361724
AE16: Total | AG16: 5436.294205 | AH16: 1
AC38: P | AE38: Cód.NC | AF38: Descritivo | AG38: Média import quinquénio | AH38: % do total | AI38: % acumulada | AN38: P | AO38: NC | AP38: Importações | AQ38: 2011 | AR38: 2012 | AS38: 2013 | AT38: 2014 | AU38: 2015 | AV38: 2016 | AW38: 2017 | AX38: 2018 | AY38: 2019 | AZ38: 2020 | BA38: média período
AC39: 1 | AD39: º | AE39: 02 | AF39: Carnes e miudezas | AG39: 965.0967579 | AH39: 0.117050875 | AN39: 1º | AO39: 02 | AP39: Carnes e miudezas | AQ39: 796.89738 | AR39: 794.758824 | AS39: 898.104206 | AT39: 959.857388 | AU39: 934.522579 | AV39: 931.358889 | AW39: 1027.780381 | AX39: 1125.824426 | AY39: 1165.965459 | AZ39: 1015.898047 | BA39: 965.0967579
AC40: 2 | AD40: º | AE40: 10 | AF40: Cereais | AG40: 778.3323015 | AH40: 0.09439931925 | AN40: 2º | AO40: 10 | AP40: Cereais | AQ40: 829.52501 | AR40: 834.330103 | AS40: 746.740469 | AT40: 710.988357 | AU40: 729.365585 | AV40: 737.446415 | AW40: 770.612636 | AX40: 856.184287 | AY40: 796.616051 | AZ40: 771.514102 | BA40: 778.3323015
AC41: 3 | AD41: º | AE41: 08 | AF41: Frutas | AG41: 643.7676368 | AH41: 0.07807876732 | AI41: 0.2895289616 | AN41: 3º | AO41: 08 | AP41: Frutas | AQ41: 478.958235 | AR41: 450.23829 | AS41: 535.091613 | AT41: 509.633802 | AU41: 553.923014 | AV41: 673.769371 | AW41: 755.955282 | AX41: 814.572377 | AY41: 779.192888 | AZ41: 886.341496 | BA41: 643.7676368
AC42: 4 | AD42: º | AE42: 12 | AF42: Sementes e frutos oleaginosos | AG42: 630.8288161 | AH42: 0.07650949432 | AO42: - | AP42: Outros | AQ42: 5546.724773 | AR42: 5377.288088 | AS42: 5654.33567 | AT42: 5354.216079 | AU42: 5546.165534 | AV42: 5632.035668 | AW42: 6183.025708 | AX42: 6299.295483 | AY42: 6575.298749 | AZ42: 6410.697537 | BA42: 5857.908329
AC43: 5 | AD43: º | AE43: 15 | AF43: Gorduras e óleos animais ou vegetais | AG43: 604.6193408 | AH43: 0.07333070215 | AP43: Total | AQ43: 7652.105398 | AR43: 7456.615305 | AS43: 7834.271958 | AT43: 7534.695626 | AU43: 7763.976712 | AV43: 7974.610343 | AW43: 8737.374007 | AX43: 9095.876573 | AY43: 9317.073147 | AZ43: 9084.451182 | BA43: 8245.105025
AC44: 6 | AD44: º | AE44: 04 | AF44: Leite e laticínios; ovos; mel, etc. | AG44: 528.6301963 | AH44: 0.06411442846
AC45: 7 | AD45: º | AE45: 19a | AF45: Preparações à base de cereais (exc. NC 19022010) (a) | AG45: 501.8620763 | AH45: 0.06086788158
AC46: 8 | AD46: º | AE46: 22 | AF46: Bebidas, líquidos alcoólicos e vinagres | AG46: 440.0165119 | AH46: 0.05336699903
AC47: 9 | AD47: º | AE47: 21 | AF47: Preparações alimentícias diversas | AG47: 374.8913608 | AH47: 0.04546835482
AC48: 10 | AD48: º | AE48: 07 | AF48: Produtos hortícolas | AG48: 363.7116917 | AH48: 0.04411243891 | AI48: 0.7072992609
AE49: - | AF49: Outros | AG49: 2413.348335 | AH49: 0.2927007391
AE50: Total | AG50: 8245.105025 | AH50: 1
A56: Fonte: GPP a partir de dados INE/Comércio Internacional (2019 provisórios; 2020 preliminares) | Y56: 2021-12-30

Sheet 3B
A1: Principais origens e destinos em Todo o Mundo para Bebidas, líquidos alcoólicos e vinagres (NC 22) (2011-2020) em milhões de euros
AC4: P | AE4: País | AF4: Média export quinquénio | AG4: % do total | AH4: % acumulada | AM4: P | AN4: Exportações | AO4: 2011 | AP4: 2012 | AQ4: 2013 | AR4: 2014 | AS4: 2015 | AT4: 2016 | AU4: 2017 | AV4: 2018 | AW4: 2019 | AX4: 2020 | AY4: média período
AC5: 1 | AD5: º | AE5: Angola | AF5: 152.4435732 | AG5: 0.1394369923 | AM5: 1º | AN5: Angola | AO5: 255.790013 | AP5: 300.625325 | AQ5: 285.575768 | AR5: 302.901345 | AS5: 157.299891 | AT5: 47.118696 | AU5: 57.198168 | AV5: 48.10069 | AW5: 41.175345 | AX5: 28.650491 | AY5: 152.4435732
AC6: 2 | AD6: º | AE6: França | AF6: 137.2111697 | AG6: 0.125504227 | AM6: 2º | AN6: França | AO6: 137.940313 | AP6: 137.076752 | AQ6: 134.531325 | AR6: 131.74324 | AS6: 132.238764 | AT6: 133.356126 | AU6: 134.359816 | AV6: 147.102716 | AW6: 146.949485 | AX6: 136.81316 | AY6: 137.2111697
AC7: 3 | AD7: º | AE7: Espanha | AF7: 120.3172765 | AG7: 0.1100517313 | AH7: 0.3749929507 | AM7: 3º | AN7: Espanha | AO7: 106.147819 | AP7: 109.612929 | AQ7: 97.151947 | AR7: 126.081512 | AS7: 119.187634 | AT7: 121.782576 | AU7: 104.390776 | AV7: 115.831356 | AW7: 136.618365 | AX7: 166.367851 | AY7: 120.3172765
AC8: 4 | AD8: º | AE8: Reino Unido | AF8: 83.6422879 | AG8: 0.07650587567 | AN8: Outros | AO8: 531.841228 | AP8: 559.156114 | AQ8: 579.892722 | AR8: 598.618042 | AS8: 650.562142 | AT8: 703.861824 | AU8: 782.449497 | AV8: 779.80597 | AW8: 811.020984 | AX8: 835.863983 | AY8: 683.3072506
AC9: 5 | AD9: º | AE9: Estados Unidos | AF9: 75.5056459 | AG9: 0.06906345704 | AN9: Total | AO9: 1031.719373 | AP9: 1106.47112 | AQ9: 1097.151762 | AR9: 1159.344139 | AS9: 1059.288431 | AT9: 1006.119222 | AU9: 1078.398257 | AV9: 1090.840732 | AW9: 1135.764179 | AX9: 1167.695485 | AY9: 1093.27927
AC10: 6 | AD10: º | AE10: Bélgica | AF10: 51.09914 | AG10: 0.04673932947
AC11: 7 | AD11: º | AE11: Países Baixos | AF11: 50.5125718 | AG11: 0.04620280763
AC12: 8 | AD12: º | AE12: Alemanha | AF12: 49.2413902 | AG12: 0.04504008404
AC13: 9 | AD13: º | AE13: Suíça | AF13: 44.5491926 | AG13: 0.04074822767
AC14: 10 | AD14: º | AE14: Canadá | AF14: 44.0133472 | AG14: 0.04025810093 | AH14: 0.7395508332
AE15: Outros | AF15: 284.743675 | AG15: 0.2604491668
AE16: Total | AF16: 1093.27927 | AG16: 1
AF18: 0
AC38: P | AE38: País | AF38: Média import quinquénio | AG38: % do total | AH38: % acumulada | AM38: P | AN38: Importações | AO38: 2011 | AP38: 2012 | AQ38: 2013 | AR38: 2014 | AS38: 2015 | AT38: 2016 | AU38: 2017 | AV38: 2018 | AW38: 2019 | AX38: 2020 | AY38: média período
AC39: 1 | AD39: º | AE39: Espanha | AF39: 264.2318012 | AG39: 0.6005042858 | AM39: 1º | AN39: Espanha | AO39: 240.040484 | AP39: 222.986748 | AQ39: 269.825287 | AR39: 244.904571 | AS39: 247.100956 | AT39: 237.257727 | AU39: 276.269403 | AV39: 287.99277 | AW39: 309.70391 | AX39: 306.236156 | AY39: 264.2318012
AC40: 2 | AD40: º | AE40: Reino Unido | AF40: 39.5375644 | AG40: 0.08985472893 | AM40: 2º | AN40: Reino Unido | AO40: 62.235318 | AP40: 34.746233 | AQ40: 50.405719 | AR40: 33.024849 | AS40: 36.75449 | AT40: 34.270275 | AU40: 36.197639 | AV40: 32.920938 | AW40: 46.899832 | AX40: 27.920351 | AY40: 39.5375644
AC41: 3 | AD41: º | AE41: França | AF41: 34.2234511 | AG41: 0.07777765192 | AH41: 0.7681366666 | AM41: 3º | AN41: França | AO41: 35.07325 | AP41: 38.709837 | AQ41: 25.012089 | AR41: 29.041268 | AS41: 35.314407 | AT41: 33.576872 | AU41: 35.608354 | AV41: 36.3957 | AW41: 36.13419 | AX41: 37.368544 | AY41: 34.2234511
AC42: 4 | AD42: º | AE42: Países Baixos | AF42: 28.3970711 | AG42: 0.0645363761 | AN42: Outros | AO42: 69.819306 | AP42: 83.097523 | AQ42: 70.660564 | AR42: 95.092444 | AS42: 100.447778 | AT42: 109.623457 | AU42: 121.5541 | AV42: 132.539519 | AW42: 129.900736 | AX42: 107.501525 | AY42: 102.0236952
AC43: 5 | AD43: º | AE43: Itália | AF43: 24.0270889 | AG43: 0.05460497106 | AN43: Total | AO43: 407.168358 | AP43: 379.540341 | AQ43: 415.903659 | AR43: 402.063132 | AS43: 419.617631 | AT43: 414.728331 | AU43: 469.629496 | AV43: 489.848927 | AW43: 522.638668 | AX43: 479.026576 | AY43: 440.0165119
AC44: 6 | AD44: º | AE44: Alemanha | AF44: 15.0591664 | AG44: 0.03422409385
AC45: 7 | AD45: º | AE45: Bélgica | AF45: 7.9962251 | AG45: 0.0181725569
AC46: 8 | AD46: º | AE46: Irlanda | AF46: 5.0674118 | AG46: 0.01151641282
AC47: 9 | AD47: º | AE47: Áustria | AF47: 4.7417845 | AG47: 0.01077637855
AC48: 10 | AD48: º | AE48: Estados Unidos | AF48: 2.1198856 | AG48: 0.004817741023 | AH48: 0.9667851969
AE49: Outros | AF49: 14.6150618 | AG49: 0.03321480309
AE50: Total | AF50: 440.0165119 | AG50: 1
AF52: 0
A57: Fonte: GPP a partir de dados INE/Comércio Internacional (2019 provisórios; 2020 preliminares) | Y57: 2021-12-30

Sheet 4
A1: Evolução da balança comercial por país 2011-2020 em euros Bebidas, líquidos alcoólicos e vinagres (NC 2 dígitos)
A2: =+aux!A55 -> Evolução da balança comercial Portugal-Espanha
A4: Selecione o país:
A19: Fonte: GPP a partir de dados INE/Comércio Internacional (2019 provisórios; 2020 preliminares) | R19: 2021-12-30

Sheet 5.1
A1: Trocas comerciais Portugal-Todo o Mundo (2011-2020) por país em milhares de euros | C1: Bebidas, líquidos alcoólicos e vinagres (NC 22)
A2: Cód. País | B2: País | C2: Importações | O2: Exportações | AA2: Saldo período (exp-imp) | AB2: Evolução das importações | AC2: =+"Variação das Importações " & INDEX(C3:K3,1,aux!$BA$1) & "-"& L3 &"" -> Variação das Importações 2011-2020 | AG2: Evolução das exportações | AH2: ="Variação das Exportações " & INDEX(O3:W3,1,aux!BA1) & "-"& X3 &"" -> Variação das Exportações 2011-2020
C3: 2011 | D3: 2012 | E3: 2013 | F3: 2014 | G3: 2015 | H3: 2016 | I3: 2017 | J3: 2018 | K3: 2019 | L3: 2020 | M3: média período | N3: % Total | O3: 2011 | P3: 2012 | Q3: 2013 | R3: 2014 | S3: 2015 | T3: 2016 | U3: 2017 | V3: 2018 | W3: 2019 | X3: 2020 | Y3: média período | Z3: % Total | AC3: variação total em valor | AD3: % no total de variação | AE3: taxa de variação média anual | AF3: taxa de variação total | AH3: variação total em valor | AI3: % no total de variação | AJ3: taxa de variação média anual | AK3: taxa de variação total | CC3: filtro
A4: 0660 | B4: Afeganistão | C4: 0 | D4: 0 | E4: 0 | F4: 0 | G4: 0 | H4: 0 | I4: 0 | J4: 0 | K4: 0 | L4: 0 | M4: 0 | N4: 0 | O4: 0 | P4: 0 | Q4: 0 | R4: 0 | S4: 0 | T4: 0 | U4: 0 | V4: 0 | W4: 0 | X4: 0 | Y4: 0 | Z4: 0 | AA4: 0 | AC4: =L4-INDEX($C4:$L4,1,aux!$BA$1) -> 0 | AD4: =AC4/$AC$252 -> 0 | AE4: =+IF(INDEX($C4:$L4,1,aux!$BA$1)>0,(L4/INDEX($C4:$L4,1,aux!$BA$1))^(1/($L$3-INDEX($C$3:$L$3,1,aux!$BA$1)))-1,"n.d.") -> n.d. | AF4: =IF(INDEX($C4:$L4,1,aux!$BA$1)>0,(L4-INDEX($C4:$L4,1,aux!$BA$1))/INDEX($C4:$L4,1,aux!$BA$1),"n.d.") -> n.d. | AH4: =X4-INDEX($O4:$X4,1,aux!$BA$1) -> 0 | AI4: =AH4/$AH$252 -> 0 | AJ4: =+IF(INDEX($O4:$X4,1,aux!$BA$1)>0,(X4/INDEX($O4:$X4,1,aux!$BA$1))^(1/($X$3-INDEX($O$3:$X$3,1,aux!$BA$1)))-1,"n.d.") -> n.d. | AK4: =IF(INDEX($O4:$X4,1,aux!$BA$1)>0,(X4-INDEX($O4:$X4,1,aux!$BA$1))/INDEX($O4:$X4,1,aux!$BA$1),"n.d.") -> n.d. | CC4: =+IF(ISNA(MATCH('5.1'!A4,AUX_2d_pais!$G$2:$G$40000,0)),0,1) -> 0
A5: 0388 | B5: África do Sul | C5: 148.485 | D5: 118.458 | E5: 173.182 | F5: 101.04 | G5: 223.71 | H5: 57.047 | I5: 98.9 | J5: 129.827 | K5: 30.939 | L5: 22.84 | M5: 110.4428 | N5: 0.0002509969445 | O5: 1001.534 | P5: 1102.025 | Q5: 1231.549 | R5: 1476.162 | S5: 1243.574 | T5: 1001.047 | U5: 1038.023 | V5: 1443.587 | W5: 1547.492 | X5: 923.853 | Y5: 1200.8846 | Z5: 0.001098424376 | AA5: 1090.4418 | AC5: =L5-INDEX($C5:$L5,1,aux!$BA$1) -> -125.645 | AD5: -0.001748512606 | AE5: =+IF(INDEX($C5:$L5,1,aux!$BA$1)>0,(L5/INDEX($C5:$L5,1,aux!$BA$1))^(1/($L$3-INDEX($C$3:$L$3,1,aux!$BA$1)))-1,"n.d.") -> -0.1877903063 | AF5: =IF(INDEX($C5:$L5,1,aux!$BA$1)>0,(L5-INDEX($C5:$L5,1,aux!$BA$1))/INDEX($C5:$L5,1,aux!$BA$1),"n.d.") -> -0.8461797488 | AH5: =X5-INDEX($O5:$X5,1,aux!$BA$1) -> -77.681 | AI5: -0.0005712841679 | AJ5: =+IF(INDEX($O5:$X5,1,aux!$BA$1)>0,(X5/INDEX($O5:$X5,1,aux!$BA$1))^(1/($X$3-INDEX($O$3:$X$3,1,aux!$BA$1)))-1,"n.d.") -> -0.008930455089 | AK5: =IF(INDEX($O5:$X5,1,aux!$BA$1)>0,(X5-INDEX($O5:$X5,1,aux!$BA$1))/INDEX($O5:$X5,1,aux!$BA$1),"n.d.") -> -0.07756201986 | CC5: =+IF(ISNA(MATCH('5.1'!A5,AUX_2d_pais!$G$2:$G$40000,0)),0,1) -> 1
A6: 0070 | B6: Albânia | C6: 0 | D6: 0 | E6: 0 | F6: 0 | G6: 0 | H6: 0 | I6: 0 | J6: 0 | K6: 0 | L6: 0 | M6: 0 | N6: 0 | O6: 0 | P6: 0 | Q6: 0 | R6: 0.005 | S6: 0 | T6: 68.952 | U6: 0.026 | V6: 0 | W6: 0 | X6: 0 | Y6: 6.8983 | Z6: 6.309732736e-06 | AA6: 6.8983 | AC6: =L6-INDEX($C6:$L6,1,aux!$BA$1) -> 0 | AD6: 0 | AE6: =+IF(INDEX($C6:$L6,1,aux!$BA$1)>0,(L6/INDEX($C6:$L6,1,aux!$BA$1))^(1/($L$3-INDEX($C$3:$L$3,1,aux!$BA$1)))-1,"n.d.") -> n.d. | AF6: =IF(INDEX($C6:$L6,1,aux!$BA$1)>0,(L6-INDEX($C6:$L6,1,aux!$BA$1))/INDEX($C6:$L6,1,aux!$BA$1),"n.d.") -> n.d. | AH6: =X6-INDEX($O6:$X6,1,aux!$BA$1) -> 0 | AI6: 0 | AJ6: =+IF(INDEX($O6:$X6,1,aux!$BA$1)>0,(X6/INDEX($O6:$X6,1,aux!$BA$1))^(1/($X$3-INDEX($O$3:$X$3,1,aux!$BA$1)))-1,"n.d.") -> n.d. | AK6: =IF(INDEX($O6:$X6,1,aux!$BA$1)>0,(X6-INDEX($O6:$X6,1,aux!$BA$1))/INDEX($O6:$X6,1,aux!$BA$1),"n.d.") -> n.d. | CC6: =+IF(ISNA(MATCH('5.1'!A6,AUX_2d_pais!$G$2:$G$40000,0)),0,1) -> 1
A7: 0004 | B7: Alemanha | C7: 13333.124 | D7: 12063.47 | E7: 13663.796 | F7: 13154.867 | G7: 15473.599 | H7: 16133.053 | I7: 16495.275 | J7: 16625.423 | K7: 16229.121 | L7: 17419.936 | M7: 15059.1664 | N7: 0.03422409385 | O7: 39056.125 | P7: 42312.791 | Q7: 42579.18 | R7: 50195.102 | S7: 48252.033 | T7: 48543.032 | U7: 52003.863 | V7: 56386.188 | W7: 54861.642 | X7: 58223.946 | Y7: 49241.3902 | Z7: 0.04504008404 | AA7: 34182.2238 | AC7: =L7-INDEX($C7:$L7,1,aux!$BA$1) -> 4086.812 | AD7: 0.05687327231 | AE7: =+IF(INDEX($C7:$L7,1,aux!$BA$1)>0,(L7/INDEX($C7:$L7,1,aux!$BA$1))^(1/($L$3-INDEX($C$3:$L$3,1,aux!$BA$1)))-1,"n.d.") -> 0.03015275025 | AF7: =IF(INDEX($C7:$L7,1,aux!$BA$1)>0,(L7-INDEX($C7:$L7,1,aux!$BA$1))/INDEX($C7:$L7,1,aux!$BA$1),"n.d.") -> 0.3065157123 | AH7: =X7-INDEX($O7:$X7,1,aux!$BA$1) -> 19167.821 | AI7: 0.1409646203 | AJ7: =+IF(INDEX($O7:$X7,1,aux!$BA$1)>0,(X7/INDEX($O7:$X7,1,aux!$BA$1))^(1/($X$3-INDEX($O$3:$X$3,1,aux!$BA$1)))-1,"n.d.") -> 0.0453652368 | AK7: =IF(INDEX($O7:$X7,1,aux!$BA$1)>0,(X7-INDEX($O7:$X7,1,aux!$BA$1))/INDEX($O7:$X7,1,aux!$BA$1),"n.d.") -> 0.4907763123 | CC7: =+IF(ISNA(MATCH('5.1'!A7,AUX_2d_pais!$G$2:$G$40000,0)),0,1) -> 1
A8: 0043 | B8: Andorra | C8: 0 | D8: 4.035 | E8: 0 | F8: 4.219 | G8: 0 | H8: 0 | I8: 0 | J8: 0 | K8: 0 | L8: 0 | M8: 0.8254 | N8: 1.875838696e-06 | O8: 1131.359 | P8: 1193.58 | Q8: 961.557 | R8: 997.204 | S8: 1023.844 | T8: 898.537 | U8: 984.466 | V8: 973.867 | W8: 1019.557 | X8: 963.114 | Y8: 1014.7085 | Z8: 0.0009281329372 | AA8: 1013.8831 | AC8: =L8-INDEX($C8:$L8,1,aux!$BA$1) -> 0 | AD8: 0 | AE8: =+IF(INDEX($C8:$L8,1,aux!$BA$1)>0,(L8/INDEX($C8:$L8,1,aux!$BA$1))^(1/($L$3-INDEX($C$3:$L$3,1,aux!$BA$1)))-1,"n.d.") -> n.d. | AF8: =IF(INDEX($C8:$L8,1,aux!$BA$1)>0,(L8-INDEX($C8:$L8,1,aux!$BA$1))/INDEX($C8:$L8,1,aux!$BA$1),"n.d.") -> n.d. | AH8: =X8-INDEX($O8:$X8,1,aux!$BA$1) -> -168.245 | AI8: -0.001237312919 | AJ8: =+IF(INDEX($O8:$X8,1,aux!$BA$1)>0,(X8/INDEX($O8:$X8,1,aux!$BA$1))^(1/($X$3-INDEX($O$3:$X$3,1,aux!$BA$1)))-1,"n.d.") -> -0.01773016645 | AK8: =IF(INDEX($O8:$X8,1,aux!$BA$1)>0,(X8-INDEX($O8:$X8,1,aux!$BA$1))/INDEX($O8:$X8,1,aux!$BA$1),"n.d.") -> -0.1487105331 | CC8: =+IF(ISNA(MATCH('5.1'!A8,AUX_2d_pais!$G$2:$G$40000,0)),0,1) -> 1
A9: 0330 | B9: Angola | C9: 28.025 | D9: 70.961 | E9: 147.717 | F9: 238.033 | G9: 186.738 | H9: 217.639 | I9: 35.441 | J9: 170.587 | K9: 120.34 | L9: 75.532 | M9: 129.1013 | N9: 0.000293401035 | O9: 255790.013 | P9: 300625.325 | Q9: 285575.768 | R9: 302901.345 | S9: 157299.891 | T9: 47118.696 | U9: 57198.168 | V9: 48100.69 | W9: 41175.345 | X9: 28650.491 | Y9: 152443.5732 | Z9: 0.1394369923 | AA9: 152314.4719 | AC9: =L9-INDEX($C9:$L9,1,aux!$BA$1) -> 47.507 | AD9: 0.0006611213209 | AE9: =+IF(INDEX($C9:$L9,1,aux!$BA$1)>0,(L9/INDEX($C9:$L9,1,aux!$BA$1))^(1/($L$3-INDEX($C$3:$L$3,1,aux!$BA$1)))-1,"n.d.") -> 0.1164591006 | AF9: =IF(INDEX($C9:$L9,1,aux!$BA$1)>0,(L9-INDEX($C9:$L9,1,aux!$BA$1))/INDEX($C9:$L9,1,aux!$BA$1),"n.d.") -> 1.695165031 | AH9: =X9-INDEX($O9:$X9,1,aux!$BA$1) -> -227139.522 | AI9: -1.670436951 | AJ9: =+IF(INDEX($O9:$X9,1,aux!$BA$1)>0,(X9/INDEX($O9:$X9,1,aux!$BA$1))^(1/($X$3-INDEX($O$3:$X$3,1,aux!$BA$1)))-1,"n.d.") -> -0.215918977 | AK9: =IF(INDEX($O9:$X9,1,aux!$BA$1)>0,(X9-INDEX($O9:$X9,1,aux!$BA$1))/INDEX($O9:$X9,1,aux!$BA$1),"n.d.") -> -0.8879921438 | CC9: =+IF(ISNA(MATCH('5.1'!A9,AUX_2d_pais!$G$2:$G$40000,0)),0,1) -> 1
A10: 0446 | B10: Anguila | C10: 0 | D10: 0 | E10: 0 | F10: 0 | G10: 0 | H10: 0 | I10: 0 | J10: 0 | K10: 0 | L10: 0 | M10: 0 | N10: 0 | O10: 0 | P10: 0 | Q10: 3.412 | R10: 2 | S10: 0 | T10: 0 | U10: 0 | V10: 0 | W10: 0 | X10: 0 | Y10: 0.5412 | Z10: 4.950244781e-07 | AA10: 0.5412 | AC10: =L10-INDEX($C10:$L10,1,aux!$BA$1) -> 0 | AD10: 0 | AE10: =+IF(INDEX($C10:$L10,1,aux!$BA$1)>0,(L10/INDEX($C10:$L10,1,aux!$BA$1))^(1/($L$3-INDEX($C$3:$L$3,1,aux!$BA$1)))-1,"n.d.") -> n.d. | AF10: =IF(INDEX($C10:$L10,1,aux!$BA$1)>0,(L10-INDEX($C10:$L10,1,aux!$BA$1))/INDEX($C10:$L10,1,aux!$BA$1),"n.d.") -> n.d. | AH10: =X10-INDEX($O10:$X10,1,aux!$BA$1) -> 0 | AI10: 0 | AJ10: =+IF(INDEX($O10:$X10,1,aux!$BA$1)>0,(X10/INDEX($O10:$X10,1,aux!$BA$1))^(1/($X$3-INDEX($O$3:$X$3,1,aux!$BA$1)))-1,"n.d.") -> n.d. | AK10: =IF(INDEX($O10:$X10,1,aux!$BA$1)>0,(X10-INDEX($O10:$X10,1,aux!$BA$1))/INDEX($O10:$X10,1,aux!$BA$1),"n.d.") -> n.d. | CC10: =+IF(ISNA(MATCH('5.1'!A10,AUX_2d_pais!$G$2:$G$40000,0)),0,1) -> 1
A11: 0891 | B11: Antárctica | C11: 0 | D11: 0 | E11: 0 | F11: 0 | G11: 0 | H11: 0 | I11: 0 | J11: 0 | K11: 0 | L11: 0 | M11: 0 | N11: 0 | O11: 0 | P11: 0 | Q11: 0 | R11: 0 | S11: 0 | T11: 0 | U11: 0 | V11: 0 | W11: 0 | X11: 0 | Y11: 0 | Z11: 0 | AA11: 0 | AC11: =L11-INDEX($C11:$L11,1,aux!$BA$1) -> 0 | AD11: 0 | AE11: =+IF(INDEX($C11:$L11,1,aux!$BA$1)>0,(L11/INDEX($C11:$L11,1,aux!$BA$1))^(1/($L$3-INDEX($C$3:$L$3,1,aux!$BA$1)))-1,"n.d.") -> n.d. | AF11: =IF(INDEX($C11:$L11,1,aux!$BA$1)>0,(L11-INDEX($C11:$L11,1,aux!$BA$1))/INDEX($C11:$L11,1,aux!$BA$1),"n.d.") -> n.d. | AH11: =X11-INDEX($O11:$X11,1,aux!$BA$1) -> 0 | AI11: 0 | AJ11: =+IF(INDEX($O11:$X11,1,aux!$BA$1)>0,(X11/INDEX($O11:$X11,1,aux!$BA$1))^(1/($X$3-INDEX($O$3:$X$3,1,aux!$BA$1)))-1,"n.d.") -> n.d. | AK11: =IF(INDEX($O11:$X11,1,aux!$BA$1)>0,(X11-INDEX($O11:$X11,1,aux!$BA$1))/INDEX($O11:$X11,1,aux!$BA$1),"n.d.") -> n.d. | BO11: =SUM(C11:L11,O11:X11) -> 0 | CC11: =+IF(ISNA(MATCH('5.1'!A11,AUX_2d_pais!$G$2:$G$40000,0)),0,1) -> 0
A12: 0459 | B12: Antígua e Barbuda | C12: 0 | D12: 0 | E12: 0 | F12: 0 | G12: 0.728 | H12: 0 | I12: 0 | J12: 0 | K12: 0 | L12: 0 | M12: 0.0728 | N12: 1.654483367e-07 | O12: 4.929 | P12: 37.143 | Q12: 8.233 | R12: 6.977 | S12: 12.385 | T12: 4.304 | U12: 0 | V12: 3.913 | W12: 14.877 | X12: 7.789 | Y12: 10.055 | Z12: 9.197101121e-06 | AA12: 9.9822 | AC12: =L12-INDEX($C12:$L12,1,aux!$BA$1) -> 0 | AD12: 0 | AE12: =+IF(INDEX($C12:$L12,1,aux!$BA$1)>0,(L12/INDEX($C12:$L12,1,aux!$BA$1))^(1/($L$3-INDEX($C$3:$L$3,1,aux!$BA$1)))-1,"n.d.") -> n.d. | AF12: =IF(INDEX($C12:$L12,1,aux!$BA$1)>0,(L12-INDEX($C12:$L12,1,aux!$BA$1))/INDEX($C12:$L12,1,aux!$BA$1),"n.d.") -> n.d. | AH12: =X12-INDEX($O12:$X12,1,aux!$BA$1) -> 2.86 | AI12: 2.103310617e-05 | AJ12: =+IF(INDEX($O12:$X12,1,aux!$BA$1)>0,(X12/INDEX($O12:$X12,1,aux!$BA$1))^(1/($X$3-INDEX($O$3:$X$3,1,aux!$BA$1)))-1,"n.d.") -> 0.052156447 | AK12: =IF(INDEX($O12:$X12,1,aux!$BA$1)>0,(X12-INDEX($O12:$X12,1,aux!$BA$1))/INDEX($O12:$X12,1,aux!$BA$1),"n.d.") -> 0.5802393995 | CC12: =+IF(ISNA(MATCH('5.1'!A12,AUX_2d_pais!$G$2:$G$40000,0)),0,1) -> 1
A13: 0478 | B13: Antilhas Holandesas | C13: 0 | D13: 0 | E13: 0 | F13: 0 | G13: 0 | H13: 0 | I13: 0 | J13: 0 | K13: 0 | L13: 0 | M13: 0 | N13: 0 | O13: 138.485 | P13: 138.36 | Q13: 0 | R13: 0 | S13: 0 | T13: 0 | U13: 0 | V13: 0 | W13: 0 | X13: 0 | Y13: 27.6845 | Z13: 2.532244117e-05 | AA13: 27.6845 | AC13: =L13-INDEX($C13:$L13,1,aux!$BA$1) -> 0 | AD13: 0 | AE13: =+IF(INDEX($C13:$L13,1,aux!$BA$1)>0,(L13/INDEX($C13:$L13,1,aux!$BA$1))^(1/($L$3-INDEX($C$3:$L$3,1,aux!$BA$1)))-1,"n.d.") -> n.d. | AF13: =IF(INDEX($C13:$L13,1,aux!$BA$1)>0,(L13-INDEX($C13:$L13,1,aux!$BA$1))/INDEX($C13:$L13,1,aux!$BA$1),"n.d.") -> n.d. | AH13: =X13-INDEX($O13:$X13,1,aux!$BA$1) -> -138.485 | AI13: -0.001018450947 | AJ13: =+IF(INDEX($O13:$X13,1,aux!$BA$1)>0,(X13/INDEX($O13:$X13,1,aux!$BA$1))^(1/($X$3-INDEX($O$3:$X$3,1,aux!$BA$1)))-1,"n.d.") -> -1 | AK13: =IF(INDEX($O13:$X13,1,aux!$BA$1)>0,(X13-INDEX($O13:$X13,1,aux!$BA$1))/INDEX($O13:$X13,1,aux!$BA$1),"n.d.") -> -1 | BO13: 276.845 | CC13: =+IF(ISNA(MATCH('5.1'!A13,AUX_2d_pais!$G$2:$G$40000,0)),0,1) -> 1
A14: 0632 | B14: Arábia Saudita | C14: 0 | D14: 35.973 | E14: 0 | F14: 0 | G14: 0 | H14: 0 | I14: 0 | J14: 0 | K14: 0 | L14: 0 | M14: 3.5973 | N14: 8.175375021e-06 | O14: 0 | P14: 0 | Q14: 385.913 | R14: 578.239 | S14: 5.38 | T14: 8.435 | U14: 6785.525 | V14: 5825.851 | W14: 8862.457 | X14: 977.918 | Y14: 2342.9718 | Z14: 0.002143067983 | AA14: 2339.3745 | AC14: =L14-INDEX($C14:$L14,1,aux!$BA$1) -> 0 | AD14: 0 | AE14: =+IF(INDEX($C14:$L14,1,aux!$BA$1)>0,(L14/INDEX($C14:$L14,1,aux!$BA$1))^(1/($L$3-INDEX($C$3:$L$3,1,aux!$BA$1)))-1,"n.d.") -> n.d. | AF14: =IF(INDEX($C14:$L14,1,aux!$BA$1)>0,(L14-INDEX($C14:$L14,1,aux!$BA$1))/INDEX($C14:$L14,1,aux!$BA$1),"n.d.") -> n.d. | AH14: =X14-INDEX($O14:$X14,1,aux!$BA$1) -> 977.918 | AI14: 0.007191836754 | AJ14: =+IF(INDEX($O14:$X14,1,aux!$BA$1)>0,(X14/INDEX($O14:$X14,1,aux!$BA$1))^(1/($X$3-INDEX($O$3:$X$3,1,aux!$BA$1)))-1,"n.d.") -> n.d. | AK14: =IF(INDEX($O14:$X14,1,aux!$BA$1)>0,(X14-INDEX($O14:$X14,1,aux!$BA$1))/INDEX($O14:$X14,1,aux!$BA$1),"n.d.") -> n.d. | CC14: =+IF(ISNA(MATCH('5.1'!A14,AUX_2d_pais!$G$2:$G$40000,0)),0,1) -> 1
A15: 0208 | B15: Argélia | C15: 0 | D15: 0 | E15: 0 | F15: 0 | G15: 0 | H15: 0 | I15: 0 | J15: 3.123 | K15: 0 | L15: 0.459 | M15: 0.3582 | N15: 8.140603598e-07 | O15: 17.381 | P15: 478.492 | Q15: 402.468 | R15: 164.719 | S15: 158.675 | T15: 135.567 | U15: 86.93 | V15: 47.419 | W15: 118.988 | X15: 164.297 | Y15: 177.4936 | Z15: 0.0001623497352 | AA15: 177.1354 | AC15: =L15-INDEX($C15:$L15,1,aux!$BA$1) -> 0.459 | AD15: 6.387578384e-06 | AE15: =+IF(INDEX($C15:$L15,1,aux!$BA$1)>0,(L15/INDEX($C15:$L15,1,aux!$BA$1))^(1/($L$3-INDEX($C$3:$L$3,1,aux!$BA$1)))-1,"n.d.") -> n.d. | AF15: =IF(INDEX($C15:$L15,1,aux!$BA$1)>0,(L15-INDEX($C15:$L15,1,aux!$BA$1))/INDEX($C15:$L15,1,aux!$BA$1),"n.d.") -> n.d. | AH15: =X15-INDEX($O15:$X15,1,aux!$BA$1) -> 146.916 | AI15: 0.001080454485 | AJ15: =+IF(INDEX($O15:$X15,1,aux!$BA$1)>0,(X15/INDEX($O15:$X15,1,aux!$BA$1))^(1/($X$3-INDEX($O$3:$X$3,1,aux!$BA$1)))-1,"n.d.") -> 0.2834973785 | AK15: =IF(INDEX($O15:$X15,1,aux!$BA$1)>0,(X15-INDEX($O15:$X15,1,aux!$BA$1))/INDEX($O15:$X15,1,aux!$BA$1),"n.d.") -> 8.452678212 | CC15: =+IF(ISNA(MATCH('5.1'!A15,AUX_2d_pais!$G$2:$G$40000,0)),0,1) -> 1
A16: 0528 | B16: Argentina | C16: 184.713 | D16: 138.732 | E16: 151.601 | F16: 96.427 | G16: 194.729 | H16: 68.065 | I16: 132.966 | J16: 186.524 | K16: 194.806 | L16: 108.148 | M16: 145.6711 | N16: 0.0003310582582 | O16: 37.183 | P16: 13.618 | Q16: 20.025 | R16: 7.705 | S16: 36.349 | T16: 0.124 | U16: 24.161 | V16: 31.453 | W16: 68.267 | X16: 31.066 | Y16: 26.9951 | Z16: 2.469186121e-05 | AA16: -118.676 | AC16: =L16-INDEX($C16:$L16,1,aux!$BA$1) -> -76.565 | AD16: -0.001065500956 | AE16: =+IF(INDEX($C16:$L16,1,aux!$BA$1)>0,(L16/INDEX($C16:$L16,1,aux!$BA$1))^(1/($L$3-INDEX($C$3:$L$3,1,aux!$BA$1)))-1,"n.d.") -> -0.05774380084 | AF16: =IF(INDEX($C16:$L16,1,aux!$BA$1)>0,(L16-INDEX($C16:$L16,1,aux!$BA$1))/INDEX($C16:$L16,1,aux!$BA$1),"n.d.") -> -0.4145079123 | AH16: =X16-INDEX($O16:$X16,1,aux!$BA$1) -> -6.117 | AI16: -4.498584281e-05 | AJ16: =+IF(INDEX($O16:$X16,1,aux!$BA$1)>0,(X16/INDEX($O16:$X16,1,aux!$BA$1))^(1/($X$3-INDEX($O$3:$X$3,1,aux!$BA$1)))-1,"n.d.") -> -0.01977275828 | AK16: =IF(INDEX($O16:$X16,1,aux!$BA$1)>0,(X16-INDEX($O16:$X16,1,aux!$BA$1))/INDEX($O16:$X16,1,aux!$BA$1),"n.d.") -> -0.1645106635 | CC16: =+IF(ISNA(MATCH('5.1'!A16,AUX_2d_pais!$G$2:$G$40000,0)),0,1) -> 1
A17: 0077 | B17: Arménia | C17: 0 | D17: 0 | E17: 0 | F17: 0 | G17: 0 | H17: 0 | I17: 0 | J17: 0 | K17: 3.453 | L17: 0 | M17: 0.3453 | N17: 7.847432782e-07 | O17: 0 | P17: 3.774 | Q17: 3.116 | R17: 3.244 | S17: 2.361 | T17: 1.325 | U17: 3.194 | V17: 11.946 | W17: 2.805 | X17: 7.217 | Y17: 3.8982 | Z17: 3.565603142e-06 | AA17: 3.5529 | AC17: =L17-INDEX($C17:$L17,1,aux!$BA$1) -> 0 | AD17: 0 | AE17: =+IF(INDEX($C17:$L17,1,aux!$BA$1)>0,(L17/INDEX($C17:$L17,1,aux!$BA$1))^(1/($L$3-INDEX($C$3:$L$3,1,aux!$BA$1)))-1,"n.d.") -> n.d. | AF17: =IF(INDEX($C17:$L17,1,aux!$BA$1)>0,(L17-INDEX($C17:$L17,1,aux!$BA$1))/INDEX($C17:$L17,1,aux!$BA$1),"n.d.") -> n.d. | AH17: =X17-INDEX($O17:$X17,1,aux!$BA$1) -> 7.217 | AI17: 5.307549903e-05 | AJ17: =+IF(INDEX($O17:$X17,1,aux!$BA$1)>0,(X17/INDEX($O17:$X17,1,aux!$BA$1))^(1/($X$3-INDEX($O$3:$X$3,1,aux!$BA$1)))-1,"n.d.") -> n.d. | AK17: =IF(INDEX($O17:$X17,1,aux!$BA$1)>0,(X17-INDEX($O17:$X17,1,aux!$BA$1))/INDEX($O17:$X17,1,aux!$BA$1),"n.d.") -> n.d. | CC17: =+IF(ISNA(MATCH('5.1'!A17,AUX_2d_pais!$G$2:$G$40000,0)),0,1) -> 1
A18: 0474 | B18: Aruba | C18: 0 | D18: 0 | E18: 0 | F18: 0 | G18: 0 | H18: 0 | I18: 0 | J18: 0 | K18: 0 | L18: 0.903 | M18: 0.0903 | N18: 2.052195714e-07 | O18: 19.308 | P18: 36.115 | Q18: 34.341 | R18: 9.382 | S18: 17.636 | T18: 11.496 | U18: 29.432 | V18: 93.169 | W18: 206.618 | X18: 322.147 | Y18: 77.9644 | Z18: 7.131242871e-05 | AA18: 77.8741 | AC18: =L18-INDEX($C18:$L18,1,aux!$BA$1) -> 0.903 | AD18: 1.256641238e-05 | AE18: =+IF(INDEX($C18:$L18,1,aux!$BA$1)>0,(L18/INDEX($C18:$L18,1,aux!$BA$1))^(1/($L$3-INDEX($C$3:$L$3,1,aux!$BA$1)))-1,"n.d.") -> n.d. | AF18: =IF(INDEX($C18:$L18,1,aux!$BA$1)>0,(L18-INDEX($C18:$L18,1,aux!$BA$1))/INDEX($C18:$L18,1,aux!$BA$1),"n.d.") -> n.d. | AH18: =X18-INDEX($O18:$X18,1,aux!$BA$1) -> 302.839 | AI18: 0.002227148545 | AJ18: =+IF(INDEX($O18:$X18,1,aux!$BA$1)>0,(X18/INDEX($O18:$X18,1,aux!$BA$1))^(1/($X$3-INDEX($O$3:$X$3,1,aux!$BA$1)))-1,"n.d.") -> 0.3671399615 | AK18: =IF(INDEX($O18:$X18,1,aux!$BA$1)>0,(X18-INDEX($O18:$X18,1,aux!$BA$1))/INDEX($O18:$X18,1,aux!$BA$1),"n.d.") -> 15.68463849 | BO18: 780.547 | CC18: =+IF(ISNA(MATCH('5.1'!A18,AUX_2d_pais!$G$2:$G$40000,0)),0,1) -> 1
A19: 0800 | B19: Austrália | C19: 7.277 | D19: 3.889 | E19: 11.344 | F19: 6.249 | G19: 2.728 | H19: 9.142 | I19: 4.745 | J19: 3.744 | K19: 7.537 | L19: 3.941 | M19: 6.0596 | N19: 1.377130139e-05 | O19: 2473.634 | P19: 2559.07 | Q19: 3287.289 | R19: 2913.881 | S19: 2579.046 | T19: 3313.863 | U19: 3434.766 | V19: 3931.473 | W19: 5193.106 | X19: 5577.582 | Y19: 3526.371 | Z19: 0.003225498824 | AA19: 3520.3114 | AC19: =L19-INDEX($C19:$L19,1,aux!$BA$1) -> -3.336 | AD19: -4.64247527e-05 | AE19: =+IF(INDEX($C19:$L19,1,aux!$BA$1)>0,(L19/INDEX($C19:$L19,1,aux!$BA$1))^(1/($L$3-INDEX($C$3:$L$3,1,aux!$BA$1)))-1,"n.d.") -> -0.06587282458 | AF19: =IF(INDEX($C19:$L19,1,aux!$BA$1)>0,(L19-INDEX($C19:$L19,1,aux!$BA$1))/INDEX($C19:$L19,1,aux!$BA$1),"n.d.") -> -0.458430672 | AH19: =X19-INDEX($O19:$X19,1,aux!$BA$1) -> 3103.948 | AI19: 0.02282715658 | AJ19: =+IF(INDEX($O19:$X19,1,aux!$BA$1)>0,(X19/INDEX($O19:$X19,1,aux!$BA$1))^(1/($X$3-INDEX($O$3:$X$3,1,aux!$BA$1)))-1,"n.d.") -> 0.09454722053 | AK19: =IF(INDEX($O19:$X19,1,aux!$BA$1)>0,(X19-INDEX($O19:$X19,1,aux!$BA$1))/INDEX($O19:$X19,1,aux!$BA$1),"n.d.") -> 1.254812959 | CC19: =+IF(ISNA(MATCH('5.1'!A19,AUX_2d_pais!$G$2:$G$40000,0)),0,1) -> 1
A20: 0038 | B20: Áustria | C20: 5998.092 | D20: 4809.824 | E20: 5187.915 | F20: 4156.582 | G20: 4430.511 | H20: 5169.828 | I20: 4885.5 | J20: 5060.407 | K20: 4147.187 | L20: 3571.999 | M20: 4741.7845 | N20: 0.01077637855 | O20: 1660.405 | P20: 1649.409 | Q20: 1770.433 | R20: 2131.765 | S20: 2024.719 | T20: 2295.228 | U20: 2582.636 | V20: 3062.333 | W20: 2071.198 | X20: 2365.962 | Y20: 2161.4088 | Z20: 0.001976996052 | AA20: -2580.3757 | AC20: =L20-INDEX($C20:$L20,1,aux!$BA$1) -> -2426.093 | AD20: -0.03376222049 | AE20: =+IF(INDEX($C20:$L20,1,aux!$BA$1)>0,(L20/INDEX($C20:$L20,1,aux!$BA$1))^(1/($L$3-INDEX($C$3:$L$3,1,aux!$BA$1)))-1,"n.d.") -> -0.05596370985 | AF20: =IF(INDEX($C20:$L20,1,aux!$BA$1)>0,(L20-INDEX($C20:$L20,1,aux!$BA$1))/INDEX($C20:$L20,1,aux!$BA$1),"n.d.") -> -0.4044774572 | AH20: =X20-INDEX($O20:$X20,1,aux!$BA$1) -> 705.557 | AI20: 0.00518883052 | AJ20: =+IF(INDEX($O20:$X20,1,aux!$BA$1)>0,(X20/INDEX($O20:$X20,1,aux!$BA$1))^(1/($X$3-INDEX($O$3:$X$3,1,aux!$BA$1)))-1,"n.d.") -> 0.04013136465 | AK20: =IF(INDEX($O20:$X20,1,aux!$BA$1)>0,(X20-INDEX($O20:$X20,1,aux!$BA$1))/INDEX($O20:$X20,1,aux!$BA$1),"n.d.") -> 0.4249306645 | CC20: =+IF(ISNA(MATCH('5.1'!A20,AUX_2d_pais!$G$2:$G$40000,0)),0,1) -> 1
A21: 0078 | B21: Azerbaijão | C21: 0 | D21: 0 | E21: 0 | F21: 0 | G21: 0 | H21: 0 | I21: 0 | J21: 0 | K21: 0 | L21: 0 | M21: 0 | N21: 0 | O21: 0 | P21: 4.1 | Q21: 1.804 | R21: 13.568 | S21: 3.15 | T21: 2.752 | U21: 3.93 | V21: 89.886 | W21: 16.995 | X21: 25.076 | Y21: 16.1261 | Z21: 1.475021108e-05 | AA21: 16.1261 | AC21: =L21-INDEX($C21:$L21,1,aux!$BA$1) -> 0 | AD21: 0 | AE21: =+IF(INDEX($C21:$L21,1,aux!$BA$1)>0,(L21/INDEX($C21:$L21,1,aux!$BA$1))^(1/($L$3-INDEX($C$3:$L$3,1,aux!$BA$1)))-1,"n.d.") -> n.d. | AF21: =IF(INDEX($C21:$L21,1,aux!$BA$1)>0,(L21-INDEX($C21:$L21,1,aux!$BA$1))/INDEX($C21:$L21,1,aux!$BA$1),"n.d.") -> n.d. | AH21: =X21-INDEX($O21:$X21,1,aux!$BA$1) -> 25.076 | AI21: 0.0001844147448 | AJ21: =+IF(INDEX($O21:$X21,1,aux!$BA$1)>0,(X21/INDEX($O21:$X21,1,aux!$BA$1))^(1/($X$3-INDEX($O$3:$X$3,1,aux!$BA$1)))-1,"n.d.") -> n.d. | AK21: =IF(INDEX($O21:$X21,1,aux!$BA$1)>0,(X21-INDEX($O21:$X21,1,aux!$BA$1))/INDEX($O21:$X21,1,aux!$BA$1),"n.d.") -> n.d. | CC21: =+IF(ISNA(MATCH('5.1'!A21,AUX_2d_pais!$G$2:$G$40000,0)),0,1) -> 1
A22: 0453 | B22: Bahamas | C22: 0 | D22: 0 | E22: 0 | F22: 0 | G22: 0.25 | H22: 0 | I22: 0 | J22: 0 | K22: 0 | L22: 0 | M22: 0.025 | N22: 5.681604968e-08 | O22: 19.142 | P22: 29.192 | Q22: 3.347 | R22: 14.403 | S22: 3.808 | T22: 0 | U22: 0 | V22: 0 | W22: 0 | X22: 1.014 | Y22: 7.0906 | Z22: 6.48562558e-06 | AA22: 7.0656 | AC22: =L22-INDEX($C22:$L22,1,aux!$BA$1) -> 0 | AD22: 0 | AE22: =+IF(INDEX($C22:$L22,1,aux!$BA$1)>0,(L22/INDEX($C22:$L22,1,aux!$BA$1))^(1/($L$3-INDEX($C$3:$L$3,1,aux!$BA$1)))-1,"n.d.") -> n.d. | AF22: =IF(INDEX($C22:$L22,1,aux!$BA$1)>0,(L22-INDEX($C22:$L22,1,aux!$BA$1))/INDEX($C22:$L22,1,aux!$BA$1),"n.d.") -> n.d. | AH22: =X22-INDEX($O22:$X22,1,aux!$BA$1) -> -18.128 | AI22: -0.0001333175345 | AJ22: =+IF(INDEX($O22:$X22,1,aux!$BA$1)>0,(X22/INDEX($O22:$X22,1,aux!$BA$1))^(1/($X$3-INDEX($O$3:$X$3,1,aux!$BA$1)))-1,"n.d.") -> -0.2785140981 | AK22: =IF(INDEX($O22:$X22,1,aux!$BA$1)>0,(X22-INDEX($O22:$X22,1,aux!$BA$1))/INDEX($O22:$X22,1,aux!$BA$1),"n.d.") -> -0.9470274788 | BO22: 71.156 | CC22: =+IF(ISNA(MATCH('5.1'!A22,AUX_2d_pais!$G$2:$G$40000,0)),0,1) -> 1
A23: 0666 | B23: Bangladesh | C23: 0 | D23: 0 | E23: 0 | F23: 0 | G23: 0 | H23: 0 | I23: 0.057 | J23: 0.916 | K23: 2.263 | L23: 0.235 | M23: 0.3471 | N23: 7.888340338e-07 | O23: 5.892 | P23: 0 | Q23: 0.01 | R23: 6.888 | S23: 20.26 | T23: 0.086 | U23: 4.219 | V23: 9.356 | W23: 4.545 | X23: 1.949 | Y23: 5.3205 | Z23: 4.866551618e-06 | AA23: 4.9734 | AC23: =L23-INDEX($C23:$L23,1,aux!$BA$1) -> 0.235 | AD23: 3.270328802e-06 | AE23: =+IF(INDEX($C23:$L23,1,aux!$BA$1)>0,(L23/INDEX($C23:$L23,1,aux!$BA$1))^(1/($L$3-INDEX($C$3:$L$3,1,aux!$BA$1)))-1,"n.d.") -> n.d. | AF23: =IF(INDEX($C23:$L23,1,aux!$BA$1)>0,(L23-INDEX($C23:$L23,1,aux!$BA$1))/INDEX($C23:$L23,1,aux!$BA$1),"n.d.") -> n.d. | AH23: =X23-INDEX($O23:$X23,1,aux!$BA$1) -> -3.943 | AI23: -2.899774043e-05 | AJ23: =+IF(INDEX($O23:$X23,1,aux!$BA$1)>0,(X23/INDEX($O23:$X23,1,aux!$BA$1))^(1/($X$3-INDEX($O$3:$X$3,1,aux!$BA$1)))-1,"n.d.") -> -0.1156655029 | AK23: =IF(INDEX($O23:$X23,1,aux!$BA$1)>0,(X23-INDEX($O23:$X23,1,aux!$BA$1))/INDEX($O23:$X23,1,aux!$BA$1),"n.d.") -> -0.6692124915 | CC23: =+IF(ISNA(MATCH('5.1'!A23,AUX_2d_pais!$G$2:$G$40000,0)),0,1) -> 1
A24: 0469 | B24: Barbados | C24: 0 | D24: 0 | E24: 0 | F24: 0 | G24: 0 | H24: 0 | I24: 0 | J24: 0 | K24: 0 | L24: 0 | M24: 0 | N24: 0 | O24: 3.29 | P24: 9.996 | Q24: 1.618 | R24: 5.9 | S24: 2.624 | T24: 0 | U24: 0 | V24: 3.045 | W24: 7.538 | X24: 1.143 | Y24: 3.5154 | Z24: 3.215463877e-06 | AA24: 3.5154 | AC24: =L24-INDEX($C24:$L24,1,aux!$BA$1) -> 0 | AD24: 0 | AE24: =+IF(INDEX($C24:$L24,1,aux!$BA$1)>0,(L24/INDEX($C24:$L24,1,aux!$BA$1))^(1/($L$3-INDEX($C$3:$L$3,1,aux!$BA$1)))-1,"n.d.") -> n.d. | AF24: =IF(INDEX($C24:$L24,1,aux!$BA$1)>0,(L24-INDEX($C24:$L24,1,aux!$BA$1))/INDEX($C24:$L24,1,aux!$BA$1),"n.d.") -> n.d. | AH24: =X24-INDEX($O24:$X24,1,aux!$BA$1) -> -2.147 | AI24: -1.578953809e-05 | AJ24: =+IF(INDEX($O24:$X24,1,aux!$BA$1)>0,(X24/INDEX($O24:$X24,1,aux!$BA$1))^(1/($X$3-INDEX($O$3:$X$3,1,aux!$BA$1)))-1,"n.d.") -> -0.1108329302 | AK24: =IF(INDEX($O24:$X24,1,aux!$BA$1)>0,(X24-INDEX($O24:$X24,1,aux!$BA$1))/INDEX($O24:$X24,1,aux!$BA$1),"n.d.") -> -0.6525835866 | BO24: 35.154 | CC24: =+IF(ISNA(MATCH('5.1'!A24,AUX_2d_pais!$G$2:$G$40000,0)),0,1) -> 1
A25: 0640 | B25: Barém | C25: 0 | D25: 0 | E25: 0 | F25: 0 | G25: 0 | H25: 0 | I25: 0 | J25: 0.342 | K25: 0 | L25: 0 | M25: 0.0342 | N25: 7.772435596e-08 | O25: 61.532 | P25: 35.186 | Q25: 45.067 | R25: 50.947 | S25: 74.962 | T25: 54.439 | U25: 218.725 | V25: 129.274 | W25: 142.347 | X25: 75.783 | Y25: 88.8262 | Z25: 8.124749315e-05 | AA25: 88.792 | AC25: =L25-INDEX($C25:$L25,1,aux!$BA$1) -> 0 | AD25: 0 | AE25: =+IF(INDEX($C25:$L25,1,aux!$BA$1)>0,(L25/INDEX($C25:$L25,1,aux!$BA$1))^(1/($L$3-INDEX($C$3:$L$3,1,aux!$BA$1)))-1,"n.d.") -> n.d. | AF25: =IF(INDEX($C25:$L25,1,aux!$BA$1)>0,(L25-INDEX($C25:$L25,1,aux!$BA$1))/INDEX($C25:$L25,1,aux!$BA$1),"n.d.") -> n.d. | AH25: =X25-INDEX($O25:$X25,1,aux!$BA$1) -> 14.251 | AI25: 0.0001048051734 | AJ25: =+IF(INDEX($O25:$X25,1,aux!$BA$1)>0,(X25/INDEX($O25:$X25,1,aux!$BA$1))^(1/($X$3-INDEX($O$3:$X$3,1,aux!$BA$1)))-1,"n.d.") -> 0.02341624625 | AK25: =IF(INDEX($O25:$X25,1,aux!$BA$1)>0,(X25-INDEX($O25:$X25,1,aux!$BA$1))/INDEX($O25:$X25,1,aux!$BA$1),"n.d.") -> 0.2316030683 | CC25: =+IF(ISNA(MATCH('5.1'!A25,AUX_2d_pais!$G$2:$G$40000,0)),0,1) -> 1
A26: 0073 | B26: Belarus | C26: 0 | D26: 0 | E26: 0 | F26: 0 | G26: 0 | H26: 0 | I26: 0 | J26: 0 | K26: 0 | L26: 0.392 | M26: 0.0392 | N26: 8.90875659e-08 | O26: 39.621 | P26: 0.647 | Q26: 23.939 | R26: 20.495 | S26: 19.951 | T26: 136.259 | U26: 191.85 | V26: 168.291 | W26: 495.607 | X26: 979.231 | Y26: 207.5891 | Z26: 0.0001898774684 | AA26: 207.5499 | AC26: =L26-INDEX($C26:$L26,1,aux!$BA$1) -> 0.392 | AD26: 5.455186768e-06 | AE26: =+IF(INDEX($C26:$L26,1,aux!$BA$1)>0,(L26/INDEX($C26:$L26,1,aux!$BA$1))^(1/($L$3-INDEX($C$3:$L$3,1,aux!$BA$1)))-1,"n.d.") -> n.d. | AF26: =IF(INDEX($C26:$L26,1,aux!$BA$1)>0,(L26-INDEX($C26:$L26,1,aux!$BA$1))/INDEX($C26:$L26,1,aux!$BA$1),"n.d.") -> n.d. | AH26: =X26-INDEX($O26:$X26,1,aux!$BA$1) -> 939.61 | AI26: 0.006910110799 | AJ26: =+IF(INDEX($O26:$X26,1,aux!$BA$1)>0,(X26/INDEX($O26:$X26,1,aux!$BA$1))^(1/($X$3-INDEX($O$3:$X$3,1,aux!$BA$1)))-1,"n.d.") -> 0.4281482839 | AK26: =IF(INDEX($O26:$X26,1,aux!$BA$1)>0,(X26-INDEX($O26:$X26,1,aux!$BA$1))/INDEX($O26:$X26,1,aux!$BA$1),"n.d.") -> 23.71494914 | CC26: =+IF(ISNA(MATCH('5.1'!A26,AUX_2d_pais!$G$2:$G$40000,0)),0,1) -> 1
A27: 0017 | B27: Bélgica | C27: 6873.12 | D27: 6102.015 | E27: 5369.359 | F27: 6795.87 | G27: 8158.412 | H27: 10111.129 | I27: 10896.085 | J27: 10295.666 | K27: 7336.689 | L27: 8023.906 | M27: 7996.2251 | N27: 0.0181725569 | O27: 51094.192 | P27: 48428.059 | Q27: 48973.968 | R27: 49302.811 | S27: 50524.354 | T27: 50356.853 | U27: 51888.567 | V27: 55042.696 | W27: 52358.262 | X27: 53021.638 | Y27: 51099.14 | Z27: 0.04673932947 | AA27: 43102.9149 | AC27: =L27-INDEX($C27:$L27,1,aux!$BA$1) -> 1150.786 | AD27: 0.0160146749 | AE27: =+IF(INDEX($C27:$L27,1,aux!$BA$1)>0,(L27/INDEX($C27:$L27,1,aux!$BA$1))^(1/($L$3-INDEX($C$3:$L$3,1,aux!$BA$1)))-1,"n.d.") -> 0.01734958382 | AF27: =IF(INDEX($C27:$L27,1,aux!$BA$1)>0,(L27-INDEX($C27:$L27,1,aux!$BA$1))/INDEX($C27:$L27,1,aux!$BA$1),"n.d.") -> 0.1674328398 | AH27: =X27-INDEX($O27:$X27,1,aux!$BA$1) -> 1927.446 | AI27: 0.01417488684 | AJ27: =+IF(INDEX($O27:$X27,1,aux!$BA$1)>0,(X27/INDEX($O27:$X27,1,aux!$BA$1))^(1/($X$3-INDEX($O$3:$X$3,1,aux!$BA$1)))-1,"n.d.") -> 0.004122838179 | AK27: =IF(INDEX($O27:$X27,1,aux!$BA$1)>0,(X27-INDEX($O27:$X27,1,aux!$BA$1))/INDEX($O27:$X27,1,aux!$BA$1),"n.d.") -> 0.03772338743 | CC27: =+IF(ISNA(MATCH('5.1'!A27,AUX_2d_pais!$G$2:$G$40000,0)),0,1) -> 1
A28: 0421 | B28: Belize | C28: 0 | D28: 0 | E28: 0 | F28: 0 | G28: 0 | H28: 0 | I28: 29.425 | J28: 0 | K28: 0 | L28: 0 | M28: 2.9425 | N28: 6.687249047e-06 | O28: 0 | P28: 0 | Q28: 0 | R28: 0 | S28: 2.927 | T28: 2.935 | U28: 2.763 | V28: 4.182 | W28: 3.466 | X28: 0 | Y28: 1.6273 | Z28: 1.488457748e-06 | AA28: -1.3152 | AC28: =L28-INDEX($C28:$L28,1,aux!$BA$1) -> 0 | AD28: 0 | AE28: =+IF(INDEX($C28:$L28,1,aux!$BA$1)>0,(L28/INDEX($C28:$L28,1,aux!$BA$1))^(1/($L$3-INDEX($C$3:$L$3,1,aux!$BA$1)))-1,"n.d.") -> n.d. | AF28: =IF(INDEX($C28:$L28,1,aux!$BA$1)>0,(L28-INDEX($C28:$L28,1,aux!$BA$1))/INDEX($C28:$L28,1,aux!$BA$1),"n.d.") -> n.d. | AH28: =X28-INDEX($O28:$X28,1,aux!$BA$1) -> 0 | AI28: 0 | AJ28: =+IF(INDEX($O28:$X28,1,aux!$BA$1)>0,(X28/INDEX($O28:$X28,1,aux!$BA$1))^(1/($X$3-INDEX($O$3:$X$3,1,aux!$BA$1)))-1,"n.d.") -> n.d. | AK28: =IF(INDEX($O28:$X28,1,aux!$BA$1)>0,(X28-INDEX($O28:$X28,1,aux!$BA$1))/INDEX($O28:$X28,1,aux!$BA$1),"n.d.") -> n.d. | CC28: =+IF(ISNA(MATCH('5.1'!A28,AUX_2d_pais!$G$2:$G$40000,0)),0,1) -> 1
A29: 0284 | B29: Benim | C29: 0 | D29: 0 | E29: 0 | F29: 0 | G29: 0 | H29: 0 | I29: 0 | J29: 0 | K29: 0 | L29: 0 | M29: 0 | N29: 0 | O29: 74.719 | P29: 243.748 | Q29: 268.529 | R29: 319.838 | S29: 890.287 | T29: 553.968 | U29: 247.552 | V29: 159.387 | W29: 128.845 | X29: 48.619 | Y29: 293.5492 | Z29: 0.000268503399 | AA29: 293.5492 | AC29: =L29-INDEX($C29:$L29,1,aux!$BA$1) -> 0 | AD29: 0 | AE29: =+IF(INDEX($C29:$L29,1,aux!$BA$1)>0,(L29/INDEX($C29:$L29,1,aux!$BA$1))^(1/($L$3-INDEX($C$3:$L$3,1,aux!$BA$1)))-1,"n.d.") -> n.d. | AF29: =IF(INDEX($C29:$L29,1,aux!$BA$1)>0,(L29-INDEX($C29:$L29,1,aux!$BA$1))/INDEX($C29:$L29,1,aux!$BA$1),"n.d.") -> n.d. | AH29: =X29-INDEX($O29:$X29,1,aux!$BA$1) -> -26.1 | AI29: -0.0001919454794 | AJ29: =+IF(INDEX($O29:$X29,1,aux!$BA$1)>0,(X29/INDEX($O29:$X29,1,aux!$BA$1))^(1/($X$3-INDEX($O$3:$X$3,1,aux!$BA$1)))-1,"n.d.") -> -0.04662472278 | AK29: =IF(INDEX($O29:$X29,1,aux!$BA$1)>0,(X29-INDEX($O29:$X29,1,aux!$BA$1))/INDEX($O29:$X29,1,aux!$BA$1),"n.d.") -> -0.3493087434 | CC29: =+IF(ISNA(MATCH('5.1'!A29,AUX_2d_pais!$G$2:$G$40000,0)),0,1) -> 1
A30: 0413 | B30: Bermudas | C30: 0 | D30: 0 | E30: 0 | F30: 0 | G30: 0 | H30: 0 | I30: 0 | J30: 0 | K30: 0 | L30: 0 | M30: 0 | N30: 0 | O30: 411.468 | P30: 420.677 | Q30: 423.22 | R30: 231.149 | S30: 501.542 | T30: 561.298 | U30: 623.394 | V30: 747.281 | W30: 658.461 | X30: 763.446 | Y30: 534.1936 | Z30: 0.0004886158685 | AA30: 534.1936 | AC30: =L30-INDEX($C30:$L30,1,aux!$BA$1) -> 0 | AD30: 0 | AE30: =+IF(INDEX($C30:$L30,1,aux!$BA$1)>0,(L30/INDEX($C30:$L30,1,aux!$BA$1))^(1/($L$3-INDEX($C$3:$L$3,1,aux!$BA$1)))-1,"n.d.") -> n.d. | AF30: =IF(INDEX($C30:$L30,1,aux!$BA$1)>0,(L30-INDEX($C30:$L30,1,aux!$BA$1))/INDEX($C30:$L30,1,aux!$BA$1),"n.d.") -> n.d. | AH30: =X30-INDEX($O30:$X30,1,aux!$BA$1) -> 351.978 | AI30: 0.002588528197 | AJ30: =+IF(INDEX($O30:$X30,1,aux!$BA$1)>0,(X30/INDEX($O30:$X30,1,aux!$BA$1))^(1/($X$3-INDEX($O$3:$X$3,1,aux!$BA$1)))-1,"n.d.") -> 0.07109235027 | AK30: =IF(INDEX($O30:$X30,1,aux!$BA$1)>0,(X30-INDEX($O30:$X30,1,aux!$BA$1))/INDEX($O30:$X30,1,aux!$BA$1),"n.d.") -> 0.8554201056 | CC30: =+IF(ISNA(MATCH('5.1'!A30,AUX_2d_pais!$G$2:$G$40000,0)),0,1) -> 1
A31: 0516 | B31: Bolívia | C31: 0 | D31: 0 | E31: 0 | F31: 0 | G31: 0 | H31: 0 | I31: 0 | J31: 0 | K31: 0 | L31: 0 | M31: 0 | N31: 0 | O31: 13.681 | P31: 30.749 | Q31: 47.813 | R31: 49.001 | S31: 18.138 | T31: 31.405 | U31: 14.304 | V31: 20.165 | W31: 36.254 | X31: 56.927 | Y31: 31.8437 | Z31: 2.912677563e-05 | AA31: 31.8437 | AC31: =L31-INDEX($C31:$L31,1,aux!$BA$1) -> 0 | AD31: 0 | AE31: =+IF(INDEX($C31:$L31,1,aux!$BA$1)>0,(L31/INDEX($C31:$L31,1,aux!$BA$1))^(1/($L$3-INDEX($C$3:$L$3,1,aux!$BA$1)))-1,"n.d.") -> n.d. | AF31: =IF(INDEX($C31:$L31,1,aux!$BA$1)>0,(L31-INDEX($C31:$L31,1,aux!$BA$1))/INDEX($C31:$L31,1,aux!$BA$1),"n.d.") -> n.d. | AH31: =X31-INDEX($O31:$X31,1,aux!$BA$1) -> 43.246 | AI31: 0.0003180411571 | AJ31: =+IF(INDEX($O31:$X31,1,aux!$BA$1)>0,(X31/INDEX($O31:$X31,1,aux!$BA$1))^(1/($X$3-INDEX($O$3:$X$3,1,aux!$BA$1)))-1,"n.d.") -> 0.1716558102 | AK31: =IF(INDEX($O31:$X31,1,aux!$BA$1)>0,(X31-INDEX($O31:$X31,1,aux!$BA$1))/INDEX($O31:$X31,1,aux!$BA$1),"n.d.") -> 3.161026241 | CC31: =+IF(ISNA(MATCH('5.1'!A31,AUX_2d_pais!$G$2:$G$40000,0)),0,1) -> 1
A32: 0477 | B32: Bonaire, Santo Eustáquio e Saba | C32: 0 | D32: 0 | E32: 0 | F32: 0 | G32: 0 | H32: 0 | I32: 0 | J32: 0 | K32: 0 | L32: 0 | M32: 0 | N32: 0 | O32: 0 | P32: 0 | Q32: 0.241 | R32: 0.1 | S32: 0.465 | T32: 0.626 | U32: 2.209 | V32: 0 | W32: 0 | X32: 0 | Y32: 0.3641 | Z32: 3.330347606e-07 | AA32: 0.3641 | AC32: =L32-INDEX($C32:$L32,1,aux!$BA$1) -> 0 | AD32: 0 | AE32: =+IF(INDEX($C32:$L32,1,aux!$BA$1)>0,(L32/INDEX($C32:$L32,1,aux!$BA$1))^(1/($L$3-INDEX($C$3:$L$3,1,aux!$BA$1)))-1,"n.d.") -> n.d. | AF32: =IF(INDEX($C32:$L32,1,aux!$BA$1)>0,(L32-INDEX($C32:$L32,1,aux!$BA$1))/INDEX($C32:$L32,1,aux!$BA$1),"n.d.") -> n.d. | AH32: =X32-INDEX($O32:$X32,1,aux!$BA$1) -> 0 | AI32: 0 | AJ32: =+IF(INDEX($O32:$X32,1,aux!$BA$1)>0,(X32/INDEX($O32:$X32,1,aux!$BA$1))^(1/($X$3-INDEX($O$3:$X$3,1,aux!$BA$1)))-1,"n.d.") -> n.d. | AK32: =IF(INDEX($O32:$X32,1,aux!$BA$1)>0,(X32-INDEX($O32:$X32,1,aux!$BA$1))/INDEX($O32:$X32,1,aux!$BA$1),"n.d.") -> n.d. | BO32: 3.641 | CC32: =+IF(ISNA(MATCH('5.1'!A32,AUX_2d_pais!$G$2:$G$40000,0)),0,1) -> 1
A33: 0093 | B33: Bósnia-Herzegovina | C33: 0 | D33: 0 | E33: 0 | F33: 0 | G33: 0 | H33: 0 | I33: 0 | J33: 1.601 | K33: 0 | L33: 0 | M33: 0.1601 | N33: 3.638499821e-07 | O33: 8.113 | P33: 0 | Q33: 7.997 | R33: 5.943 | S33: 4.742 | T33: 6.696 | U33: 6.627 | V33: 0 | W33: 6.224 | X33: 4.205 | Y33: 5.0547 | Z33: 4.62342984e-06 | AA33: 4.8946 | AC33: =L33-INDEX($C33:$L33,1,aux!$BA$1) -> 0 | AD33: 0 | AE33: =+IF(INDEX($C33:$L33,1,aux!$BA$1)>0,(L33/INDEX($C33:$L33,1,aux!$BA$1))^(1/($L$3-INDEX($C$3:$L$3,1,aux!$BA$1)))-1,"n.d.") -> n.d. | AF33: =IF(INDEX($C33:$L33,1,aux!$BA$1)>0,(L33-INDEX($C33:$L33,1,aux!$BA$1))/INDEX($C33:$L33,1,aux!$BA$1),"n.d.") -> n.d. | AH33: =X33-INDEX($O33:$X33,1,aux!$BA$1) -> -3.908 | AI33: -2.874034227e-05 | AJ33: =+IF(INDEX($O33:$X33,1,aux!$BA$1)>0,(X33/INDEX($O33:$X33,1,aux!$BA$1))^(1/($X$3-INDEX($O$3:$X$3,1,aux!$BA$1)))-1,"n.d.") -> -0.07041914791 | AK33: =IF(INDEX($O33:$X33,1,aux!$BA$1)>0,(X33-INDEX($O33:$X33,1,aux!$BA$1))/INDEX($O33:$X33,1,aux!$BA$1),"n.d.") -> -0.4816960434 | CC33: =+IF(ISNA(MATCH('5.1'!A33,AUX_2d_pais!$G$2:$G$40000,0)),0,1) -> 1
A34: 0391 | B34: Botswana | C34: 0 | D34: 0 | E34: 0 | F34: 0 | G34: 0 | H34: 0 | I34: 0 | J34: 0 | K34: 0 | L34: 0 | M34: 0 | N34: 0 | O34: 0 | P34: 0 | Q34: 0.009 | R34: 0 | S34: 0 | T34: 0 | U34: 5.49 | V34: 0.102 | W34: 0.06 | X34: 0 | Y34: 0.5661 | Z34: 5.177999945e-07 | AA34: 0.5661 | AC34: =L34-INDEX($C34:$L34,1,aux!$BA$1) -> 0 | AD34: 0 | AE34: =+IF(INDEX($C34:$L34,1,aux!$BA$1)>0,(L34/INDEX($C34:$L34,1,aux!$BA$1))^(1/($L$3-INDEX($C$3:$L$3,1,aux!$BA$1)))-1,"n.d.") -> n.d. | AF34: =IF(INDEX($C34:$L34,1,aux!$BA$1)>0,(L34-INDEX($C34:$L34,1,aux!$BA$1))/INDEX($C34:$L34,1,aux!$BA$1),"n.d.") -> n.d. | AH34: =X34-INDEX($O34:$X34,1,aux!$BA$1) -> 0 | AI34: 0 | AJ34: =+IF(INDEX($O34:$X34,1,aux!$BA$1)>0,(X34/INDEX($O34:$X34,1,aux!$BA$1))^(1/($X$3-INDEX($O$3:$X$3,1,aux!$BA$1)))-1,"n.d.") -> n.d. | AK34: =IF(INDEX($O34:$X34,1,aux!$BA$1)>0,(X34-INDEX($O34:$X34,1,aux!$BA$1))/INDEX($O34:$X34,1,aux!$BA$1),"n.d.") -> n.d. | CC34: =+IF(ISNA(MATCH('5.1'!A34,AUX_2d_pais!$G$2:$G$40000,0)),0,1) -> 1
A35: 0892 | B35: Bouvet, Ilha | C35: 0 | D35: 0 | E35: 0 | F35: 0 | G35: 0 | H35: 0 | I35: 0 | J35: 0 | K35: 0 | L35: 0 | M35: 0 | N35: 0 | O35: 0 | P35: 0 | Q35: 0 | R35: 0 | S35: 0 | T35: 0 | U35: 0 | V35: 0 | W35: 0 | X35: 0 | Y35: 0 | Z35: 0 | AA35: 0 | AC35: =L35-INDEX($C35:$L35,1,aux!$BA$1) -> 0 | AD35: 0 | AE35: =+IF(INDEX($C35:$L35,1,aux!$BA$1)>0,(L35/INDEX($C35:$L35,1,aux!$BA$1))^(1/($L$3-INDEX($C$3:$L$3,1,aux!$BA$1)))-1,"n.d.") -> n.d. | AF35: =IF(INDEX($C35:$L35,1,aux!$BA$1)>0,(L35-INDEX($C35:$L35,1,aux!$BA$1))/INDEX($C35:$L35,1,aux!$BA$1),"n.d.") -> n.d. | AH35: =X35-INDEX($O35:$X35,1,aux!$BA$1) -> 0 | AI35: 0 | AJ35: =+IF(INDEX($O35:$X35,1,aux!$BA$1)>0,(X35/INDEX($O35:$X35,1,aux!$BA$1))^(1/($X$3-INDEX($O$3:$X$3,1,aux!$BA$1)))-1,"n.d.") -> n.d. | AK35: =IF(INDEX($O35:$X35,1,aux!$BA$1)>0,(X35-INDEX($O35:$X35,1,aux!$BA$1))/INDEX($O35:$X35,1,aux!$BA$1),"n.d.") -> n.d. | BO35: 0 | CC35: =+IF(ISNA(MATCH('5.1'!A35,AUX_2d_pais!$G$2:$G$40000,0)),0,1) -> 0
A36: 0508 | B36: Brasil | C36: 1851.283 | D36: 1589.547 | E36: 1504.618 | F36: 1498.019 | G36: 1256.407 | H36: 1184.956 | I36: 1165.049 | J36: 1359.604 | K36: 1587.178 | L36: 1433.227 | M36: 1442.9888 | N36: 0.003279396934 | O36: 29681.364 | P36: 29569.444 | Q36: 28984.866 | R36: 29794.908 | S36: 29657.813 | T36: 29267.337 | U36: 44836.976 | V36: 51932.554 | W36: 56035.918 | X36: 68318.441 | Y36: 39807.9621 | Z36: 0.03641152192 | AA36: 38364.9733 | AC36: =L36-INDEX($C36:$L36,1,aux!$BA$1) -> -418.056 | AD36: =AC36/$AC$252 -> -0.005817789692 | AE36: =+IF(INDEX($C36:$L36,1,aux!$BA$1)>0,(L36/INDEX($C36:$L36,1,aux!$BA$1))^(1/($L$3-INDEX($C$3:$L$3,1,aux!$BA$1)))-1,"n.d.") -> -0.02803834964 | AF36: =IF(INDEX($C36:$L36,1,aux!$BA$1)>0,(L36-INDEX($C36:$L36,1,aux!$BA$1))/INDEX($C36:$L36,1,aux!$BA$1),"n.d.") -> -0.2258196073 | AH36: =X36-INDEX($O36:$X36,1,aux!$BA$1) -> 38637.077 | AI36: =AH36/$AH$252 -> 0.2841460638 | AJ36: =+IF(INDEX($O36:$X36,1,aux!$BA$1)>0,(X36/INDEX($O36:$X36,1,aux!$BA$1))^(1/($X$3-INDEX($O$3:$X$3,1,aux!$BA$1)))-1,"n.d.") -> 0.09705457398 | AK36: =IF(INDEX($O36:$X36,1,aux!$BA$1)>0,(X36-INDEX($O36:$X36,1,aux!$BA$1))/INDEX($O36:$X36,1,aux!$BA$1),"n.d.") -> 1.301728485 | CC36: =+IF(ISNA(MATCH('5.1'!A36,AUX_2d_pais!$G$2:$G$40000,0)),0,1) -> 1
A37: 0703 | B37: Brunei Darussalam | C37: 0 | D37: 0 | E37: 0 | F37: 0 | G37: 0 | H37: 0 | I37: 0 | J37: 0 | K37: 0 | L37: 0 | M37: 0 | N37: 0 | O37: 0 | P37: 0 | Q37: 0 | R37: 0 | S37: 0 | T37: 0 | U37: 0.091 | V37: 0 | W37: 0 | X37: 0 | Y37: 0.0091 | Z37: 8.323582318e-09 | AA37: 0.0091 | AC37: =L37-INDEX($C37:$L37,1,aux!$BA$1) -> 0 | AD37: 0 | AE37: =+IF(INDEX($C37:$L37,1,aux!$BA$1)>0,(L37/INDEX($C37:$L37,1,aux!$BA$1))^(1/($L$3-INDEX($C$3:$L$3,1,aux!$BA$1)))-1,"n.d.") -> n.d. | AF37: =IF(INDEX($C37:$L37,1,aux!$BA$1)>0,(L37-INDEX($C37:$L37,1,aux!$BA$1))/INDEX($C37:$L37,1,aux!$BA$1),"n.d.") -> n.d. | AH37: =X37-INDEX($O37:$X37,1,aux!$BA$1) -> 0 | AI37: 0 | AJ37: =+IF(INDEX($O37:$X37,1,aux!$BA$1)>0,(X37/INDEX($O37:$X37,1,aux!$BA$1))^(1/($X$3-INDEX($O$3:$X$3,1,aux!$BA$1)))-1,"n.d.") -> n.d. | AK37: =IF(INDEX($O37:$X37,1,aux!$BA$1)>0,(X37-INDEX($O37:$X37,1,aux!$BA$1))/INDEX($O37:$X37,1,aux!$BA$1),"n.d.") -> n.d. | BO37: 0.091 | CC37: =+IF(ISNA(MATCH('5.1'!A37,AUX_2d_pais!$G$2:$G$40000,0)),0,1) -> 1
A38: 0068 | B38: Bulgária | C38: 0 | D38: 1.769 | E38: 0.632 | F38: 4.54 | G38: 0.203 | H38: 7.026 | I38: 34.072 | J38: 12.717 | K38: 0 | L38: 0 | M38: 6.0959 | N38: 1.385379829e-05 | O38: 38.654 | P38: 60.143 | Q38: 207.345 | R38: 94.297 | S38: 240.81 | T38: 211.571 | U38: 440.582 | V38: 685.267 | W38: 253.713 | X38: 197.717 | Y38: 243.0099 | Z38: 0.0002222761436 | AA38: 236.914 | AC38: =L38-INDEX($C38:$L38,1,aux!$BA$1) -> 0 | AD38: 0 | AE38: =+IF(INDEX($C38:$L38,1,aux!$BA$1)>0,(L38/INDEX($C38:$L38,1,aux!$BA$1))^(1/($L$3-INDEX($C$3:$L$3,1,aux!$BA$1)))-1,"n.d.") -> n.d. | AF38: =IF(INDEX($C38:$L38,1,aux!$BA$1)>0,(L38-INDEX($C38:$L38,1,aux!$BA$1))/INDEX($C38:$L38,1,aux!$BA$1),"n.d.") -> n.d. | AH38: =X38-INDEX($O38:$X38,1,aux!$BA$1) -> 159.063 | AI38: 0.001169786352 | AJ38: =+IF(INDEX($O38:$X38,1,aux!$BA$1)>0,(X38/INDEX($O38:$X38,1,aux!$BA$1))^(1/($X$3-INDEX($O$3:$X$3,1,aux!$BA$1)))-1,"n.d.") -> 0.1988395537 | AK38: =IF(INDEX($O38:$X38,1,aux!$BA$1)>0,(X38-INDEX($O38:$X38,1,aux!$BA$1))/INDEX($O38:$X38,1,aux!$BA$1),"n.d.") -> 4.115046308 | CC38: =+IF(ISNA(MATCH('5.1'!A38,AUX_2d_pais!$G$2:$G$40000,0)),0,1) -> 1
A39: 0236 | B39: Burquina Faso | C39: 0 | D39: 0 | E39: 0 | F39: 0 | G39: 0 | H39: 0 | I39: 0 | J39: 0 | K39: 0 | L39: 0 | M39: 0 | N39: 0 | O39: 55.993 | P39: 167.115 | Q39: 124.349 | R39: 51.116 | S39: 189.075 | T39: 353.944 | U39: 325.538 | V39: 322.149 | W39: 1007.748 | X39: 960.32 | Y39: 355.7347 | Z39: 0.0003253831933 | AA39: 355.7347 | AC39: =L39-INDEX($C39:$L39,1,aux!$BA$1) -> 0 | AD39: 0 | AE39: =+IF(INDEX($C39:$L39,1,aux!$BA$1)>0,(L39/INDEX($C39:$L39,1,aux!$BA$1))^(1/($L$3-INDEX($C$3:$L$3,1,aux!$BA$1)))-1,"n.d.") -> n.d. | AF39: =IF(INDEX($C39:$L39,1,aux!$BA$1)>0,(L39-INDEX($C39:$L39,1,aux!$BA$1))/INDEX($C39:$L39,1,aux!$BA$1),"n.d.") -> n.d. | AH39: =X39-INDEX($O39:$X39,1,aux!$BA$1) -> 904.327 | AI39: 0.006650631399 | AJ39: =+IF(INDEX($O39:$X39,1,aux!$BA$1)>0,(X39/INDEX($O39:$X39,1,aux!$BA$1))^(1/($X$3-INDEX($O$3:$X$3,1,aux!$BA$1)))-1,"n.d.") -> 0.3713315592 | AK39: =IF(INDEX($O39:$X39,1,aux!$BA$1)>0,(X39-INDEX($O39:$X39,1,aux!$BA$1))/INDEX($O39:$X39,1,aux!$BA$1),"n.d.") -> 16.15071527 | CC39: =+IF(ISNA(MATCH('5.1'!A39,AUX_2d_pais!$G$2:$G$40000,0)),0,1) -> 1
A40: 0328 | B40: Burundi | C40: 0 | D40: 0 | E40: 0 | F40: 0 | G40: 0 | H40: 0 | I40: 0 | J40: 0 | K40: 0 | L40: 0 | M40: 0 | N40: 0 | O40: 0 | P40: 0 | Q40: 0 | R40: 0 | S40: 0 | T40: 0 | U40: 0 | V40: 0 | W40: 0 | X40: 0.605 | Y40: 0.0605 | Z40: 5.533810222e-08 | AA40: 0.0605 | AC40: =L40-INDEX($C40:$L40,1,aux!$BA$1) -> 0 | AD40: 0 | AE40: =+IF(INDEX($C40:$L40,1,aux!$BA$1)>0,(L40/INDEX($C40:$L40,1,aux!$BA$1))^(1/($L$3-INDEX($C$3:$L$3,1,aux!$BA$1)))-1,"n.d.") -> n.d. | AF40: =IF(INDEX($C40:$L40,1,aux!$BA$1)>0,(L40-INDEX($C40:$L40,1,aux!$BA$1))/INDEX($C40:$L40,1,aux!$BA$1),"n.d.") -> n.d. | AH40: =X40-INDEX($O40:$X40,1,aux!$BA$1) -> 0.605 | AI40: 4.44931092e-06 | AJ40: =+IF(INDEX($O40:$X40,1,aux!$BA$1)>0,(X40/INDEX($O40:$X40,1,aux!$BA$1))^(1/($X$3-INDEX($O$3:$X$3,1,aux!$BA$1)))-1,"n.d.") -> n.d. | AK40: =IF(INDEX($O40:$X40,1,aux!$BA$1)>0,(X40-INDEX($O40:$X40,1,aux!$BA$1))/INDEX($O40:$X40,1,aux!$BA$1),"n.d.") -> n.d. | BO40: 0.605 | CC40: =+IF(ISNA(MATCH('5.1'!A40,AUX_2d_pais!$G$2:$G$40000,0)),0,1) -> 1
A41: 0675 | B41: Butão | C41: 0 | D41: 0 | E41: 0 | F41: 0 | G41: 0 | H41: 0 | I41: 0 | J41: 0 | K41: 0 | L41: 0 | M41: 0 | N41: 0 | O41: 0 | P41: 0 | Q41: 0 | R41: 0 | S41: 0 | T41: 0 | U41: 0 | V41: 0 | W41: 0.005 | X41: 0 | Y41: 0.0005 | Z41: 4.573396878e-10 | AA41: 0.0005 | AC41: =L41-INDEX($C41:$L41,1,aux!$BA$1) -> 0 | AD41: 0 | AE41: =+IF(INDEX($C41:$L41,1,aux!$BA$1)>0,(L41/INDEX($C41:$L41,1,aux!$BA$1))^(1/($L$3-INDEX($C$3:$L$3,1,aux!$BA$1)))-1,"n.d.") -> n.d. | AF41: =IF(INDEX($C41:$L41,1,aux!$BA$1)>0,(L41-INDEX($C41:$L41,1,aux!$BA$1))/INDEX($C41:$L41,1,aux!$BA$1),"n.d.") -> n.d. | AH41: =X41-INDEX($O41:$X41,1,aux!$BA$1) -> 0 | AI41: 0 | AJ41: =+IF(INDEX($O41:$X41,1,aux!$BA$1)>0,(X41/INDEX($O41:$X41,1,aux!$BA$1))^(1/($X$3-INDEX($O$3:$X$3,1,aux!$BA$1)))-1,"n.d.") -> n.d. | AK41: =IF(INDEX($O41:$X41,1,aux!$BA$1)>0,(X41-INDEX($O41:$X41,1,aux!$BA$1))/INDEX($O41:$X41,1,aux!$BA$1),"n.d.") -> n.d. | BO41: 0.005 | CC41: =+IF(ISNA(MATCH('5.1'!A41,AUX_2d_pais!$G$2:$G$40000,0)),0,1) -> 1
A42: 0247 | B42: Cabo Verde | C42: 199.639 | D42: 210.424 | E42: 218.534 | F42: 143.615 | G42: 100.846 | H42: 56.565 | I42: 47.191 | J42: 58.903 | K42: 79.714 | L42: 17.796 | M42: 113.3227 | N42: 0.0002575419261 | O42: 12457.147 | P42: 9770.934 | Q42: 8820.67 | R42: 8830.233 | S42: 9848.261 | T42: 11398.295 | U42: 11997.558 | V42: 10439.303 | W42: 12065.203 | X42: 10112.38 | Y42: 10573.9984 | Z42: 0.009671818254 | AA42: 10460.6757 | AC42: =L42-INDEX($C42:$L42,1,aux!$BA$1) -> -181.843 | AD42: -0.002530580427 | AE42: =+IF(INDEX($C42:$L42,1,aux!$BA$1)>0,(L42/INDEX($C42:$L42,1,aux!$BA$1))^(1/($L$3-INDEX($C$3:$L$3,1,aux!$BA$1)))-1,"n.d.") -> -0.2355626644 | AF42: =IF(INDEX($C42:$L42,1,aux!$BA$1)>0,(L42-INDEX($C42:$L42,1,aux!$BA$1))/INDEX($C42:$L42,1,aux!$BA$1),"n.d.") -> -0.9108591007 | AH42: =X42-INDEX($O42:$X42,1,aux!$BA$1) -> -2344.767 | AI42: -0.01724396267 | AJ42: =+IF(INDEX($O42:$X42,1,aux!$BA$1)>0,(X42/INDEX($O42:$X42,1,aux!$BA$1))^(1/($X$3-INDEX($O$3:$X$3,1,aux!$BA$1)))-1,"n.d.") -> -0.0229040817 | AK42: =IF(INDEX($O42:$X42,1,aux!$BA$1)>0,(X42-INDEX($O42:$X42,1,aux!$BA$1))/INDEX($O42:$X42,1,aux!$BA$1),"n.d.") -> -0.1882266461 | CC42: =+IF(ISNA(MATCH('5.1'!A42,AUX_2d_pais!$G$2:$G$40000,0)),0,1) -> 1
A43: 0463 | B43: Caimão, Ilhas | C43: 0 | D43: 0 | E43: 0 | F43: 0 | G43: 0 | H43: 0 | I43: 0 | J43: 0 | K43: 0 | L43: 0 | M43: 0 | N43: 0 | O43: 32.896 | P43: 11.518 | Q43: 38.626 | R43: 42.016 | S43: 22.332 | T43: 27.348 | U43: 18.976 | V43: 33.693 | W43: 40.18 | X43: 50.884 | Y43: 31.8469 | Z43: 2.912970261e-05 | AA43: 31.8469 | AC43: =L43-INDEX($C43:$L43,1,aux!$BA$1) -> 0 | AD43: 0 | AE43: =+IF(INDEX($C43:$L43,1,aux!$BA$1)>0,(L43/INDEX($C43:$L43,1,aux!$BA$1))^(1/($L$3-INDEX($C$3:$L$3,1,aux!$BA$1)))-1,"n.d.") -> n.d. | AF43: =IF(INDEX($C43:$L43,1,aux!$BA$1)>0,(L43-INDEX($C43:$L43,1,aux!$BA$1))/INDEX($C43:$L43,1,aux!$BA$1),"n.d.") -> n.d. | AH43: =X43-INDEX($O43:$X43,1,aux!$BA$1) -> 17.988 | AI43: 0.0001322879419 | AJ43: =+IF(INDEX($O43:$X43,1,aux!$BA$1)>0,(X43/INDEX($O43:$X43,1,aux!$BA$1))^(1/($X$3-INDEX($O$3:$X$3,1,aux!$BA$1)))-1,"n.d.") -> 0.04966008661 | AK43: =IF(INDEX($O43:$X43,1,aux!$BA$1)>0,(X43-INDEX($O43:$X43,1,aux!$BA$1))/INDEX($O43:$X43,1,aux!$BA$1),"n.d.") -> 0.5468142023 | BO43: 318.469 | CC43: =+IF(ISNA(MATCH('5.1'!A43,AUX_2d_pais!$G$2:$G$40000,0)),0,1) -> 1
A44: 0302 | B44: Camarões | C44: 0 | D44: 0 | E44: 3.072 | F44: 0 | G44: 0.122 | H44: 0 | I44: 0 | J44: 0 | K44: 0 | L44: 0 | M44: 0.3194 | N44: 7.258818507e-07 | O44: 47.266 | P44: 40.859 | Q44: 13.641 | R44: 75.132 | S44: 217.798 | T44: 210.972 | U44: 172.096 | V44: 271.525 | W44: 218.695 | X44: 315.364 | Y44: 158.3348 | Z44: 0.000144825576 | AA44: 158.0154 | AC44: =L44-INDEX($C44:$L44,1,aux!$BA$1) -> 0 | AD44: 0 | AE44: =+IF(INDEX($C44:$L44,1,aux!$BA$1)>0,(L44/INDEX($C44:$L44,1,aux!$BA$1))^(1/($L$3-INDEX($C$3:$L$3,1,aux!$BA$1)))-1,"n.d.") -> n.d. | AF44: =IF(INDEX($C44:$L44,1,aux!$BA$1)>0,(L44-INDEX($C44:$L44,1,aux!$BA$1))/INDEX($C44:$L44,1,aux!$BA$1),"n.d.") -> n.d. | AH44: =X44-INDEX($O44:$X44,1,aux!$BA$1) -> 268.098 | AI44: 0.001971655139 | AJ44: =+IF(INDEX($O44:$X44,1,aux!$BA$1)>0,(X44/INDEX($O44:$X44,1,aux!$BA$1))^(1/($X$3-INDEX($O$3:$X$3,1,aux!$BA$1)))-1,"n.d.") -> 0.2347664116 | AK44: =IF(INDEX($O44:$X44,1,aux!$BA$1)>0,(X44-INDEX($O44:$X44,1,aux!$BA$1))/INDEX($O44:$X44,1,aux!$BA$1),"n.d.") -> 5.672111031 | CC44: =+IF(ISNA(MATCH('5.1'!A44,AUX_2d_pais!$G$2:$G$40000,0)),0,1) -> 1
A45: 0696 | B45: Camboja | C45: 0 | D45: 0 | E45: 0 | F45: 0 | G45: 0 | H45: 0 | I45: 0 | J45: 0 | K45: 0 | L45: 0 | M45: 0 | N45: 0 | O45: 1.455 | P45: 1.918 | Q45: 3.036 | R45: 18.371 | S45: 1.296 | T45: 6.614 | U45: 0.402 | V45: 6.464 | W45: 0.512 | X45: 5.228 | Y45: 4.5296 | Z45: 4.1431317e-06 | AA45: 4.5296 | AC45: =L45-INDEX($C45:$L45,1,aux!$BA$1) -> 0 | AD45: 0 | AE45: =+IF(INDEX($C45:$L45,1,aux!$BA$1)>0,(L45/INDEX($C45:$L45,1,aux!$BA$1))^(1/($L$3-INDEX($C$3:$L$3,1,aux!$BA$1)))-1,"n.d.") -> n.d. | AF45: =IF(INDEX($C45:$L45,1,aux!$BA$1)>0,(L45-INDEX($C45:$L45,1,aux!$BA$1))/INDEX($C45:$L45,1,aux!$BA$1),"n.d.") -> n.d. | AH45: =X45-INDEX($O45:$X45,1,aux!$BA$1) -> 3.773 | AI45: 2.774752083e-05 | AJ45: =+IF(INDEX($O45:$X45,1,aux!$BA$1)>0,(X45/INDEX($O45:$X45,1,aux!$BA$1))^(1/($X$3-INDEX($O$3:$X$3,1,aux!$BA$1)))-1,"n.d.") -> 0.1527076521 | AK45: =IF(INDEX($O45:$X45,1,aux!$BA$1)>0,(X45-INDEX($O45:$X45,1,aux!$BA$1))/INDEX($O45:$X45,1,aux!$BA$1),"n.d.") -> 2.593127148 | CC45: =+IF(ISNA(MATCH('5.1'!A45,AUX_2d_pais!$G$2:$G$40000,0)),0,1) -> 1
A46: 0404 | B46: Canadá | C46: 33.087 | D46: 16.237 | E46: 0.268 | F46: 9.187 | G46: 36.888 | H46: 99.734 | I46: 1.837 | J46: 12.822 | K46: 45.163 | L46: 4.367 | M46: 25.959 | N46: 5.899551335e-05 | O46: 37001.723 | P46: 40073.816 | Q46: 41442.214 | R46: 37738.277 | S46: 41323.887 | T46: 43613.032 | U46: 46921.751 | V46: 49382.566 | W46: 50145.075 | X46: 52491.131 | Y46: 44013.3472 | Z46: 0.04025810093 | AA46: 43987.3882 | AC46: =L46-INDEX($C46:$L46,1,aux!$BA$1) -> -28.72 | AD46: -0.0003996759285 | AE46: =+IF(INDEX($C46:$L46,1,aux!$BA$1)>0,(L46/INDEX($C46:$L46,1,aux!$BA$1))^(1/($L$3-INDEX($C$3:$L$3,1,aux!$BA$1)))-1,"n.d.") -> -0.2014894757 | AF46: =IF(INDEX($C46:$L46,1,aux!$BA$1)>0,(L46-INDEX($C46:$L46,1,aux!$BA$1))/INDEX($C46:$L46,1,aux!$BA$1),"n.d.") -> -0.8680146281 | AH46: =X46-INDEX($O46:$X46,1,aux!$BA$1) -> 15489.408 | AI46: 0.1139127143 | AJ46: =+IF(INDEX($O46:$X46,1,aux!$BA$1)>0,(X46/INDEX($O46:$X46,1,aux!$BA$1))^(1/($X$3-INDEX($O$3:$X$3,1,aux!$BA$1)))-1,"n.d.") -> 0.03961796546 | AK46: =IF(INDEX($O46:$X46,1,aux!$BA$1)>0,(X46-INDEX($O46:$X46,1,aux!$BA$1))/INDEX($O46:$X46,1,aux!$BA$1),"n.d.") -> 0.4186131549 | CC46: =+IF(ISNA(MATCH('5.1'!A46,AUX_2d_pais!$G$2:$G$40000,0)),0,1) -> 1
A47: 0644 | B47: Catar | C47: 0 | D47: 0 | E47: 0 | F47: 0 | G47: 0 | H47: 0 | I47: 0 | J47: 0.342 | K47: 0 | L47: 0 | M47: 0.0342 | N47: 7.772435596e-08 | O47: 136.396 | P47: 102.156 | Q47: 245.668 | R47: 100.1 | S47: 110.064 | T47: 180.727 | U47: 296.474 | V47: 322.614 | W47: 454.81 | X47: 159.493 | Y47: 210.8502 | Z47: 0.0001928603293 | AA47: 210.816 | AC47: =L47-INDEX($C47:$L47,1,aux!$BA$1) -> 0 | AD47: 0 | AE47: =+IF(INDEX($C47:$L47,1,aux!$BA$1)>0,(L47/INDEX($C47:$L47,1,aux!$BA$1))^(1/($L$3-INDEX($C$3:$L$3,1,aux!$BA$1)))-1,"n.d.") -> n.d. | AF47: =IF(INDEX($C47:$L47,1,aux!$BA$1)>0,(L47-INDEX($C47:$L47,1,aux!$BA$1))/INDEX($C47:$L47,1,aux!$BA$1),"n.d.") -> n.d. | AH47: =X47-INDEX($O47:$X47,1,aux!$BA$1) -> 23.097 | AI47: 0.0001698607179 | AJ47: =+IF(INDEX($O47:$X47,1,aux!$BA$1)>0,(X47/INDEX($O47:$X47,1,aux!$BA$1))^(1/($X$3-INDEX($O$3:$X$3,1,aux!$BA$1)))-1,"n.d.") -> 0.01753390249 | AK47: =IF(INDEX($O47:$X47,1,aux!$BA$1)>0,(X47-INDEX($O47:$X47,1,aux!$BA$1))/INDEX($O47:$X47,1,aux!$BA$1),"n.d.") -> 0.1693378105 | CC47: =+IF(ISNA(MATCH('5.1'!A47,AUX_2d_pais!$G$2:$G$40000,0)),0,1) -> 1
A48: 0079 | B48: Cazaquistão | C48: 0 | D48: 0 | E48: 0 | F48: 0 | G48: 0 | H48: 0.515 | I48: 0 | J48: 0.006 | K48: 0 | L48: 0 | M48: 0.0521 | N48: 1.184046475e-07 | O48: 94.548 | P48: 13.385 | Q48: 62.018 | R48: 24.002 | S48: 103.259 | T48: 18.415 | U48: 6.134 | V48: 29.626 | W48: 21.015 | X48: 25.186 | Y48: 39.7588 | Z48: 3.636655436e-05 | AA48: 39.7067 | AC48: =L48-INDEX($C48:$L48,1,aux!$BA$1) -> 0 | AD48: 0 | AE48: =+IF(INDEX($C48:$L48,1,aux!$BA$1)>0,(L48/INDEX($C48:$L48,1,aux!$BA$1))^(1/($L$3-INDEX($C$3:$L$3,1,aux!$BA$1)))-1,"n.d.") -> n.d. | AF48: =IF(INDEX($C48:$L48,1,aux!$BA$1)>0,(L48-INDEX($C48:$L48,1,aux!$BA$1))/INDEX($C48:$L48,1,aux!$BA$1),"n.d.") -> n.d. | AH48: =X48-INDEX($O48:$X48,1,aux!$BA$1) -> -69.362 | AI48: -0.0005101043042 | AJ48: =+IF(INDEX($O48:$X48,1,aux!$BA$1)>0,(X48/INDEX($O48:$X48,1,aux!$BA$1))^(1/($X$3-INDEX($O$3:$X$3,1,aux!$BA$1)))-1,"n.d.") -> -0.1366886949 | AK48: =IF(INDEX($O48:$X48,1,aux!$BA$1)>0,(X48-INDEX($O48:$X48,1,aux!$BA$1))/INDEX($O48:$X48,1,aux!$BA$1),"n.d.") -> -0.7336167872 | CC48: =+IF(ISNA(MATCH('5.1'!A48,AUX_2d_pais!$G$2:$G$40000,0)),0,1) -> 1
A49: 0306 | B49: Centro-Africana, República | C49: 0 | D49: 0 | E49: 0 | F49: 0 | G49: 0 | H49: 0 | I49: 0 | J49: 0 | K49: 0 | L49: 0 | M49: 0 | N49: 0 | O49: 0 | P49: 0.15 | Q49: 0 | R49: 2.69 | S49: 0 | T49: 0 | U49: 0 | V49: 0.016 | W49: 0.069 | X49: 0.049 | Y49: 0.2974 | Z49: 2.720256463e-07 | AA49: 0.2974 | AC49: =L49-INDEX($C49:$L49,1,aux!$BA$1) -> 0 | AD49: 0 | AE49: =+IF(INDEX($C49:$L49,1,aux!$BA$1)>0,(L49/INDEX($C49:$L49,1,aux!$BA$1))^(1/($L$3-INDEX($C$3:$L$3,1,aux!$BA$1)))-1,"n.d.") -> n.d. | AF49: =IF(INDEX($C49:$L49,1,aux!$BA$1)>0,(L49-INDEX($C49:$L49,1,aux!$BA$1))/INDEX($C49:$L49,1,aux!$BA$1),"n.d.") -> n.d. | AH49: =X49-INDEX($O49:$X49,1,aux!$BA$1) -> 0.049 | AI49: 3.603574134e-07 | AJ49: =+IF(INDEX($O49:$X49,1,aux!$BA$1)>0,(X49/INDEX($O49:$X49,1,aux!$BA$1))^(1/($X$3-INDEX($O$3:$X$3,1,aux!$BA$1)))-1,"n.d.") -> n.d. | AK49: =IF(INDEX($O49:$X49,1,aux!$BA$1)>0,(X49-INDEX($O49:$X49,1,aux!$BA$1))/INDEX($O49:$X49,1,aux!$BA$1),"n.d.") -> n.d. | BO49: 2.974 | CC49: =+IF(ISNA(MATCH('5.1'!A49,AUX_2d_pais!$G$2:$G$40000,0)),0,1) -> 1
A50: 0021 | B50: Ceuta | C50: 0 | D50: 0 | E50: 0 | F50: 0 | G50: 0 | H50: 0 | I50: 0 | J50: 0 | K50: 0 | L50: 0 | M50: 0 | N50: 0 | O50: 0 | P50: 0 | Q50: 0 | R50: 0 | S50: 0 | T50: 0 | U50: 0 | V50: 0 | W50: 0 | X50: 0 | Y50: 0 | Z50: 0 | AA50: 0 | AC50: =L50-INDEX($C50:$L50,1,aux!$BA$1) -> 0 | AD50: 0 | AE50: =+IF(INDEX($C50:$L50,1,aux!$BA$1)>0,(L50/INDEX($C50:$L50,1,aux!$BA$1))^(1/($L$3-INDEX($C$3:$L$3,1,aux!$BA$1)))-1,"n.d.") -> n.d. | AF50: =IF(INDEX($C50:$L50,1,aux!$BA$1)>0,(L50-INDEX($C50:$L50,1,aux!$BA$1))/INDEX($C50:$L50,1,aux!$BA$1),"n.d.") -> n.d. | AH50: =X50-INDEX($O50:$X50,1,aux!$BA$1) -> 0 | AI50: 0 | AJ50: =+IF(INDEX($O50:$X50,1,aux!$BA$1)>0,(X50/INDEX($O50:$X50,1,aux!$BA$1))^(1/($X$3-INDEX($O$3:$X$3,1,aux!$BA$1)))-1,"n.d.") -> n.d. | AK50: =IF(INDEX($O50:$X50,1,aux!$BA$1)>0,(X50-INDEX($O50:$X50,1,aux!$BA$1))/INDEX($O50:$X50,1,aux!$BA$1),"n.d.") -> n.d. | CC50: =+IF(ISNA(MATCH('5.1'!A50,AUX_2d_pais!$G$2:$G$40000,0)),0,1) -> 0
A51: 0022 | B51: Ceuta e Melilha | C51: 0 | D51: 0 | E51: 0 | F51: 0 | G51: 0 | H51: 0 | I51: 0 | J51: 0 | K51: 0 | L51: 0 | M51: 0 | N51: 0 | O51: 0 | P51: 0 | Q51: 0 | R51: 0.134 | S51: 147.22 | T51: 203.52 | U51: 0 | V51: 74.156 | W51: 0 | X51: 0 | Y51: 42.503 | Z51: 3.88766175e-05 | AA51: 42.503 | AC51: =L51-INDEX($C51:$L51,1,aux!$BA$1) -> 0 | AD51: 0 | AE51: =+IF(INDEX($C51:$L51,1,aux!$BA$1)>0,(L51/INDEX($C51:$L51,1,aux!$BA$1))^(1/($L$3-INDEX($C$3:$L$3,1,aux!$BA$1)))-1,"n.d.") -> n.d. | AF51: =IF(INDEX($C51:$L51,1,aux!$BA$1)>0,(L51-INDEX($C51:$L51,1,aux!$BA$1))/INDEX($C51:$L51,1,aux!$BA$1),"n.d.") -> n.d. | AH51: =X51-INDEX($O51:$X51,1,aux!$BA$1) -> 0 | AI51: 0 | AJ51: =+IF(INDEX($O51:$X51,1,aux!$BA$1)>0,(X51/INDEX($O51:$X51,1,aux!$BA$1))^(1/($X$3-INDEX($O$3:$X$3,1,aux!$BA$1)))-1,"n.d.") -> n.d. | AK51: =IF(INDEX($O51:$X51,1,aux!$BA$1)>0,(X51-INDEX($O51:$X51,1,aux!$BA$1))/INDEX($O51:$X51,1,aux!$BA$1),"n.d.") -> n.d. | CC51: =+IF(ISNA(MATCH('5.1'!A51,AUX_2d_pais!$G$2:$G$40000,0)),0,1) -> 1
A52: 0244 | B52: Chade | C52: 0 | D52: 0 | E52: 0 | F52: 0 | G52: 0 | H52: 0 | I52: 0 | J52: 0 | K52: 0 | L52: 0 | M52: 0 | N52: 0 | O52: 0 | P52: 0 | Q52: 3.04 | R52: 0 | S52: 0 | T52: 0 | U52: 0 | V52: 0 | W52: 0.002 | X52: 0.007 | Y52: 0.3049 | Z52: 2.788857416e-07 | AA52: 0.3049 | AC52: =L52-INDEX($C52:$L52,1,aux!$BA$1) -> 0 | AD52: 0 | AE52: =+IF(INDEX($C52:$L52,1,aux!$BA$1)>0,(L52/INDEX($C52:$L52,1,aux!$BA$1))^(1/($L$3-INDEX($C$3:$L$3,1,aux!$BA$1)))-1,"n.d.") -> n.d. | AF52: =IF(INDEX($C52:$L52,1,aux!$BA$1)>0,(L52-INDEX($C52:$L52,1,aux!$BA$1))/INDEX($C52:$L52,1,aux!$BA$1),"n.d.") -> n.d. | AH52: =X52-INDEX($O52:$X52,1,aux!$BA$1) -> 0.007 | AI52: 5.147963048e-08 | AJ52: =+IF(INDEX($O52:$X52,1,aux!$BA$1)>0,(X52/INDEX($O52:$X52,1,aux!$BA$1))^(1/($X$3-INDEX($O$3:$X$3,1,aux!$BA$1)))-1,"n.d.") -> n.d. | AK52: =IF(INDEX($O52:$X52,1,aux!$BA$1)>0,(X52-INDEX($O52:$X52,1,aux!$BA$1))/INDEX($O52:$X52,1,aux!$BA$1),"n.d.") -> n.d. | CC52: =+IF(ISNA(MATCH('5.1'!A52,AUX_2d_pais!$G$2:$G$40000,0)),0,1) -> 1
A53: 0061 | B53: Checa, República | C53: 143.703 | D53: 10.887 | E53: 58.671 | F53: 120.114 | G53: 251.901 | H53: 281.156 | I53: 383.631 | J53: 109.917 | K53: 72.765 | L53: 34.801 | M53: 146.7546 | N53: 0.0003335206658 | O53: 1654.124 | P53: 1150.759 | Q53: 1198.07 | R53: 1572.15 | S53: 2008.697 | T53: 2522.029 | U53: 2553.615 | V53: 2665.208 | W53: 2459.709 | X53: 2142.658 | Y53: 1992.7019 | Z53: 0.00182268333 | AA53: 1845.9473 | AC53: =L53-INDEX($C53:$L53,1,aux!$BA$1) -> -108.902 | AD53: -0.001515512116 | AE53: =+IF(INDEX($C53:$L53,1,aux!$BA$1)>0,(L53/INDEX($C53:$L53,1,aux!$BA$1))^(1/($L$3-INDEX($C$3:$L$3,1,aux!$BA$1)))-1,"n.d.") -> -0.1457803781 | AF53: =IF(INDEX($C53:$L53,1,aux!$BA$1)>0,(L53-INDEX($C53:$L53,1,aux!$BA$1))/INDEX($C53:$L53,1,aux!$BA$1),"n.d.") -> -0.7578269069 | AH53: =X53-INDEX($O53:$X53,1,aux!$BA$1) -> 488.534 | AI53: 0.003592792828 | AJ53: =+IF(INDEX($O53:$X53,1,aux!$BA$1)>0,(X53/INDEX($O53:$X53,1,aux!$BA$1))^(1/($X$3-INDEX($O$3:$X$3,1,aux!$BA$1)))-1,"n.d.") -> 0.02917019228 | AK53: =IF(INDEX($O53:$X53,1,aux!$BA$1)>0,(X53-INDEX($O53:$X53,1,aux!$BA$1))/INDEX($O53:$X53,1,aux!$BA$1),"n.d.") -> 0.2953430335 | CC53: =+IF(ISNA(MATCH('5.1'!A53,AUX_2d_pais!$G$2:$G$40000,0)),0,1) -> 1
A54: 0512 | B54: Chile | C54: 203.66 | D54: 207.805 | E54: 273.453 | F54: 203.528 | G54: 270.827 | H54: 272.075 | I54: 173.514 | J54: 232.942 | K54: 140.552 | L54: 114.583 | M54: 209.2939 | N54: 0.0004756501048 | O54: 30.688 | P54: 63.448 | Q54: 122.057 | R54: 96.072 | S54: 61.708 | T54: 244.955 | U54: 83.002 | V54: 148.019 | W54: 136.953 | X54: 73.864 | Y54: 106.0766 | Z54: 9.702607825e-05 | AA54: -103.2173 | AC54: =L54-INDEX($C54:$L54,1,aux!$BA$1) -> -89.077 | AD54: -0.001239621612 | AE54: =+IF(INDEX($C54:$L54,1,aux!$BA$1)>0,(L54/INDEX($C54:$L54,1,aux!$BA$1))^(1/($L$3-INDEX($C$3:$L$3,1,aux!$BA$1)))-1,"n.d.") -> -0.061906666 | AF54: =IF(INDEX($C54:$L54,1,aux!$BA$1)>0,(L54-INDEX($C54:$L54,1,aux!$BA$1))/INDEX($C54:$L54,1,aux!$BA$1),"n.d.") -> -0.437380929 | AH54: =X54-INDEX($O54:$X54,1,aux!$BA$1) -> 43.176 | AI54: 0.0003175263608 | AJ54: =+IF(INDEX($O54:$X54,1,aux!$BA$1)>0,(X54/INDEX($O54:$X54,1,aux!$BA$1))^(1/($X$3-INDEX($O$3:$X$3,1,aux!$BA$1)))-1,"n.d.") -> 0.1025160367 | AK54: =IF(INDEX($O54:$X54,1,aux!$BA$1)>0,(X54-INDEX($O54:$X54,1,aux!$BA$1))/INDEX($O54:$X54,1,aux!$BA$1),"n.d.") -> 1.406934307 | CC54: =+IF(ISNA(MATCH('5.1'!A54,AUX_2d_pais!$G$2:$G$40000,0)),0,1) -> 1
A55: 0720 | B55: China, República Popular da | C55: 835.49 | D55: 842.441 | E55: 728.841 | F55: 820.296 | G55: 784.99 | H55: 822.088 | I55: 720.405 | J55: 691.843 | K55: 2573.594 | L55: 1768.806 | M55: 1058.8794 | N55: 0.002406453784 | O55: 9111.623 | P55: 11243.875 | Q55: 12698.649 | R55: 11854.648 | S55: 31916.337 | T55: 58843.625 | U55: 83352.896 | V55: 56846.588 | W55: 39291.336 | X55: 26309.342 | Y55: 34146.8919 | Z55: 0.03123345776 | AA55: 33088.0125 | AC55: =L55-INDEX($C55:$L55,1,aux!$BA$1) -> 933.316 | AD55: 0.01298829871 | AE55: =+IF(INDEX($C55:$L55,1,aux!$BA$1)>0,(L55/INDEX($C55:$L55,1,aux!$BA$1))^(1/($L$3-INDEX($C$3:$L$3,1,aux!$BA$1)))-1,"n.d.") -> 0.08690907859 | AF55: =IF(INDEX($C55:$L55,1,aux!$BA$1)>0,(L55-INDEX($C55:$L55,1,aux!$BA$1))/INDEX($C55:$L55,1,aux!$BA$1),"n.d.") -> 1.117088176 | AH55: =X55-INDEX($O55:$X55,1,aux!$BA$1) -> 17197.719 | AI55: 0.1264760313 | AJ55: =+IF(INDEX($O55:$X55,1,aux!$BA$1)>0,(X55/INDEX($O55:$X55,1,aux!$BA$1))^(1/($X$3-INDEX($O$3:$X$3,1,aux!$BA$1)))-1,"n.d.") -> 0.1250407399 | AK55: =IF(INDEX($O55:$X55,1,aux!$BA$1)>0,(X55-INDEX($O55:$X55,1,aux!$BA$1))/INDEX($O55:$X55,1,aux!$BA$1),"n.d.") -> 1.887448482 | CC55: =+IF(ISNA(MATCH('5.1'!A55,AUX_2d_pais!$G$2:$G$40000,0)),0,1) -> 1
A56: 0600 | B56: Chipre | C56: 0 | D56: 28.974 | E56: 16.329 | F56: 346.571 | G56: 575.479 | H56: 439.154 | I56: 822.504 | J56: 514.355 | K56: 508.48 | L56: 271.63 | M56: 352.3476 | N56: 0.0008007599498 | O56: 890.037 | P56: 662.954 | Q56: 725.553 | R56: 1026.028 | S56: 653.721 | T56: 601.156 | U56: 659.139 | V56: 548.111 | W56: 719.22 | X56: 696.854 | Y56: 718.2773 | Z56: 0.0006569934322 | AA56: 365.9297 | AC56: =L56-INDEX($C56:$L56,1,aux!$BA$1) -> 271.63 | AD56: 0.003780082607 | AE56: =+IF(INDEX($C56:$L56,1,aux!$BA$1)>0,(L56/INDEX($C56:$L56,1,aux!$BA$1))^(1/($L$3-INDEX($C$3:$L$3,1,aux!$BA$1)))-1,"n.d.") -> n.d. | AF56: =IF(INDEX($C56:$L56,1,aux!$BA$1)>0,(L56-INDEX($C56:$L56,1,aux!$BA$1))/INDEX($C56:$L56,1,aux!$BA$1),"n.d.") -> n.d. | AH56: =X56-INDEX($O56:$X56,1,aux!$BA$1) -> -193.183 | AI56: -0.001420712779 | AJ56: =+IF(INDEX($O56:$X56,1,aux!$BA$1)>0,(X56/INDEX($O56:$X56,1,aux!$BA$1))^(1/($X$3-INDEX($O$3:$X$3,1,aux!$BA$1)))-1,"n.d.") -> -0.02682120499 | AK56: =IF(INDEX($O56:$X56,1,aux!$BA$1)>0,(X56-INDEX($O56:$X56,1,aux!$BA$1))/INDEX($O56:$X56,1,aux!$BA$1),"n.d.") -> -0.2170505271 | CC56: =+IF(ISNA(MATCH('5.1'!A56,AUX_2d_pais!$G$2:$G$40000,0)),0,1) -> 1
A57: 0834 | B57: Christmas, Ilha | C57: 0 | D57: 0 | E57: 0 | F57: 0 | G57: 0 | H57: 0 | I57: 0 | J57: 0 | K57: 0 | L57: 0 | M57: 0 | N57: 0 | O57: 0 | P57: 0 | Q57: 0 | R57: 0 | S57: 0 | T57: 0 | U57: 0 | V57: 0 | W57: 0 | X57: 0 | Y57: 0 | Z57: 0 | AA57: 0 | AC57: =L57-INDEX($C57:$L57,1,aux!$BA$1) -> 0 | AD57: 0 | AE57: =+IF(INDEX($C57:$L57,1,aux!$BA$1)>0,(L57/INDEX($C57:$L57,1,aux!$BA$1))^(1/($L$3-INDEX($C$3:$L$3,1,aux!$BA$1)))-1,"n.d.") -> n.d. | AF57: =IF(INDEX($C57:$L57,1,aux!$BA$1)>0,(L57-INDEX($C57:$L57,1,aux!$BA$1))/INDEX($C57:$L57,1,aux!$BA$1),"n.d.") -> n.d. | AH57: =X57-INDEX($O57:$X57,1,aux!$BA$1) -> 0 | AI57: 0 | AJ57: =+IF(INDEX($O57:$X57,1,aux!$BA$1)>0,(X57/INDEX($O57:$X57,1,aux!$BA$1))^(1/($X$3-INDEX($O$3:$X$3,1,aux!$BA$1)))-1,"n.d.") -> n.d. | AK57: =IF(INDEX($O57:$X57,1,aux!$BA$1)>0,(X57-INDEX($O57:$X57,1,aux!$BA$1))/INDEX($O57:$X57,1,aux!$BA$1),"n.d.") -> n.d. | BO57: 0 | CC57: =+IF(ISNA(MATCH('5.1'!A57,AUX_2d_pais!$G$2:$G$40000,0)),0,1) -> 0
A58: 0833 | B58: Cocos (Keeling), Ilhas | C58: 0 | D58: 0 | E58: 0 | F58: 0 | G58: 0 | H58: 0 | I58: 0 | J58: 0 | K58: 0 | L58: 0 | M58: 0 | N58: 0 | O58: 0 | P58: 0 | Q58: 0 | R58: 0 | S58: 0 | T58: 0 | U58: 0 | V58: 0 | W58: 0 | X58: 0 | Y58: 0 | Z58: 0 | AA58: 0 | AC58: =L58-INDEX($C58:$L58,1,aux!$BA$1) -> 0 | AD58: 0 | AE58: =+IF(INDEX($C58:$L58,1,aux!$BA$1)>0,(L58/INDEX($C58:$L58,1,aux!$BA$1))^(1/($L$3-INDEX($C$3:$L$3,1,aux!$BA$1)))-1,"n.d.") -> n.d. | AF58: =IF(INDEX($C58:$L58,1,aux!$BA$1)>0,(L58-INDEX($C58:$L58,1,aux!$BA$1))/INDEX($C58:$L58,1,aux!$BA$1),"n.d.") -> n.d. | AH58: =X58-INDEX($O58:$X58,1,aux!$BA$1) -> 0 | AI58: 0 | AJ58: =+IF(INDEX($O58:$X58,1,aux!$BA$1)>0,(X58/INDEX($O58:$X58,1,aux!$BA$1))^(1/($X$3-INDEX($O$3:$X$3,1,aux!$BA$1)))-1,"n.d.") -> n.d. | AK58: =IF(INDEX($O58:$X58,1,aux!$BA$1)>0,(X58-INDEX($O58:$X58,1,aux!$BA$1))/INDEX($O58:$X58,1,aux!$BA$1),"n.d.") -> n.d. | BO58: 0 | CC58: =+IF(ISNA(MATCH('5.1'!A58,AUX_2d_pais!$G$2:$G$40000,0)),0,1) -> 0
A59: 0480 | B59: Colômbia | C59: 276.303 | D59: 89.76 | E59: 0 | F59: 5.357 | G59: 15.033 | H59: 3.742 | I59: 9.147 | J59: 35.472 | K59: 32.25 | L59: 59.257 | M59: 52.6321 | N59: 0.0001196139203 | O59: 95.766 | P59: 56.501 | Q59: 150.7 | R59: 143.348 | S59: 287.736 | T59: 925.597 | U59: 2336.015 | V59: 2485.854 | W59: 1696.019 | X59: 1326.114 | Y59: 950.365 | Z59: 0.0008692792648 | AA59: 897.7329 | AC59: =L59-INDEX($C59:$L59,1,aux!$BA$1) -> -217.046 | AD59: -0.003020475682 | AE59: =+IF(INDEX($C59:$L59,1,aux!$BA$1)>0,(L59/INDEX($C59:$L59,1,aux!$BA$1))^(1/($L$3-INDEX($C$3:$L$3,1,aux!$BA$1)))-1,"n.d.") -> -0.1572359399 | AF59: =IF(INDEX($C59:$L59,1,aux!$BA$1)>0,(L59-INDEX($C59:$L59,1,aux!$BA$1))/INDEX($C59:$L59,1,aux!$BA$1),"n.d.") -> -0.7855361686 | AH59: =X59-INDEX($O59:$X59,1,aux!$BA$1) -> 1230.348 | AI59: 0.009048265772 | AJ59: =+IF(INDEX($O59:$X59,1,aux!$BA$1)>0,(X59/INDEX($O59:$X59,1,aux!$BA$1))^(1/($X$3-INDEX($O$3:$X$3,1,aux!$BA$1)))-1,"n.d.") -> 0.3391179597 | AK59: =IF(INDEX($O59:$X59,1,aux!$BA$1)>0,(X59-INDEX($O59:$X59,1,aux!$BA$1))/INDEX($O59:$X59,1,aux!$BA$1),"n.d.") -> 12.84744064 | CC59: =+IF(ISNA(MATCH('5.1'!A59,AUX_2d_pais!$G$2:$G$40000,0)),0,1) -> 1
A60: 0375 | B60: Comores | C60: 0 | D60: 0 | E60: 0 | F60: 0 | G60: 0 | H60: 0 | I60: 0 | J60: 0 | K60: 0 | L60: 0 | M60: 0 | N60: 0 | O60: 0 | P60: 0 | Q60: 0.001 | R60: 0 | S60: 0 | T60: 0.2 | U60: 2.849 | V60: 0 | W60: 0 | X60: 0 | Y60: 0.305 | Z60: 2.789772095e-07 | AA60: 0.305 | AC60: =L60-INDEX($C60:$L60,1,aux!$BA$1) -> 0 | AD60: 0 | AE60: =+IF(INDEX($C60:$L60,1,aux!$BA$1)>0,(L60/INDEX($C60:$L60,1,aux!$BA$1))^(1/($L$3-INDEX($C$3:$L$3,1,aux!$BA$1)))-1,"n.d.") -> n.d. | AF60: =IF(INDEX($C60:$L60,1,aux!$BA$1)>0,(L60-INDEX($C60:$L60,1,aux!$BA$1))/INDEX($C60:$L60,1,aux!$BA$1),"n.d.") -> n.d. | AH60: =X60-INDEX($O60:$X60,1,aux!$BA$1) -> 0 | AI60: 0 | AJ60: =+IF(INDEX($O60:$X60,1,aux!$BA$1)>0,(X60/INDEX($O60:$X60,1,aux!$BA$1))^(1/($X$3-INDEX($O$3:$X$3,1,aux!$BA$1)))-1,"n.d.") -> n.d. | AK60: =IF(INDEX($O60:$X60,1,aux!$BA$1)>0,(X60-INDEX($O60:$X60,1,aux!$BA$1))/INDEX($O60:$X60,1,aux!$BA$1),"n.d.") -> n.d. | CC60: =+IF(ISNA(MATCH('5.1'!A60,AUX_2d_pais!$G$2:$G$40000,0)),0,1) -> 1
A61: 0318 | B61: Congo | C61: 0 | D61: 0 | E61: 0 | F61: 0 | G61: 0.457 | H61: 0 | I61: 0 | J61: 0 | K61: 0 | L61: 0 | M61: 0.0457 | N61: 1.038597388e-07 | O61: 29.322 | P61: 190.575 | Q61: 168.039 | R61: 96.691 | S61: 266.672 | T61: 143.73 | U61: 126.698 | V61: 106.652 | W61: 39.046 | X61: 59.477 | Y61: 122.6902 | Z61: 0.0001122221955 | AA61: 122.6445 | AC61: =L61-INDEX($C61:$L61,1,aux!$BA$1) -> 0 | AD61: 0 | AE61: =+IF(INDEX($C61:$L61,1,aux!$BA$1)>0,(L61/INDEX($C61:$L61,1,aux!$BA$1))^(1/($L$3-INDEX($C$3:$L$3,1,aux!$BA$1)))-1,"n.d.") -> n.d. | AF61: =IF(INDEX($C61:$L61,1,aux!$BA$1)>0,(L61-INDEX($C61:$L61,1,aux!$BA$1))/INDEX($C61:$L61,1,aux!$BA$1),"n.d.") -> n.d. | AH61: =X61-INDEX($O61:$X61,1,aux!$BA$1) -> 30.155 | AI61: 0.0002217668939 | AJ61: =+IF(INDEX($O61:$X61,1,aux!$BA$1)>0,(X61/INDEX($O61:$X61,1,aux!$BA$1))^(1/($X$3-INDEX($O$3:$X$3,1,aux!$BA$1)))-1,"n.d.") -> 0.08175368932 | AK61: =IF(INDEX($O61:$X61,1,aux!$BA$1)>0,(X61-INDEX($O61:$X61,1,aux!$BA$1))/INDEX($O61:$X61,1,aux!$BA$1),"n.d.") -> 1.028408703 | CC61: =+IF(ISNA(MATCH('5.1'!A61,AUX_2d_pais!$G$2:$G$40000,0)),0,1) -> 1
A62: 0322 | B62: Congo, República Democrática do | C62: 0 | D62: 0 | E62: 0 | F62: 0 | G62: 0 | H62: 0 | I62: 0 | J62: 0.26 | K62: 0 | L62: 0 | M62: 0.026 | N62: 5.908869167e-08 | O62: 422.606 | P62: 453.62 | Q62: 711.199 | R62: 464.058 | S62: 528.449 | T62: 300.371 | U62: 625.056 | V62: 321.078 | W62: 219.426 | X62: 196.691 | Y62: 424.2554 | Z62: 0.0003880576644 | AA62: 424.2294 | AC62: =L62-INDEX($C62:$L62,1,aux!$BA$1) -> 0 | AD62: 0 | AE62: =+IF(INDEX($C62:$L62,1,aux!$BA$1)>0,(L62/INDEX($C62:$L62,1,aux!$BA$1))^(1/($L$3-INDEX($C$3:$L$3,1,aux!$BA$1)))-1,"n.d.") -> n.d. | AF62: =IF(INDEX($C62:$L62,1,aux!$BA$1)>0,(L62-INDEX($C62:$L62,1,aux!$BA$1))/INDEX($C62:$L62,1,aux!$BA$1),"n.d.") -> n.d. | AH62: =X62-INDEX($O62:$X62,1,aux!$BA$1) -> -225.915 | AI62: -0.001661431531 | AJ62: =+IF(INDEX($O62:$X62,1,aux!$BA$1)>0,(X62/INDEX($O62:$X62,1,aux!$BA$1))^(1/($X$3-INDEX($O$3:$X$3,1,aux!$BA$1)))-1,"n.d.") -> -0.08146795038 | AK62: =IF(INDEX($O62:$X62,1,aux!$BA$1)>0,(X62-INDEX($O62:$X62,1,aux!$BA$1))/INDEX($O62:$X62,1,aux!$BA$1),"n.d.") -> -0.5345759407 | CC62: =+IF(ISNA(MATCH('5.1'!A62,AUX_2d_pais!$G$2:$G$40000,0)),0,1) -> 1
A63: 0837 | B63: Cook, Ilhas | C63: 0 | D63: 0 | E63: 0 | F63: 0 | G63: 0 | H63: 0 | I63: 0 | J63: 0 | K63: 0 | L63: 0 | M63: 0 | N63: 0 | O63: 0 | P63: 0 | Q63: 0 | R63: 0 | S63: 0 | T63: 0 | U63: 0 | V63: 0 | W63: 0 | X63: 0 | Y63: 0 | Z63: 0 | AA63: 0 | AC63: =L63-INDEX($C63:$L63,1,aux!$BA$1) -> 0 | AD63: 0 | AE63: =+IF(INDEX($C63:$L63,1,aux!$BA$1)>0,(L63/INDEX($C63:$L63,1,aux!$BA$1))^(1/($L$3-INDEX($C$3:$L$3,1,aux!$BA$1)))-1,"n.d.") -> n.d. | AF63: =IF(INDEX($C63:$L63,1,aux!$BA$1)>0,(L63-INDEX($C63:$L63,1,aux!$BA$1))/INDEX($C63:$L63,1,aux!$BA$1),"n.d.") -> n.d. | AH63: =X63-INDEX($O63:$X63,1,aux!$BA$1) -> 0 | AI63: 0 | AJ63: =+IF(INDEX($O63:$X63,1,aux!$BA$1)>0,(X63/INDEX($O63:$X63,1,aux!$BA$1))^(1/($X$3-INDEX($O$3:$X$3,1,aux!$BA$1)))-1,"n.d.") -> n.d. | AK63: =IF(INDEX($O63:$X63,1,aux!$BA$1)>0,(X63-INDEX($O63:$X63,1,aux!$BA$1))/INDEX($O63:$X63,1,aux!$BA$1),"n.d.") -> n.d. | BO63: 0 | CC63: =+IF(ISNA(MATCH('5.1'!A63,AUX_2d_pais!$G$2:$G$40000,0)),0,1) -> 0
A64: 0728 | B64: Coreia, República da | C64: 6.966 | D64: 22.097 | E64: 28.234 | F64: 39.732 | G64: 56.839 | H64: 109.419 | I64: 97.383 | J64: 101.431 | K64: 47.36 | L64: 52.027 | M64: 56.1488 | N64: 0.0001276061204 | O64: 48.675 | P64: 176.148 | Q64: 298.245 | R64: 339.839 | S64: 775.799 | T64: 755.084 | U64: 1009.26 | V64: 1258.031 | W64: 1781.335 | X64: 4370.373 | Y64: 1081.2789 | Z64: 0.0009890235091 | AA64: 1025.1301 | AC64: =L64-INDEX($C64:$L64,1,aux!$BA$1) -> 45.061 | AD64: 0.0006270820687 | AE64: =+IF(INDEX($C64:$L64,1,aux!$BA$1)>0,(L64/INDEX($C64:$L64,1,aux!$BA$1))^(1/($L$3-INDEX($C$3:$L$3,1,aux!$BA$1)))-1,"n.d.") -> 0.2503375012 | AF64: =IF(INDEX($C64:$L64,1,aux!$BA$1)>0,(L64-INDEX($C64:$L64,1,aux!$BA$1))/INDEX($C64:$L64,1,aux!$BA$1),"n.d.") -> 6.468705139 | AH64: =X64-INDEX($O64:$X64,1,aux!$BA$1) -> 4321.698 | AI64: 0.03178277373 | AJ64: =+IF(INDEX($O64:$X64,1,aux!$BA$1)>0,(X64/INDEX($O64:$X64,1,aux!$BA$1))^(1/($X$3-INDEX($O$3:$X$3,1,aux!$BA$1)))-1,"n.d.") -> 0.6482520176 | AK64: =IF(INDEX($O64:$X64,1,aux!$BA$1)>0,(X64-INDEX($O64:$X64,1,aux!$BA$1))/INDEX($O64:$X64,1,aux!$BA$1),"n.d.") -> 88.78681048 | CC64: =+IF(ISNA(MATCH('5.1'!A64,AUX_2d_pais!$G$2:$G$40000,0)),0,1) -> 1
A65: 0724 | B65: Coreia, República Popular Democrática da | C65: 0 | D65: 0 | E65: 0 | F65: 0 | G65: 0 | H65: 0 | I65: 0 | J65: 0 | K65: 0 | L65: 0 | M65: 0 | N65: 0 | O65: 0 | P65: 0 | Q65: 0 | R65: 0 | S65: 0 | T65: 0 | U65: 0 | V65: 0 | W65: 0 | X65: 0 | Y65: 0 | Z65: 0 | AA65: 0 | AC65: =L65-INDEX($C65:$L65,1,aux!$BA$1) -> 0 | AD65: 0 | AE65: =+IF(INDEX($C65:$L65,1,aux!$BA$1)>0,(L65/INDEX($C65:$L65,1,aux!$BA$1))^(1/($L$3-INDEX($C$3:$L$3,1,aux!$BA$1)))-1,"n.d.") -> n.d. | AF65: =IF(INDEX($C65:$L65,1,aux!$BA$1)>0,(L65-INDEX($C65:$L65,1,aux!$BA$1))/INDEX($C65:$L65,1,aux!$BA$1),"n.d.") -> n.d. | AH65: =X65-INDEX($O65:$X65,1,aux!$BA$1) -> 0 | AI65: 0 | AJ65: =+IF(INDEX($O65:$X65,1,aux!$BA$1)>0,(X65/INDEX($O65:$X65,1,aux!$BA$1))^(1/($X$3-INDEX($O$3:$X$3,1,aux!$BA$1)))-1,"n.d.") -> n.d. | AK65: =IF(INDEX($O65:$X65,1,aux!$BA$1)>0,(X65-INDEX($O65:$X65,1,aux!$BA$1))/INDEX($O65:$X65,1,aux!$BA$1),"n.d.") -> n.d. | BO65: 0 | CC65: =+IF(ISNA(MATCH('5.1'!A65,AUX_2d_pais!$G$2:$G$40000,0)),0,1) -> 0
A66: 0272 | B66: Costa do Marfim | C66: 0 | D66: 0 | E66: 0 | F66: 0 | G66: 0 | H66: 0 | I66: 0 | J66: 0 | K66: 0.055 | L66: 0 | M66: 0.0055 | N66: 1.249953093e-08 | O66: 45.83 | P66: 121.948 | Q66: 288.779 | R66: 171.738 | S66: 345.588 | T66: 219.779 | U66: 283.004 | V66: 841.569 | W66: 1732.366 | X66: 1382.398 | Y66: 543.2999 | Z66: 0.0004969452133 | AA66: 543.2944 | AC66: =L66-INDEX($C66:$L66,1,aux!$BA$1) -> 0 | AD66: 0 | AE66: =+IF(INDEX($C66:$L66,1,aux!$BA$1)>0,(L66/INDEX($C66:$L66,1,aux!$BA$1))^(1/($L$3-INDEX($C$3:$L$3,1,aux!$BA$1)))-1,"n.d.") -> n.d. | AF66: =IF(INDEX($C66:$L66,1,aux!$BA$1)>0,(L66-INDEX($C66:$L66,1,aux!$BA$1))/INDEX($C66:$L66,1,aux!$BA$1),"n.d.") -> n.d. | AH66: =X66-INDEX($O66:$X66,1,aux!$BA$1) -> 1336.568 | AI66: 0.009829432393 | AJ66: =+IF(INDEX($O66:$X66,1,aux!$BA$1)>0,(X66/INDEX($O66:$X66,1,aux!$BA$1))^(1/($X$3-INDEX($O$3:$X$3,1,aux!$BA$1)))-1,"n.d.") -> 0.4601148792 | AK66: =IF(INDEX($O66:$X66,1,aux!$BA$1)>0,(X66-INDEX($O66:$X66,1,aux!$BA$1))/INDEX($O66:$X66,1,aux!$BA$1),"n.d.") -> 29.16360463 | CC66: =+IF(ISNA(MATCH('5.1'!A66,AUX_2d_pais!$G$2:$G$40000,0)),0,1) -> 1
A67: 0436 | B67: Costa Rica | C67: 0 | D67: 0 | E67: 0 | F67: 0 | G67: 0 | H67: 0 | I67: 0 | J67: 0 | K67: 0 | L67: 0 | M67: 0 | N67: 0 | O67: 29.613 | P67: 25.723 | Q67: 21.819 | R67: 48.177 | S67: 74.955 | T67: 553.116 | U67: 449.883 | V67: 698.358 | W67: 743.407 | X67: 269.105 | Y67: 291.4156 | Z67: 0.000266551839 | AA67: 291.4156 | AC67: =L67-INDEX($C67:$L67,1,aux!$BA$1) -> 0 | AD67: 0 | AE67: =+IF(INDEX($C67:$L67,1,aux!$BA$1)>0,(L67/INDEX($C67:$L67,1,aux!$BA$1))^(1/($L$3-INDEX($C$3:$L$3,1,aux!$BA$1)))-1,"n.d.") -> n.d. | AF67: =IF(INDEX($C67:$L67,1,aux!$BA$1)>0,(L67-INDEX($C67:$L67,1,aux!$BA$1))/INDEX($C67:$L67,1,aux!$BA$1),"n.d.") -> n.d. | AH67: =X67-INDEX($O67:$X67,1,aux!$BA$1) -> 239.492 | AI67: 0.001761279952 | AJ67: =+IF(INDEX($O67:$X67,1,aux!$BA$1)>0,(X67/INDEX($O67:$X67,1,aux!$BA$1))^(1/($X$3-INDEX($O$3:$X$3,1,aux!$BA$1)))-1,"n.d.") -> 0.277889384 | AK67: =IF(INDEX($O67:$X67,1,aux!$BA$1)>0,(X67-INDEX($O67:$X67,1,aux!$BA$1))/INDEX($O67:$X67,1,aux!$BA$1),"n.d.") -> 8.08739405 | CC67: =+IF(ISNA(MATCH('5.1'!A67,AUX_2d_pais!$G$2:$G$40000,0)),0,1) -> 1
A68: 0092 | B68: Croácia | C68: 56.809 | D68: 30.95 | E68: 16.534 | F68: 41.315 | G68: 19.315 | H68: 14.293 | I68: 18.391 | J68: 8.53 | K68: 9.2 | L68: 4.174 | M68: 21.9511 | N68: 4.988699152e-05 | O68: 24.251 | P68: 36.182 | Q68: 15.66 | R68: 59.785 | S68: 32.745 | T68: 55.353 | U68: 96.042 | V68: 38.562 | W68: 38.608 | X68: 88.568 | Y68: 48.5756 | Z68: 4.443109948e-05 | AA68: 26.6245 | AC68: =L68-INDEX($C68:$L68,1,aux!$BA$1) -> -52.635 | AD68: =AC68/$AC$252 -> -0.0007324840702 | AE68: =+IF(INDEX($C68:$L68,1,aux!$BA$1)>0,(L68/INDEX($C68:$L68,1,aux!$BA$1))^(1/($L$3-INDEX($C$3:$L$3,1,aux!$BA$1)))-1,"n.d.") -> -0.2518046007 | AF68: =IF(INDEX($C68:$L68,1,aux!$BA$1)>0,(L68-INDEX($C68:$L68,1,aux!$BA$1))/INDEX($C68:$L68,1,aux!$BA$1),"n.d.") -> -0.9265257266 | AH68: =X68-INDEX($O68:$X68,1,aux!$BA$1) -> 64.317 | AI68: =AH68/$AH$252 -> 0.0004730021991 | AJ68: =+IF(INDEX($O68:$X68,1,aux!$BA$1)>0,(X68/INDEX($O68:$X68,1,aux!$BA$1))^(1/($X$3-INDEX($O$3:$X$3,1,aux!$BA$1)))-1,"n.d.") -> 0.1547959256 | AK68: =IF(INDEX($O68:$X68,1,aux!$BA$1)>0,(X68-INDEX($O68:$X68,1,aux!$BA$1))/INDEX($O68:$X68,1,aux!$BA$1),"n.d.") -> 2.652138056 | CC68: =+IF(ISNA(MATCH('5.1'!A68,AUX_2d_pais!$G$2:$G$40000,0)),0,1) -> 1
A69: 0448 | B69: Cuba | C69: 1.492 | D69: 0.912 | E69: 2.006 | F69: 0 | G69: 0 | H69: 0 | I69: 0 | J69: 0 | K69: 40.244 | L69: 0 | M69: 4.4654 | N69: 1.014825553e-05 | O69: 9.326 | P69: 20.466 | Q69: 45.138 | R69: 216.102 | S69: 808.362 | T69: 39.069 | U69: 68.806 | V69: 65.484 | W69: 10.585 | X69: 2.914 | Y69: 128.6252 | Z69: 0.0001176508176 | AA69: 124.1598 | AC69: =L69-INDEX($C69:$L69,1,aux!$BA$1) -> -1.492 | AD69: -2.076310882e-05 | AE69: =+IF(INDEX($C69:$L69,1,aux!$BA$1)>0,(L69/INDEX($C69:$L69,1,aux!$BA$1))^(1/($L$3-INDEX($C$3:$L$3,1,aux!$BA$1)))-1,"n.d.") -> -1 | AF69: =IF(INDEX($C69:$L69,1,aux!$BA$1)>0,(L69-INDEX($C69:$L69,1,aux!$BA$1))/INDEX($C69:$L69,1,aux!$BA$1),"n.d.") -> -1 | AH69: =X69-INDEX($O69:$X69,1,aux!$BA$1) -> -6.412 | AI69: -4.715534152e-05 | AJ69: =+IF(INDEX($O69:$X69,1,aux!$BA$1)>0,(X69/INDEX($O69:$X69,1,aux!$BA$1))^(1/($X$3-INDEX($O$3:$X$3,1,aux!$BA$1)))-1,"n.d.") -> -0.1212486299 | AK69: =IF(INDEX($O69:$X69,1,aux!$BA$1)>0,(X69-INDEX($O69:$X69,1,aux!$BA$1))/INDEX($O69:$X69,1,aux!$BA$1),"n.d.") -> -0.6875402102 | CC69: =+IF(ISNA(MATCH('5.1'!A69,AUX_2d_pais!$G$2:$G$40000,0)),0,1) -> 1
A70: 0475 | B70: Curaçau | C70: 0 | D70: 0 | E70: 0 | F70: 0 | G70: 0 | H70: 0 | I70: 0 | J70: 0 | K70: 0 | L70: 0 | M70: 0 | N70: 0 | O70: 0 | P70: 0 | Q70: 105.699 | R70: 150.726 | S70: 109.274 | T70: 173.18 | U70: 132.824 | V70: 119.984 | W70: 122.61 | X70: 135.434 | Y70: 104.9731 | Z70: 9.601672956e-05 | AA70: 104.9731 | AC70: =L70-INDEX($C70:$L70,1,aux!$BA$1) -> 0 | AD70: 0 | AE70: =+IF(INDEX($C70:$L70,1,aux!$BA$1)>0,(L70/INDEX($C70:$L70,1,aux!$BA$1))^(1/($L$3-INDEX($C$3:$L$3,1,aux!$BA$1)))-1,"n.d.") -> n.d. | AF70: =IF(INDEX($C70:$L70,1,aux!$BA$1)>0,(L70-INDEX($C70:$L70,1,aux!$BA$1))/INDEX($C70:$L70,1,aux!$BA$1),"n.d.") -> n.d. | AH70: =X70-INDEX($O70:$X70,1,aux!$BA$1) -> 135.434 | AI70: 0.0009960131821 | AJ70: =+IF(INDEX($O70:$X70,1,aux!$BA$1)>0,(X70/INDEX($O70:$X70,1,aux!$BA$1))^(1/($X$3-INDEX($O$3:$X$3,1,aux!$BA$1)))-1,"n.d.") -> n.d. | AK70: =IF(INDEX($O70:$X70,1,aux!$BA$1)>0,(X70-INDEX($O70:$X70,1,aux!$BA$1))/INDEX($O70:$X70,1,aux!$BA$1),"n.d.") -> n.d. | CC70: =+IF(ISNA(MATCH('5.1'!A70,AUX_2d_pais!$G$2:$G$40000,0)),0,1) -> 1
A71: 0008 | B71: Dinamarca | C71: 942.999 | D71: 1106.206 | E71: 626.585 | F71: 1002.05 | G71: 485.834 | H71: 270.293 | I71: 416.303 | J71: 586.625 | K71: 529.387 | L71: 367.592 | M71: 633.3874 | N71: 0.001439462799 | O71: 13715.289 | P71: 9625.807 | Q71: 11566.102 | R71: 14741.427 | S71: 16456.508 | T71: 18741.063 | U71: 18406.214 | V71: 20774.51 | W71: 22835.707 | X71: 22027.876 | Y71: 16889.0503 | Z71: 0.01544806598 | AA71: 16255.6629 | AC71: =L71-INDEX($C71:$L71,1,aux!$BA$1) -> -575.407 | AD71: -0.008007532277 | AE71: =+IF(INDEX($C71:$L71,1,aux!$BA$1)>0,(L71/INDEX($C71:$L71,1,aux!$BA$1))^(1/($L$3-INDEX($C$3:$L$3,1,aux!$BA$1)))-1,"n.d.") -> -0.099384485 | AF71: =IF(INDEX($C71:$L71,1,aux!$BA$1)>0,(L71-INDEX($C71:$L71,1,aux!$BA$1))/INDEX($C71:$L71,1,aux!$BA$1),"n.d.") -> -0.6101883459 | AH71: =X71-INDEX($O71:$X71,1,aux!$BA$1) -> 8312.587 | AI71: 0.06113270101 | AJ71: =+IF(INDEX($O71:$X71,1,aux!$BA$1)>0,(X71/INDEX($O71:$X71,1,aux!$BA$1))^(1/($X$3-INDEX($O$3:$X$3,1,aux!$BA$1)))-1,"n.d.") -> 0.05405451606 | AK71: =IF(INDEX($O71:$X71,1,aux!$BA$1)>0,(X71-INDEX($O71:$X71,1,aux!$BA$1))/INDEX($O71:$X71,1,aux!$BA$1),"n.d.") -> 0.6060817967 | CC71: =+IF(ISNA(MATCH('5.1'!A71,AUX_2d_pais!$G$2:$G$40000,0)),0,1) -> 1
A72: 0460 | B72: Domínica | C72: 0 | D72: 0 | E72: 0 | F72: 0 | G72: 0 | H72: 0 | I72: 0 | J72: 0 | K72: 0 | L72: 0 | M72: 0 | N72: 0 | O72: 0 | P72: 0 | Q72: 0 | R72: 0 | S72: 0 | T72: 0 | U72: 0 | V72: 0 | W72: 0 | X72: 0 | Y72: 0 | Z72: 0 | AA72: 0 | AC72: =L72-INDEX($C72:$L72,1,aux!$BA$1) -> 0 | AD72: 0 | AE72: =+IF(INDEX($C72:$L72,1,aux!$BA$1)>0,(L72/INDEX($C72:$L72,1,aux!$BA$1))^(1/($L$3-INDEX($C$3:$L$3,1,aux!$BA$1)))-1,"n.d.") -> n.d. | AF72: =IF(INDEX($C72:$L72,1,aux!$BA$1)>0,(L72-INDEX($C72:$L72,1,aux!$BA$1))/INDEX($C72:$L72,1,aux!$BA$1),"n.d.") -> n.d. | AH72: =X72-INDEX($O72:$X72,1,aux!$BA$1) -> 0 | AI72: 0 | AJ72: =+IF(INDEX($O72:$X72,1,aux!$BA$1)>0,(X72/INDEX($O72:$X72,1,aux!$BA$1))^(1/($X$3-INDEX($O$3:$X$3,1,aux!$BA$1)))-1,"n.d.") -> n.d. | AK72: =IF(INDEX($O72:$X72,1,aux!$BA$1)>0,(X72-INDEX($O72:$X72,1,aux!$BA$1))/INDEX($O72:$X72,1,aux!$BA$1),"n.d.") -> n.d. | BO72: =SUM(C72:L72,O72:X72) -> 0 | CC72: =+IF(ISNA(MATCH('5.1'!A72,AUX_2d_pais!$G$2:$G$40000,0)),0,1) -> 0
A73: 0456 | B73: Dominicana, República | C73: 127.073 | D73: 371.831 | E73: 568.518 | F73: 445.032 | G73: 214.25 | H73: 50.048 | I73: 203.61 | J73: 145.985 | K73: 474.538 | L73: 562.644 | M73: 316.3529 | N73: 0.0007189568833 | O73: 76.848 | P73: 38.063 | Q73: 83.909 | R73: 58.021 | S73: 75.13 | T73: 64.334 | U73: 83.376 | V73: 81.624 | W73: 113.801 | X73: 317.704 | Y73: 99.281 | Z73: 9.081028309e-05 | AA73: -217.0719 | AC73: =L73-INDEX($C73:$L73,1,aux!$BA$1) -> 435.571 | AD73: 0.00606153356 | AE73: =+IF(INDEX($C73:$L73,1,aux!$BA$1)>0,(L73/INDEX($C73:$L73,1,aux!$BA$1))^(1/($L$3-INDEX($C$3:$L$3,1,aux!$BA$1)))-1,"n.d.") -> 0.1797712897 | AF73: =IF(INDEX($C73:$L73,1,aux!$BA$1)>0,(L73-INDEX($C73:$L73,1,aux!$BA$1))/INDEX($C73:$L73,1,aux!$BA$1),"n.d.") -> 3.427722648 | AH73: =X73-INDEX($O73:$X73,1,aux!$BA$1) -> 240.856 | AI73: 0.001771311126 | AJ73: =+IF(INDEX($O73:$X73,1,aux!$BA$1)>0,(X73/INDEX($O73:$X73,1,aux!$BA$1))^(1/($X$3-INDEX($O$3:$X$3,1,aux!$BA$1)))-1,"n.d.") -> 0.170813686 | AK73: =IF(INDEX($O73:$X73,1,aux!$BA$1)>0,(X73-INDEX($O73:$X73,1,aux!$BA$1))/INDEX($O73:$X73,1,aux!$BA$1),"n.d.") -> 3.134186966 | CC73: =+IF(ISNA(MATCH('5.1'!A73,AUX_2d_pais!$G$2:$G$40000,0)),0,1) -> 1
A74: 0220 | B74: Egito | C74: 0 | D74: 0 | E74: 0 | F74: 0 | G74: 0 | H74: 0 | I74: 0 | J74: 0 | K74: 0 | L74: 0 | M74: 0 | N74: 0 | O74: 0.004 | P74: 5.874 | Q74: 0 | R74: 16.551 | S74: 11.935 | T74: 0 | U74: 0 | V74: 10.324 | W74: 76.895 | X74: 37.3 | Y74: 15.8883 | Z74: 1.453270032e-05 | AA74: 15.8883 | AC74: =L74-INDEX($C74:$L74,1,aux!$BA$1) -> 0 | AD74: 0 | AE74: =+IF(INDEX($C74:$L74,1,aux!$BA$1)>0,(L74/INDEX($C74:$L74,1,aux!$BA$1))^(1/($L$3-INDEX($C$3:$L$3,1,aux!$BA$1)))-1,"n.d.") -> n.d. | AF74: =IF(INDEX($C74:$L74,1,aux!$BA$1)>0,(L74-INDEX($C74:$L74,1,aux!$BA$1))/INDEX($C74:$L74,1,aux!$BA$1),"n.d.") -> n.d. | AH74: =X74-INDEX($O74:$X74,1,aux!$BA$1) -> 37.296 | AI74: 0.0002742834712 | AJ74: =+IF(INDEX($O74:$X74,1,aux!$BA$1)>0,(X74/INDEX($O74:$X74,1,aux!$BA$1))^(1/($X$3-INDEX($O$3:$X$3,1,aux!$BA$1)))-1,"n.d.") -> 1.761036153 | AK74: =IF(INDEX($O74:$X74,1,aux!$BA$1)>0,(X74-INDEX($O74:$X74,1,aux!$BA$1))/INDEX($O74:$X74,1,aux!$BA$1),"n.d.") -> 9324 | CC74: =+IF(ISNA(MATCH('5.1'!A74,AUX_2d_pais!$G$2:$G$40000,0)),0,1) -> 1
A75: 0428 | B75: El Salvador | C75: 0 | D75: 0 | E75: 0 | F75: 0 | G75: 0 | H75: 0 | I75: 0 | J75: 0 | K75: 0 | L75: 0 | M75: 0 | N75: 0 | O75: 0 | P75: 0 | Q75: 0 | R75: 0 | S75: 0 | T75: 360.64 | U75: 122.353 | V75: 142.878 | W75: 145.026 | X75: 61.274 | Y75: 83.2171 | Z75: 7.611696506e-05 | AA75: 83.2171 | AC75: =L75-INDEX($C75:$L75,1,aux!$BA$1) -> 0 | AD75: 0 | AE75: =+IF(INDEX($C75:$L75,1,aux!$BA$1)>0,(L75/INDEX($C75:$L75,1,aux!$BA$1))^(1/($L$3-INDEX($C$3:$L$3,1,aux!$BA$1)))-1,"n.d.") -> n.d. | AF75: =IF(INDEX($C75:$L75,1,aux!$BA$1)>0,(L75-INDEX($C75:$L75,1,aux!$BA$1))/INDEX($C75:$L75,1,aux!$BA$1),"n.d.") -> n.d. | AH75: =X75-INDEX($O75:$X75,1,aux!$BA$1) -> 61.274 | AI75: 0.0004506232683 | AJ75: =+IF(INDEX($O75:$X75,1,aux!$BA$1)>0,(X75/INDEX($O75:$X75,1,aux!$BA$1))^(1/($X$3-INDEX($O$3:$X$3,1,aux!$BA$1)))-1,"n.d.") -> n.d. | AK75: =IF(INDEX($O75:$X75,1,aux!$BA$1)>0,(X75-INDEX($O75:$X75,1,aux!$BA$1))/INDEX($O75:$X75,1,aux!$BA$1),"n.d.") -> n.d. | CC75: =+IF(ISNA(MATCH('5.1'!A75,AUX_2d_pais!$G$2:$G$40000,0)),0,1) -> 1
A76: 0647 | B76: Emirados Árabes Unidos | C76: 0 | D76: 0 | E76: 0 | F76: 0 | G76: 0 | H76: 0.152 | I76: 0.103 | J76: 0 | K76: 10.426 | L76: 181.314 | M76: 19.1995 | N76: 4.363358983e-05 | O76: 776.188 | P76: 1693.94 | Q76: 2496.718 | R76: 4496.027 | S76: 3767.417 | T76: 3352.862 | U76: 4660.455 | V76: 2702.743 | W76: 2664.57 | X76: 1109.68 | Y76: 2772.06 | Z76: 0.00253554611 | AA76: 2752.8605 | AC76: =L76-INDEX($C76:$L76,1,aux!$BA$1) -> 181.314 | AD76: 0.002523218708 | AE76: =+IF(INDEX($C76:$L76,1,aux!$BA$1)>0,(L76/INDEX($C76:$L76,1,aux!$BA$1))^(1/($L$3-INDEX($C$3:$L$3,1,aux!$BA$1)))-1,"n.d.") -> n.d. | AF76: =IF(INDEX($C76:$L76,1,aux!$BA$1)>0,(L76-INDEX($C76:$L76,1,aux!$BA$1))/INDEX($C76:$L76,1,aux!$BA$1),"n.d.") -> n.d. | AH76: =X76-INDEX($O76:$X76,1,aux!$BA$1) -> 333.492 | AI76: 0.002452577847 | AJ76: =+IF(INDEX($O76:$X76,1,aux!$BA$1)>0,(X76/INDEX($O76:$X76,1,aux!$BA$1))^(1/($X$3-INDEX($O$3:$X$3,1,aux!$BA$1)))-1,"n.d.") -> 0.04051386232 | AK76: =IF(INDEX($O76:$X76,1,aux!$BA$1)>0,(X76-INDEX($O76:$X76,1,aux!$BA$1))/INDEX($O76:$X76,1,aux!$BA$1),"n.d.") -> 0.4296536406 | CC76: =+IF(ISNA(MATCH('5.1'!A76,AUX_2d_pais!$G$2:$G$40000,0)),0,1) -> 1
A77: 0500 | B77: Equador | C77: 0 | D77: 0 | E77: 0 | F77: 0 | G77: 0.9 | H77: 0 | I77: 0 | J77: 0.369 | K77: 0 | L77: 0.226 | M77: 0.1495 | N77: 3.397599771e-07 | O77: 28.686 | P77: 0 | Q77: 38.356 | R77: 8.388 | S77: 17.43 | T77: 42.065 | U77: 121.055 | V77: 188.188 | W77: 218.461 | X77: 176.635 | Y77: 83.9264 | Z77: 7.676574715e-05 | AA77: 83.7769 | AC77: =L77-INDEX($C77:$L77,1,aux!$BA$1) -> 0.226 | AD77: 3.145082167e-06 | AE77: =+IF(INDEX($C77:$L77,1,aux!$BA$1)>0,(L77/INDEX($C77:$L77,1,aux!$BA$1))^(1/($L$3-INDEX($C$3:$L$3,1,aux!$BA$1)))-1,"n.d.") -> n.d. | AF77: =IF(INDEX($C77:$L77,1,aux!$BA$1)>0,(L77-INDEX($C77:$L77,1,aux!$BA$1))/INDEX($C77:$L77,1,aux!$BA$1),"n.d.") -> n.d. | AH77: =X77-INDEX($O77:$X77,1,aux!$BA$1) -> 147.949 | AI77: 0.001088051407 | AJ77: =+IF(INDEX($O77:$X77,1,aux!$BA$1)>0,(X77/INDEX($O77:$X77,1,aux!$BA$1))^(1/($X$3-INDEX($O$3:$X$3,1,aux!$BA$1)))-1,"n.d.") -> 0.2238039854 | AK77: =IF(INDEX($O77:$X77,1,aux!$BA$1)>0,(X77-INDEX($O77:$X77,1,aux!$BA$1))/INDEX($O77:$X77,1,aux!$BA$1),"n.d.") -> 5.157533292 | CC77: =+IF(ISNA(MATCH('5.1'!A77,AUX_2d_pais!$G$2:$G$40000,0)),0,1) -> 1
A78: 0336 | B78: Eritreia | C78: 0 | D78: 0 | E78: 0 | F78: 0 | G78: 0 | H78: 0 | I78: 0 | J78: 0 | K78: 0 | L78: 0 | M78: 0 | N78: 0 | O78: 0 | P78: 0 | Q78: 0 | R78: 0 | S78: 0 | T78: 0 | U78: 0 | V78: 0 | W78: 0 | X78: 0 | Y78: 0 | Z78: 0 | AA78: 0 | AC78: =L78-INDEX($C78:$L78,1,aux!$BA$1) -> 0 | AD78: 0 | AE78: =+IF(INDEX($C78:$L78,1,aux!$BA$1)>0,(L78/INDEX($C78:$L78,1,aux!$BA$1))^(1/($L$3-INDEX($C$3:$L$3,1,aux!$BA$1)))-1,"n.d.") -> n.d. | AF78: =IF(INDEX($C78:$L78,1,aux!$BA$1)>0,(L78-INDEX($C78:$L78,1,aux!$BA$1))/INDEX($C78:$L78,1,aux!$BA$1),"n.d.") -> n.d. | AH78: =X78-INDEX($O78:$X78,1,aux!$BA$1) -> 0 | AI78: 0 | AJ78: =+IF(INDEX($O78:$X78,1,aux!$BA$1)>0,(X78/INDEX($O78:$X78,1,aux!$BA$1))^(1/($X$3-INDEX($O$3:$X$3,1,aux!$BA$1)))-1,"n.d.") -> n.d. | AK78: =IF(INDEX($O78:$X78,1,aux!$BA$1)>0,(X78-INDEX($O78:$X78,1,aux!$BA$1))/INDEX($O78:$X78,1,aux!$BA$1),"n.d.") -> n.d. | BO78: 0 | CC78: =+IF(ISNA(MATCH('5.1'!A78,AUX_2d_pais!$G$2:$G$40000,0)),0,1) -> 0
A79: 0063 | B79: Eslováquia | C79: 0 | D79: 2.7 | E79: 0 | F79: 0 | G79: 0 | H79: 0 | I79: 0 | J79: 0.979 | K79: 1.664 | L79: 1.37 | M79: 0.6713 | N79: 1.525624566e-06 | O79: 139.094 | P79: 106.431 | Q79: 106.175 | R79: 161.969 | S79: 131.047 | T79: 113.294 | U79: 163.464 | V79: 141.73 | W79: 238.378 | X79: 486.717 | Y79: 178.8299 | Z79: 0.0001635720213 | AA79: 178.1586 | AC79: =L79-INDEX($C79:$L79,1,aux!$BA$1) -> 1.37 | AD79: 1.90653211e-05 | AE79: =+IF(INDEX($C79:$L79,1,aux!$BA$1)>0,(L79/INDEX($C79:$L79,1,aux!$BA$1))^(1/($L$3-INDEX($C$3:$L$3,1,aux!$BA$1)))-1,"n.d.") -> n.d. | AF79: =IF(INDEX($C79:$L79,1,aux!$BA$1)>0,(L79-INDEX($C79:$L79,1,aux!$BA$1))/INDEX($C79:$L79,1,aux!$BA$1),"n.d.") -> n.d. | AH79: =X79-INDEX($O79:$X79,1,aux!$BA$1) -> 347.623 | AI79: 0.002556500512 | AJ79: =+IF(INDEX($O79:$X79,1,aux!$BA$1)>0,(X79/INDEX($O79:$X79,1,aux!$BA$1))^(1/($X$3-INDEX($O$3:$X$3,1,aux!$BA$1)))-1,"n.d.") -> 0.1493198357 | AK79: =IF(INDEX($O79:$X79,1,aux!$BA$1)>0,(X79-INDEX($O79:$X79,1,aux!$BA$1))/INDEX($O79:$X79,1,aux!$BA$1),"n.d.") -> 2.499194789 | CC79: =+IF(ISNA(MATCH('5.1'!A79,AUX_2d_pais!$G$2:$G$40000,0)),0,1) -> 1
A80: 0091 | B80: Eslovénia | C80: 0 | D80: 0 | E80: 6.862 | F80: 0 | G80: 3.705 | H80: 0 | I80: 10.409 | J80: 1257.766 | K80: 738.494 | L80: 13.634 | M80: 203.087 | N80: 0.0004615440433 | O80: 54.672 | P80: 75.742 | Q80: 34.659 | R80: 54.326 | S80: 47.589 | T80: 362.165 | U80: 1944.902 | V80: 1189.685 | W80: 1613.074 | X80: 211.836 | Y80: 558.865 | Z80: 0.0005111822892 | AA80: 355.778 | AC80: =L80-INDEX($C80:$L80,1,aux!$BA$1) -> 13.634 | AD80: 0.0001897347357 | AE80: =+IF(INDEX($C80:$L80,1,aux!$BA$1)>0,(L80/INDEX($C80:$L80,1,aux!$BA$1))^(1/($L$3-INDEX($C$3:$L$3,1,aux!$BA$1)))-1,"n.d.") -> n.d. | AF80: =IF(INDEX($C80:$L80,1,aux!$BA$1)>0,(L80-INDEX($C80:$L80,1,aux!$BA$1))/INDEX($C80:$L80,1,aux!$BA$1),"n.d.") -> n.d. | AH80: =X80-INDEX($O80:$X80,1,aux!$BA$1) -> 157.164 | AI80: 0.001155820664 | AJ80: =+IF(INDEX($O80:$X80,1,aux!$BA$1)>0,(X80/INDEX($O80:$X80,1,aux!$BA$1))^(1/($X$3-INDEX($O$3:$X$3,1,aux!$BA$1)))-1,"n.d.") -> 0.1624102286 | AK80: =IF(INDEX($O80:$X80,1,aux!$BA$1)>0,(X80-INDEX($O80:$X80,1,aux!$BA$1))/INDEX($O80:$X80,1,aux!$BA$1),"n.d.") -> 2.874670764 | CC80: =+IF(ISNA(MATCH('5.1'!A80,AUX_2d_pais!$G$2:$G$40000,0)),0,1) -> 1
A81: 0011 | B81: Espanha | C81: 240040.484 | D81: 222986.748 | E81: 269825.287 | F81: 244904.571 | G81: 247100.956 | H81: 237257.727 | I81: 276269.403 | J81: 287992.77 | K81: 309703.91 | L81: 306236.156 | M81: 264231.8012 | N81: 0.6005042858 | O81: 106147.819 | P81: 109612.929 | Q81: 97151.947 | R81: 126081.512 | S81: 119187.634 | T81: 121782.576 | U81: 104390.776 | V81: 115831.356 | W81: 136618.365 | X81: 166367.851 | Y81: 120317.2765 | Z81: 0.1100517313 | AA81: -143914.5247 | AC81: =L81-INDEX($C81:$L81,1,aux!$BA$1) -> 66195.672 | AD81: 0.921198352 | AE81: =+IF(INDEX($C81:$L81,1,aux!$BA$1)>0,(L81/INDEX($C81:$L81,1,aux!$BA$1))^(1/($L$3-INDEX($C$3:$L$3,1,aux!$BA$1)))-1,"n.d.") -> 0.02743046994 | AF81: =IF(INDEX($C81:$L81,1,aux!$BA$1)>0,(L81-INDEX($C81:$L81,1,aux!$BA$1))/INDEX($C81:$L81,1,aux!$BA$1),"n.d.") -> 0.2757687824 | AH81: =X81-INDEX($O81:$X81,1,aux!$BA$1) -> 60220.032 | AI81: 0.4428721421 | AJ81: =+IF(INDEX($O81:$X81,1,aux!$BA$1)>0,(X81/INDEX($O81:$X81,1,aux!$BA$1))^(1/($X$3-INDEX($O$3:$X$3,1,aux!$BA$1)))-1,"n.d.") -> 0.05119735405 | AK81: =IF(INDEX($O81:$X81,1,aux!$BA$1)>0,(X81-INDEX($O81:$X81,1,aux!$BA$1))/INDEX($O81:$X81,1,aux!$BA$1),"n.d.") -> 0.5673223677 | CC81: =+IF(ISNA(MATCH('5.1'!A81,AUX_2d_pais!$G$2:$G$40000,0)),0,1) -> 1
A82: 0400 | B82: Estados Unidos | C82: 1268.587 | D82: 1202.062 | E82: 1434.829 | F82: 1882.105 | G82: 1099.715 | H82: 1791.116 | I82: 2657.016 | J82: 4427.573 | K82: 2610.064 | L82: 2825.789 | M82: 2119.8856 | N82: 0.004817741023 | O82: 52173.222 | P82: 56283.658 | Q82: 61465.84 | R82: 64309.05 | S82: 74546.547 | T82: 80738.693 | U82: 85029.175 | V82: 86273.736 | W82: 96000.089 | X82: 98236.449 | Y82: 75505.6459 | Z82: 0.06906345704 | AA82: 73385.7603 | AC82: =L82-INDEX($C82:$L82,1,aux!$BA$1) -> 1557.202 | AD82: 0.02167047894 | AE82: =+IF(INDEX($C82:$L82,1,aux!$BA$1)>0,(L82/INDEX($C82:$L82,1,aux!$BA$1))^(1/($L$3-INDEX($C$3:$L$3,1,aux!$BA$1)))-1,"n.d.") -> 0.09306655993 | AF82: =IF(INDEX($C82:$L82,1,aux!$BA$1)>0,(L82-INDEX($C82:$L82,1,aux!$BA$1))/INDEX($C82:$L82,1,aux!$BA$1),"n.d.") -> 1.227509032 | AH82: =X82-INDEX($O82:$X82,1,aux!$BA$1) -> 46063.227 | AI82: 0.3387597007 | AJ82: =+IF(INDEX($O82:$X82,1,aux!$BA$1)>0,(X82/INDEX($O82:$X82,1,aux!$BA$1))^(1/($X$3-INDEX($O$3:$X$3,1,aux!$BA$1)))-1,"n.d.") -> 0.0728428492 | AK82: =IF(INDEX($O82:$X82,1,aux!$BA$1)>0,(X82-INDEX($O82:$X82,1,aux!$BA$1))/INDEX($O82:$X82,1,aux!$BA$1),"n.d.") -> 0.8828902114 | CC82: =+IF(ISNA(MATCH('5.1'!A82,AUX_2d_pais!$G$2:$G$40000,0)),0,1) -> 1
A83: 0053 | B83: Estónia | C83: 2.796 | D83: 44.44 | E83: 201.166 | F83: 2.342 | G83: 7.228 | H83: 29.695 | I83: 461.82 | J83: 92.779 | K83: 67.829 | L83: 46.066 | M83: 95.6161 | N83: 0.0002173011635 | O83: 454.299 | P83: 523.395 | Q83: 2736.322 | R83: 709.248 | S83: 535.501 | T83: 1141.484 | U83: 1463.109 | V83: 1234.112 | W83: 1543.774 | X83: 1595.737 | Y83: 1193.6981 | Z83: 0.001091851033 | AA83: 1098.082 | AC83: =L83-INDEX($C83:$L83,1,aux!$BA$1) -> 43.27 | AD83: 0.0006021579884 | AE83: =+IF(INDEX($C83:$L83,1,aux!$BA$1)>0,(L83/INDEX($C83:$L83,1,aux!$BA$1))^(1/($L$3-INDEX($C$3:$L$3,1,aux!$BA$1)))-1,"n.d.") -> 0.3652268316 | AF83: =IF(INDEX($C83:$L83,1,aux!$BA$1)>0,(L83-INDEX($C83:$L83,1,aux!$BA$1))/INDEX($C83:$L83,1,aux!$BA$1),"n.d.") -> 15.47567954 | AH83: =X83-INDEX($O83:$X83,1,aux!$BA$1) -> 1141.438 | AI83: 0.008394400922 | AJ83: =+IF(INDEX($O83:$X83,1,aux!$BA$1)>0,(X83/INDEX($O83:$X83,1,aux!$BA$1))^(1/($X$3-INDEX($O$3:$X$3,1,aux!$BA$1)))-1,"n.d.") -> 0.149805529 | AK83: =IF(INDEX($O83:$X83,1,aux!$BA$1)>0,(X83-INDEX($O83:$X83,1,aux!$BA$1))/INDEX($O83:$X83,1,aux!$BA$1),"n.d.") -> 2.512525892 | CC83: =+IF(ISNA(MATCH('5.1'!A83,AUX_2d_pais!$G$2:$G$40000,0)),0,1) -> 1
A84: 0334 | B84: Etiópia | C84: 0 | D84: 0 | E84: 0 | F84: 0 | G84: 0 | H84: 0 | I84: 0 | J84: 21.76 | K84: 0 | L84: 0 | M84: 2.176 | N84: 4.945268964e-06 | O84: 0 | P84: 0 | Q84: 0 | R84: 5.717 | S84: 0 | T84: 120.056 | U84: 25.326 | V84: 61.244 | W84: 0 | X84: 0 | Y84: 21.2343 | Z84: 1.942257626e-05 | AA84: 19.0583 | AC84: =L84-INDEX($C84:$L84,1,aux!$BA$1) -> 0 | AD84: 0 | AE84: =+IF(INDEX($C84:$L84,1,aux!$BA$1)>0,(L84/INDEX($C84:$L84,1,aux!$BA$1))^(1/($L$3-INDEX($C$3:$L$3,1,aux!$BA$1)))-1,"n.d.") -> n.d. | AF84: =IF(INDEX($C84:$L84,1,aux!$BA$1)>0,(L84-INDEX($C84:$L84,1,aux!$BA$1))/INDEX($C84:$L84,1,aux!$BA$1),"n.d.") -> n.d. | AH84: =X84-INDEX($O84:$X84,1,aux!$BA$1) -> 0 | AI84: 0 | AJ84: =+IF(INDEX($O84:$X84,1,aux!$BA$1)>0,(X84/INDEX($O84:$X84,1,aux!$BA$1))^(1/($X$3-INDEX($O$3:$X$3,1,aux!$BA$1)))-1,"n.d.") -> n.d. | AK84: =IF(INDEX($O84:$X84,1,aux!$BA$1)>0,(X84-INDEX($O84:$X84,1,aux!$BA$1))/INDEX($O84:$X84,1,aux!$BA$1),"n.d.") -> n.d. | CC84: =+IF(ISNA(MATCH('5.1'!A84,AUX_2d_pais!$G$2:$G$40000,0)),0,1) -> 1
A85: 0529 | B85: Falkland Ilhas (Malvinas) | C85: 0 | D85: 0 | E85: 0 | F85: 0 | G85: 0 | H85: 0 | I85: 0 | J85: 0 | K85: 0 | L85: 0 | M85: 0 | N85: 0 | O85: 0 | P85: 0 | Q85: 0 | R85: 0 | S85: 0 | T85: 0 | U85: 0 | V85: 0 | W85: 0 | X85: 0 | Y85: 0 | Z85: 0 | AA85: 0 | AC85: =L85-INDEX($C85:$L85,1,aux!$BA$1) -> 0 | AD85: 0 | AE85: =+IF(INDEX($C85:$L85,1,aux!$BA$1)>0,(L85/INDEX($C85:$L85,1,aux!$BA$1))^(1/($L$3-INDEX($C$3:$L$3,1,aux!$BA$1)))-1,"n.d.") -> n.d. | AF85: =IF(INDEX($C85:$L85,1,aux!$BA$1)>0,(L85-INDEX($C85:$L85,1,aux!$BA$1))/INDEX($C85:$L85,1,aux!$BA$1),"n.d.") -> n.d. | AH85: =X85-INDEX($O85:$X85,1,aux!$BA$1) -> 0 | AI85: 0 | AJ85: =+IF(INDEX($O85:$X85,1,aux!$BA$1)>0,(X85/INDEX($O85:$X85,1,aux!$BA$1))^(1/($X$3-INDEX($O$3:$X$3,1,aux!$BA$1)))-1,"n.d.") -> n.d. | AK85: =IF(INDEX($O85:$X85,1,aux!$BA$1)>0,(X85-INDEX($O85:$X85,1,aux!$BA$1))/INDEX($O85:$X85,1,aux!$BA$1),"n.d.") -> n.d. | BO85: 0 | CC85: =+IF(ISNA(MATCH('5.1'!A85,AUX_2d_pais!$G$2:$G$40000,0)),0,1) -> 0
A86: 0041 | B86: Faroé, Ilhas | C86: 0 | D86: 0 | E86: 0 | F86: 0 | G86: 0 | H86: 0 | I86: 0 | J86: 0 | K86: 0 | L86: 0 | M86: 0 | N86: 0 | O86: 0 | P86: 0 | Q86: 0 | R86: 0 | S86: 0 | T86: 0 | U86: 0 | V86: 0 | W86: 0 | X86: 0 | Y86: 0 | Z86: 0 | AA86: 0 | AC86: =L86-INDEX($C86:$L86,1,aux!$BA$1) -> 0 | AD86: 0 | AE86: =+IF(INDEX($C86:$L86,1,aux!$BA$1)>0,(L86/INDEX($C86:$L86,1,aux!$BA$1))^(1/($L$3-INDEX($C$3:$L$3,1,aux!$BA$1)))-1,"n.d.") -> n.d. | AF86: =IF(INDEX($C86:$L86,1,aux!$BA$1)>0,(L86-INDEX($C86:$L86,1,aux!$BA$1))/INDEX($C86:$L86,1,aux!$BA$1),"n.d.") -> n.d. | AH86: =X86-INDEX($O86:$X86,1,aux!$BA$1) -> 0 | AI86: 0 | AJ86: =+IF(INDEX($O86:$X86,1,aux!$BA$1)>0,(X86/INDEX($O86:$X86,1,aux!$BA$1))^(1/($X$3-INDEX($O$3:$X$3,1,aux!$BA$1)))-1,"n.d.") -> n.d. | AK86: =IF(INDEX($O86:$X86,1,aux!$BA$1)>0,(X86-INDEX($O86:$X86,1,aux!$BA$1))/INDEX($O86:$X86,1,aux!$BA$1),"n.d.") -> n.d. | BO86: 0 | CC86: =+IF(ISNA(MATCH('5.1'!A86,AUX_2d_pais!$G$2:$G$40000,0)),0,1) -> 0
A87: 0815 | B87: Fiji, Ilhas | C87: 0 | D87: 0 | E87: 0 | F87: 0 | G87: 0 | H87: 0 | I87: 0 | J87: 0 | K87: 0 | L87: 0 | M87: 0 | N87: 0 | O87: 0.494 | P87: 0.764 | Q87: 0 | R87: 6.76 | S87: 0 | T87: 0 | U87: 5.29 | V87: 1.792 | W87: 0 | X87: 0.3 | Y87: 1.54 | Z87: 1.408606238e-06 | AA87: 1.54 | AC87: =L87-INDEX($C87:$L87,1,aux!$BA$1) -> 0 | AD87: 0 | AE87: =+IF(INDEX($C87:$L87,1,aux!$BA$1)>0,(L87/INDEX($C87:$L87,1,aux!$BA$1))^(1/($L$3-INDEX($C$3:$L$3,1,aux!$BA$1)))-1,"n.d.") -> n.d. | AF87: =IF(INDEX($C87:$L87,1,aux!$BA$1)>0,(L87-INDEX($C87:$L87,1,aux!$BA$1))/INDEX($C87:$L87,1,aux!$BA$1),"n.d.") -> n.d. | AH87: =X87-INDEX($O87:$X87,1,aux!$BA$1) -> -0.194 | AI87: -1.426721188e-06 | AJ87: =+IF(INDEX($O87:$X87,1,aux!$BA$1)>0,(X87/INDEX($O87:$X87,1,aux!$BA$1))^(1/($X$3-INDEX($O$3:$X$3,1,aux!$BA$1)))-1,"n.d.") -> -0.05390945854 | AK87: =IF(INDEX($O87:$X87,1,aux!$BA$1)>0,(X87-INDEX($O87:$X87,1,aux!$BA$1))/INDEX($O87:$X87,1,aux!$BA$1),"n.d.") -> -0.3927125506 | BO87: 15.4 | CC87: =+IF(ISNA(MATCH('5.1'!A87,AUX_2d_pais!$G$2:$G$40000,0)),0,1) -> 1
A88: 0708 | B88: Filipinas | C88: 0 | D88: 0 | E88: 0 | F88: 4.562 | G88: 12.091 | H88: 25.585 | I88: 23.608 | J88: 48.298 | K88: 81.267 | L88: 27.342 | M88: 22.2753 | N88: 5.062378206e-05 | O88: 97.582 | P88: 150.253 | Q88: 102.49 | R88: 280.897 | S88: 210.24 | T88: 381.652 | U88: 857.285 | V88: 289.506 | W88: 630.263 | X88: 178.95 | Y88: 317.9118 | Z88: 0.0002907873667 | AA88: 295.6365 | AC88: =L88-INDEX($C88:$L88,1,aux!$BA$1) -> 27.342 | AD88: 0.0003804992771 | AE88: =+IF(INDEX($C88:$L88,1,aux!$BA$1)>0,(L88/INDEX($C88:$L88,1,aux!$BA$1))^(1/($L$3-INDEX($C$3:$L$3,1,aux!$BA$1)))-1,"n.d.") -> n.d. | AF88: =IF(INDEX($C88:$L88,1,aux!$BA$1)>0,(L88-INDEX($C88:$L88,1,aux!$BA$1))/INDEX($C88:$L88,1,aux!$BA$1),"n.d.") -> n.d. | AH88: =X88-INDEX($O88:$X88,1,aux!$BA$1) -> 81.368 | AI88: 0.0005983992247 | AJ88: =+IF(INDEX($O88:$X88,1,aux!$BA$1)>0,(X88/INDEX($O88:$X88,1,aux!$BA$1))^(1/($X$3-INDEX($O$3:$X$3,1,aux!$BA$1)))-1,"n.d.") -> 0.06970110168 | AK88: =IF(INDEX($O88:$X88,1,aux!$BA$1)>0,(X88-INDEX($O88:$X88,1,aux!$BA$1))/INDEX($O88:$X88,1,aux!$BA$1),"n.d.") -> 0.833842307 | CC88: =+IF(ISNA(MATCH('5.1'!A88,AUX_2d_pais!$G$2:$G$40000,0)),0,1) -> 1
A89: 0032 | B89: Finlândia | C89: 0 | D89: 306.321 | E89: 500.694 | F89: 1722.273 | G89: 731.853 | H89: 8.657 | I89: 107.356 | J89: 130.677 | K89: 1795.336 | L89: 55.362 | M89: 535.8529 | N89: 0.001217801799 | O89: 3189.78 | P89: 3354.75 | Q89: 2845.425 | R89: 2894.58 | S89: 3973.193 | T89: 4451.577 | U89: 5016.982 | V89: 5792.912 | W89: 9505.571 | X89: 12322.53 | Y89: 5334.73 | Z89: 0.004879567505 | AA89: 4798.8771 | AC89: =L89-INDEX($C89:$L89,1,aux!$BA$1) -> 55.362 | AD89: 0.0007704338006 | AE89: =+IF(INDEX($C89:$L89,1,aux!$BA$1)>0,(L89/INDEX($C89:$L89,1,aux!$BA$1))^(1/($L$3-INDEX($C$3:$L$3,1,aux!$BA$1)))-1,"n.d.") -> n.d. | AF89: =IF(INDEX($C89:$L89,1,aux!$BA$1)>0,(L89-INDEX($C89:$L89,1,aux!$BA$1))/INDEX($C89:$L89,1,aux!$BA$1),"n.d.") -> n.d. | AH89: =X89-INDEX($O89:$X89,1,aux!$BA$1) -> 9132.75 | AI89: 0.06716437075 | AJ89: =+IF(INDEX($O89:$X89,1,aux!$BA$1)>0,(X89/INDEX($O89:$X89,1,aux!$BA$1))^(1/($X$3-INDEX($O$3:$X$3,1,aux!$BA$1)))-1,"n.d.") -> 0.1620249729 | AK89: =IF(INDEX($O89:$X89,1,aux!$BA$1)>0,(X89-INDEX($O89:$X89,1,aux!$BA$1))/INDEX($O89:$X89,1,aux!$BA$1),"n.d.") -> 2.863128492 | CC89: =+IF(ISNA(MATCH('5.1'!A89,AUX_2d_pais!$G$2:$G$40000,0)),0,1) -> 1
A90: 0001 | B90: França | C90: 35073.25 | D90: 38709.837 | E90: 25012.089 | F90: 29041.268 | G90: 35314.407 | H90: 33576.872 | I90: 35608.354 | J90: 36395.7 | K90: 36134.19 | L90: 37368.544 | M90: 34223.4511 | N90: 0.07777765192 | O90: 137940.313 | P90: 137076.752 | Q90: 134531.325 | R90: 131743.24 | S90: 132238.764 | T90: 133356.126 | U90: 134359.816 | V90: 147102.716 | W90: 146949.485 | X90: 136813.16 | Y90: 137211.1697 | Z90: 0.125504227 | AA90: 102987.7186 | AC90: =L90-INDEX($C90:$L90,1,aux!$BA$1) -> 2295.294 | AD90: 0.03194198331 | AE90: =+IF(INDEX($C90:$L90,1,aux!$BA$1)>0,(L90/INDEX($C90:$L90,1,aux!$BA$1))^(1/($L$3-INDEX($C$3:$L$3,1,aux!$BA$1)))-1,"n.d.") -> 0.007068257413 | AF90: =IF(INDEX($C90:$L90,1,aux!$BA$1)>0,(L90-INDEX($C90:$L90,1,aux!$BA$1))/INDEX($C90:$L90,1,aux!$BA$1),"n.d.") -> 0.065442866 | AH90: =X90-INDEX($O90:$X90,1,aux!$BA$1) -> -1127.153 | AI90: -0.008289345705 | AJ90: =+IF(INDEX($O90:$X90,1,aux!$BA$1)>0,(X90/INDEX($O90:$X90,1,aux!$BA$1))^(1/($X$3-INDEX($O$3:$X$3,1,aux!$BA$1)))-1,"n.d.") -> -0.0009112376496 | AK90: =IF(INDEX($O90:$X90,1,aux!$BA$1)>0,(X90-INDEX($O90:$X90,1,aux!$BA$1))/INDEX($O90:$X90,1,aux!$BA$1),"n.d.") -> -0.008171309572 | CC90: =+IF(ISNA(MATCH('5.1'!A90,AUX_2d_pais!$G$2:$G$40000,0)),0,1) -> 1
A91: 0314 | B91: Gabão | C91: 0 | D91: 0 | E91: 0 | F91: 0 | G91: 1.853 | H91: 0 | I91: 0 | J91: 0 | K91: 0 | L91: 0 | M91: 0.1853 | N91: 4.211205602e-07 | O91: 41.709 | P91: 65.898 | Q91: 35.504 | R91: 29.993 | S91: 192.214 | T91: 88.333 | U91: 71.277 | V91: 23.415 | W91: 107.999 | X91: 51.045 | Y91: 70.7387 | Z91: 6.470322994e-05 | AA91: 70.5534 | AC91: =L91-INDEX($C91:$L91,1,aux!$BA$1) -> 0 | AD91: 0 | AE91: =+IF(INDEX($C91:$L91,1,aux!$BA$1)>0,(L91/INDEX($C91:$L91,1,aux!$BA$1))^(1/($L$3-INDEX($C$3:$L$3,1,aux!$BA$1)))-1,"n.d.") -> n.d. | AF91: =IF(INDEX($C91:$L91,1,aux!$BA$1)>0,(L91-INDEX($C91:$L91,1,aux!$BA$1))/INDEX($C91:$L91,1,aux!$BA$1),"n.d.") -> n.d. | AH91: =X91-INDEX($O91:$X91,1,aux!$BA$1) -> 9.336 | AI91: 6.86591186e-05 | AJ91: =+IF(INDEX($O91:$X91,1,aux!$BA$1)>0,(X91/INDEX($O91:$X91,1,aux!$BA$1))^(1/($X$3-INDEX($O$3:$X$3,1,aux!$BA$1)))-1,"n.d.") -> 0.02269715511 | AK91: =IF(INDEX($O91:$X91,1,aux!$BA$1)>0,(X91-INDEX($O91:$X91,1,aux!$BA$1))/INDEX($O91:$X91,1,aux!$BA$1),"n.d.") -> 0.223836582 | CC91: =+IF(ISNA(MATCH('5.1'!A91,AUX_2d_pais!$G$2:$G$40000,0)),0,1) -> 1
A92: 0252 | B92: Gâmbia | C92: 0 | D92: 0 | E92: 0 | F92: 0 | G92: 0 | H92: 0 | I92: 0 | J92: 0 | K92: 0 | L92: 0 | M92: 0 | N92: 0 | O92: 2.373 | P92: 33.702 | Q92: 77.625 | R92: 32.897 | S92: 200.736 | T92: 10.531 | U92: 42.929 | V92: 1.226 | W92: 10.857 | X92: 28.754 | Y92: 44.163 | Z92: 4.039498526e-05 | AA92: 44.163 | AC92: =L92-INDEX($C92:$L92,1,aux!$BA$1) -> 0 | AD92: 0 | AE92: =+IF(INDEX($C92:$L92,1,aux!$BA$1)>0,(L92/INDEX($C92:$L92,1,aux!$BA$1))^(1/($L$3-INDEX($C$3:$L$3,1,aux!$BA$1)))-1,"n.d.") -> n.d. | AF92: =IF(INDEX($C92:$L92,1,aux!$BA$1)>0,(L92-INDEX($C92:$L92,1,aux!$BA$1))/INDEX($C92:$L92,1,aux!$BA$1),"n.d.") -> n.d. | AH92: =X92-INDEX($O92:$X92,1,aux!$BA$1) -> 26.381 | AI92: 0.0001940120188 | AJ92: =+IF(INDEX($O92:$X92,1,aux!$BA$1)>0,(X92/INDEX($O92:$X92,1,aux!$BA$1))^(1/($X$3-INDEX($O$3:$X$3,1,aux!$BA$1)))-1,"n.d.") -> 0.3194041224 | AK92: =IF(INDEX($O92:$X92,1,aux!$BA$1)>0,(X92-INDEX($O92:$X92,1,aux!$BA$1))/INDEX($O92:$X92,1,aux!$BA$1),"n.d.") -> 11.11715129 | CC92: =+IF(ISNA(MATCH('5.1'!A92,AUX_2d_pais!$G$2:$G$40000,0)),0,1) -> 1
A93: 0276 | B93: Gana | C93: 0 | D93: 0 | E93: 0 | F93: 0 | G93: 0 | H93: 0 | I93: 0 | J93: 0 | K93: 0.154 | L93: 0 | M93: 0.0154 | N93: 3.49986866e-08 | O93: 111.239 | P93: 48.774 | Q93: 248.474 | R93: 103.078 | S93: 135.338 | T93: 235.625 | U93: 297.436 | V93: 345.926 | W93: 484.182 | X93: 1002.143 | Y93: 301.2215 | Z93: 0.0002755210935 | AA93: 301.2061 | AC93: =L93-INDEX($C93:$L93,1,aux!$BA$1) -> 0 | AD93: 0 | AE93: =+IF(INDEX($C93:$L93,1,aux!$BA$1)>0,(L93/INDEX($C93:$L93,1,aux!$BA$1))^(1/($L$3-INDEX($C$3:$L$3,1,aux!$BA$1)))-1,"n.d.") -> n.d. | AF93: =IF(INDEX($C93:$L93,1,aux!$BA$1)>0,(L93-INDEX($C93:$L93,1,aux!$BA$1))/INDEX($C93:$L93,1,aux!$BA$1),"n.d.") -> n.d. | AH93: =X93-INDEX($O93:$X93,1,aux!$BA$1) -> 890.904 | AI93: 0.006551915531 | AJ93: =+IF(INDEX($O93:$X93,1,aux!$BA$1)>0,(X93/INDEX($O93:$X93,1,aux!$BA$1))^(1/($X$3-INDEX($O$3:$X$3,1,aux!$BA$1)))-1,"n.d.") -> 0.276658484 | AK93: =IF(INDEX($O93:$X93,1,aux!$BA$1)>0,(X93-INDEX($O93:$X93,1,aux!$BA$1))/INDEX($O93:$X93,1,aux!$BA$1),"n.d.") -> 8.008917736 | CC93: =+IF(ISNA(MATCH('5.1'!A93,AUX_2d_pais!$G$2:$G$40000,0)),0,1) -> 1
A94: 0076 | B94: Geórgia | C94: 1682.864 | D94: 4532.373 | E94: 698.108 | F94: 37.025 | G94: 13.4 | H94: 17.003 | I94: 0.178 | J94: 0.704 | K94: 8.082 | L94: 0.392 | M94: 699.0129 | N94: 0.001588606066 | O94: 14.049 | P94: 12.39 | Q94: 4.43 | R94: 3.514 | S94: 37.78 | T94: 3.815 | U94: 0.722 | V94: 0.26 | W94: 1.509 | X94: 2.197 | Y94: 8.0666 | Z94: 7.378352651e-06 | AA94: -690.9463 | AC94: =L94-INDEX($C94:$L94,1,aux!$BA$1) -> -1682.472 | AD94: -0.02341377294 | AE94: =+IF(INDEX($C94:$L94,1,aux!$BA$1)>0,(L94/INDEX($C94:$L94,1,aux!$BA$1))^(1/($L$3-INDEX($C$3:$L$3,1,aux!$BA$1)))-1,"n.d.") -> -0.6052158829 | AF94: =IF(INDEX($C94:$L94,1,aux!$BA$1)>0,(L94-INDEX($C94:$L94,1,aux!$BA$1))/INDEX($C94:$L94,1,aux!$BA$1),"n.d.") -> -0.9997670638 | AH94: =X94-INDEX($O94:$X94,1,aux!$BA$1) -> -11.852 | AI94: -8.716236864e-05 | AJ94: =+IF(INDEX($O94:$X94,1,aux!$BA$1)>0,(X94/INDEX($O94:$X94,1,aux!$BA$1))^(1/($X$3-INDEX($O$3:$X$3,1,aux!$BA$1)))-1,"n.d.") -> -0.1862987925 | AK94: =IF(INDEX($O94:$X94,1,aux!$BA$1)>0,(X94-INDEX($O94:$X94,1,aux!$BA$1))/INDEX($O94:$X94,1,aux!$BA$1),"n.d.") -> -0.8436187629 | CC94: =+IF(ISNA(MATCH('5.1'!A94,AUX_2d_pais!$G$2:$G$40000,0)),0,1) -> 1
A95: 0893 | B95: Geórgia do Sul e Ilhas Sandwich do Sul | C95: 0 | D95: 0 | E95: 0 | F95: 0 | G95: 0 | H95: 0 | I95: 0 | J95: 0 | K95: 0 | L95: 0 | M95: 0 | N95: 0 | O95: 0 | P95: 0 | Q95: 0 | R95: 0 | S95: 0 | T95: 0 | U95: 0 | V95: 0 | W95: 0 | X95: 0 | Y95: 0 | Z95: 0 | AA95: 0 | AC95: =L95-INDEX($C95:$L95,1,aux!$BA$1) -> 0 | AD95: 0 | AE95: =+IF(INDEX($C95:$L95,1,aux!$BA$1)>0,(L95/INDEX($C95:$L95,1,aux!$BA$1))^(1/($L$3-INDEX($C$3:$L$3,1,aux!$BA$1)))-1,"n.d.") -> n.d. | AF95: =IF(INDEX($C95:$L95,1,aux!$BA$1)>0,(L95-INDEX($C95:$L95,1,aux!$BA$1))/INDEX($C95:$L95,1,aux!$BA$1),"n.d.") -> n.d. | AH95: =X95-INDEX($O95:$X95,1,aux!$BA$1) -> 0 | AI95: 0 | AJ95: =+IF(INDEX($O95:$X95,1,aux!$BA$1)>0,(X95/INDEX($O95:$X95,1,aux!$BA$1))^(1/($X$3-INDEX($O$3:$X$3,1,aux!$BA$1)))-1,"n.d.") -> n.d. | AK95: =IF(INDEX($O95:$X95,1,aux!$BA$1)>0,(X95-INDEX($O95:$X95,1,aux!$BA$1))/INDEX($O95:$X95,1,aux!$BA$1),"n.d.") -> n.d. | BO95: 0 | CC95: =+IF(ISNA(MATCH('5.1'!A95,AUX_2d_pais!$G$2:$G$40000,0)),0,1) -> 0
A96: 0044 | B96: Gibraltar | C96: 0 | D96: 0 | E96: 0 | F96: 0 | G96: 0 | H96: 0 | I96: 0 | J96: 0 | K96: 0 | L96: 0 | M96: 0 | N96: 0 | O96: 21.227 | P96: 40.654 | Q96: 24.154 | R96: 37.259 | S96: 50.693 | T96: 52.236 | U96: 94.353 | V96: 73.01 | W96: 80.35 | X96: 68.844 | Y96: 54.278 | Z96: 4.964696715e-05 | AA96: 54.278 | AC96: =L96-INDEX($C96:$L96,1,aux!$BA$1) -> 0 | AD96: 0 | AE96: =+IF(INDEX($C96:$L96,1,aux!$BA$1)>0,(L96/INDEX($C96:$L96,1,aux!$BA$1))^(1/($L$3-INDEX($C$3:$L$3,1,aux!$BA$1)))-1,"n.d.") -> n.d. | AF96: =IF(INDEX($C96:$L96,1,aux!$BA$1)>0,(L96-INDEX($C96:$L96,1,aux!$BA$1))/INDEX($C96:$L96,1,aux!$BA$1),"n.d.") -> n.d. | AH96: =X96-INDEX($O96:$X96,1,aux!$BA$1) -> 47.617 | AI96: 0.0003501865092 | AJ96: =+IF(INDEX($O96:$X96,1,aux!$BA$1)>0,(X96/INDEX($O96:$X96,1,aux!$BA$1))^(1/($X$3-INDEX($O$3:$X$3,1,aux!$BA$1)))-1,"n.d.") -> 0.13965992 | AK96: =IF(INDEX($O96:$X96,1,aux!$BA$1)>0,(X96-INDEX($O96:$X96,1,aux!$BA$1))/INDEX($O96:$X96,1,aux!$BA$1),"n.d.") -> 2.243227964 | CC96: =+IF(ISNA(MATCH('5.1'!A96,AUX_2d_pais!$G$2:$G$40000,0)),0,1) -> 1
A97: 0473 | B97: Granada | C97: 0 | D97: 0 | E97: 0 | F97: 0 | G97: 0 | H97: 0 | I97: 0 | J97: 0 | K97: 0 | L97: 0 | M97: 0 | N97: 0 | O97: 0 | P97: 2.186 | Q97: 0 | R97: 0.822 | S97: 4.103 | T97: 0 | U97: 2.269 | V97: 0 | W97: 0 | X97: 0 | Y97: 0.938 | Z97: 8.579692543e-07 | AA97: 0.938 | AC97: =L97-INDEX($C97:$L97,1,aux!$BA$1) -> 0 | AD97: 0 | AE97: =+IF(INDEX($C97:$L97,1,aux!$BA$1)>0,(L97/INDEX($C97:$L97,1,aux!$BA$1))^(1/($L$3-INDEX($C$3:$L$3,1,aux!$BA$1)))-1,"n.d.") -> n.d. | AF97: =IF(INDEX($C97:$L97,1,aux!$BA$1)>0,(L97-INDEX($C97:$L97,1,aux!$BA$1))/INDEX($C97:$L97,1,aux!$BA$1),"n.d.") -> n.d. | AH97: =X97-INDEX($O97:$X97,1,aux!$BA$1) -> 0 | AI97: 0 | AJ97: =+IF(INDEX($O97:$X97,1,aux!$BA$1)>0,(X97/INDEX($O97:$X97,1,aux!$BA$1))^(1/($X$3-INDEX($O$3:$X$3,1,aux!$BA$1)))-1,"n.d.") -> n.d. | AK97: =IF(INDEX($O97:$X97,1,aux!$BA$1)>0,(X97-INDEX($O97:$X97,1,aux!$BA$1))/INDEX($O97:$X97,1,aux!$BA$1),"n.d.") -> n.d. | BO97: 9.38 | CC97: =+IF(ISNA(MATCH('5.1'!A97,AUX_2d_pais!$G$2:$G$40000,0)),0,1) -> 1
A98: 0009 | B98: Grécia | C98: 0 | D98: 0 | E98: 17.527 | F98: 1.092 | G98: 74.795 | H98: 24.767 | I98: 45.734 | J98: 54.964 | K98: 41.928 | L98: 18.616 | M98: 27.9423 | N98: 6.35028442e-05 | O98: 255.056 | P98: 143.034 | Q98: 146.153 | R98: 185.854 | S98: 172.703 | T98: 189.184 | U98: 228.089 | V98: 227.686 | W98: 265.824 | X98: 111.421 | Y98: 192.5004 | Z98: 0.0001760761457 | AA98: 164.5581 | AC98: =L98-INDEX($C98:$L98,1,aux!$BA$1) -> 18.616 | AD98: 0.0002590657063 | AE98: =+IF(INDEX($C98:$L98,1,aux!$BA$1)>0,(L98/INDEX($C98:$L98,1,aux!$BA$1))^(1/($L$3-INDEX($C$3:$L$3,1,aux!$BA$1)))-1,"n.d.") -> n.d. | AF98: =IF(INDEX($C98:$L98,1,aux!$BA$1)>0,(L98-INDEX($C98:$L98,1,aux!$BA$1))/INDEX($C98:$L98,1,aux!$BA$1),"n.d.") -> n.d. | AH98: =X98-INDEX($O98:$X98,1,aux!$BA$1) -> -143.635 | AI98: -0.001056325246 | AJ98: =+IF(INDEX($O98:$X98,1,aux!$BA$1)>0,(X98/INDEX($O98:$X98,1,aux!$BA$1))^(1/($X$3-INDEX($O$3:$X$3,1,aux!$BA$1)))-1,"n.d.") -> -0.08791180626 | AK98: =IF(INDEX($O98:$X98,1,aux!$BA$1)>0,(X98-INDEX($O98:$X98,1,aux!$BA$1))/INDEX($O98:$X98,1,aux!$BA$1),"n.d.") -> -0.5631508375 | CC98: =+IF(ISNA(MATCH('5.1'!A98,AUX_2d_pais!$G$2:$G$40000,0)),0,1) -> 1
A99: 0406 | B99: Gronelândia | C99: 0 | D99: 0 | E99: 0 | F99: 0 | G99: 0 | H99: 0 | I99: 0 | J99: 0 | K99: 0 | L99: 0 | M99: 0 | N99: 0 | O99: 0 | P99: 0 | Q99: 0 | R99: 0 | S99: 2.699 | T99: 0 | U99: 0 | V99: 0 | W99: 0 | X99: 0 | Y99: 0.2699 | Z99: 2.468719635e-07 | AA99: 0.2699 | AC99: =L99-INDEX($C99:$L99,1,aux!$BA$1) -> 0 | AD99: 0 | AE99: =+IF(INDEX($C99:$L99,1,aux!$BA$1)>0,(L99/INDEX($C99:$L99,1,aux!$BA$1))^(1/($L$3-INDEX($C$3:$L$3,1,aux!$BA$1)))-1,"n.d.") -> n.d. | AF99: =IF(INDEX($C99:$L99,1,aux!$BA$1)>0,(L99-INDEX($C99:$L99,1,aux!$BA$1))/INDEX($C99:$L99,1,aux!$BA$1),"n.d.") -> n.d. | AH99: =X99-INDEX($O99:$X99,1,aux!$BA$1) -> 0 | AI99: 0 | AJ99: =+IF(INDEX($O99:$X99,1,aux!$BA$1)>0,(X99/INDEX($O99:$X99,1,aux!$BA$1))^(1/($X$3-INDEX($O$3:$X$3,1,aux!$BA$1)))-1,"n.d.") -> n.d. | AK99: =IF(INDEX($O99:$X99,1,aux!$BA$1)>0,(X99-INDEX($O99:$X99,1,aux!$BA$1))/INDEX($O99:$X99,1,aux!$BA$1),"n.d.") -> n.d. | BO99: 2.699 | CC99: =+IF(ISNA(MATCH('5.1'!A99,AUX_2d_pais!$G$2:$G$40000,0)),0,1) -> 1
A100: 0458 | B100: Guadalupe | C100: 0 | D100: 0 | E100: 0 | F100: 0 | G100: 0 | H100: 0 | I100: 0 | J100: 0 | K100: 0 | L100: 0 | M100: 0 | N100: 0 | O100: 0 | P100: 0 | Q100: 0 | R100: 0 | S100: 0 | T100: 0 | U100: 0 | V100: 0 | W100: 0 | X100: 0 | Y100: 0 | Z100: 0 | AA100: 0 | AC100: =L100-INDEX($C100:$L100,1,aux!$BA$1) -> 0 | AD100: =AC100/$AC$252 -> 0 | AE100: =+IF(INDEX($C100:$L100,1,aux!$BA$1)>0,(L100/INDEX($C100:$L100,1,aux!$BA$1))^(1/($L$3-INDEX($C$3:$L$3,1,aux!$BA$1)))-1,"n.d.") -> n.d. | AF100: =IF(INDEX($C100:$L100,1,aux!$BA$1)>0,(L100-INDEX($C100:$L100,1,aux!$BA$1))/INDEX($C100:$L100,1,aux!$BA$1),"n.d.") -> n.d. | AH100: =X100-INDEX($O100:$X100,1,aux!$BA$1) -> 0 | AI100: =AH100/$AH$252 -> 0 | AJ100: =+IF(INDEX($O100:$X100,1,aux!$BA$1)>0,(X100/INDEX($O100:$X100,1,aux!$BA$1))^(1/($X$3-INDEX($O$3:$X$3,1,aux!$BA$1)))-1,"n.d.") -> n.d. | AK100: =IF(INDEX($O100:$X100,1,aux!$BA$1)>0,(X100-INDEX($O100:$X100,1,aux!$BA$1))/INDEX($O100:$X100,1,aux!$BA$1),"n.d.") -> n.d. | BO100: 0 | CC100: =+IF(ISNA(MATCH('5.1'!A100,AUX_2d_pais!$G$2:$G$40000,0)),0,1) -> 0
A101: 0831 | B101: Guam | C101: 0 | D101: 0 | E101: 0 | F101: 0 | G101: 0 | H101: 0 | I101: 0 | J101: 0 | K101: 0 | L101: 0 | M101: 0 | N101: 0 | O101: 0 | P101: 0 | Q101: 0 | R101: 0 | S101: 0 | T101: 0 | U101: 2.131 | V101: 1.002 | W101: 17.151 | X101: 3.461 | Y101: 2.3745 | Z101: 2.171906177e-06 | AA101: 2.3745 | AC101: =L101-INDEX($C101:$L101,1,aux!$BA$1) -> 0 | AD101: =AC101/$AC$252 -> 0 | AE101: =+IF(INDEX($C101:$L101,1,aux!$BA$1)>0,(L101/INDEX($C101:$L101,1,aux!$BA$1))^(1/($L$3-INDEX($C$3:$L$3,1,aux!$BA$1)))-1,"n.d.") -> n.d. | AF101: =IF(INDEX($C101:$L101,1,aux!$BA$1)>0,(L101-INDEX($C101:$L101,1,aux!$BA$1))/INDEX($C101:$L101,1,aux!$BA$1),"n.d.") -> n.d. | AH101: =X101-INDEX($O101:$X101,1,aux!$BA$1) -> 3.461 | AI101: =AH101/$AH$252 -> 2.545300016e-05 | AJ101: =+IF(INDEX($O101:$X101,1,aux!$BA$1)>0,(X101/INDEX($O101:$X101,1,aux!$BA$1))^(1/($X$3-INDEX($O$3:$X$3,1,aux!$BA$1)))-1,"n.d.") -> n.d. | AK101: =IF(INDEX($O101:$X101,1,aux!$BA$1)>0,(X101-INDEX($O101:$X101,1,aux!$BA$1))/INDEX($O101:$X101,1,aux!$BA$1),"n.d.") -> n.d. | BO101: 23.745 | CC101: =+IF(ISNA(MATCH('5.1'!A101,AUX_2d_pais!$G$2:$G$40000,0)),0,1) -> 1
A102: 0416 | B102: Guatemala | C102: 0 | D102: 0 | E102: 0 | F102: 0 | G102: 0 | H102: 0 | I102: 0 | J102: 0 | K102: 0 | L102: 0 | M102: 0 | N102: 0 | O102: 23.951 | P102: 13.341 | Q102: 18.617 | R102: 28.448 | S102: 37.794 | T102: 198.495 | U102: 75.959 | V102: 168.853 | W102: 203.338 | X102: 133.779 | Y102: 90.2575 | Z102: 8.255667374e-05 | AA102: 90.2575 | AC102: =L102-INDEX($C102:$L102,1,aux!$BA$1) -> 0 | AD102: 0 | AE102: =+IF(INDEX($C102:$L102,1,aux!$BA$1)>0,(L102/INDEX($C102:$L102,1,aux!$BA$1))^(1/($L$3-INDEX($C$3:$L$3,1,aux!$BA$1)))-1,"n.d.") -> n.d. | AF102: =IF(INDEX($C102:$L102,1,aux!$BA$1)>0,(L102-INDEX($C102:$L102,1,aux!$BA$1))/INDEX($C102:$L102,1,aux!$BA$1),"n.d.") -> n.d. | AH102: =X102-INDEX($O102:$X102,1,aux!$BA$1) -> 109.828 | AI102: 0.0008077006938 | AJ102: =+IF(INDEX($O102:$X102,1,aux!$BA$1)>0,(X102/INDEX($O102:$X102,1,aux!$BA$1))^(1/($X$3-INDEX($O$3:$X$3,1,aux!$BA$1)))-1,"n.d.") -> 0.2106180472 | AK102: =IF(INDEX($O102:$X102,1,aux!$BA$1)>0,(X102-INDEX($O102:$X102,1,aux!$BA$1))/INDEX($O102:$X102,1,aux!$BA$1),"n.d.") -> 4.585528788 | CC102: =+IF(ISNA(MATCH('5.1'!A102,AUX_2d_pais!$G$2:$G$40000,0)),0,1) -> 1
A103: 0488 | B103: Guiana | C103: 0 | D103: 0 | E103: 0 | F103: 0 | G103: 0 | H103: 0 | I103: 0 | J103: 0 | K103: 0 | L103: 0 | M103: 0 | N103: 0 | O103: 0 | P103: 0 | Q103: 0 | R103: 0 | S103: 0 | T103: 0 | U103: 35.435 | V103: 0 | W103: 50.075 | X103: 0 | Y103: 8.551 | Z103: 7.82142334e-06 | AA103: 8.551 | AC103: =L103-INDEX($C103:$L103,1,aux!$BA$1) -> 0 | AD103: 0 | AE103: =+IF(INDEX($C103:$L103,1,aux!$BA$1)>0,(L103/INDEX($C103:$L103,1,aux!$BA$1))^(1/($L$3-INDEX($C$3:$L$3,1,aux!$BA$1)))-1,"n.d.") -> n.d. | AF103: =IF(INDEX($C103:$L103,1,aux!$BA$1)>0,(L103-INDEX($C103:$L103,1,aux!$BA$1))/INDEX($C103:$L103,1,aux!$BA$1),"n.d.") -> n.d. | AH103: =X103-INDEX($O103:$X103,1,aux!$BA$1) -> 0 | AI103: 0 | AJ103: =+IF(INDEX($O103:$X103,1,aux!$BA$1)>0,(X103/INDEX($O103:$X103,1,aux!$BA$1))^(1/($X$3-INDEX($O$3:$X$3,1,aux!$BA$1)))-1,"n.d.") -> n.d. | AK103: =IF(INDEX($O103:$X103,1,aux!$BA$1)>0,(X103-INDEX($O103:$X103,1,aux!$BA$1))/INDEX($O103:$X103,1,aux!$BA$1),"n.d.") -> n.d. | BO103: 85.51 | CC103: =+IF(ISNA(MATCH('5.1'!A103,AUX_2d_pais!$G$2:$G$40000,0)),0,1) -> 1
A104: 0496 | B104: Guiana Francesa | C104: 0 | D104: 0 | E104: 0 | F104: 0 | G104: 0 | H104: 0 | I104: 0 | J104: 0 | K104: 0 | L104: 0 | M104: 0 | N104: 0 | O104: 0 | P104: 0 | Q104: 0 | R104: 0 | S104: 0 | T104: 0 | U104: 0 | V104: 0 | W104: 0 | X104: 0 | Y104: 0 | Z104: 0 | AA104: 0 | AC104: =L104-INDEX($C104:$L104,1,aux!$BA$1) -> 0 | AD104: 0 | AE104: =+IF(INDEX($C104:$L104,1,aux!$BA$1)>0,(L104/INDEX($C104:$L104,1,aux!$BA$1))^(1/($L$3-INDEX($C$3:$L$3,1,aux!$BA$1)))-1,"n.d.") -> n.d. | AF104: =IF(INDEX($C104:$L104,1,aux!$BA$1)>0,(L104-INDEX($C104:$L104,1,aux!$BA$1))/INDEX($C104:$L104,1,aux!$BA$1),"n.d.") -> n.d. | AH104: =X104-INDEX($O104:$X104,1,aux!$BA$1) -> 0 | AI104: 0 | AJ104: =+IF(INDEX($O104:$X104,1,aux!$BA$1)>0,(X104/INDEX($O104:$X104,1,aux!$BA$1))^(1/($X$3-INDEX($O$3:$X$3,1,aux!$BA$1)))-1,"n.d.") -> n.d. | AK104: =IF(INDEX($O104:$X104,1,aux!$BA$1)>0,(X104-INDEX($O104:$X104,1,aux!$BA$1))/INDEX($O104:$X104,1,aux!$BA$1),"n.d.") -> n.d. | BO104: 0 | CC104: =+IF(ISNA(MATCH('5.1'!A104,AUX_2d_pais!$G$2:$G$40000,0)),0,1) -> 0
A105: 0260 | B105: Guiné | C105: 0 | D105: 0 | E105: 0 | F105: 0 | G105: 0 | H105: 0 | I105: 49.947 | J105: 0 | K105: 0 | L105: 0 | M105: 4.9947 | N105: 1.135116493e-05 | O105: 79.863 | P105: 53.791 | Q105: 143.675 | R105: 176.348 | S105: 313.817 | T105: 272.52 | U105: 173.632 | V105: 285.384 | W105: 229.521 | X105: 502.073 | Y105: 223.0624 | Z105: 0.0002040305767 | AA105: 218.0677 | AC105: =L105-INDEX($C105:$L105,1,aux!$BA$1) -> 0 | AD105: 0 | AE105: =+IF(INDEX($C105:$L105,1,aux!$BA$1)>0,(L105/INDEX($C105:$L105,1,aux!$BA$1))^(1/($L$3-INDEX($C$3:$L$3,1,aux!$BA$1)))-1,"n.d.") -> n.d. | AF105: =IF(INDEX($C105:$L105,1,aux!$BA$1)>0,(L105-INDEX($C105:$L105,1,aux!$BA$1))/INDEX($C105:$L105,1,aux!$BA$1),"n.d.") -> n.d. | AH105: =X105-INDEX($O105:$X105,1,aux!$BA$1) -> 422.21 | AI105: 0.003105030684 | AJ105: =+IF(INDEX($O105:$X105,1,aux!$BA$1)>0,(X105/INDEX($O105:$X105,1,aux!$BA$1))^(1/($X$3-INDEX($O$3:$X$3,1,aux!$BA$1)))-1,"n.d.") -> 0.2266296886 | AK105: =IF(INDEX($O105:$X105,1,aux!$BA$1)>0,(X105-INDEX($O105:$X105,1,aux!$BA$1))/INDEX($O105:$X105,1,aux!$BA$1),"n.d.") -> 5.286678437 | CC105: =+IF(ISNA(MATCH('5.1'!A105,AUX_2d_pais!$G$2:$G$40000,0)),0,1) -> 1
A106: 0310 | B106: Guiné Equatorial | C106: 0 | D106: 0 | E106: 0 | F106: 0 | G106: 0 | H106: 0 | I106: 0 | J106: 0 | K106: 0 | L106: 0 | M106: 0 | N106: 0 | O106: 85.92 | P106: 96.957 | Q106: 225.966 | R106: 205.587 | S106: 205.406 | T106: 192.953 | U106: 315.124 | V106: 104.236 | W106: 66.337 | X106: 45.887 | Y106: 154.4373 | Z106: 0.0001412606131 | AA106: 154.4373 | AC106: =L106-INDEX($C106:$L106,1,aux!$BA$1) -> 0 | AD106: 0 | AE106: =+IF(INDEX($C106:$L106,1,aux!$BA$1)>0,(L106/INDEX($C106:$L106,1,aux!$BA$1))^(1/($L$3-INDEX($C$3:$L$3,1,aux!$BA$1)))-1,"n.d.") -> n.d. | AF106: =IF(INDEX($C106:$L106,1,aux!$BA$1)>0,(L106-INDEX($C106:$L106,1,aux!$BA$1))/INDEX($C106:$L106,1,aux!$BA$1),"n.d.") -> n.d. | AH106: =X106-INDEX($O106:$X106,1,aux!$BA$1) -> -40.033 | AI106: -0.0002944120067 | AJ106: =+IF(INDEX($O106:$X106,1,aux!$BA$1)>0,(X106/INDEX($O106:$X106,1,aux!$BA$1))^(1/($X$3-INDEX($O$3:$X$3,1,aux!$BA$1)))-1,"n.d.") -> -0.067319661 | AK106: =IF(INDEX($O106:$X106,1,aux!$BA$1)>0,(X106-INDEX($O106:$X106,1,aux!$BA$1))/INDEX($O106:$X106,1,aux!$BA$1),"n.d.") -> -0.4659334264 | CC106: =+IF(ISNA(MATCH('5.1'!A106,AUX_2d_pais!$G$2:$G$40000,0)),0,1) -> 1
A107: 0257 | B107: Guiné-Bissau | C107: 6.927 | D107: 0 | E107: 0 | F107: 0 | G107: 0 | H107: 0 | I107: 0.162 | J107: 0 | K107: 0 | L107: 0 | M107: 0.7089 | N107: 1.611075905e-06 | O107: 11779.783 | P107: 10918.579 | Q107: 11243.384 | R107: 13417.616 | S107: 11949.29 | T107: 13669.446 | U107: 13611.641 | V107: 14082.35 | W107: 18030.014 | X107: 15099.812 | Y107: 13380.1915 | Z107: 0.01223858521 | AA107: 13379.4826 | AC107: =L107-INDEX($C107:$L107,1,aux!$BA$1) -> -6.927 | AD107: -9.639816005e-05 | AE107: =+IF(INDEX($C107:$L107,1,aux!$BA$1)>0,(L107/INDEX($C107:$L107,1,aux!$BA$1))^(1/($L$3-INDEX($C$3:$L$3,1,aux!$BA$1)))-1,"n.d.") -> -1 | AF107: =IF(INDEX($C107:$L107,1,aux!$BA$1)>0,(L107-INDEX($C107:$L107,1,aux!$BA$1))/INDEX($C107:$L107,1,aux!$BA$1),"n.d.") -> -1 | AH107: =X107-INDEX($O107:$X107,1,aux!$BA$1) -> 3320.029 | AI107: 0.02441626659 | AJ107: =+IF(INDEX($O107:$X107,1,aux!$BA$1)>0,(X107/INDEX($O107:$X107,1,aux!$BA$1))^(1/($X$3-INDEX($O$3:$X$3,1,aux!$BA$1)))-1,"n.d.") -> 0.02797270503 | AK107: =IF(INDEX($O107:$X107,1,aux!$BA$1)>0,(X107-INDEX($O107:$X107,1,aux!$BA$1))/INDEX($O107:$X107,1,aux!$BA$1),"n.d.") -> 0.2818412699 | CC107: =+IF(ISNA(MATCH('5.1'!A107,AUX_2d_pais!$G$2:$G$40000,0)),0,1) -> 1
A108: 0452 | B108: Haiti | C108: 0 | D108: 0 | E108: 0 | F108: 0 | G108: 0 | H108: 0 | I108: 0 | J108: 0 | K108: 0 | L108: 0 | M108: 0 | N108: 0 | O108: 3.526 | P108: 7.597 | Q108: 7.465 | R108: 7.085 | S108: 13.177 | T108: 2.151 | U108: 2.289 | V108: 2.03 | W108: 1.155 | X108: 0.251 | Y108: 4.6726 | Z108: 4.27393085e-06 | AA108: 4.6726 | AC108: =L108-INDEX($C108:$L108,1,aux!$BA$1) -> 0 | AD108: 0 | AE108: =+IF(INDEX($C108:$L108,1,aux!$BA$1)>0,(L108/INDEX($C108:$L108,1,aux!$BA$1))^(1/($L$3-INDEX($C$3:$L$3,1,aux!$BA$1)))-1,"n.d.") -> n.d. | AF108: =IF(INDEX($C108:$L108,1,aux!$BA$1)>0,(L108-INDEX($C108:$L108,1,aux!$BA$1))/INDEX($C108:$L108,1,aux!$BA$1),"n.d.") -> n.d. | AH108: =X108-INDEX($O108:$X108,1,aux!$BA$1) -> -3.275 | AI108: -2.408511283e-05 | AJ108: =+IF(INDEX($O108:$X108,1,aux!$BA$1)>0,(X108/INDEX($O108:$X108,1,aux!$BA$1))^(1/($X$3-INDEX($O$3:$X$3,1,aux!$BA$1)))-1,"n.d.") -> -0.254430841 | AK108: =IF(INDEX($O108:$X108,1,aux!$BA$1)>0,(X108-INDEX($O108:$X108,1,aux!$BA$1))/INDEX($O108:$X108,1,aux!$BA$1),"n.d.") -> -0.9288145207 | CC108: =+IF(ISNA(MATCH('5.1'!A108,AUX_2d_pais!$G$2:$G$40000,0)),0,1) -> 1
A109: 0835 | B109: Heard, Ilha e McDonald, Ilhas | C109: 0 | D109: 0 | E109: 0 | F109: 0 | G109: 0 | H109: 0 | I109: 0 | J109: 0 | K109: 0 | L109: 0 | M109: 0 | N109: 0 | O109: 0 | P109: 0 | Q109: 0 | R109: 0 | S109: 0 | T109: 0 | U109: 0 | V109: 0 | W109: 0 | X109: 0 | Y109: 0 | Z109: 0 | AA109: 0 | AC109: =L109-INDEX($C109:$L109,1,aux!$BA$1) -> 0 | AD109: 0 | AE109: =+IF(INDEX($C109:$L109,1,aux!$BA$1)>0,(L109/INDEX($C109:$L109,1,aux!$BA$1))^(1/($L$3-INDEX($C$3:$L$3,1,aux!$BA$1)))-1,"n.d.") -> n.d. | AF109: =IF(INDEX($C109:$L109,1,aux!$BA$1)>0,(L109-INDEX($C109:$L109,1,aux!$BA$1))/INDEX($C109:$L109,1,aux!$BA$1),"n.d.") -> n.d. | AH109: =X109-INDEX($O109:$X109,1,aux!$BA$1) -> 0 | AI109: 0 | AJ109: =+IF(INDEX($O109:$X109,1,aux!$BA$1)>0,(X109/INDEX($O109:$X109,1,aux!$BA$1))^(1/($X$3-INDEX($O$3:$X$3,1,aux!$BA$1)))-1,"n.d.") -> n.d. | AK109: =IF(INDEX($O109:$X109,1,aux!$BA$1)>0,(X109-INDEX($O109:$X109,1,aux!$BA$1))/INDEX($O109:$X109,1,aux!$BA$1),"n.d.") -> n.d. | BO109: 0 | CC109: =+IF(ISNA(MATCH('5.1'!A109,AUX_2d_pais!$G$2:$G$40000,0)),0,1) -> 0
A110: 0424 | B110: Honduras | C110: 0 | D110: 0 | E110: 0 | F110: 0 | G110: 25.474 | H110: 1.605 | I110: 50.23 | J110: 148.542 | K110: 231.753 | L110: 189.674 | M110: 64.7278 | N110: 0.000147103116 | O110: 8.547 | P110: 4.175 | Q110: 0 | R110: 199.954 | S110: 244.52 | T110: 248.964 | U110: 643.779 | V110: 969.036 | W110: 1402.43 | X110: 337.647 | Y110: 405.9052 | Z110: 0.0003712731149 | AA110: 341.1774 | AC110: =L110-INDEX($C110:$L110,1,aux!$BA$1) -> 189.674 | AD110: 0.002639558916 | AE110: =+IF(INDEX($C110:$L110,1,aux!$BA$1)>0,(L110/INDEX($C110:$L110,1,aux!$BA$1))^(1/($L$3-INDEX($C$3:$L$3,1,aux!$BA$1)))-1,"n.d.") -> n.d. | AF110: =IF(INDEX($C110:$L110,1,aux!$BA$1)>0,(L110-INDEX($C110:$L110,1,aux!$BA$1))/INDEX($C110:$L110,1,aux!$BA$1),"n.d.") -> n.d. | AH110: =X110-INDEX($O110:$X110,1,aux!$BA$1) -> 329.1 | AI110: 0.002420278056 | AJ110: =+IF(INDEX($O110:$X110,1,aux!$BA$1)>0,(X110/INDEX($O110:$X110,1,aux!$BA$1))^(1/($X$3-INDEX($O$3:$X$3,1,aux!$BA$1)))-1,"n.d.") -> 0.5045459838 | AK110: =IF(INDEX($O110:$X110,1,aux!$BA$1)>0,(X110-INDEX($O110:$X110,1,aux!$BA$1))/INDEX($O110:$X110,1,aux!$BA$1),"n.d.") -> 38.5047385 | CC110: =+IF(ISNA(MATCH('5.1'!A110,AUX_2d_pais!$G$2:$G$40000,0)),0,1) -> 1
A111: 0740 | B111: HongKong | C111: 20.725 | D111: 3.599 | E111: 28.5 | F111: 0.312 | G111: 0.268 | H111: 77.036 | I111: 5.253 | J111: 2.696 | K111: 26.937 | L111: 20.861 | M111: 18.6187 | N111: 4.231363937e-05 | O111: 2315.989 | P111: 2186.61 | Q111: 2290.505 | R111: 2411.793 | S111: 2972.349 | T111: 2331.125 | U111: 2482.986 | V111: 1645.346 | W111: 1567.938 | X111: 1012.302 | Y111: 2121.6943 | Z111: 0.001940670017 | AA111: 2103.0756 | AC111: =L111-INDEX($C111:$L111,1,aux!$BA$1) -> 0.136 | AD111: 1.892615817e-06 | AE111: =+IF(INDEX($C111:$L111,1,aux!$BA$1)>0,(L111/INDEX($C111:$L111,1,aux!$BA$1))^(1/($L$3-INDEX($C$3:$L$3,1,aux!$BA$1)))-1,"n.d.") -> 0.000727007035 | AF111: =IF(INDEX($C111:$L111,1,aux!$BA$1)>0,(L111-INDEX($C111:$L111,1,aux!$BA$1))/INDEX($C111:$L111,1,aux!$BA$1),"n.d.") -> 0.00656212304 | AH111: =X111-INDEX($O111:$X111,1,aux!$BA$1) -> -1303.687 | AI111: -0.00958761786 | AJ111: =+IF(INDEX($O111:$X111,1,aux!$BA$1)>0,(X111/INDEX($O111:$X111,1,aux!$BA$1))^(1/($X$3-INDEX($O$3:$X$3,1,aux!$BA$1)))-1,"n.d.") -> -0.08785531134 | AK111: =IF(INDEX($O111:$X111,1,aux!$BA$1)>0,(X111-INDEX($O111:$X111,1,aux!$BA$1))/INDEX($O111:$X111,1,aux!$BA$1),"n.d.") -> -0.5629072504 | CC111: =+IF(ISNA(MATCH('5.1'!A111,AUX_2d_pais!$G$2:$G$40000,0)),0,1) -> 1
A112: 0064 | B112: Hungria | C112: 0 | D112: 0 | E112: 0 | F112: 0 | G112: 3.547 | H112: 3.272 | I112: 160.178 | J112: 46.98 | K112: 127.018 | L112: 13.799 | M112: 35.4794 | N112: 8.063197412e-05 | O112: 214.255 | P112: 96.73 | Q112: 147.339 | R112: 262.281 | S112: 204.129 | T112: 272.232 | U112: 839.862 | V112: 773.486 | W112: 1305.271 | X112: 635.945 | Y112: 475.153 | Z112: 0.0004346126493 | AA112: 439.6736 | AC112: =L112-INDEX($C112:$L112,1,aux!$BA$1) -> 13.799 | AD112: 0.000192030924 | AE112: =+IF(INDEX($C112:$L112,1,aux!$BA$1)>0,(L112/INDEX($C112:$L112,1,aux!$BA$1))^(1/($L$3-INDEX($C$3:$L$3,1,aux!$BA$1)))-1,"n.d.") -> n.d. | AF112: =IF(INDEX($C112:$L112,1,aux!$BA$1)>0,(L112-INDEX($C112:$L112,1,aux!$BA$1))/INDEX($C112:$L112,1,aux!$BA$1),"n.d.") -> n.d. | AH112: =X112-INDEX($O112:$X112,1,aux!$BA$1) -> 421.69 | AI112: 0.003101206483 | AJ112: =+IF(INDEX($O112:$X112,1,aux!$BA$1)>0,(X112/INDEX($O112:$X112,1,aux!$BA$1))^(1/($X$3-INDEX($O$3:$X$3,1,aux!$BA$1)))-1,"n.d.") -> 0.1284926437 | AK112: =IF(INDEX($O112:$X112,1,aux!$BA$1)>0,(X112-INDEX($O112:$X112,1,aux!$BA$1))/INDEX($O112:$X112,1,aux!$BA$1),"n.d.") -> 1.968168771 | CC112: =+IF(ISNA(MATCH('5.1'!A112,AUX_2d_pais!$G$2:$G$40000,0)),0,1) -> 1
A113: 0653 | B113: Iémen | C113: 0 | D113: 0 | E113: 0 | F113: 0 | G113: 0 | H113: 0 | I113: 0 | J113: 0 | K113: 0 | L113: 0 | M113: 0 | N113: 0 | O113: 0 | P113: 15.002 | Q113: 73.685 | R113: 0 | S113: 0 | T113: 0 | U113: 1000.172 | V113: 1709.731 | W113: 715.224 | X113: 313.75 | Y113: 382.7564 | Z113: 0.0003500993849 | AA113: 382.7564 | AC113: =L113-INDEX($C113:$L113,1,aux!$BA$1) -> 0 | AD113: 0 | AE113: =+IF(INDEX($C113:$L113,1,aux!$BA$1)>0,(L113/INDEX($C113:$L113,1,aux!$BA$1))^(1/($L$3-INDEX($C$3:$L$3,1,aux!$BA$1)))-1,"n.d.") -> n.d. | AF113: =IF(INDEX($C113:$L113,1,aux!$BA$1)>0,(L113-INDEX($C113:$L113,1,aux!$BA$1))/INDEX($C113:$L113,1,aux!$BA$1),"n.d.") -> n.d. | AH113: =X113-INDEX($O113:$X113,1,aux!$BA$1) -> 313.75 | AI113: 0.00230739058 | AJ113: =+IF(INDEX($O113:$X113,1,aux!$BA$1)>0,(X113/INDEX($O113:$X113,1,aux!$BA$1))^(1/($X$3-INDEX($O$3:$X$3,1,aux!$BA$1)))-1,"n.d.") -> n.d. | AK113: =IF(INDEX($O113:$X113,1,aux!$BA$1)>0,(X113-INDEX($O113:$X113,1,aux!$BA$1))/INDEX($O113:$X113,1,aux!$BA$1),"n.d.") -> n.d. | BO113: 3827.564 | CC113: =+IF(ISNA(MATCH('5.1'!A113,AUX_2d_pais!$G$2:$G$40000,0)),0,1) -> 1
A114: 0664 | B114: Índia | C114: 0 | D114: 1.291 | E114: 0.204 | F114: 0 | G114: 0.067 | H114: 11.768 | I114: 11.979 | J114: 0 | K114: 12.306 | L114: 12.262 | M114: 4.9877 | N114: 1.133525644e-05 | O114: 122.552 | P114: 93.139 | Q114: 55.31 | R114: 47.347 | S114: 83.29 | T114: 70.547 | U114: 155.763 | V114: 175.323 | W114: 187.947 | X114: 152.289 | Y114: 114.3507 | Z114: 0.0001045942269 | AA114: 109.363 | AC114: =L114-INDEX($C114:$L114,1,aux!$BA$1) -> 12.262 | AD114: 0.000170641582 | AE114: =+IF(INDEX($C114:$L114,1,aux!$BA$1)>0,(L114/INDEX($C114:$L114,1,aux!$BA$1))^(1/($L$3-INDEX($C$3:$L$3,1,aux!$BA$1)))-1,"n.d.") -> n.d. | AF114: =IF(INDEX($C114:$L114,1,aux!$BA$1)>0,(L114-INDEX($C114:$L114,1,aux!$BA$1))/INDEX($C114:$L114,1,aux!$BA$1),"n.d.") -> n.d. | AH114: =X114-INDEX($O114:$X114,1,aux!$BA$1) -> 29.737 | AI114: 0.0002186928245 | AJ114: =+IF(INDEX($O114:$X114,1,aux!$BA$1)>0,(X114/INDEX($O114:$X114,1,aux!$BA$1))^(1/($X$3-INDEX($O$3:$X$3,1,aux!$BA$1)))-1,"n.d.") -> 0.02443197585 | AK114: =IF(INDEX($O114:$X114,1,aux!$BA$1)>0,(X114-INDEX($O114:$X114,1,aux!$BA$1))/INDEX($O114:$X114,1,aux!$BA$1),"n.d.") -> 0.2426480188 | CC114: =+IF(ISNA(MATCH('5.1'!A114,AUX_2d_pais!$G$2:$G$40000,0)),0,1) -> 1
A115: 0700 | B115: Indonésia | C115: 0 | D115: 0 | E115: 0 | F115: 0 | G115: 0 | H115: 0 | I115: 0.103 | J115: 0 | K115: 0 | L115: 0 | M115: 0.0103 | N115: 2.340821247e-08 | O115: 78.968 | P115: 73.876 | Q115: 22.24 | R115: 33.467 | S115: 21.544 | T115: 34.676 | U115: 77.397 | V115: 255.968 | W115: 0.161 | X115: 38.132 | Y115: 63.6429 | Z115: 5.821284803e-05 | AA115: 63.6326 | AC115: =L115-INDEX($C115:$L115,1,aux!$BA$1) -> 0 | AD115: 0 | AE115: =+IF(INDEX($C115:$L115,1,aux!$BA$1)>0,(L115/INDEX($C115:$L115,1,aux!$BA$1))^(1/($L$3-INDEX($C$3:$L$3,1,aux!$BA$1)))-1,"n.d.") -> n.d. | AF115: =IF(INDEX($C115:$L115,1,aux!$BA$1)>0,(L115-INDEX($C115:$L115,1,aux!$BA$1))/INDEX($C115:$L115,1,aux!$BA$1),"n.d.") -> n.d. | AH115: =X115-INDEX($O115:$X115,1,aux!$BA$1) -> -40.836 | AI115: -0.0003003174558 | AJ115: =+IF(INDEX($O115:$X115,1,aux!$BA$1)>0,(X115/INDEX($O115:$X115,1,aux!$BA$1))^(1/($X$3-INDEX($O$3:$X$3,1,aux!$BA$1)))-1,"n.d.") -> -0.0777026976 | AK115: =IF(INDEX($O115:$X115,1,aux!$BA$1)>0,(X115-INDEX($O115:$X115,1,aux!$BA$1))/INDEX($O115:$X115,1,aux!$BA$1),"n.d.") -> -0.5171208591 | CC115: =+IF(ISNA(MATCH('5.1'!A115,AUX_2d_pais!$G$2:$G$40000,0)),0,1) -> 1
A116: 0616 | B116: Irão, República Islâmica do | C116: 0 | D116: 0 | E116: 0 | F116: 0 | G116: 0 | H116: 0 | I116: 0 | J116: 0 | K116: 0 | L116: 0 | M116: 0 | N116: 0 | O116: 0.029 | P116: 0.001 | Q116: 0 | R116: 0.003 | S116: 0 | T116: 0 | U116: 0 | V116: 130.52 | W116: 0 | X116: 0 | Y116: 13.0553 | Z116: 1.194141365e-05 | AA116: 13.0553 | AC116: =L116-INDEX($C116:$L116,1,aux!$BA$1) -> 0 | AD116: 0 | AE116: =+IF(INDEX($C116:$L116,1,aux!$BA$1)>0,(L116/INDEX($C116:$L116,1,aux!$BA$1))^(1/($L$3-INDEX($C$3:$L$3,1,aux!$BA$1)))-1,"n.d.") -> n.d. | AF116: =IF(INDEX($C116:$L116,1,aux!$BA$1)>0,(L116-INDEX($C116:$L116,1,aux!$BA$1))/INDEX($C116:$L116,1,aux!$BA$1),"n.d.") -> n.d. | AH116: =X116-INDEX($O116:$X116,1,aux!$BA$1) -> -0.029 | AI116: -2.132727548e-07 | AJ116: =+IF(INDEX($O116:$X116,1,aux!$BA$1)>0,(X116/INDEX($O116:$X116,1,aux!$BA$1))^(1/($X$3-INDEX($O$3:$X$3,1,aux!$BA$1)))-1,"n.d.") -> -1 | AK116: =IF(INDEX($O116:$X116,1,aux!$BA$1)>0,(X116-INDEX($O116:$X116,1,aux!$BA$1))/INDEX($O116:$X116,1,aux!$BA$1),"n.d.") -> -1 | CC116: =+IF(ISNA(MATCH('5.1'!A116,AUX_2d_pais!$G$2:$G$40000,0)),0,1) -> 1
A117: 0612 | B117: Iraque | C117: 0 | D117: 0 | E117: 0 | F117: 0 | G117: 0 | H117: 0 | I117: 0 | J117: 0 | K117: 0 | L117: 0 | M117: 0 | N117: 0 | O117: 35.594 | P117: 0 | Q117: 185.401 | R117: 1185.689 | S117: 486.686 | T117: 257.057 | U117: 141.144 | V117: 103.092 | W117: 21.268 | X117: 96.849 | Y117: 251.278 | Z117: 0.0002298388041 | AA117: 251.278 | AC117: =L117-INDEX($C117:$L117,1,aux!$BA$1) -> 0 | AD117: 0 | AE117: =+IF(INDEX($C117:$L117,1,aux!$BA$1)>0,(L117/INDEX($C117:$L117,1,aux!$BA$1))^(1/($L$3-INDEX($C$3:$L$3,1,aux!$BA$1)))-1,"n.d.") -> n.d. | AF117: =IF(INDEX($C117:$L117,1,aux!$BA$1)>0,(L117-INDEX($C117:$L117,1,aux!$BA$1))/INDEX($C117:$L117,1,aux!$BA$1),"n.d.") -> n.d. | AH117: =X117-INDEX($O117:$X117,1,aux!$BA$1) -> 61.255 | AI117: 0.0004504835379 | AJ117: =+IF(INDEX($O117:$X117,1,aux!$BA$1)>0,(X117/INDEX($O117:$X117,1,aux!$BA$1))^(1/($X$3-INDEX($O$3:$X$3,1,aux!$BA$1)))-1,"n.d.") -> 0.1176402616 | AK117: =IF(INDEX($O117:$X117,1,aux!$BA$1)>0,(X117-INDEX($O117:$X117,1,aux!$BA$1))/INDEX($O117:$X117,1,aux!$BA$1),"n.d.") -> 1.720936113 | CC117: =+IF(ISNA(MATCH('5.1'!A117,AUX_2d_pais!$G$2:$G$40000,0)),0,1) -> 1
A118: 0007 | B118: Irlanda | C118: 6022.91 | D118: 6221.832 | E118: 5619.562 | F118: 4686.334 | G118: 5220.567 | H118: 4936.244 | I118: 3945.94 | J118: 5201.169 | K118: 5918.756 | L118: 2900.804 | M118: 5067.4118 | N118: 0.01151641282 | O118: 3738.671 | P118: 2931.923 | Q118: 2403.809 | R118: 2783.345 | S118: 3766.109 | T118: 4093.519 | U118: 3724.189 | V118: 4168.327 | W118: 3833.176 | X118: 4869.572 | Y118: 3631.264 | Z118: 0.003321442288 | AA118: -1436.1478 | AC118: =L118-INDEX($C118:$L118,1,aux!$BA$1) -> -3122.106 | AD118: -0.04344814117 | AE118: =+IF(INDEX($C118:$L118,1,aux!$BA$1)>0,(L118/INDEX($C118:$L118,1,aux!$BA$1))^(1/($L$3-INDEX($C$3:$L$3,1,aux!$BA$1)))-1,"n.d.") -> -0.07796845604 | AF118: =IF(INDEX($C118:$L118,1,aux!$BA$1)>0,(L118-INDEX($C118:$L118,1,aux!$BA$1))/INDEX($C118:$L118,1,aux!$BA$1),"n.d.") -> -0.5183716841 | AH118: =X118-INDEX($O118:$X118,1,aux!$BA$1) -> 1130.901 | AI118: 0.00831690937 | AJ118: =+IF(INDEX($O118:$X118,1,aux!$BA$1)>0,(X118/INDEX($O118:$X118,1,aux!$BA$1))^(1/($X$3-INDEX($O$3:$X$3,1,aux!$BA$1)))-1,"n.d.") -> 0.02979935579 | AK118: =IF(INDEX($O118:$X118,1,aux!$BA$1)>0,(X118-INDEX($O118:$X118,1,aux!$BA$1))/INDEX($O118:$X118,1,aux!$BA$1),"n.d.") -> 0.3024874347 | CC118: =+IF(ISNA(MATCH('5.1'!A118,AUX_2d_pais!$G$2:$G$40000,0)),0,1) -> 1
A119: 0024 | B119: Islândia | C119: 0 | D119: 0 | E119: 0 | F119: 0 | G119: 0 | H119: 8.213 | I119: 0 | J119: 0 | K119: 0.051 | L119: 0.229 | M119: 0.8493 | N119: 1.93015484e-06 | O119: 193.659 | P119: 227.347 | Q119: 209.066 | R119: 198.317 | S119: 273.12 | T119: 227.151 | U119: 405.192 | V119: 318.738 | W119: 304.413 | X119: 436.56 | Y119: 279.3563 | Z119: 0.000255521446 | AA119: 278.507 | AC119: =L119-INDEX($C119:$L119,1,aux!$BA$1) -> 0.229 | AD119: 3.186831046e-06 | AE119: =+IF(INDEX($C119:$L119,1,aux!$BA$1)>0,(L119/INDEX($C119:$L119,1,aux!$BA$1))^(1/($L$3-INDEX($C$3:$L$3,1,aux!$BA$1)))-1,"n.d.") -> n.d. | AF119: =IF(INDEX($C119:$L119,1,aux!$BA$1)>0,(L119-INDEX($C119:$L119,1,aux!$BA$1))/INDEX($C119:$L119,1,aux!$BA$1),"n.d.") -> n.d. | AH119: =X119-INDEX($O119:$X119,1,aux!$BA$1) -> 242.901 | AI119: 0.001786350532 | AJ119: =+IF(INDEX($O119:$X119,1,aux!$BA$1)>0,(X119/INDEX($O119:$X119,1,aux!$BA$1))^(1/($X$3-INDEX($O$3:$X$3,1,aux!$BA$1)))-1,"n.d.") -> 0.09451802298 | AK119: =IF(INDEX($O119:$X119,1,aux!$BA$1)>0,(X119-INDEX($O119:$X119,1,aux!$BA$1))/INDEX($O119:$X119,1,aux!$BA$1),"n.d.") -> 1.254271684 | CC119: =+IF(ISNA(MATCH('5.1'!A119,AUX_2d_pais!$G$2:$G$40000,0)),0,1) -> 1
A120: 0624 | B120: Israel | C120: 0 | D120: 0.237 | E120: 8.466 | F120: 1.124 | G120: 0.211 | H120: 23.537 | I120: 84.032 | J120: 28.574 | K120: 2.326 | L120: 0.747 | M120: 14.9254 | N120: 3.392009072e-05 | O120: 196.025 | P120: 332.779 | Q120: 345.032 | R120: 462.568 | S120: 512.276 | T120: 496.97 | U120: 498.524 | V120: 597.265 | W120: 714.108 | X120: 1074.991 | Y120: 523.0538 | Z120: 0.0004784265232 | AA120: 508.1284 | AC120: =L120-INDEX($C120:$L120,1,aux!$BA$1) -> 0.747 | AD120: 1.03954707e-05 | AE120: =+IF(INDEX($C120:$L120,1,aux!$BA$1)>0,(L120/INDEX($C120:$L120,1,aux!$BA$1))^(1/($L$3-INDEX($C$3:$L$3,1,aux!$BA$1)))-1,"n.d.") -> n.d. | AF120: =IF(INDEX($C120:$L120,1,aux!$BA$1)>0,(L120-INDEX($C120:$L120,1,aux!$BA$1))/INDEX($C120:$L120,1,aux!$BA$1),"n.d.") -> n.d. | AH120: =X120-INDEX($O120:$X120,1,aux!$BA$1) -> 878.966 | AI120: 0.006464120698 | AJ120: =+IF(INDEX($O120:$X120,1,aux!$BA$1)>0,(X120/INDEX($O120:$X120,1,aux!$BA$1))^(1/($X$3-INDEX($O$3:$X$3,1,aux!$BA$1)))-1,"n.d.") -> 0.2081517438 | AK120: =IF(INDEX($O120:$X120,1,aux!$BA$1)>0,(X120-INDEX($O120:$X120,1,aux!$BA$1))/INDEX($O120:$X120,1,aux!$BA$1),"n.d.") -> 4.483948476 | CC120: =+IF(ISNA(MATCH('5.1'!A120,AUX_2d_pais!$G$2:$G$40000,0)),0,1) -> 1
A121: 0005 | B121: Itália | C121: 17491.746 | D121: 18450.483 | E121: 20807.418 | F121: 22238.917 | G121: 22248.204 | H121: 24991.214 | I121: 32806.371 | J121: 31413.718 | K121: 26861.022 | L121: 22961.796 | M121: 24027.0889 | N121: 0.05460497106 | O121: 6769.437 | P121: 7572.808 | Q121: 6306.333 | R121: 6501.851 | S121: 6503.811 | T121: 8524.172 | U121: 9047.959 | V121: 12714.349 | W121: 11969.269 | X121: 10822.806 | Y121: 8673.2795 | Z121: 0.007933269877 | AA121: -15353.8094 | AC121: =L121-INDEX($C121:$L121,1,aux!$BA$1) -> 5470.05 | AD121: 0.0761228173 | AE121: =+IF(INDEX($C121:$L121,1,aux!$BA$1)>0,(L121/INDEX($C121:$L121,1,aux!$BA$1))^(1/($L$3-INDEX($C$3:$L$3,1,aux!$BA$1)))-1,"n.d.") -> 0.03069530819 | AF121: =IF(INDEX($C121:$L121,1,aux!$BA$1)>0,(L121-INDEX($C121:$L121,1,aux!$BA$1))/INDEX($C121:$L121,1,aux!$BA$1),"n.d.") -> 0.3127217832 | AH121: =X121-INDEX($O121:$X121,1,aux!$BA$1) -> 4053.369 | AI121: 0.02980941976 | AJ121: =+IF(INDEX($O121:$X121,1,aux!$BA$1)>0,(X121/INDEX($O121:$X121,1,aux!$BA$1))^(1/($X$3-INDEX($O$3:$X$3,1,aux!$BA$1)))-1,"n.d.") -> 0.05352060942 | AK121: =IF(INDEX($O121:$X121,1,aux!$BA$1)>0,(X121-INDEX($O121:$X121,1,aux!$BA$1))/INDEX($O121:$X121,1,aux!$BA$1),"n.d.") -> 0.5987749055 | CC121: =+IF(ISNA(MATCH('5.1'!A121,AUX_2d_pais!$G$2:$G$40000,0)),0,1) -> 1
A122: 0464 | B122: Jamaica | C122: 0 | D122: 0 | E122: 0 | F122: 0 | G122: 0 | H122: 0 | I122: 0 | J122: 0 | K122: 0 | L122: 0 | M122: 0 | N122: 0 | O122: 0 | P122: 0 | Q122: 0 | R122: 0 | S122: 0 | T122: 0 | U122: 0 | V122: 11.176 | W122: 10.93 | X122: 0 | Y122: 2.2106 | Z122: 2.021990228e-06 | AA122: 2.2106 | AC122: =L122-INDEX($C122:$L122,1,aux!$BA$1) -> 0 | AD122: 0 | AE122: =+IF(INDEX($C122:$L122,1,aux!$BA$1)>0,(L122/INDEX($C122:$L122,1,aux!$BA$1))^(1/($L$3-INDEX($C$3:$L$3,1,aux!$BA$1)))-1,"n.d.") -> n.d. | AF122: =IF(INDEX($C122:$L122,1,aux!$BA$1)>0,(L122-INDEX($C122:$L122,1,aux!$BA$1))/INDEX($C122:$L122,1,aux!$BA$1),"n.d.") -> n.d. | AH122: =X122-INDEX($O122:$X122,1,aux!$BA$1) -> 0 | AI122: 0 | AJ122: =+IF(INDEX($O122:$X122,1,aux!$BA$1)>0,(X122/INDEX($O122:$X122,1,aux!$BA$1))^(1/($X$3-INDEX($O$3:$X$3,1,aux!$BA$1)))-1,"n.d.") -> n.d. | AK122: =IF(INDEX($O122:$X122,1,aux!$BA$1)>0,(X122-INDEX($O122:$X122,1,aux!$BA$1))/INDEX($O122:$X122,1,aux!$BA$1),"n.d.") -> n.d. | CC122: =+IF(ISNA(MATCH('5.1'!A122,AUX_2d_pais!$G$2:$G$40000,0)),0,1) -> 1
A123: 0732 | B123: Japão | C123: 89.273 | D123: 91.274 | E123: 112.806 | F123: 133.178 | G123: 196.932 | H123: 213.728 | I123: 293.957 | J123: 335.609 | K123: 360.259 | L123: 324.778 | M123: 215.1794 | N123: 0.0004890257392 | O123: 5010.406 | P123: 6056.808 | Q123: 5465.709 | R123: 5376.706 | S123: 5972.222 | T123: 6312.022 | U123: 6247.395 | V123: 7016.125 | W123: 7162.229 | X123: 6122.348 | Y123: 6074.197 | Z123: 0.005555942719 | AA123: 5859.0176 | AC123: =L123-INDEX($C123:$L123,1,aux!$BA$1) -> 235.505 | AD123: 0.00327735653 | AE123: =+IF(INDEX($C123:$L123,1,aux!$BA$1)>0,(L123/INDEX($C123:$L123,1,aux!$BA$1))^(1/($L$3-INDEX($C$3:$L$3,1,aux!$BA$1)))-1,"n.d.") -> 0.1542994722 | AF123: =IF(INDEX($C123:$L123,1,aux!$BA$1)>0,(L123-INDEX($C123:$L123,1,aux!$BA$1))/INDEX($C123:$L123,1,aux!$BA$1),"n.d.") -> 2.638031656 | AH123: =X123-INDEX($O123:$X123,1,aux!$BA$1) -> 1111.942 | AI123: 0.008177480468 | AJ123: =+IF(INDEX($O123:$X123,1,aux!$BA$1)>0,(X123/INDEX($O123:$X123,1,aux!$BA$1))^(1/($X$3-INDEX($O$3:$X$3,1,aux!$BA$1)))-1,"n.d.") -> 0.02251968365 | AK123: =IF(INDEX($O123:$X123,1,aux!$BA$1)>0,(X123-INDEX($O123:$X123,1,aux!$BA$1))/INDEX($O123:$X123,1,aux!$BA$1),"n.d.") -> 0.2219265265 | CC123: =+IF(ISNA(MATCH('5.1'!A123,AUX_2d_pais!$G$2:$G$40000,0)),0,1) -> 1
A124: 0338 | B124: Jibuti | C124: 0 | D124: 0 | E124: 0 | F124: 0 | G124: 0 | H124: 0 | I124: 0 | J124: 0 | K124: 0 | L124: 0 | M124: 0 | N124: 0 | O124: 0 | P124: 0 | Q124: 0 | R124: 0 | S124: 0 | T124: 0 | U124: 9.624 | V124: 8.222 | W124: 0 | X124: 0 | Y124: 1.7846 | Z124: 1.632336814e-06 | AA124: 1.7846 | AC124: =L124-INDEX($C124:$L124,1,aux!$BA$1) -> 0 | AD124: 0 | AE124: =+IF(INDEX($C124:$L124,1,aux!$BA$1)>0,(L124/INDEX($C124:$L124,1,aux!$BA$1))^(1/($L$3-INDEX($C$3:$L$3,1,aux!$BA$1)))-1,"n.d.") -> n.d. | AF124: =IF(INDEX($C124:$L124,1,aux!$BA$1)>0,(L124-INDEX($C124:$L124,1,aux!$BA$1))/INDEX($C124:$L124,1,aux!$BA$1),"n.d.") -> n.d. | AH124: =X124-INDEX($O124:$X124,1,aux!$BA$1) -> 0 | AI124: 0 | AJ124: =+IF(INDEX($O124:$X124,1,aux!$BA$1)>0,(X124/INDEX($O124:$X124,1,aux!$BA$1))^(1/($X$3-INDEX($O$3:$X$3,1,aux!$BA$1)))-1,"n.d.") -> n.d. | AK124: =IF(INDEX($O124:$X124,1,aux!$BA$1)>0,(X124-INDEX($O124:$X124,1,aux!$BA$1))/INDEX($O124:$X124,1,aux!$BA$1),"n.d.") -> n.d. | BO124: 17.846 | CC124: =+IF(ISNA(MATCH('5.1'!A124,AUX_2d_pais!$G$2:$G$40000,0)),0,1) -> 1
A125: 0628 | B125: Jordânia | C125: 0 | D125: 0 | E125: 0 | F125: 0 | G125: 0 | H125: 0.193 | I125: 0 | J125: 0 | K125: 0.232 | L125: 0 | M125: 0.0425 | N125: 9.658728446e-08 | O125: 42.515 | P125: 37.288 | Q125: 59.723 | R125: 20.56 | S125: 31.534 | T125: 18.07 | U125: 241.867 | V125: 120.293 | W125: 102.209 | X125: 48.446 | Y125: 72.2505 | Z125: 6.608604222e-05 | AA125: 72.208 | AC125: =L125-INDEX($C125:$L125,1,aux!$BA$1) -> 0 | AD125: 0 | AE125: =+IF(INDEX($C125:$L125,1,aux!$BA$1)>0,(L125/INDEX($C125:$L125,1,aux!$BA$1))^(1/($L$3-INDEX($C$3:$L$3,1,aux!$BA$1)))-1,"n.d.") -> n.d. | AF125: =IF(INDEX($C125:$L125,1,aux!$BA$1)>0,(L125-INDEX($C125:$L125,1,aux!$BA$1))/INDEX($C125:$L125,1,aux!$BA$1),"n.d.") -> n.d. | AH125: =X125-INDEX($O125:$X125,1,aux!$BA$1) -> 5.931 | AI125: 4.361795548e-05 | AJ125: =+IF(INDEX($O125:$X125,1,aux!$BA$1)>0,(X125/INDEX($O125:$X125,1,aux!$BA$1))^(1/($X$3-INDEX($O$3:$X$3,1,aux!$BA$1)))-1,"n.d.") -> 0.01461609906 | AK125: =IF(INDEX($O125:$X125,1,aux!$BA$1)>0,(X125-INDEX($O125:$X125,1,aux!$BA$1))/INDEX($O125:$X125,1,aux!$BA$1),"n.d.") -> 0.1395037046 | CC125: =+IF(ISNA(MATCH('5.1'!A125,AUX_2d_pais!$G$2:$G$40000,0)),0,1) -> 1
A126: 0812 | B126: Kiribati | C126: 0 | D126: 0 | E126: 0 | F126: 0 | G126: 0 | H126: 0 | I126: 0 | J126: 0 | K126: 0 | L126: 0 | M126: 0 | N126: 0 | O126: 0 | P126: 0 | Q126: 0 | R126: 0 | S126: 0 | T126: 0 | U126: 0 | V126: 0 | W126: 0 | X126: 0 | Y126: 0 | Z126: 0 | AA126: 0 | AC126: =L126-INDEX($C126:$L126,1,aux!$BA$1) -> 0 | AD126: 0 | AE126: =+IF(INDEX($C126:$L126,1,aux!$BA$1)>0,(L126/INDEX($C126:$L126,1,aux!$BA$1))^(1/($L$3-INDEX($C$3:$L$3,1,aux!$BA$1)))-1,"n.d.") -> n.d. | AF126: =IF(INDEX($C126:$L126,1,aux!$BA$1)>0,(L126-INDEX($C126:$L126,1,aux!$BA$1))/INDEX($C126:$L126,1,aux!$BA$1),"n.d.") -> n.d. | AH126: =X126-INDEX($O126:$X126,1,aux!$BA$1) -> 0 | AI126: 0 | AJ126: =+IF(INDEX($O126:$X126,1,aux!$BA$1)>0,(X126/INDEX($O126:$X126,1,aux!$BA$1))^(1/($X$3-INDEX($O$3:$X$3,1,aux!$BA$1)))-1,"n.d.") -> n.d. | AK126: =IF(INDEX($O126:$X126,1,aux!$BA$1)>0,(X126-INDEX($O126:$X126,1,aux!$BA$1))/INDEX($O126:$X126,1,aux!$BA$1),"n.d.") -> n.d. | BO126: 0 | CC126: =+IF(ISNA(MATCH('5.1'!A126,AUX_2d_pais!$G$2:$G$40000,0)),0,1) -> 0
A127: 0095 | B127: Kosovo | C127: 0 | D127: 0 | E127: 0 | F127: 0 | G127: 0 | H127: 0 | I127: 0 | J127: 0 | K127: 0 | L127: 0 | M127: 0 | N127: 0 | O127: 0 | P127: 0 | Q127: 23.233 | R127: 0.002 | S127: 14.169 | T127: 33.868 | U127: 1.987 | V127: 0 | W127: 0.006 | X127: 0 | Y127: 7.3265 | Z127: 6.701398445e-06 | AA127: 7.3265 | AC127: =L127-INDEX($C127:$L127,1,aux!$BA$1) -> 0 | AD127: 0 | AE127: =+IF(INDEX($C127:$L127,1,aux!$BA$1)>0,(L127/INDEX($C127:$L127,1,aux!$BA$1))^(1/($L$3-INDEX($C$3:$L$3,1,aux!$BA$1)))-1,"n.d.") -> n.d. | AF127: =IF(INDEX($C127:$L127,1,aux!$BA$1)>0,(L127-INDEX($C127:$L127,1,aux!$BA$1))/INDEX($C127:$L127,1,aux!$BA$1),"n.d.") -> n.d. | AH127: =X127-INDEX($O127:$X127,1,aux!$BA$1) -> 0 | AI127: 0 | AJ127: =+IF(INDEX($O127:$X127,1,aux!$BA$1)>0,(X127/INDEX($O127:$X127,1,aux!$BA$1))^(1/($X$3-INDEX($O$3:$X$3,1,aux!$BA$1)))-1,"n.d.") -> n.d. | AK127: =IF(INDEX($O127:$X127,1,aux!$BA$1)>0,(X127-INDEX($O127:$X127,1,aux!$BA$1))/INDEX($O127:$X127,1,aux!$BA$1),"n.d.") -> n.d. | BO127: 73.265 | CC127: =+IF(ISNA(MATCH('5.1'!A127,AUX_2d_pais!$G$2:$G$40000,0)),0,1) -> 1
A128: 0636 | B128: Kuwait | C128: 0 | D128: 0 | E128: 0 | F128: 0 | G128: 0 | H128: 0 | I128: 0 | J128: 0 | K128: 0 | L128: 0 | M128: 0 | N128: 0 | O128: 0 | P128: 0.593 | Q128: 56.555 | R128: 137.423 | S128: 54.702 | T128: 113.976 | U128: 146.574 | V128: 386.558 | W128: 578.876 | X128: 9.552 | Y128: 148.4809 | Z128: 0.0001358124169 | AA128: 148.4809 | AC128: =L128-INDEX($C128:$L128,1,aux!$BA$1) -> 0 | AD128: 0 | AE128: =+IF(INDEX($C128:$L128,1,aux!$BA$1)>0,(L128/INDEX($C128:$L128,1,aux!$BA$1))^(1/($L$3-INDEX($C$3:$L$3,1,aux!$BA$1)))-1,"n.d.") -> n.d. | AF128: =IF(INDEX($C128:$L128,1,aux!$BA$1)>0,(L128-INDEX($C128:$L128,1,aux!$BA$1))/INDEX($C128:$L128,1,aux!$BA$1),"n.d.") -> n.d. | AH128: =X128-INDEX($O128:$X128,1,aux!$BA$1) -> 9.552 | AI128: 7.024763291e-05 | AJ128: =+IF(INDEX($O128:$X128,1,aux!$BA$1)>0,(X128/INDEX($O128:$X128,1,aux!$BA$1))^(1/($X$3-INDEX($O$3:$X$3,1,aux!$BA$1)))-1,"n.d.") -> n.d. | AK128: =IF(INDEX($O128:$X128,1,aux!$BA$1)>0,(X128-INDEX($O128:$X128,1,aux!$BA$1))/INDEX($O128:$X128,1,aux!$BA$1),"n.d.") -> n.d. | CC128: =+IF(ISNA(MATCH('5.1'!A128,AUX_2d_pais!$G$2:$G$40000,0)),0,1) -> 1
A129: 0684 | B129: Laos, República Democrática Popular do | C129: 0 | D129: 0 | E129: 0 | F129: 0 | G129: 0 | H129: 0 | I129: 0 | J129: 0 | K129: 0 | L129: 0 | M129: 0 | N129: 0 | O129: 0 | P129: 0.637 | Q129: 0 | R129: 0 | S129: 0 | T129: 0 | U129: 0.475 | V129: 25.56 | W129: 29.183 | X129: 0 | Y129: 5.5855 | Z129: 5.108941652e-06 | AA129: 5.5855 | AC129: =L129-INDEX($C129:$L129,1,aux!$BA$1) -> 0 | AD129: 0 | AE129: =+IF(INDEX($C129:$L129,1,aux!$BA$1)>0,(L129/INDEX($C129:$L129,1,aux!$BA$1))^(1/($L$3-INDEX($C$3:$L$3,1,aux!$BA$1)))-1,"n.d.") -> n.d. | AF129: =IF(INDEX($C129:$L129,1,aux!$BA$1)>0,(L129-INDEX($C129:$L129,1,aux!$BA$1))/INDEX($C129:$L129,1,aux!$BA$1),"n.d.") -> n.d. | AH129: =X129-INDEX($O129:$X129,1,aux!$BA$1) -> 0 | AI129: 0 | AJ129: =+IF(INDEX($O129:$X129,1,aux!$BA$1)>0,(X129/INDEX($O129:$X129,1,aux!$BA$1))^(1/($X$3-INDEX($O$3:$X$3,1,aux!$BA$1)))-1,"n.d.") -> n.d. | AK129: =IF(INDEX($O129:$X129,1,aux!$BA$1)>0,(X129-INDEX($O129:$X129,1,aux!$BA$1))/INDEX($O129:$X129,1,aux!$BA$1),"n.d.") -> n.d. | BO129: 55.855 | CC129: =+IF(ISNA(MATCH('5.1'!A129,AUX_2d_pais!$G$2:$G$40000,0)),0,1) -> 1
A130: 0395 | B130: Lesoto | C130: 0 | D130: 0 | E130: 0 | F130: 0 | G130: 0 | H130: 0 | I130: 0 | J130: 0 | K130: 0 | L130: 0 | M130: 0 | N130: 0 | O130: 0 | P130: 0 | Q130: 0 | R130: 0 | S130: 0 | T130: 0 | U130: 0 | V130: 0 | W130: 0 | X130: 0 | Y130: 0 | Z130: 0 | AA130: 0 | AC130: =L130-INDEX($C130:$L130,1,aux!$BA$1) -> 0 | AD130: 0 | AE130: =+IF(INDEX($C130:$L130,1,aux!$BA$1)>0,(L130/INDEX($C130:$L130,1,aux!$BA$1))^(1/($L$3-INDEX($C$3:$L$3,1,aux!$BA$1)))-1,"n.d.") -> n.d. | AF130: =IF(INDEX($C130:$L130,1,aux!$BA$1)>0,(L130-INDEX($C130:$L130,1,aux!$BA$1))/INDEX($C130:$L130,1,aux!$BA$1),"n.d.") -> n.d. | AH130: =X130-INDEX($O130:$X130,1,aux!$BA$1) -> 0 | AI130: 0 | AJ130: =+IF(INDEX($O130:$X130,1,aux!$BA$1)>0,(X130/INDEX($O130:$X130,1,aux!$BA$1))^(1/($X$3-INDEX($O$3:$X$3,1,aux!$BA$1)))-1,"n.d.") -> n.d. | AK130: =IF(INDEX($O130:$X130,1,aux!$BA$1)>0,(X130-INDEX($O130:$X130,1,aux!$BA$1))/INDEX($O130:$X130,1,aux!$BA$1),"n.d.") -> n.d. | BO130: 0 | CC130: =+IF(ISNA(MATCH('5.1'!A130,AUX_2d_pais!$G$2:$G$40000,0)),0,1) -> 0
A131: 0054 | B131: Letónia | C131: 363.622 | D131: 62.125 | E131: 75.475 | F131: 37.256 | G131: 53.09 | H131: 100.81 | I131: 41.685 | J131: 107.376 | K131: 51.147 | L131: 54.197 | M131: 94.6783 | N131: 0.0002151698799 | O131: 525.441 | P131: 697.584 | Q131: 766.565 | R131: 1425.122 | S131: 1236.683 | T131: 1486.367 | U131: 1779.607 | V131: 1825.567 | W131: 3216.635 | X131: 2921.87 | Y131: 1588.1441 | Z131: 0.001452642654 | AA131: 1493.4658 | AC131: =L131-INDEX($C131:$L131,1,aux!$BA$1) -> -309.425 | AD131: -0.004306048892 | AE131: =+IF(INDEX($C131:$L131,1,aux!$BA$1)>0,(L131/INDEX($C131:$L131,1,aux!$BA$1))^(1/($L$3-INDEX($C$3:$L$3,1,aux!$BA$1)))-1,"n.d.") -> -0.1906297576 | AF131: =IF(INDEX($C131:$L131,1,aux!$BA$1)>0,(L131-INDEX($C131:$L131,1,aux!$BA$1))/INDEX($C131:$L131,1,aux!$BA$1),"n.d.") -> -0.8509523626 | AH131: =X131-INDEX($O131:$X131,1,aux!$BA$1) -> 2396.429 | AI131: 0.01762389706 | AJ131: =+IF(INDEX($O131:$X131,1,aux!$BA$1)>0,(X131/INDEX($O131:$X131,1,aux!$BA$1))^(1/($X$3-INDEX($O$3:$X$3,1,aux!$BA$1)))-1,"n.d.") -> 0.2100212363 | AK131: =IF(INDEX($O131:$X131,1,aux!$BA$1)>0,(X131-INDEX($O131:$X131,1,aux!$BA$1))/INDEX($O131:$X131,1,aux!$BA$1),"n.d.") -> 4.560795598 | CC131: =+IF(ISNA(MATCH('5.1'!A131,AUX_2d_pais!$G$2:$G$40000,0)),0,1) -> 1
A132: 0604 | B132: Líbano | C132: 0 | D132: 1.463 | E132: 0 | F132: 0.884 | G132: 0.519 | H132: 0 | I132: 0.363 | J132: 0 | K132: 0 | L132: 0 | M132: 0.3229 | N132: 7.338360977e-07 | O132: 27.409 | P132: 227.76 | Q132: 14.474 | R132: 72.558 | S132: 109.79 | T132: 77.867 | U132: 183.999 | V132: 78.728 | W132: 70.877 | X132: 7.65 | Y132: 87.1112 | Z132: 7.967881802e-05 | AA132: 86.7883 | AC132: =L132-INDEX($C132:$L132,1,aux!$BA$1) -> 0 | AD132: 0 | AE132: =+IF(INDEX($C132:$L132,1,aux!$BA$1)>0,(L132/INDEX($C132:$L132,1,aux!$BA$1))^(1/($L$3-INDEX($C$3:$L$3,1,aux!$BA$1)))-1,"n.d.") -> n.d. | AF132: =IF(INDEX($C132:$L132,1,aux!$BA$1)>0,(L132-INDEX($C132:$L132,1,aux!$BA$1))/INDEX($C132:$L132,1,aux!$BA$1),"n.d.") -> n.d. | AH132: =X132-INDEX($O132:$X132,1,aux!$BA$1) -> -19.759 | AI132: -0.0001453122884 | AJ132: =+IF(INDEX($O132:$X132,1,aux!$BA$1)>0,(X132/INDEX($O132:$X132,1,aux!$BA$1))^(1/($X$3-INDEX($O$3:$X$3,1,aux!$BA$1)))-1,"n.d.") -> -0.1322019022 | AK132: =IF(INDEX($O132:$X132,1,aux!$BA$1)>0,(X132-INDEX($O132:$X132,1,aux!$BA$1))/INDEX($O132:$X132,1,aux!$BA$1),"n.d.") -> -0.7208945967 | CC132: =+IF(ISNA(MATCH('5.1'!A132,AUX_2d_pais!$G$2:$G$40000,0)),0,1) -> 1
A133: 0268 | B133: Libéria | C133: 0 | D133: 0 | E133: 0 | F133: 0 | G133: 0 | H133: 0 | I133: 0 | J133: 0 | K133: 0 | L133: 0 | M133: 0 | N133: 0 | O133: 0 | P133: 0 | Q133: 25.901 | R133: 0 | S133: 82.249 | T133: 0 | U133: 18.907 | V133: 0.906 | W133: 49.133 | X133: 0.012 | Y133: 17.7108 | Z133: 1.619970348e-05 | AA133: 17.7108 | AC133: =L133-INDEX($C133:$L133,1,aux!$BA$1) -> 0 | AD133: 0 | AE133: =+IF(INDEX($C133:$L133,1,aux!$BA$1)>0,(L133/INDEX($C133:$L133,1,aux!$BA$1))^(1/($L$3-INDEX($C$3:$L$3,1,aux!$BA$1)))-1,"n.d.") -> n.d. | AF133: =IF(INDEX($C133:$L133,1,aux!$BA$1)>0,(L133-INDEX($C133:$L133,1,aux!$BA$1))/INDEX($C133:$L133,1,aux!$BA$1),"n.d.") -> n.d. | AH133: =X133-INDEX($O133:$X133,1,aux!$BA$1) -> 0.012 | AI133: 8.825079511e-08 | AJ133: =+IF(INDEX($O133:$X133,1,aux!$BA$1)>0,(X133/INDEX($O133:$X133,1,aux!$BA$1))^(1/($X$3-INDEX($O$3:$X$3,1,aux!$BA$1)))-1,"n.d.") -> n.d. | AK133: =IF(INDEX($O133:$X133,1,aux!$BA$1)>0,(X133-INDEX($O133:$X133,1,aux!$BA$1))/INDEX($O133:$X133,1,aux!$BA$1),"n.d.") -> n.d. | CC133: =+IF(ISNA(MATCH('5.1'!A133,AUX_2d_pais!$G$2:$G$40000,0)),0,1) -> 1
A134: 0216 | B134: Líbia, Jamahira Árabe da | C134: 0 | D134: 0 | E134: 0 | F134: 0 | G134: 0 | H134: 0 | I134: 0 | J134: 0 | K134: 0 | L134: 0 | M134: 0 | N134: 0 | O134: 17.158 | P134: 431.589 | Q134: 334.729 | R134: 183.378 | S134: 121.046 | T134: 35.603 | U134: 28.632 | V134: 12.94 | W134: 98.582 | X134: 109.952 | Y134: 137.3609 | Z134: 0.0001256411822 | AA134: 137.3609 | AC134: =L134-INDEX($C134:$L134,1,aux!$BA$1) -> 0 | AD134: 0 | AE134: =+IF(INDEX($C134:$L134,1,aux!$BA$1)>0,(L134/INDEX($C134:$L134,1,aux!$BA$1))^(1/($L$3-INDEX($C$3:$L$3,1,aux!$BA$1)))-1,"n.d.") -> n.d. | AF134: =IF(INDEX($C134:$L134,1,aux!$BA$1)>0,(L134-INDEX($C134:$L134,1,aux!$BA$1))/INDEX($C134:$L134,1,aux!$BA$1),"n.d.") -> n.d. | AH134: =X134-INDEX($O134:$X134,1,aux!$BA$1) -> 92.794 | AI134: 0.0006824286901 | AJ134: =+IF(INDEX($O134:$X134,1,aux!$BA$1)>0,(X134/INDEX($O134:$X134,1,aux!$BA$1))^(1/($X$3-INDEX($O$3:$X$3,1,aux!$BA$1)))-1,"n.d.") -> 0.2292419859 | AK134: =IF(INDEX($O134:$X134,1,aux!$BA$1)>0,(X134-INDEX($O134:$X134,1,aux!$BA$1))/INDEX($O134:$X134,1,aux!$BA$1),"n.d.") -> 5.408206085 | CC134: =+IF(ISNA(MATCH('5.1'!A134,AUX_2d_pais!$G$2:$G$40000,0)),0,1) -> 1
A135: 0037 | B135: Liechtenstein | C135: 0 | D135: 0 | E135: 0 | F135: 0 | G135: 0 | H135: 0 | I135: 2.989 | J135: 0 | K135: 0 | L135: 0 | M135: 0.2989 | N135: 6.7929269e-07 | O135: 51.639 | P135: 47.941 | Q135: 60.085 | R135: 89.352 | S135: 87.858 | T135: 75.934 | U135: 78.625 | V135: 78.359 | W135: 138.648 | X135: 52.427 | Y135: 76.0868 | Z135: 6.959502671e-05 | AA135: 75.7879 | AC135: =L135-INDEX($C135:$L135,1,aux!$BA$1) -> 0 | AD135: 0 | AE135: =+IF(INDEX($C135:$L135,1,aux!$BA$1)>0,(L135/INDEX($C135:$L135,1,aux!$BA$1))^(1/($L$3-INDEX($C$3:$L$3,1,aux!$BA$1)))-1,"n.d.") -> n.d. | AF135: =IF(INDEX($C135:$L135,1,aux!$BA$1)>0,(L135-INDEX($C135:$L135,1,aux!$BA$1))/INDEX($C135:$L135,1,aux!$BA$1),"n.d.") -> n.d. | AH135: =X135-INDEX($O135:$X135,1,aux!$BA$1) -> 0.788 | AI135: 5.795135546e-06 | AJ135: =+IF(INDEX($O135:$X135,1,aux!$BA$1)>0,(X135/INDEX($O135:$X135,1,aux!$BA$1))^(1/($X$3-INDEX($O$3:$X$3,1,aux!$BA$1)))-1,"n.d.") -> 0.001684141558 | AK135: =IF(INDEX($O135:$X135,1,aux!$BA$1)>0,(X135-INDEX($O135:$X135,1,aux!$BA$1))/INDEX($O135:$X135,1,aux!$BA$1),"n.d.") -> 0.01525978427 | CC135: =+IF(ISNA(MATCH('5.1'!A135,AUX_2d_pais!$G$2:$G$40000,0)),0,1) -> 1
A136: 0055 | B136: Lituânia | C136: 0 | D136: 0.553 | E136: 16.569 | F136: 0 | G136: 71.968 | H136: 48.881 | I136: 0.756 | J136: 0 | K136: 59.145 | L136: 181.764 | M136: 37.9636 | N136: 8.627767134e-05 | O136: 151.307 | P136: 274.268 | Q136: 813.047 | R136: 515.038 | S136: 510.092 | T136: 393.108 | U136: 903.063 | V136: 1300.013 | W136: 1496.992 | X136: 2109.627 | Y136: 846.6555 | Z136: 0.0007744183241 | AA136: 808.6919 | AC136: =L136-INDEX($C136:$L136,1,aux!$BA$1) -> 181.764 | AD136: 0.00252948104 | AE136: =+IF(INDEX($C136:$L136,1,aux!$BA$1)>0,(L136/INDEX($C136:$L136,1,aux!$BA$1))^(1/($L$3-INDEX($C$3:$L$3,1,aux!$BA$1)))-1,"n.d.") -> n.d. | AF136: =IF(INDEX($C136:$L136,1,aux!$BA$1)>0,(L136-INDEX($C136:$L136,1,aux!$BA$1))/INDEX($C136:$L136,1,aux!$BA$1),"n.d.") -> n.d. | AH136: =X136-INDEX($O136:$X136,1,aux!$BA$1) -> 1958.32 | AI136: 0.01440194142 | AJ136: =+IF(INDEX($O136:$X136,1,aux!$BA$1)>0,(X136/INDEX($O136:$X136,1,aux!$BA$1))^(1/($X$3-INDEX($O$3:$X$3,1,aux!$BA$1)))-1,"n.d.") -> 0.3401383283 | AK136: =IF(INDEX($O136:$X136,1,aux!$BA$1)>0,(X136-INDEX($O136:$X136,1,aux!$BA$1))/INDEX($O136:$X136,1,aux!$BA$1),"n.d.") -> 12.94269267 | CC136: =+IF(ISNA(MATCH('5.1'!A136,AUX_2d_pais!$G$2:$G$40000,0)),0,1) -> 1
A137: 0018 | B137: Luxemburgo | C137: 84.453 | D137: 89.88 | E137: 89.231 | F137: 32.977 | G137: 25.13 | H137: 3.003 | I137: 37.64 | J137: 57.106 | K137: 882.212 | L137: 1151.063 | M137: 245.2695 | N137: 0.0005574097639 | O137: 13896.277 | P137: 14073.387 | Q137: 14850.814 | R137: 15765.41 | S137: 15701.313 | T137: 14413.867 | U137: 16498.48 | V137: 17468.585 | W137: 17384.959 | X137: 18755.805 | Y137: 15880.8897 | Z137: 0.01452592227 | AA137: 15635.6202 | AC137: =L137-INDEX($C137:$L137,1,aux!$BA$1) -> 1066.61 | AD137: 0.01484325704 | AE137: =+IF(INDEX($C137:$L137,1,aux!$BA$1)>0,(L137/INDEX($C137:$L137,1,aux!$BA$1))^(1/($L$3-INDEX($C$3:$L$3,1,aux!$BA$1)))-1,"n.d.") -> 0.3367610389 | AF137: =IF(INDEX($C137:$L137,1,aux!$BA$1)>0,(L137-INDEX($C137:$L137,1,aux!$BA$1))/INDEX($C137:$L137,1,aux!$BA$1),"n.d.") -> 12.62962831 | AH137: =X137-INDEX($O137:$X137,1,aux!$BA$1) -> 4859.528 | AI137: 0.03573810082 | AJ137: =+IF(INDEX($O137:$X137,1,aux!$BA$1)>0,(X137/INDEX($O137:$X137,1,aux!$BA$1))^(1/($X$3-INDEX($O$3:$X$3,1,aux!$BA$1)))-1,"n.d.") -> 0.03388159737 | AK137: =IF(INDEX($O137:$X137,1,aux!$BA$1)>0,(X137-INDEX($O137:$X137,1,aux!$BA$1))/INDEX($O137:$X137,1,aux!$BA$1),"n.d.") -> 0.3496999952 | CC137: =+IF(ISNA(MATCH('5.1'!A137,AUX_2d_pais!$G$2:$G$40000,0)),0,1) -> 1
A138: 0743 | B138: Macau | C138: 0 | D138: 50.079 | E138: 0.295 | F138: 0 | G138: 76.678 | H138: 0 | I138: 0.22 | J138: 0.43 | K138: 9.302 | L138: 1.601 | M138: 13.8605 | N138: 3.149995426e-05 | O138: 6626.467 | P138: 7693.677 | Q138: 6107.207 | R138: 7281.95 | S138: 6798.051 | T138: 7515.611 | U138: 7406.291 | V138: 7041.619 | W138: 8331.543 | X138: 7189.225 | Y138: 7199.1641 | Z138: 0.006584926924 | AA138: 7185.3036 | AC138: =L138-INDEX($C138:$L138,1,aux!$BA$1) -> 1.601 | AD138: 2.227998473e-05 | AE138: =+IF(INDEX($C138:$L138,1,aux!$BA$1)>0,(L138/INDEX($C138:$L138,1,aux!$BA$1))^(1/($L$3-INDEX($C$3:$L$3,1,aux!$BA$1)))-1,"n.d.") -> n.d. | AF138: =IF(INDEX($C138:$L138,1,aux!$BA$1)>0,(L138-INDEX($C138:$L138,1,aux!$BA$1))/INDEX($C138:$L138,1,aux!$BA$1),"n.d.") -> n.d. | AH138: =X138-INDEX($O138:$X138,1,aux!$BA$1) -> 562.758 | AI138: 0.004138653413 | AJ138: =+IF(INDEX($O138:$X138,1,aux!$BA$1)>0,(X138/INDEX($O138:$X138,1,aux!$BA$1))^(1/($X$3-INDEX($O$3:$X$3,1,aux!$BA$1)))-1,"n.d.") -> 0.00909798131 | AK138: =IF(INDEX($O138:$X138,1,aux!$BA$1)>0,(X138-INDEX($O138:$X138,1,aux!$BA$1))/INDEX($O138:$X138,1,aux!$BA$1),"n.d.") -> 0.08492579832 | CC138: =+IF(ISNA(MATCH('5.1'!A138,AUX_2d_pais!$G$2:$G$40000,0)),0,1) -> 1
A139: 0096 | B139: Macedónia, Antiga República jugoslava da | C139: 0 | D139: 0 | E139: 0 | F139: 0 | G139: 0 | H139: 0 | I139: 0 | J139: 5.488 | K139: 11.496 | L139: 0 | M139: 1.6984 | N139: 3.859855151e-06 | O139: 0.146 | P139: 1.762 | Q139: 0 | R139: 0 | S139: 0.997 | T139: 0 | U139: 0 | V139: 0.008 | W139: 0 | X139: 0 | Y139: 0.2913 | Z139: 2.664461021e-07 | AA139: -1.4071 | AC139: =L139-INDEX($C139:$L139,1,aux!$BA$1) -> 0 | AD139: 0 | AE139: =+IF(INDEX($C139:$L139,1,aux!$BA$1)>0,(L139/INDEX($C139:$L139,1,aux!$BA$1))^(1/($L$3-INDEX($C$3:$L$3,1,aux!$BA$1)))-1,"n.d.") -> n.d. | AF139: =IF(INDEX($C139:$L139,1,aux!$BA$1)>0,(L139-INDEX($C139:$L139,1,aux!$BA$1))/INDEX($C139:$L139,1,aux!$BA$1),"n.d.") -> n.d. | AH139: =X139-INDEX($O139:$X139,1,aux!$BA$1) -> -0.146 | AI139: -1.073718007e-06 | AJ139: =+IF(INDEX($O139:$X139,1,aux!$BA$1)>0,(X139/INDEX($O139:$X139,1,aux!$BA$1))^(1/($X$3-INDEX($O$3:$X$3,1,aux!$BA$1)))-1,"n.d.") -> -1 | AK139: =IF(INDEX($O139:$X139,1,aux!$BA$1)>0,(X139-INDEX($O139:$X139,1,aux!$BA$1))/INDEX($O139:$X139,1,aux!$BA$1),"n.d.") -> -1 | CC139: =+IF(ISNA(MATCH('5.1'!A139,AUX_2d_pais!$G$2:$G$40000,0)),0,1) -> 1
A140: 0370 | B140: Madagáscar | C140: 0 | D140: 0 | E140: 0 | F140: 0 | G140: 0 | H140: 0 | I140: 0 | J140: 0 | K140: 0.158 | L140: 0 | M140: 0.0158 | N140: 3.59077434e-08 | O140: 15.856 | P140: 83.027 | Q140: 40.812 | R140: 20.77 | S140: 0 | T140: 0 | U140: 0 | V140: 0.003 | W140: 0 | X140: 0 | Y140: 16.0468 | Z140: 1.4677677e-05 | AA140: 16.031 | AC140: =L140-INDEX($C140:$L140,1,aux!$BA$1) -> 0 | AD140: 0 | AE140: =+IF(INDEX($C140:$L140,1,aux!$BA$1)>0,(L140/INDEX($C140:$L140,1,aux!$BA$1))^(1/($L$3-INDEX($C$3:$L$3,1,aux!$BA$1)))-1,"n.d.") -> n.d. | AF140: =IF(INDEX($C140:$L140,1,aux!$BA$1)>0,(L140-INDEX($C140:$L140,1,aux!$BA$1))/INDEX($C140:$L140,1,aux!$BA$1),"n.d.") -> n.d. | AH140: =X140-INDEX($O140:$X140,1,aux!$BA$1) -> -15.856 | AI140: -0.0001166087173 | AJ140: =+IF(INDEX($O140:$X140,1,aux!$BA$1)>0,(X140/INDEX($O140:$X140,1,aux!$BA$1))^(1/($X$3-INDEX($O$3:$X$3,1,aux!$BA$1)))-1,"n.d.") -> -1 | AK140: =IF(INDEX($O140:$X140,1,aux!$BA$1)>0,(X140-INDEX($O140:$X140,1,aux!$BA$1))/INDEX($O140:$X140,1,aux!$BA$1),"n.d.") -> -1 | CC140: =+IF(ISNA(MATCH('5.1'!A140,AUX_2d_pais!$G$2:$G$40000,0)),0,1) -> 1
A141: 0701 | B141: Malásia | C141: 0.281 | D141: 0 | E141: 0 | F141: 0.315 | G141: 0 | H141: 0 | I141: 0 | J141: 2240.634 | K141: 0.429 | L141: 3.715 | M141: 224.5374 | N141: 0.0005102931229 | O141: 84.097 | P141: 94.961 | Q141: 136.413 | R141: 163.957 | S141: 106.651 | T141: 153.409 | U141: 99.244 | V141: 128.506 | W141: 202.193 | X141: 200.533 | Y141: 136.9964 | Z141: 0.0001253077816 | AA141: -87.541 | AC141: =L141-INDEX($C141:$L141,1,aux!$BA$1) -> 3.434 | AD141: 4.778854939e-05 | AE141: =+IF(INDEX($C141:$L141,1,aux!$BA$1)>0,(L141/INDEX($C141:$L141,1,aux!$BA$1))^(1/($L$3-INDEX($C$3:$L$3,1,aux!$BA$1)))-1,"n.d.") -> 0.3322435028 | AF141: =IF(INDEX($C141:$L141,1,aux!$BA$1)>0,(L141-INDEX($C141:$L141,1,aux!$BA$1))/INDEX($C141:$L141,1,aux!$BA$1),"n.d.") -> 12.22064057 | AH141: =X141-INDEX($O141:$X141,1,aux!$BA$1) -> 116.436 | AI141: 0.000856297465 | AJ141: =+IF(INDEX($O141:$X141,1,aux!$BA$1)>0,(X141/INDEX($O141:$X141,1,aux!$BA$1))^(1/($X$3-INDEX($O$3:$X$3,1,aux!$BA$1)))-1,"n.d.") -> 0.1013717368 | AK141: =IF(INDEX($O141:$X141,1,aux!$BA$1)>0,(X141-INDEX($O141:$X141,1,aux!$BA$1))/INDEX($O141:$X141,1,aux!$BA$1),"n.d.") -> 1.384544038 | CC141: =+IF(ISNA(MATCH('5.1'!A141,AUX_2d_pais!$G$2:$G$40000,0)),0,1) -> 1
A142: 0386 | B142: Malavi | C142: 0 | D142: 0 | E142: 0 | F142: 0 | G142: 0 | H142: 0 | I142: 0.112 | J142: 0.064 | K142: 0 | L142: 0 | M142: 0.0176 | N142: 3.999849897e-08 | O142: 0 | P142: 0 | Q142: 1.338 | R142: 0.525 | S142: 7.55 | T142: 1.367 | U142: 6.094 | V142: 2.972 | W142: 3.505 | X142: 0 | Y142: 2.3351 | Z142: 2.13586781e-06 | AA142: 2.3175 | AC142: =L142-INDEX($C142:$L142,1,aux!$BA$1) -> 0 | AD142: 0 | AE142: =+IF(INDEX($C142:$L142,1,aux!$BA$1)>0,(L142/INDEX($C142:$L142,1,aux!$BA$1))^(1/($L$3-INDEX($C$3:$L$3,1,aux!$BA$1)))-1,"n.d.") -> n.d. | AF142: =IF(INDEX($C142:$L142,1,aux!$BA$1)>0,(L142-INDEX($C142:$L142,1,aux!$BA$1))/INDEX($C142:$L142,1,aux!$BA$1),"n.d.") -> n.d. | AH142: =X142-INDEX($O142:$X142,1,aux!$BA$1) -> 0 | AI142: 0 | AJ142: =+IF(INDEX($O142:$X142,1,aux!$BA$1)>0,(X142/INDEX($O142:$X142,1,aux!$BA$1))^(1/($X$3-INDEX($O$3:$X$3,1,aux!$BA$1)))-1,"n.d.") -> n.d. | AK142: =IF(INDEX($O142:$X142,1,aux!$BA$1)>0,(X142-INDEX($O142:$X142,1,aux!$BA$1))/INDEX($O142:$X142,1,aux!$BA$1),"n.d.") -> n.d. | CC142: =+IF(ISNA(MATCH('5.1'!A142,AUX_2d_pais!$G$2:$G$40000,0)),0,1) -> 1
A143: 0667 | B143: Maldivas | C143: 0 | D143: 0 | E143: 0 | F143: 0 | G143: 0 | H143: 0 | I143: 0 | J143: 0 | K143: 0 | L143: 0 | M143: 0 | N143: 0 | O143: 3.656 | P143: 17.429 | Q143: 7.756 | R143: 9.652 | S143: 13.335 | T143: 13.048 | U143: 17.477 | V143: 19.003 | W143: 25.012 | X143: 8.13 | Y143: 13.4498 | Z143: 1.230225467e-05 | AA143: 13.4498 | AC143: =L143-INDEX($C143:$L143,1,aux!$BA$1) -> 0 | AD143: 0 | AE143: =+IF(INDEX($C143:$L143,1,aux!$BA$1)>0,(L143/INDEX($C143:$L143,1,aux!$BA$1))^(1/($L$3-INDEX($C$3:$L$3,1,aux!$BA$1)))-1,"n.d.") -> n.d. | AF143: =IF(INDEX($C143:$L143,1,aux!$BA$1)>0,(L143-INDEX($C143:$L143,1,aux!$BA$1))/INDEX($C143:$L143,1,aux!$BA$1),"n.d.") -> n.d. | AH143: =X143-INDEX($O143:$X143,1,aux!$BA$1) -> 4.474 | AI143: 3.290283811e-05 | AJ143: =+IF(INDEX($O143:$X143,1,aux!$BA$1)>0,(X143/INDEX($O143:$X143,1,aux!$BA$1))^(1/($X$3-INDEX($O$3:$X$3,1,aux!$BA$1)))-1,"n.d.") -> 0.09286100198 | AK143: =IF(INDEX($O143:$X143,1,aux!$BA$1)>0,(X143-INDEX($O143:$X143,1,aux!$BA$1))/INDEX($O143:$X143,1,aux!$BA$1),"n.d.") -> 1.223741794 | CC143: =+IF(ISNA(MATCH('5.1'!A143,AUX_2d_pais!$G$2:$G$40000,0)),0,1) -> 1
A144: 0232 | B144: Mali | C144: 0 | D144: 0 | E144: 0 | F144: 0 | G144: 0 | H144: 0 | I144: 0.267 | J144: 0 | K144: 0 | L144: 0 | M144: 0.0267 | N144: 6.067954106e-08 | O144: 0.01 | P144: 104.904 | Q144: 334.769 | R144: 647.426 | S144: 147.684 | T144: 54.25 | U144: 74.739 | V144: 124.988 | W144: 534.829 | X144: 1521.497 | Y144: 354.5096 | Z144: 0.0003242626196 | AA144: 354.4829 | AC144: =L144-INDEX($C144:$L144,1,aux!$BA$1) -> 0 | AD144: 0 | AE144: =+IF(INDEX($C144:$L144,1,aux!$BA$1)>0,(L144/INDEX($C144:$L144,1,aux!$BA$1))^(1/($L$3-INDEX($C$3:$L$3,1,aux!$BA$1)))-1,"n.d.") -> n.d. | AF144: =IF(INDEX($C144:$L144,1,aux!$BA$1)>0,(L144-INDEX($C144:$L144,1,aux!$BA$1))/INDEX($C144:$L144,1,aux!$BA$1),"n.d.") -> n.d. | AH144: =X144-INDEX($O144:$X144,1,aux!$BA$1) -> 1521.487 | AI144: 0.01118936979 | AJ144: =+IF(INDEX($O144:$X144,1,aux!$BA$1)>0,(X144/INDEX($O144:$X144,1,aux!$BA$1))^(1/($X$3-INDEX($O$3:$X$3,1,aux!$BA$1)))-1,"n.d.") -> 2.765372098 | AK144: =IF(INDEX($O144:$X144,1,aux!$BA$1)>0,(X144-INDEX($O144:$X144,1,aux!$BA$1))/INDEX($O144:$X144,1,aux!$BA$1),"n.d.") -> 152148.7 | CC144: =+IF(ISNA(MATCH('5.1'!A144,AUX_2d_pais!$G$2:$G$40000,0)),0,1) -> 1
A145: 0046 | B145: Malta | C145: 905.171 | D145: 305.716 | E145: 442.745 | F145: 688.667 | G145: 667.82 | H145: 81.897 | I145: 5.396 | J145: 311.833 | K145: 662.774 | L145: 534.628 | M145: 460.6647 | N145: 0.001046925939 | O145: 463.368 | P145: 272.759 | Q145: 245.532 | R145: 250.07 | S145: 346.43 | T145: 904.391 | U145: 1454.807 | V145: 3155.648 | W145: 1743.961 | X145: 708.49 | Y145: 954.5456 | Z145: 0.0008731031734 | AA145: 493.8809 | AC145: =L145-INDEX($C145:$L145,1,aux!$BA$1) -> -370.543 | AD145: -0.005156584874 | AE145: =+IF(INDEX($C145:$L145,1,aux!$BA$1)>0,(L145/INDEX($C145:$L145,1,aux!$BA$1))^(1/($L$3-INDEX($C$3:$L$3,1,aux!$BA$1)))-1,"n.d.") -> -0.05682728223 | AF145: =IF(INDEX($C145:$L145,1,aux!$BA$1)>0,(L145-INDEX($C145:$L145,1,aux!$BA$1))/INDEX($C145:$L145,1,aux!$BA$1),"n.d.") -> -0.4093624299 | AH145: =X145-INDEX($O145:$X145,1,aux!$BA$1) -> 245.122 | AI145: 0.001802684283 | AJ145: =+IF(INDEX($O145:$X145,1,aux!$BA$1)>0,(X145/INDEX($O145:$X145,1,aux!$BA$1))^(1/($X$3-INDEX($O$3:$X$3,1,aux!$BA$1)))-1,"n.d.") -> 0.04831003456 | AK145: =IF(INDEX($O145:$X145,1,aux!$BA$1)>0,(X145-INDEX($O145:$X145,1,aux!$BA$1))/INDEX($O145:$X145,1,aux!$BA$1),"n.d.") -> 0.5290007079 | CC145: =+IF(ISNA(MATCH('5.1'!A145,AUX_2d_pais!$G$2:$G$40000,0)),0,1) -> 1
A146: 0820 | B146: Marianas do Norte, Ilhas | C146: 0 | D146: 0 | E146: 0 | F146: 0 | G146: 0 | H146: 0 | I146: 0 | J146: 0 | K146: 0 | L146: 0 | M146: 0 | N146: 0 | O146: 0 | P146: 0 | Q146: 0 | R146: 0 | S146: 0 | T146: 0 | U146: 3.953 | V146: 0 | W146: 14.622 | X146: 0 | Y146: 1.8575 | Z146: 1.69901694e-06 | AA146: 1.8575 | AC146: =L146-INDEX($C146:$L146,1,aux!$BA$1) -> 0 | AD146: 0 | AE146: =+IF(INDEX($C146:$L146,1,aux!$BA$1)>0,(L146/INDEX($C146:$L146,1,aux!$BA$1))^(1/($L$3-INDEX($C$3:$L$3,1,aux!$BA$1)))-1,"n.d.") -> n.d. | AF146: =IF(INDEX($C146:$L146,1,aux!$BA$1)>0,(L146-INDEX($C146:$L146,1,aux!$BA$1))/INDEX($C146:$L146,1,aux!$BA$1),"n.d.") -> n.d. | AH146: =X146-INDEX($O146:$X146,1,aux!$BA$1) -> 0 | AI146: 0 | AJ146: =+IF(INDEX($O146:$X146,1,aux!$BA$1)>0,(X146/INDEX($O146:$X146,1,aux!$BA$1))^(1/($X$3-INDEX($O$3:$X$3,1,aux!$BA$1)))-1,"n.d.") -> n.d. | AK146: =IF(INDEX($O146:$X146,1,aux!$BA$1)>0,(X146-INDEX($O146:$X146,1,aux!$BA$1))/INDEX($O146:$X146,1,aux!$BA$1),"n.d.") -> n.d. | BO146: =SUM(C146:L146,O146:X146) -> 18.575 | CC146: =+IF(ISNA(MATCH('5.1'!A146,AUX_2d_pais!$G$2:$G$40000,0)),0,1) -> 1
A147: 0204 | B147: Marrocos | C147: 0 | D147: 0 | E147: 19.321 | F147: 0 | G147: 0.434 | H147: 0 | I147: 0 | J147: 0 | K147: 0.002 | L147: 0 | M147: 1.9757 | N147: 4.490058774e-06 | O147: 246.427 | P147: 234.899 | Q147: 302.488 | R147: 265.397 | S147: 414.865 | T147: 505.114 | U147: 485.117 | V147: 668.471 | W147: 613.127 | X147: 1019.665 | Y147: 475.557 | Z147: 0.0004349821798 | AA147: 473.5813 | AC147: =L147-INDEX($C147:$L147,1,aux!$BA$1) -> 0 | AD147: 0 | AE147: =+IF(INDEX($C147:$L147,1,aux!$BA$1)>0,(L147/INDEX($C147:$L147,1,aux!$BA$1))^(1/($L$3-INDEX($C$3:$L$3,1,aux!$BA$1)))-1,"n.d.") -> n.d. | AF147: =IF(INDEX($C147:$L147,1,aux!$BA$1)>0,(L147-INDEX($C147:$L147,1,aux!$BA$1))/INDEX($C147:$L147,1,aux!$BA$1),"n.d.") -> n.d. | AH147: =X147-INDEX($O147:$X147,1,aux!$BA$1) -> 773.238 | AI147: 0.005686572359 | AJ147: =+IF(INDEX($O147:$X147,1,aux!$BA$1)>0,(X147/INDEX($O147:$X147,1,aux!$BA$1))^(1/($X$3-INDEX($O$3:$X$3,1,aux!$BA$1)))-1,"n.d.") -> 0.1709272514 | AK147: =IF(INDEX($O147:$X147,1,aux!$BA$1)>0,(X147-INDEX($O147:$X147,1,aux!$BA$1))/INDEX($O147:$X147,1,aux!$BA$1),"n.d.") -> 3.1377974 | CC147: =+IF(ISNA(MATCH('5.1'!A147,AUX_2d_pais!$G$2:$G$40000,0)),0,1) -> 1
A148: 0824 | B148: Marshall, Ilhas | C148: 0 | D148: 0 | E148: 0 | F148: 0 | G148: 0 | H148: 0 | I148: 0 | J148: 0 | K148: 0 | L148: 0 | M148: 0 | N148: 0 | O148: 0 | P148: 0 | Q148: 0 | R148: 0 | S148: 0 | T148: 0 | U148: 0 | V148: 0 | W148: 0 | X148: 0 | Y148: 0 | Z148: 0 | AA148: 0 | AC148: =L148-INDEX($C148:$L148,1,aux!$BA$1) -> 0 | AD148: 0 | AE148: =+IF(INDEX($C148:$L148,1,aux!$BA$1)>0,(L148/INDEX($C148:$L148,1,aux!$BA$1))^(1/($L$3-INDEX($C$3:$L$3,1,aux!$BA$1)))-1,"n.d.") -> n.d. | AF148: =IF(INDEX($C148:$L148,1,aux!$BA$1)>0,(L148-INDEX($C148:$L148,1,aux!$BA$1))/INDEX($C148:$L148,1,aux!$BA$1),"n.d.") -> n.d. | AH148: =X148-INDEX($O148:$X148,1,aux!$BA$1) -> 0 | AI148: 0 | AJ148: =+IF(INDEX($O148:$X148,1,aux!$BA$1)>0,(X148/INDEX($O148:$X148,1,aux!$BA$1))^(1/($X$3-INDEX($O$3:$X$3,1,aux!$BA$1)))-1,"n.d.") -> n.d. | AK148: =IF(INDEX($O148:$X148,1,aux!$BA$1)>0,(X148-INDEX($O148:$X148,1,aux!$BA$1))/INDEX($O148:$X148,1,aux!$BA$1),"n.d.") -> n.d. | CC148: =+IF(ISNA(MATCH('5.1'!A148,AUX_2d_pais!$G$2:$G$40000,0)),0,1) -> 0
A149: 0462 | B149: Martinica | C149: 0 | D149: 0 | E149: 0 | F149: 0 | G149: 0 | H149: 0 | I149: 0 | J149: 0 | K149: 0 | L149: 0 | M149: 0 | N149: 0 | O149: 0 | P149: 0 | Q149: 0 | R149: 0 | S149: 0 | T149: 0 | U149: 0 | V149: 0 | W149: 0 | X149: 0 | Y149: 0 | Z149: 0 | AA149: 0 | AC149: =L149-INDEX($C149:$L149,1,aux!$BA$1) -> 0 | AD149: 0 | AE149: =+IF(INDEX($C149:$L149,1,aux!$BA$1)>0,(L149/INDEX($C149:$L149,1,aux!$BA$1))^(1/($L$3-INDEX($C$3:$L$3,1,aux!$BA$1)))-1,"n.d.") -> n.d. | AF149: =IF(INDEX($C149:$L149,1,aux!$BA$1)>0,(L149-INDEX($C149:$L149,1,aux!$BA$1))/INDEX($C149:$L149,1,aux!$BA$1),"n.d.") -> n.d. | AH149: =X149-INDEX($O149:$X149,1,aux!$BA$1) -> 0 | AI149: 0 | AJ149: =+IF(INDEX($O149:$X149,1,aux!$BA$1)>0,(X149/INDEX($O149:$X149,1,aux!$BA$1))^(1/($X$3-INDEX($O$3:$X$3,1,aux!$BA$1)))-1,"n.d.") -> n.d. | AK149: =IF(INDEX($O149:$X149,1,aux!$BA$1)>0,(X149-INDEX($O149:$X149,1,aux!$BA$1))/INDEX($O149:$X149,1,aux!$BA$1),"n.d.") -> n.d. | BO149: 0 | CC149: =+IF(ISNA(MATCH('5.1'!A149,AUX_2d_pais!$G$2:$G$40000,0)),0,1) -> 0
A150: 0373 | B150: Maurícias | C150: 0 | D150: 0 | E150: 0 | F150: 32.512 | G150: 0 | H150: 0 | I150: 0 | J150: 0 | K150: 0 | L150: 0 | M150: 3.2512 | N150: 7.388813629e-06 | O150: 54.855 | P150: 48.173 | Q150: 35.669 | R150: 49.737 | S150: 87.799 | T150: 118.728 | U150: 53.899 | V150: 83.441 | W150: 58.896 | X150: 36.165 | Y150: 62.7362 | Z150: 5.738350824e-05 | AA150: 59.485 | AC150: =L150-INDEX($C150:$L150,1,aux!$BA$1) -> 0 | AD150: 0 | AE150: =+IF(INDEX($C150:$L150,1,aux!$BA$1)>0,(L150/INDEX($C150:$L150,1,aux!$BA$1))^(1/($L$3-INDEX($C$3:$L$3,1,aux!$BA$1)))-1,"n.d.") -> n.d. | AF150: =IF(INDEX($C150:$L150,1,aux!$BA$1)>0,(L150-INDEX($C150:$L150,1,aux!$BA$1))/INDEX($C150:$L150,1,aux!$BA$1),"n.d.") -> n.d. | AH150: =X150-INDEX($O150:$X150,1,aux!$BA$1) -> -18.69 | AI150: -0.0001374506134 | AJ150: =+IF(INDEX($O150:$X150,1,aux!$BA$1)>0,(X150/INDEX($O150:$X150,1,aux!$BA$1))^(1/($X$3-INDEX($O$3:$X$3,1,aux!$BA$1)))-1,"n.d.") -> -0.04523406234 | AK150: =IF(INDEX($O150:$X150,1,aux!$BA$1)>0,(X150-INDEX($O150:$X150,1,aux!$BA$1))/INDEX($O150:$X150,1,aux!$BA$1),"n.d.") -> -0.3407164342 | CC150: =+IF(ISNA(MATCH('5.1'!A150,AUX_2d_pais!$G$2:$G$40000,0)),0,1) -> 1
A151: 0228 | B151: Mauritânia | C151: 0 | D151: 0 | E151: 0 | F151: 0 | G151: 0 | H151: 0 | I151: 0 | J151: 0 | K151: 0 | L151: 0 | M151: 0 | N151: 0 | O151: 7.352 | P151: 2.799 | Q151: 56.95 | R151: 0 | S151: 0.99 | T151: 5.484 | U151: 0 | V151: 0 | W151: 45.2 | X151: 4.012 | Y151: 12.2787 | Z151: 1.123107365e-05 | AA151: 12.2787 | AC151: =L151-INDEX($C151:$L151,1,aux!$BA$1) -> 0 | AD151: 0 | AE151: =+IF(INDEX($C151:$L151,1,aux!$BA$1)>0,(L151/INDEX($C151:$L151,1,aux!$BA$1))^(1/($L$3-INDEX($C$3:$L$3,1,aux!$BA$1)))-1,"n.d.") -> n.d. | AF151: =IF(INDEX($C151:$L151,1,aux!$BA$1)>0,(L151-INDEX($C151:$L151,1,aux!$BA$1))/INDEX($C151:$L151,1,aux!$BA$1),"n.d.") -> n.d. | AH151: =X151-INDEX($O151:$X151,1,aux!$BA$1) -> -3.34 | AI151: -2.456313797e-05 | AJ151: =+IF(INDEX($O151:$X151,1,aux!$BA$1)>0,(X151/INDEX($O151:$X151,1,aux!$BA$1))^(1/($X$3-INDEX($O$3:$X$3,1,aux!$BA$1)))-1,"n.d.") -> -0.06508349881 | AK151: =IF(INDEX($O151:$X151,1,aux!$BA$1)>0,(X151-INDEX($O151:$X151,1,aux!$BA$1))/INDEX($O151:$X151,1,aux!$BA$1),"n.d.") -> -0.4542981502 | CC151: =+IF(ISNA(MATCH('5.1'!A151,AUX_2d_pais!$G$2:$G$40000,0)),0,1) -> 1
A152: 0377 | B152: Mayotte | C152: 0 | D152: 0 | E152: 0 | F152: 0 | G152: 0 | H152: 0 | I152: 0 | J152: 0 | K152: 0 | L152: 0 | M152: 0 | N152: 0 | O152: 10.925 | P152: 38.337 | Q152: 65.688 | R152: 0 | S152: 0 | T152: 0 | U152: 0 | V152: 0 | W152: 0 | X152: 0 | Y152: 11.495 | Z152: 1.051423942e-05 | AA152: 11.495 | AC152: =L152-INDEX($C152:$L152,1,aux!$BA$1) -> 0 | AD152: 0 | AE152: =+IF(INDEX($C152:$L152,1,aux!$BA$1)>0,(L152/INDEX($C152:$L152,1,aux!$BA$1))^(1/($L$3-INDEX($C$3:$L$3,1,aux!$BA$1)))-1,"n.d.") -> n.d. | AF152: =IF(INDEX($C152:$L152,1,aux!$BA$1)>0,(L152-INDEX($C152:$L152,1,aux!$BA$1))/INDEX($C152:$L152,1,aux!$BA$1),"n.d.") -> n.d. | AH152: =X152-INDEX($O152:$X152,1,aux!$BA$1) -> -10.925 | AI152: -8.034499471e-05 | AJ152: =+IF(INDEX($O152:$X152,1,aux!$BA$1)>0,(X152/INDEX($O152:$X152,1,aux!$BA$1))^(1/($X$3-INDEX($O$3:$X$3,1,aux!$BA$1)))-1,"n.d.") -> -1 | AK152: =IF(INDEX($O152:$X152,1,aux!$BA$1)>0,(X152-INDEX($O152:$X152,1,aux!$BA$1))/INDEX($O152:$X152,1,aux!$BA$1),"n.d.") -> -1 | BO152: 114.95 | CC152: =+IF(ISNA(MATCH('5.1'!A152,AUX_2d_pais!$G$2:$G$40000,0)),0,1) -> 1
A153: 0023 | B153: Melilha | C153: 0 | D153: 0 | E153: 0 | F153: 0 | G153: 0 | H153: 0 | I153: 0 | J153: 0 | K153: 0 | L153: 0 | M153: 0 | N153: 0 | O153: 71.016 | P153: 23.823 | Q153: 0 | R153: 11.163 | S153: 0 | T153: 0 | U153: 0 | V153: 0 | W153: 0 | X153: 0 | Y153: 10.6002 | Z153: 9.695784317e-06 | AA153: 10.6002 | AC153: =L153-INDEX($C153:$L153,1,aux!$BA$1) -> 0 | AD153: 0 | AE153: =+IF(INDEX($C153:$L153,1,aux!$BA$1)>0,(L153/INDEX($C153:$L153,1,aux!$BA$1))^(1/($L$3-INDEX($C$3:$L$3,1,aux!$BA$1)))-1,"n.d.") -> n.d. | AF153: =IF(INDEX($C153:$L153,1,aux!$BA$1)>0,(L153-INDEX($C153:$L153,1,aux!$BA$1))/INDEX($C153:$L153,1,aux!$BA$1),"n.d.") -> n.d. | AH153: =X153-INDEX($O153:$X153,1,aux!$BA$1) -> -71.016 | AI153: -0.0005222682055 | AJ153: =+IF(INDEX($O153:$X153,1,aux!$BA$1)>0,(X153/INDEX($O153:$X153,1,aux!$BA$1))^(1/($X$3-INDEX($O$3:$X$3,1,aux!$BA$1)))-1,"n.d.") -> -1 | AK153: =IF(INDEX($O153:$X153,1,aux!$BA$1)>0,(X153-INDEX($O153:$X153,1,aux!$BA$1))/INDEX($O153:$X153,1,aux!$BA$1),"n.d.") -> -1 | CC153: =+IF(ISNA(MATCH('5.1'!A153,AUX_2d_pais!$G$2:$G$40000,0)),0,1) -> 1
A154: 0832 | B154: Menores distantes dos Estados Unidos, lhas | C154: 0 | D154: 0 | E154: 0 | F154: 0 | G154: 0 | H154: 0 | I154: 0 | J154: 0 | K154: 0 | L154: 0 | M154: 0 | N154: 0 | O154: 0 | P154: 0 | Q154: 0 | R154: 0 | S154: 0 | T154: 0 | U154: 0 | V154: 0 | W154: 0 | X154: 0 | Y154: 0 | Z154: 0 | AA154: 0 | AC154: =L154-INDEX($C154:$L154,1,aux!$BA$1) -> 0 | AD154: 0 | AE154: =+IF(INDEX($C154:$L154,1,aux!$BA$1)>0,(L154/INDEX($C154:$L154,1,aux!$BA$1))^(1/($L$3-INDEX($C$3:$L$3,1,aux!$BA$1)))-1,"n.d.") -> n.d. | AF154: =IF(INDEX($C154:$L154,1,aux!$BA$1)>0,(L154-INDEX($C154:$L154,1,aux!$BA$1))/INDEX($C154:$L154,1,aux!$BA$1),"n.d.") -> n.d. | AH154: =X154-INDEX($O154:$X154,1,aux!$BA$1) -> 0 | AI154: 0 | AJ154: =+IF(INDEX($O154:$X154,1,aux!$BA$1)>0,(X154/INDEX($O154:$X154,1,aux!$BA$1))^(1/($X$3-INDEX($O$3:$X$3,1,aux!$BA$1)))-1,"n.d.") -> n.d. | AK154: =IF(INDEX($O154:$X154,1,aux!$BA$1)>0,(X154-INDEX($O154:$X154,1,aux!$BA$1))/INDEX($O154:$X154,1,aux!$BA$1),"n.d.") -> n.d. | BO154: 0 | CC154: =+IF(ISNA(MATCH('5.1'!A154,AUX_2d_pais!$G$2:$G$40000,0)),0,1) -> 0
A155: 0412 | B155: México | C155: 610.785 | D155: 685.319 | E155: 715.188 | F155: 488.846 | G155: 738.789 | H155: 882.342 | I155: 1015.627 | J155: 1484.289 | K155: 1772.637 | L155: 1007.303 | M155: 940.1125 | N155: 0.00213653914 | O155: 2057.672 | P155: 2146.571 | Q155: 1484.507 | R155: 1071.592 | S155: 1218.227 | T155: 1218.777 | U155: 1373.494 | V155: 1105.795 | W155: 1656.964 | X155: 1200.913 | Y155: 1453.4512 | Z155: 0.001329441836 | AA155: 513.3387 | AC155: =L155-INDEX($C155:$L155,1,aux!$BA$1) -> 396.518 | AD155: 0.005518060579 | AE155: =+IF(INDEX($C155:$L155,1,aux!$BA$1)>0,(L155/INDEX($C155:$L155,1,aux!$BA$1))^(1/($L$3-INDEX($C$3:$L$3,1,aux!$BA$1)))-1,"n.d.") -> 0.05716142376 | AF155: =IF(INDEX($C155:$L155,1,aux!$BA$1)>0,(L155-INDEX($C155:$L155,1,aux!$BA$1))/INDEX($C155:$L155,1,aux!$BA$1),"n.d.") -> 0.6491940699 | AH155: =X155-INDEX($O155:$X155,1,aux!$BA$1) -> -856.759 | AI155: -0.006300805247 | AJ155: =+IF(INDEX($O155:$X155,1,aux!$BA$1)>0,(X155/INDEX($O155:$X155,1,aux!$BA$1))^(1/($X$3-INDEX($O$3:$X$3,1,aux!$BA$1)))-1,"n.d.") -> -0.05807777524 | AK155: =IF(INDEX($O155:$X155,1,aux!$BA$1)>0,(X155-INDEX($O155:$X155,1,aux!$BA$1))/INDEX($O155:$X155,1,aux!$BA$1),"n.d.") -> -0.4163729691 | CC155: =+IF(ISNA(MATCH('5.1'!A155,AUX_2d_pais!$G$2:$G$40000,0)),0,1) -> 1
A156: 0823 | B156: Micronésia, Estados Federados da | C156: 0 | D156: 0 | E156: 0 | F156: 0 | G156: 0 | H156: 0 | I156: 0 | J156: 0 | K156: 0 | L156: 0 | M156: 0 | N156: 0 | O156: 0 | P156: 0 | Q156: 0 | R156: 0 | S156: 0 | T156: 0 | U156: 0 | V156: 0 | W156: 0 | X156: 0 | Y156: 0 | Z156: 0 | AA156: 0 | AC156: =L156-INDEX($C156:$L156,1,aux!$BA$1) -> 0 | AD156: 0 | AE156: =+IF(INDEX($C156:$L156,1,aux!$BA$1)>0,(L156/INDEX($C156:$L156,1,aux!$BA$1))^(1/($L$3-INDEX($C$3:$L$3,1,aux!$BA$1)))-1,"n.d.") -> n.d. | AF156: =IF(INDEX($C156:$L156,1,aux!$BA$1)>0,(L156-INDEX($C156:$L156,1,aux!$BA$1))/INDEX($C156:$L156,1,aux!$BA$1),"n.d.") -> n.d. | AH156: =X156-INDEX($O156:$X156,1,aux!$BA$1) -> 0 | AI156: 0 | AJ156: =+IF(INDEX($O156:$X156,1,aux!$BA$1)>0,(X156/INDEX($O156:$X156,1,aux!$BA$1))^(1/($X$3-INDEX($O$3:$X$3,1,aux!$BA$1)))-1,"n.d.") -> n.d. | AK156: =IF(INDEX($O156:$X156,1,aux!$BA$1)>0,(X156-INDEX($O156:$X156,1,aux!$BA$1))/INDEX($O156:$X156,1,aux!$BA$1),"n.d.") -> n.d. | BO156: 0 | CC156: =+IF(ISNA(MATCH('5.1'!A156,AUX_2d_pais!$G$2:$G$40000,0)),0,1) -> 0
A157: 0366 | B157: Moçambique | C157: 1.237 | D157: 6.385 | E157: 17.352 | F157: 12.915 | G157: 19.485 | H157: 10.242 | I157: 17.827 | J157: 11.289 | K157: 8.922 | L157: 14.713 | M157: 12.0367 | N157: 2.735510981e-05 | O157: 6296.976 | P157: 8989.465 | Q157: 8147.015 | R157: 10018.922 | S157: 10053.056 | T157: 8650.23 | U157: 4568.986 | V157: 4435.092 | W157: 4024.05 | X157: 4297.491 | Y157: 6948.1283 | Z157: 0.006355309655 | AA157: 6936.0916 | AC157: =L157-INDEX($C157:$L157,1,aux!$BA$1) -> 13.476 | AD157: 0.0001875359614 | AE157: =+IF(INDEX($C157:$L157,1,aux!$BA$1)>0,(L157/INDEX($C157:$L157,1,aux!$BA$1))^(1/($L$3-INDEX($C$3:$L$3,1,aux!$BA$1)))-1,"n.d.") -> 0.3166831618 | AF157: =IF(INDEX($C157:$L157,1,aux!$BA$1)>0,(L157-INDEX($C157:$L157,1,aux!$BA$1))/INDEX($C157:$L157,1,aux!$BA$1),"n.d.") -> 10.89409863 | AH157: =X157-INDEX($O157:$X157,1,aux!$BA$1) -> -1999.485 | AI157: -0.01470467842 | AJ157: =+IF(INDEX($O157:$X157,1,aux!$BA$1)>0,(X157/INDEX($O157:$X157,1,aux!$BA$1))^(1/($X$3-INDEX($O$3:$X$3,1,aux!$BA$1)))-1,"n.d.") -> -0.04156035225 | AK157: =IF(INDEX($O157:$X157,1,aux!$BA$1)>0,(X157-INDEX($O157:$X157,1,aux!$BA$1))/INDEX($O157:$X157,1,aux!$BA$1),"n.d.") -> -0.3175309863 | CC157: =+IF(ISNA(MATCH('5.1'!A157,AUX_2d_pais!$G$2:$G$40000,0)),0,1) -> 1
A158: 0074 | B158: Moldava, República de | C158: 0 | D158: 0.13 | E158: 2.206 | F158: 2.809 | G158: 18.924 | H158: 10.565 | I158: 33.24 | J158: 61.188 | K158: 70.017 | L158: 75.809 | M158: 27.4888 | N158: 6.247220106e-05 | O158: 0 | P158: 0 | Q158: 0 | R158: 0 | S158: 0 | T158: 0.004 | U158: 0 | V158: 0.034 | W158: 12.089 | X158: 0 | Y158: 1.2127 | Z158: 1.109231679e-06 | AA158: -26.2761 | AC158: =L158-INDEX($C158:$L158,1,aux!$BA$1) -> 75.809 | AD158: 0.001054980239 | AE158: =+IF(INDEX($C158:$L158,1,aux!$BA$1)>0,(L158/INDEX($C158:$L158,1,aux!$BA$1))^(1/($L$3-INDEX($C$3:$L$3,1,aux!$BA$1)))-1,"n.d.") -> n.d. | AF158: =IF(INDEX($C158:$L158,1,aux!$BA$1)>0,(L158-INDEX($C158:$L158,1,aux!$BA$1))/INDEX($C158:$L158,1,aux!$BA$1),"n.d.") -> n.d. | AH158: =X158-INDEX($O158:$X158,1,aux!$BA$1) -> 0 | AI158: 0 | AJ158: =+IF(INDEX($O158:$X158,1,aux!$BA$1)>0,(X158/INDEX($O158:$X158,1,aux!$BA$1))^(1/($X$3-INDEX($O$3:$X$3,1,aux!$BA$1)))-1,"n.d.") -> n.d. | AK158: =IF(INDEX($O158:$X158,1,aux!$BA$1)>0,(X158-INDEX($O158:$X158,1,aux!$BA$1))/INDEX($O158:$X158,1,aux!$BA$1),"n.d.") -> n.d. | CC158: =+IF(ISNA(MATCH('5.1'!A158,AUX_2d_pais!$G$2:$G$40000,0)),0,1) -> 1
A159: 0716 | B159: Mongólia | C159: 0 | D159: 0 | E159: 0 | F159: 0 | G159: 0 | H159: 0 | I159: 0 | J159: 0 | K159: 0 | L159: 0 | M159: 0 | N159: 0 | O159: 0 | P159: 0 | Q159: 0 | R159: 6.98 | S159: 23.109 | T159: 0 | U159: 4.37 | V159: 58.623 | W159: 34.142 | X159: 0 | Y159: 12.7224 | Z159: 1.163691689e-05 | AA159: 12.7224 | AC159: =L159-INDEX($C159:$L159,1,aux!$BA$1) -> 0 | AD159: 0 | AE159: =+IF(INDEX($C159:$L159,1,aux!$BA$1)>0,(L159/INDEX($C159:$L159,1,aux!$BA$1))^(1/($L$3-INDEX($C$3:$L$3,1,aux!$BA$1)))-1,"n.d.") -> n.d. | AF159: =IF(INDEX($C159:$L159,1,aux!$BA$1)>0,(L159-INDEX($C159:$L159,1,aux!$BA$1))/INDEX($C159:$L159,1,aux!$BA$1),"n.d.") -> n.d. | AH159: =X159-INDEX($O159:$X159,1,aux!$BA$1) -> 0 | AI159: 0 | AJ159: =+IF(INDEX($O159:$X159,1,aux!$BA$1)>0,(X159/INDEX($O159:$X159,1,aux!$BA$1))^(1/($X$3-INDEX($O$3:$X$3,1,aux!$BA$1)))-1,"n.d.") -> n.d. | AK159: =IF(INDEX($O159:$X159,1,aux!$BA$1)>0,(X159-INDEX($O159:$X159,1,aux!$BA$1))/INDEX($O159:$X159,1,aux!$BA$1),"n.d.") -> n.d. | BO159: 127.224 | CC159: =+IF(ISNA(MATCH('5.1'!A159,AUX_2d_pais!$G$2:$G$40000,0)),0,1) -> 1
A160: 0470 | B160: Monserrate | C160: 0 | D160: 0 | E160: 0 | F160: 0 | G160: 0 | H160: 0 | I160: 0 | J160: 0 | K160: 0 | L160: 0 | M160: 0 | N160: 0 | O160: 0 | P160: 0 | Q160: 0 | R160: 0 | S160: 0 | T160: 0 | U160: 0 | V160: 0 | W160: 0 | X160: 0 | Y160: 0 | Z160: 0 | AA160: 0 | AC160: =L160-INDEX($C160:$L160,1,aux!$BA$1) -> 0 | AD160: 0 | AE160: =+IF(INDEX($C160:$L160,1,aux!$BA$1)>0,(L160/INDEX($C160:$L160,1,aux!$BA$1))^(1/($L$3-INDEX($C$3:$L$3,1,aux!$BA$1)))-1,"n.d.") -> n.d. | AF160: =IF(INDEX($C160:$L160,1,aux!$BA$1)>0,(L160-INDEX($C160:$L160,1,aux!$BA$1))/INDEX($C160:$L160,1,aux!$BA$1),"n.d.") -> n.d. | AH160: =X160-INDEX($O160:$X160,1,aux!$BA$1) -> 0 | AI160: 0 | AJ160: =+IF(INDEX($O160:$X160,1,aux!$BA$1)>0,(X160/INDEX($O160:$X160,1,aux!$BA$1))^(1/($X$3-INDEX($O$3:$X$3,1,aux!$BA$1)))-1,"n.d.") -> n.d. | AK160: =IF(INDEX($O160:$X160,1,aux!$BA$1)>0,(X160-INDEX($O160:$X160,1,aux!$BA$1))/INDEX($O160:$X160,1,aux!$BA$1),"n.d.") -> n.d. | BO160: 0 | CC160: =+IF(ISNA(MATCH('5.1'!A160,AUX_2d_pais!$G$2:$G$40000,0)),0,1) -> 0
A161: 0097 | B161: Montenegro | C161: 0 | D161: 0 | E161: 0 | F161: 0 | G161: 0 | H161: 0 | I161: 0 | J161: 1.543 | K161: 0 | L161: 0 | M161: 0.1543 | N161: 3.506686586e-07 | O161: 14.419 | P161: 0 | Q161: 0 | R161: 0 | S161: 0 | T161: 0 | U161: 0 | V161: 0 | W161: 0 | X161: 0 | Y161: 1.4419 | Z161: 1.318876192e-06 | AA161: 1.2876 | AC161: =L161-INDEX($C161:$L161,1,aux!$BA$1) -> 0 | AD161: 0 | AE161: =+IF(INDEX($C161:$L161,1,aux!$BA$1)>0,(L161/INDEX($C161:$L161,1,aux!$BA$1))^(1/($L$3-INDEX($C$3:$L$3,1,aux!$BA$1)))-1,"n.d.") -> n.d. | AF161: =IF(INDEX($C161:$L161,1,aux!$BA$1)>0,(L161-INDEX($C161:$L161,1,aux!$BA$1))/INDEX($C161:$L161,1,aux!$BA$1),"n.d.") -> n.d. | AH161: =X161-INDEX($O161:$X161,1,aux!$BA$1) -> -14.419 | AI161: -0.0001060406846 | AJ161: =+IF(INDEX($O161:$X161,1,aux!$BA$1)>0,(X161/INDEX($O161:$X161,1,aux!$BA$1))^(1/($X$3-INDEX($O$3:$X$3,1,aux!$BA$1)))-1,"n.d.") -> -1 | AK161: =IF(INDEX($O161:$X161,1,aux!$BA$1)>0,(X161-INDEX($O161:$X161,1,aux!$BA$1))/INDEX($O161:$X161,1,aux!$BA$1),"n.d.") -> -1 | BO161: 15.962 | CC161: =+IF(ISNA(MATCH('5.1'!A161,AUX_2d_pais!$G$2:$G$40000,0)),0,1) -> 1
A162: 0676 | B162: Myanmar | C162: 0 | D162: 0 | E162: 0 | F162: 0 | G162: 0 | H162: 0 | I162: 0 | J162: 0 | K162: 0 | L162: 0 | M162: 0 | N162: 0 | O162: 0.847 | P162: 0 | Q162: 0.087 | R162: 19.604 | S162: 30.502 | T162: 14.364 | U162: 0.079 | V162: 47.942 | W162: 40.096 | X162: 27.294 | Y162: 18.0815 | Z162: 1.653877513e-05 | AA162: 18.0815 | AC162: =L162-INDEX($C162:$L162,1,aux!$BA$1) -> 0 | AD162: 0 | AE162: =+IF(INDEX($C162:$L162,1,aux!$BA$1)>0,(L162/INDEX($C162:$L162,1,aux!$BA$1))^(1/($L$3-INDEX($C$3:$L$3,1,aux!$BA$1)))-1,"n.d.") -> n.d. | AF162: =IF(INDEX($C162:$L162,1,aux!$BA$1)>0,(L162-INDEX($C162:$L162,1,aux!$BA$1))/INDEX($C162:$L162,1,aux!$BA$1),"n.d.") -> n.d. | AH162: =X162-INDEX($O162:$X162,1,aux!$BA$1) -> 26.447 | AI162: 0.0001944973982 | AJ162: =+IF(INDEX($O162:$X162,1,aux!$BA$1)>0,(X162/INDEX($O162:$X162,1,aux!$BA$1))^(1/($X$3-INDEX($O$3:$X$3,1,aux!$BA$1)))-1,"n.d.") -> 0.470875707 | AK162: =IF(INDEX($O162:$X162,1,aux!$BA$1)>0,(X162-INDEX($O162:$X162,1,aux!$BA$1))/INDEX($O162:$X162,1,aux!$BA$1),"n.d.") -> 31.22432113 | CC162: =+IF(ISNA(MATCH('5.1'!A162,AUX_2d_pais!$G$2:$G$40000,0)),0,1) -> 1
A163: 0389 | B163: Namíbia | C163: 0 | D163: 0 | E163: 0 | F163: 0 | G163: 0 | H163: 0.241 | I163: 0.997 | J163: 0 | K163: 0 | L163: 0 | M163: 0.1238 | N163: 2.81353078e-07 | O163: 365.243 | P163: 902.404 | Q163: 759.579 | R163: 732.628 | S163: 291.036 | T163: 144.307 | U163: 223.813 | V163: 104.37 | W163: 126.85 | X163: 156.803 | Y163: 380.7033 | Z163: 0.0003482214567 | AA163: 380.5795 | AC163: =L163-INDEX($C163:$L163,1,aux!$BA$1) -> 0 | AD163: 0 | AE163: =+IF(INDEX($C163:$L163,1,aux!$BA$1)>0,(L163/INDEX($C163:$L163,1,aux!$BA$1))^(1/($L$3-INDEX($C$3:$L$3,1,aux!$BA$1)))-1,"n.d.") -> n.d. | AF163: =IF(INDEX($C163:$L163,1,aux!$BA$1)>0,(L163-INDEX($C163:$L163,1,aux!$BA$1))/INDEX($C163:$L163,1,aux!$BA$1),"n.d.") -> n.d. | AH163: =X163-INDEX($O163:$X163,1,aux!$BA$1) -> -208.44 | AI163: -0.001532916311 | AJ163: =+IF(INDEX($O163:$X163,1,aux!$BA$1)>0,(X163/INDEX($O163:$X163,1,aux!$BA$1))^(1/($X$3-INDEX($O$3:$X$3,1,aux!$BA$1)))-1,"n.d.") -> -0.08967401298 | AK163: =IF(INDEX($O163:$X163,1,aux!$BA$1)>0,(X163-INDEX($O163:$X163,1,aux!$BA$1))/INDEX($O163:$X163,1,aux!$BA$1),"n.d.") -> -0.5706885553 | CC163: =+IF(ISNA(MATCH('5.1'!A163,AUX_2d_pais!$G$2:$G$40000,0)),0,1) -> 1
A164: 0803 | B164: Nauru | C164: 0 | D164: 0 | E164: 0 | F164: 0 | G164: 0 | H164: 0 | I164: 0 | J164: 0 | K164: 0 | L164: 0 | M164: 0 | N164: 0 | O164: 0 | P164: 0 | Q164: 0 | R164: 0 | S164: 0 | T164: 0 | U164: 0 | V164: 0 | W164: 0 | X164: 0 | Y164: 0 | Z164: 0 | AA164: 0 | AC164: =L164-INDEX($C164:$L164,1,aux!$BA$1) -> 0 | AD164: 0 | AE164: =+IF(INDEX($C164:$L164,1,aux!$BA$1)>0,(L164/INDEX($C164:$L164,1,aux!$BA$1))^(1/($L$3-INDEX($C$3:$L$3,1,aux!$BA$1)))-1,"n.d.") -> n.d. | AF164: =IF(INDEX($C164:$L164,1,aux!$BA$1)>0,(L164-INDEX($C164:$L164,1,aux!$BA$1))/INDEX($C164:$L164,1,aux!$BA$1),"n.d.") -> n.d. | AH164: =X164-INDEX($O164:$X164,1,aux!$BA$1) -> 0 | AI164: 0 | AJ164: =+IF(INDEX($O164:$X164,1,aux!$BA$1)>0,(X164/INDEX($O164:$X164,1,aux!$BA$1))^(1/($X$3-INDEX($O$3:$X$3,1,aux!$BA$1)))-1,"n.d.") -> n.d. | AK164: =IF(INDEX($O164:$X164,1,aux!$BA$1)>0,(X164-INDEX($O164:$X164,1,aux!$BA$1))/INDEX($O164:$X164,1,aux!$BA$1),"n.d.") -> n.d. | BO164: 0 | CC164: =+IF(ISNA(MATCH('5.1'!A164,AUX_2d_pais!$G$2:$G$40000,0)),0,1) -> 0
A165: 0672 | B165: Nepal | C165: 0 | D165: 0 | E165: 0 | F165: 0 | G165: 0 | H165: 0 | I165: 0 | J165: 0 | K165: 0 | L165: 0 | M165: 0 | N165: 0 | O165: 0 | P165: 11.532 | Q165: 0 | R165: 42.88 | S165: 0.024 | T165: 0 | U165: 25.349 | V165: 0 | W165: 0 | X165: 0 | Y165: 7.9785 | Z165: 7.297769398e-06 | AA165: 7.9785 | AC165: =L165-INDEX($C165:$L165,1,aux!$BA$1) -> 0 | AD165: =AC165/$AC$252 -> 0 | AE165: =+IF(INDEX($C165:$L165,1,aux!$BA$1)>0,(L165/INDEX($C165:$L165,1,aux!$BA$1))^(1/($L$3-INDEX($C$3:$L$3,1,aux!$BA$1)))-1,"n.d.") -> n.d. | AF165: =IF(INDEX($C165:$L165,1,aux!$BA$1)>0,(L165-INDEX($C165:$L165,1,aux!$BA$1))/INDEX($C165:$L165,1,aux!$BA$1),"n.d.") -> n.d. | AH165: =X165-INDEX($O165:$X165,1,aux!$BA$1) -> 0 | AI165: =AH165/$AH$252 -> 0 | AJ165: =+IF(INDEX($O165:$X165,1,aux!$BA$1)>0,(X165/INDEX($O165:$X165,1,aux!$BA$1))^(1/($X$3-INDEX($O$3:$X$3,1,aux!$BA$1)))-1,"n.d.") -> n.d. | AK165: =IF(INDEX($O165:$X165,1,aux!$BA$1)>0,(X165-INDEX($O165:$X165,1,aux!$BA$1))/INDEX($O165:$X165,1,aux!$BA$1),"n.d.") -> n.d. | BO165: 79.785 | CC165: =+IF(ISNA(MATCH('5.1'!A165,AUX_2d_pais!$G$2:$G$40000,0)),0,1) -> 1
A166: 0432 | B166: Nicarágua | C166: 0 | D166: 0 | E166: 0 | F166: 0 | G166: 0 | H166: 0 | I166: 0 | J166: 0 | K166: 50.27 | L166: 47.971 | M166: 9.8241 | N166: 2.232666215e-05 | O166: 0 | P166: 0 | Q166: 0 | R166: 4.399 | S166: 26.764 | T166: 170.489 | U166: 128.714 | V166: 270.065 | W166: 497.98 | X166: 24.17 | Y166: 112.2581 | Z166: 0.0001026801688 | AA166: 102.434 | AC166: =L166-INDEX($C166:$L166,1,aux!$BA$1) -> 47.971 | AD166: 0.0006675784807 | AE166: =+IF(INDEX($C166:$L166,1,aux!$BA$1)>0,(L166/INDEX($C166:$L166,1,aux!$BA$1))^(1/($L$3-INDEX($C$3:$L$3,1,aux!$BA$1)))-1,"n.d.") -> n.d. | AF166: =IF(INDEX($C166:$L166,1,aux!$BA$1)>0,(L166-INDEX($C166:$L166,1,aux!$BA$1))/INDEX($C166:$L166,1,aux!$BA$1),"n.d.") -> n.d. | AH166: =X166-INDEX($O166:$X166,1,aux!$BA$1) -> 24.17 | AI166: 0.0001777518098 | AJ166: =+IF(INDEX($O166:$X166,1,aux!$BA$1)>0,(X166/INDEX($O166:$X166,1,aux!$BA$1))^(1/($X$3-INDEX($O$3:$X$3,1,aux!$BA$1)))-1,"n.d.") -> n.d. | AK166: =IF(INDEX($O166:$X166,1,aux!$BA$1)>0,(X166-INDEX($O166:$X166,1,aux!$BA$1))/INDEX($O166:$X166,1,aux!$BA$1),"n.d.") -> n.d. | CC166: =+IF(ISNA(MATCH('5.1'!A166,AUX_2d_pais!$G$2:$G$40000,0)),0,1) -> 1
A167: 0240 | B167: Niger | C167: 0 | D167: 0 | E167: 0 | F167: 0 | G167: 0 | H167: 0 | I167: 0 | J167: 0 | K167: 0 | L167: 0 | M167: 0 | N167: 0 | O167: 0 | P167: 39.865 | Q167: 15.8 | R167: 35.067 | S167: 22.215 | T167: 93.624 | U167: 54.836 | V167: 42.244 | W167: 167.528 | X167: 44.1 | Y167: 51.5279 | Z167: 4.71315074e-05 | AA167: 51.5279 | AC167: =L167-INDEX($C167:$L167,1,aux!$BA$1) -> 0 | AD167: 0 | AE167: =+IF(INDEX($C167:$L167,1,aux!$BA$1)>0,(L167/INDEX($C167:$L167,1,aux!$BA$1))^(1/($L$3-INDEX($C$3:$L$3,1,aux!$BA$1)))-1,"n.d.") -> n.d. | AF167: =IF(INDEX($C167:$L167,1,aux!$BA$1)>0,(L167-INDEX($C167:$L167,1,aux!$BA$1))/INDEX($C167:$L167,1,aux!$BA$1),"n.d.") -> n.d. | AH167: =X167-INDEX($O167:$X167,1,aux!$BA$1) -> 44.1 | AI167: 0.000324321672 | AJ167: =+IF(INDEX($O167:$X167,1,aux!$BA$1)>0,(X167/INDEX($O167:$X167,1,aux!$BA$1))^(1/($X$3-INDEX($O$3:$X$3,1,aux!$BA$1)))-1,"n.d.") -> n.d. | AK167: =IF(INDEX($O167:$X167,1,aux!$BA$1)>0,(X167-INDEX($O167:$X167,1,aux!$BA$1))/INDEX($O167:$X167,1,aux!$BA$1),"n.d.") -> n.d. | CC167: =+IF(ISNA(MATCH('5.1'!A167,AUX_2d_pais!$G$2:$G$40000,0)),0,1) -> 1
A168: 0288 | B168: Nigéria | C168: 0 | D168: 0 | E168: 0 | F168: 0 | G168: 0 | H168: 0 | I168: 0 | J168: 0 | K168: 0 | L168: 0 | M168: 0 | N168: 0 | O168: 345.338 | P168: 863.579 | Q168: 1012.276 | R168: 640.803 | S168: 1309.109 | T168: 343.242 | U168: 594.02 | V168: 805.743 | W168: 1338.131 | X168: 656.483 | Y168: 790.8724 | Z168: 0.000723394673 | AA168: 790.8724 | AC168: =L168-INDEX($C168:$L168,1,aux!$BA$1) -> 0 | AD168: 0 | AE168: =+IF(INDEX($C168:$L168,1,aux!$BA$1)>0,(L168/INDEX($C168:$L168,1,aux!$BA$1))^(1/($L$3-INDEX($C$3:$L$3,1,aux!$BA$1)))-1,"n.d.") -> n.d. | AF168: =IF(INDEX($C168:$L168,1,aux!$BA$1)>0,(L168-INDEX($C168:$L168,1,aux!$BA$1))/INDEX($C168:$L168,1,aux!$BA$1),"n.d.") -> n.d. | AH168: =X168-INDEX($O168:$X168,1,aux!$BA$1) -> 311.145 | AI168: 0.002288232804 | AJ168: =+IF(INDEX($O168:$X168,1,aux!$BA$1)>0,(X168/INDEX($O168:$X168,1,aux!$BA$1))^(1/($X$3-INDEX($O$3:$X$3,1,aux!$BA$1)))-1,"n.d.") -> 0.07398367367 | AK168: =IF(INDEX($O168:$X168,1,aux!$BA$1)>0,(X168-INDEX($O168:$X168,1,aux!$BA$1))/INDEX($O168:$X168,1,aux!$BA$1),"n.d.") -> 0.9009868593 | CC168: =+IF(ISNA(MATCH('5.1'!A168,AUX_2d_pais!$G$2:$G$40000,0)),0,1) -> 1
A169: 0838 | B169: Niue | C169: 0 | D169: 0 | E169: 0 | F169: 0 | G169: 0 | H169: 0 | I169: 0 | J169: 0 | K169: 0 | L169: 0 | M169: 0 | N169: 0 | O169: 0 | P169: 0 | Q169: 0 | R169: 0 | S169: 0 | T169: 0 | U169: 0 | V169: 0 | W169: 0 | X169: 0 | Y169: 0 | Z169: 0 | AA169: 0 | AC169: =L169-INDEX($C169:$L169,1,aux!$BA$1) -> 0 | AD169: 0 | AE169: =+IF(INDEX($C169:$L169,1,aux!$BA$1)>0,(L169/INDEX($C169:$L169,1,aux!$BA$1))^(1/($L$3-INDEX($C$3:$L$3,1,aux!$BA$1)))-1,"n.d.") -> n.d. | AF169: =IF(INDEX($C169:$L169,1,aux!$BA$1)>0,(L169-INDEX($C169:$L169,1,aux!$BA$1))/INDEX($C169:$L169,1,aux!$BA$1),"n.d.") -> n.d. | AH169: =X169-INDEX($O169:$X169,1,aux!$BA$1) -> 0 | AI169: 0 | AJ169: =+IF(INDEX($O169:$X169,1,aux!$BA$1)>0,(X169/INDEX($O169:$X169,1,aux!$BA$1))^(1/($X$3-INDEX($O$3:$X$3,1,aux!$BA$1)))-1,"n.d.") -> n.d. | AK169: =IF(INDEX($O169:$X169,1,aux!$BA$1)>0,(X169-INDEX($O169:$X169,1,aux!$BA$1))/INDEX($O169:$X169,1,aux!$BA$1),"n.d.") -> n.d. | BO169: 0 | CC169: =+IF(ISNA(MATCH('5.1'!A169,AUX_2d_pais!$G$2:$G$40000,0)),0,1) -> 0
A170: 0836 | B170: Norfolk, Ilha | C170: 0 | D170: 0 | E170: 0 | F170: 0 | G170: 0 | H170: 0 | I170: 0 | J170: 0 | K170: 0 | L170: 0 | M170: 0 | N170: 0 | O170: 0 | P170: 0 | Q170: 0 | R170: 0 | S170: 0 | T170: 0 | U170: 0 | V170: 0 | W170: 0 | X170: 0 | Y170: 0 | Z170: 0 | AA170: 0 | AC170: =L170-INDEX($C170:$L170,1,aux!$BA$1) -> 0 | AD170: 0 | AE170: =+IF(INDEX($C170:$L170,1,aux!$BA$1)>0,(L170/INDEX($C170:$L170,1,aux!$BA$1))^(1/($L$3-INDEX($C$3:$L$3,1,aux!$BA$1)))-1,"n.d.") -> n.d. | AF170: =IF(INDEX($C170:$L170,1,aux!$BA$1)>0,(L170-INDEX($C170:$L170,1,aux!$BA$1))/INDEX($C170:$L170,1,aux!$BA$1),"n.d.") -> n.d. | AH170: =X170-INDEX($O170:$X170,1,aux!$BA$1) -> 0 | AI170: 0 | AJ170: =+IF(INDEX($O170:$X170,1,aux!$BA$1)>0,(X170/INDEX($O170:$X170,1,aux!$BA$1))^(1/($X$3-INDEX($O$3:$X$3,1,aux!$BA$1)))-1,"n.d.") -> n.d. | AK170: =IF(INDEX($O170:$X170,1,aux!$BA$1)>0,(X170-INDEX($O170:$X170,1,aux!$BA$1))/INDEX($O170:$X170,1,aux!$BA$1),"n.d.") -> n.d. | BO170: 0 | CC170: =+IF(ISNA(MATCH('5.1'!A170,AUX_2d_pais!$G$2:$G$40000,0)),0,1) -> 0
A171: 0028 | B171: Noruega | C171: 0.402 | D171: 2.288 | E171: 0 | F171: 0.131 | G171: 0.047 | H171: 7.224 | I171: 0.732 | J171: 50.783 | K171: 91.38 | L171: 95.449 | M171: 24.8436 | N171: 5.646060847e-05 | O171: 5972.262 | P171: 6875.204 | Q171: 7030.783 | R171: 8265.84 | S171: 8278.348 | T171: 9107.03 | U171: 9311.281 | V171: 9956.751 | W171: 10721.505 | X171: 15173.593 | Y171: 9069.2597 | Z171: 0.008295464799 | AA171: 9044.4161 | AC171: =L171-INDEX($C171:$L171,1,aux!$BA$1) -> 95.047 | AD171: 0.001322701879 | AE171: =+IF(INDEX($C171:$L171,1,aux!$BA$1)>0,(L171/INDEX($C171:$L171,1,aux!$BA$1))^(1/($L$3-INDEX($C$3:$L$3,1,aux!$BA$1)))-1,"n.d.") -> 0.836324722 | AF171: =IF(INDEX($C171:$L171,1,aux!$BA$1)>0,(L171-INDEX($C171:$L171,1,aux!$BA$1))/INDEX($C171:$L171,1,aux!$BA$1),"n.d.") -> 236.4353234 | AH171: =X171-INDEX($O171:$X171,1,aux!$BA$1) -> 9201.331 | AI171: 0.0676687314 | AJ171: =+IF(INDEX($O171:$X171,1,aux!$BA$1)>0,(X171/INDEX($O171:$X171,1,aux!$BA$1))^(1/($X$3-INDEX($O$3:$X$3,1,aux!$BA$1)))-1,"n.d.") -> 0.1091605072 | AK171: =IF(INDEX($O171:$X171,1,aux!$BA$1)>0,(X171-INDEX($O171:$X171,1,aux!$BA$1))/INDEX($O171:$X171,1,aux!$BA$1),"n.d.") -> 1.54067772 | CC171: =+IF(ISNA(MATCH('5.1'!A171,AUX_2d_pais!$G$2:$G$40000,0)),0,1) -> 1
A172: 0809 | B172: Nova Caledónia | C172: 0 | D172: 0 | E172: 0 | F172: 0 | G172: 0 | H172: 0 | I172: 0 | J172: 0 | K172: 0 | L172: 0 | M172: 0 | N172: 0 | O172: 80.166 | P172: 61.785 | Q172: 68.893 | R172: 50.754 | S172: 52.426 | T172: 55.693 | U172: 87.128 | V172: 78.417 | W172: 46.653 | X172: 75.167 | Y172: 65.7082 | Z172: 6.010193535e-05 | AA172: 65.7082 | AC172: =L172-INDEX($C172:$L172,1,aux!$BA$1) -> 0 | AD172: 0 | AE172: =+IF(INDEX($C172:$L172,1,aux!$BA$1)>0,(L172/INDEX($C172:$L172,1,aux!$BA$1))^(1/($L$3-INDEX($C$3:$L$3,1,aux!$BA$1)))-1,"n.d.") -> n.d. | AF172: =IF(INDEX($C172:$L172,1,aux!$BA$1)>0,(L172-INDEX($C172:$L172,1,aux!$BA$1))/INDEX($C172:$L172,1,aux!$BA$1),"n.d.") -> n.d. | AH172: =X172-INDEX($O172:$X172,1,aux!$BA$1) -> -4.999 | AI172: -3.67638104e-05 | AJ172: =+IF(INDEX($O172:$X172,1,aux!$BA$1)>0,(X172/INDEX($O172:$X172,1,aux!$BA$1))^(1/($X$3-INDEX($O$3:$X$3,1,aux!$BA$1)))-1,"n.d.") -> -0.007128601231 | AK172: =IF(INDEX($O172:$X172,1,aux!$BA$1)>0,(X172-INDEX($O172:$X172,1,aux!$BA$1))/INDEX($O172:$X172,1,aux!$BA$1),"n.d.") -> -0.06235810693 | CC172: =+IF(ISNA(MATCH('5.1'!A172,AUX_2d_pais!$G$2:$G$40000,0)),0,1) -> 1
A173: 0804 | B173: Nova Zelânda | C173: 358.85 | D173: 332.813 | E173: 404.507 | F173: 347.821 | G173: 319.498 | H173: 286.137 | I173: 214.552 | J173: 274.158 | K173: 319.923 | L173: 131.8 | M173: 299.0059 | N173: 0.0006795333628 | O173: 682.058 | P173: 950.195 | Q173: 729.533 | R173: 1116.901 | S173: 911.674 | T173: 1101.894 | U173: 999.524 | V173: 1576.045 | W173: 1038.183 | X173: 1099.22 | Y173: 1020.5227 | Z173: 0.000933451066 | AA173: 721.5168 | AC173: =L173-INDEX($C173:$L173,1,aux!$BA$1) -> -227.05 | AD173: -0.003159694275 | AE173: =+IF(INDEX($C173:$L173,1,aux!$BA$1)>0,(L173/INDEX($C173:$L173,1,aux!$BA$1))^(1/($L$3-INDEX($C$3:$L$3,1,aux!$BA$1)))-1,"n.d.") -> -0.1053216256 | AF173: =IF(INDEX($C173:$L173,1,aux!$BA$1)>0,(L173-INDEX($C173:$L173,1,aux!$BA$1))/INDEX($C173:$L173,1,aux!$BA$1),"n.d.") -> -0.6327156193 | AH173: =X173-INDEX($O173:$X173,1,aux!$BA$1) -> 417.162 | AI173: 0.003067906516 | AJ173: =+IF(INDEX($O173:$X173,1,aux!$BA$1)>0,(X173/INDEX($O173:$X173,1,aux!$BA$1))^(1/($X$3-INDEX($O$3:$X$3,1,aux!$BA$1)))-1,"n.d.") -> 0.05445792977 | AK173: =IF(INDEX($O173:$X173,1,aux!$BA$1)>0,(X173-INDEX($O173:$X173,1,aux!$BA$1))/INDEX($O173:$X173,1,aux!$BA$1),"n.d.") -> 0.611622472 | CC173: =+IF(ISNA(MATCH('5.1'!A173,AUX_2d_pais!$G$2:$G$40000,0)),0,1) -> 1
A174: 0357 | B174: Oceano Indico, Território Britânico do | C174: 0 | D174: 0 | E174: 0 | F174: 0 | G174: 0 | H174: 0 | I174: 0 | J174: 0 | K174: 0 | L174: 0 | M174: 0 | N174: 0 | O174: 0 | P174: 0 | Q174: 0 | R174: 0 | S174: 0 | T174: 0 | U174: 0 | V174: 0 | W174: 0 | X174: 0 | Y174: 0 | Z174: 0 | AA174: 0 | AC174: =L174-INDEX($C174:$L174,1,aux!$BA$1) -> 0 | AD174: 0 | AE174: =+IF(INDEX($C174:$L174,1,aux!$BA$1)>0,(L174/INDEX($C174:$L174,1,aux!$BA$1))^(1/($L$3-INDEX($C$3:$L$3,1,aux!$BA$1)))-1,"n.d.") -> n.d. | AF174: =IF(INDEX($C174:$L174,1,aux!$BA$1)>0,(L174-INDEX($C174:$L174,1,aux!$BA$1))/INDEX($C174:$L174,1,aux!$BA$1),"n.d.") -> n.d. | AH174: =X174-INDEX($O174:$X174,1,aux!$BA$1) -> 0 | AI174: 0 | AJ174: =+IF(INDEX($O174:$X174,1,aux!$BA$1)>0,(X174/INDEX($O174:$X174,1,aux!$BA$1))^(1/($X$3-INDEX($O$3:$X$3,1,aux!$BA$1)))-1,"n.d.") -> n.d. | AK174: =IF(INDEX($O174:$X174,1,aux!$BA$1)>0,(X174-INDEX($O174:$X174,1,aux!$BA$1))/INDEX($O174:$X174,1,aux!$BA$1),"n.d.") -> n.d. | BO174: 0 | CC174: =+IF(ISNA(MATCH('5.1'!A174,AUX_2d_pais!$G$2:$G$40000,0)),0,1) -> 0
A175: 0649 | B175: Omã | C175: 0 | D175: 0 | E175: 0 | F175: 0 | G175: 0 | H175: 0 | I175: 0 | J175: 0 | K175: 0 | L175: 0 | M175: 0 | N175: 0 | O175: 0 | P175: 0 | Q175: 0 | R175: 0 | S175: 0 | T175: 0 | U175: 52.976 | V175: 19.648 | W175: 19.789 | X175: 12.557 | Y175: 10.497 | Z175: 9.601389405e-06 | AA175: 10.497 | AC175: =L175-INDEX($C175:$L175,1,aux!$BA$1) -> 0 | AD175: 0 | AE175: =+IF(INDEX($C175:$L175,1,aux!$BA$1)>0,(L175/INDEX($C175:$L175,1,aux!$BA$1))^(1/($L$3-INDEX($C$3:$L$3,1,aux!$BA$1)))-1,"n.d.") -> n.d. | AF175: =IF(INDEX($C175:$L175,1,aux!$BA$1)>0,(L175-INDEX($C175:$L175,1,aux!$BA$1))/INDEX($C175:$L175,1,aux!$BA$1),"n.d.") -> n.d. | AH175: =X175-INDEX($O175:$X175,1,aux!$BA$1) -> 12.557 | AI175: 9.234710285e-05 | AJ175: =+IF(INDEX($O175:$X175,1,aux!$BA$1)>0,(X175/INDEX($O175:$X175,1,aux!$BA$1))^(1/($X$3-INDEX($O$3:$X$3,1,aux!$BA$1)))-1,"n.d.") -> n.d. | AK175: =IF(INDEX($O175:$X175,1,aux!$BA$1)>0,(X175-INDEX($O175:$X175,1,aux!$BA$1))/INDEX($O175:$X175,1,aux!$BA$1),"n.d.") -> n.d. | CC175: =+IF(ISNA(MATCH('5.1'!A175,AUX_2d_pais!$G$2:$G$40000,0)),0,1) -> 1
A176: 0003 | B176: Países Baixos | C176: 6831.444 | D176: 20227.211 | E176: 8420.371 | F176: 31200.376 | G176: 33312.104 | H176: 38229.557 | I176: 40338.252 | J176: 39122.445 | K176: 41532.217 | L176: 24756.734 | M176: 28397.0711 | N176: 0.0645363761 | O176: 50162.233 | P176: 51540.091 | Q176: 51277.242 | R176: 47424.743 | S176: 49933.22 | T176: 53983.866 | U176: 52360.693 | V176: 45407.543 | W176: 49933.6 | X176: 53102.487 | Y176: 50512.5718 | Z176: 0.04620280763 | AA176: 22115.5007 | AC176: =L176-INDEX($C176:$L176,1,aux!$BA$1) -> 17925.29 | AD176: 0.2494535837 | AE176: =+IF(INDEX($C176:$L176,1,aux!$BA$1)>0,(L176/INDEX($C176:$L176,1,aux!$BA$1))^(1/($L$3-INDEX($C$3:$L$3,1,aux!$BA$1)))-1,"n.d.") -> 0.1538017789 | AF176: =IF(INDEX($C176:$L176,1,aux!$BA$1)>0,(L176-INDEX($C176:$L176,1,aux!$BA$1))/INDEX($C176:$L176,1,aux!$BA$1),"n.d.") -> 2.623938658 | AH176: =X176-INDEX($O176:$X176,1,aux!$BA$1) -> 2940.254 | AI176: 0.02162331278 | AJ176: =+IF(INDEX($O176:$X176,1,aux!$BA$1)>0,(X176/INDEX($O176:$X176,1,aux!$BA$1))^(1/($X$3-INDEX($O$3:$X$3,1,aux!$BA$1)))-1,"n.d.") -> 0.006349109624 | AK176: =IF(INDEX($O176:$X176,1,aux!$BA$1)>0,(X176-INDEX($O176:$X176,1,aux!$BA$1))/INDEX($O176:$X176,1,aux!$BA$1),"n.d.") -> 0.0586148946 | CC176: =+IF(ISNA(MATCH('5.1'!A176,AUX_2d_pais!$G$2:$G$40000,0)),0,1) -> 1
A177: 0825 | B177: Palau | C177: 0 | D177: 0 | E177: 0 | F177: 0 | G177: 0 | H177: 0 | I177: 0 | J177: 0 | K177: 0 | L177: 0 | M177: 0 | N177: 0 | O177: 0 | P177: 0 | Q177: 0 | R177: 0 | S177: 0 | T177: 0 | U177: 0 | V177: 0 | W177: 0 | X177: 0 | Y177: 0 | Z177: 0 | AA177: 0 | AC177: =L177-INDEX($C177:$L177,1,aux!$BA$1) -> 0 | AD177: 0 | AE177: =+IF(INDEX($C177:$L177,1,aux!$BA$1)>0,(L177/INDEX($C177:$L177,1,aux!$BA$1))^(1/($L$3-INDEX($C$3:$L$3,1,aux!$BA$1)))-1,"n.d.") -> n.d. | AF177: =IF(INDEX($C177:$L177,1,aux!$BA$1)>0,(L177-INDEX($C177:$L177,1,aux!$BA$1))/INDEX($C177:$L177,1,aux!$BA$1),"n.d.") -> n.d. | AH177: =X177-INDEX($O177:$X177,1,aux!$BA$1) -> 0 | AI177: 0 | AJ177: =+IF(INDEX($O177:$X177,1,aux!$BA$1)>0,(X177/INDEX($O177:$X177,1,aux!$BA$1))^(1/($X$3-INDEX($O$3:$X$3,1,aux!$BA$1)))-1,"n.d.") -> n.d. | AK177: =IF(INDEX($O177:$X177,1,aux!$BA$1)>0,(X177-INDEX($O177:$X177,1,aux!$BA$1))/INDEX($O177:$X177,1,aux!$BA$1),"n.d.") -> n.d. | BO177: 0 | CC177: =+IF(ISNA(MATCH('5.1'!A177,AUX_2d_pais!$G$2:$G$40000,0)),0,1) -> 0
A178: 0442 | B178: Panamá | C178: 0 | D178: 4.55 | E178: 6 | F178: 17.693 | G178: 0.024 | H178: 0.135 | I178: 105.128 | J178: 114.024 | K178: 139.228 | L178: 255.402 | M178: 64.2184 | N178: 0.0001459454322 | O178: 122.343 | P178: 110.058 | Q178: 39.387 | R178: 75.099 | S178: 28.388 | T178: 327.779 | U178: 100.772 | V178: 108 | W178: 737.034 | X178: 573.165 | Y178: 222.2025 | Z178: 0.0002032440439 | AA178: 157.9841 | AC178: =L178-INDEX($C178:$L178,1,aux!$BA$1) -> 255.402 | AD178: 0.003554249007 | AE178: =+IF(INDEX($C178:$L178,1,aux!$BA$1)>0,(L178/INDEX($C178:$L178,1,aux!$BA$1))^(1/($L$3-INDEX($C$3:$L$3,1,aux!$BA$1)))-1,"n.d.") -> n.d. | AF178: =IF(INDEX($C178:$L178,1,aux!$BA$1)>0,(L178-INDEX($C178:$L178,1,aux!$BA$1))/INDEX($C178:$L178,1,aux!$BA$1),"n.d.") -> n.d. | AH178: =X178-INDEX($O178:$X178,1,aux!$BA$1) -> 450.822 | AI178: 0.003315449996 | AJ178: =+IF(INDEX($O178:$X178,1,aux!$BA$1)>0,(X178/INDEX($O178:$X178,1,aux!$BA$1))^(1/($X$3-INDEX($O$3:$X$3,1,aux!$BA$1)))-1,"n.d.") -> 0.1871956096 | AK178: =IF(INDEX($O178:$X178,1,aux!$BA$1)>0,(X178-INDEX($O178:$X178,1,aux!$BA$1))/INDEX($O178:$X178,1,aux!$BA$1),"n.d.") -> 3.684902283 | CC178: =+IF(ISNA(MATCH('5.1'!A178,AUX_2d_pais!$G$2:$G$40000,0)),0,1) -> 1
A179: 0801 | B179: Papuásia-Nova Guiné | C179: 0 | D179: 0 | E179: 0 | F179: 0 | G179: 0 | H179: 0 | I179: 0 | J179: 0 | K179: 0 | L179: 0 | M179: 0 | N179: 0 | O179: 0 | P179: 0 | Q179: 0 | R179: 0 | S179: 0 | T179: 0 | U179: 0 | V179: 0 | W179: 0 | X179: 14.428 | Y179: 1.4428 | Z179: 1.319699403e-06 | AA179: 1.4428 | AC179: =L179-INDEX($C179:$L179,1,aux!$BA$1) -> 0 | AD179: 0 | AE179: =+IF(INDEX($C179:$L179,1,aux!$BA$1)>0,(L179/INDEX($C179:$L179,1,aux!$BA$1))^(1/($L$3-INDEX($C$3:$L$3,1,aux!$BA$1)))-1,"n.d.") -> n.d. | AF179: =IF(INDEX($C179:$L179,1,aux!$BA$1)>0,(L179-INDEX($C179:$L179,1,aux!$BA$1))/INDEX($C179:$L179,1,aux!$BA$1),"n.d.") -> n.d. | AH179: =X179-INDEX($O179:$X179,1,aux!$BA$1) -> 14.428 | AI179: 0.0001061068727 | AJ179: =+IF(INDEX($O179:$X179,1,aux!$BA$1)>0,(X179/INDEX($O179:$X179,1,aux!$BA$1))^(1/($X$3-INDEX($O$3:$X$3,1,aux!$BA$1)))-1,"n.d.") -> n.d. | AK179: =IF(INDEX($O179:$X179,1,aux!$BA$1)>0,(X179-INDEX($O179:$X179,1,aux!$BA$1))/INDEX($O179:$X179,1,aux!$BA$1),"n.d.") -> n.d. | BO179: 14.428 | CC179: =+IF(ISNA(MATCH('5.1'!A179,AUX_2d_pais!$G$2:$G$40000,0)),0,1) -> 1
A180: 0662 | B180: Paquistão | C180: 0 | D180: 0 | E180: 0 | F180: 0 | G180: 0 | H180: 0 | I180: 0 | J180: 0 | K180: 0 | L180: 0 | M180: 0 | N180: 0 | O180: 5.934 | P180: 0 | Q180: 0 | R180: 0 | S180: 44.333 | T180: 9.898 | U180: 55.433 | V180: 9.825 | W180: 13.765 | X180: 0.217 | Y180: 13.9405 | Z180: 1.275108784e-05 | AA180: 13.9405 | AC180: =L180-INDEX($C180:$L180,1,aux!$BA$1) -> 0 | AD180: 0 | AE180: =+IF(INDEX($C180:$L180,1,aux!$BA$1)>0,(L180/INDEX($C180:$L180,1,aux!$BA$1))^(1/($L$3-INDEX($C$3:$L$3,1,aux!$BA$1)))-1,"n.d.") -> n.d. | AF180: =IF(INDEX($C180:$L180,1,aux!$BA$1)>0,(L180-INDEX($C180:$L180,1,aux!$BA$1))/INDEX($C180:$L180,1,aux!$BA$1),"n.d.") -> n.d. | AH180: =X180-INDEX($O180:$X180,1,aux!$BA$1) -> -5.717 | AI180: -4.204414964e-05 | AJ180: =+IF(INDEX($O180:$X180,1,aux!$BA$1)>0,(X180/INDEX($O180:$X180,1,aux!$BA$1))^(1/($X$3-INDEX($O$3:$X$3,1,aux!$BA$1)))-1,"n.d.") -> -0.3076179519 | AK180: =IF(INDEX($O180:$X180,1,aux!$BA$1)>0,(X180-INDEX($O180:$X180,1,aux!$BA$1))/INDEX($O180:$X180,1,aux!$BA$1),"n.d.") -> -0.9634310752 | CC180: =+IF(ISNA(MATCH('5.1'!A180,AUX_2d_pais!$G$2:$G$40000,0)),0,1) -> 1
A181: 0520 | B181: Paraguai | C181: 0 | D181: 0 | E181: 0 | F181: 0 | G181: 0 | H181: 0 | I181: 0 | J181: 0 | K181: 0 | L181: 0 | M181: 0 | N181: 0 | O181: 262.194 | P181: 227.127 | Q181: 425.48 | R181: 203.202 | S181: 202.747 | T181: 208.468 | U181: 750.746 | V181: 564.92 | W181: 428.464 | X181: 415.473 | Y181: 368.8821 | Z181: 0.0003374088489 | AA181: 368.8821 | AC181: =L181-INDEX($C181:$L181,1,aux!$BA$1) -> 0 | AD181: 0 | AE181: =+IF(INDEX($C181:$L181,1,aux!$BA$1)>0,(L181/INDEX($C181:$L181,1,aux!$BA$1))^(1/($L$3-INDEX($C$3:$L$3,1,aux!$BA$1)))-1,"n.d.") -> n.d. | AF181: =IF(INDEX($C181:$L181,1,aux!$BA$1)>0,(L181-INDEX($C181:$L181,1,aux!$BA$1))/INDEX($C181:$L181,1,aux!$BA$1),"n.d.") -> n.d. | AH181: =X181-INDEX($O181:$X181,1,aux!$BA$1) -> 153.279 | AI181: 0.001127249469 | AJ181: =+IF(INDEX($O181:$X181,1,aux!$BA$1)>0,(X181/INDEX($O181:$X181,1,aux!$BA$1))^(1/($X$3-INDEX($O$3:$X$3,1,aux!$BA$1)))-1,"n.d.") -> 0.05247875881 | AK181: =IF(INDEX($O181:$X181,1,aux!$BA$1)>0,(X181-INDEX($O181:$X181,1,aux!$BA$1))/INDEX($O181:$X181,1,aux!$BA$1),"n.d.") -> 0.5846014783 | CC181: =+IF(ISNA(MATCH('5.1'!A181,AUX_2d_pais!$G$2:$G$40000,0)),0,1) -> 1
A182: 0504 | B182: Peru | C182: 8.289 | D182: 20.122 | E182: 2.687 | F182: 5.518 | G182: 17.488 | H182: 0.192 | I182: 0.05 | J182: 0.296 | K182: 0 | L182: 0.052 | M182: 5.4694 | N182: 1.242998808e-05 | O182: 30.731 | P182: 51.832 | Q182: 65.851 | R182: 40.179 | S182: 64.197 | T182: 188.966 | U182: 231.534 | V182: 833.602 | W182: 1574.863 | X182: 651.331 | Y182: 373.3086 | Z182: 0.0003414576771 | AA182: 367.8392 | AC182: =L182-INDEX($C182:$L182,1,aux!$BA$1) -> -8.237 | AD182: -0.0001146285036 | AE182: =+IF(INDEX($C182:$L182,1,aux!$BA$1)>0,(L182/INDEX($C182:$L182,1,aux!$BA$1))^(1/($L$3-INDEX($C$3:$L$3,1,aux!$BA$1)))-1,"n.d.") -> -0.4307829351 | AF182: =IF(INDEX($C182:$L182,1,aux!$BA$1)>0,(L182-INDEX($C182:$L182,1,aux!$BA$1))/INDEX($C182:$L182,1,aux!$BA$1),"n.d.") -> -0.9937266256 | AH182: =X182-INDEX($O182:$X182,1,aux!$BA$1) -> 620.6 | AI182: 0.004564036954 | AJ182: =+IF(INDEX($O182:$X182,1,aux!$BA$1)>0,(X182/INDEX($O182:$X182,1,aux!$BA$1))^(1/($X$3-INDEX($O$3:$X$3,1,aux!$BA$1)))-1,"n.d.") -> 0.4039716541 | AK182: =IF(INDEX($O182:$X182,1,aux!$BA$1)>0,(X182-INDEX($O182:$X182,1,aux!$BA$1))/INDEX($O182:$X182,1,aux!$BA$1),"n.d.") -> 20.19459178 | CC182: =+IF(ISNA(MATCH('5.1'!A182,AUX_2d_pais!$G$2:$G$40000,0)),0,1) -> 1
A183: 0813 | B183: Pitcairn | C183: 0 | D183: 0 | E183: 0 | F183: 0 | G183: 0 | H183: 0 | I183: 0 | J183: 0 | K183: 0 | L183: 0 | M183: 0 | N183: 0 | O183: 0 | P183: 0 | Q183: 0 | R183: 0 | S183: 0 | T183: 0 | U183: 0 | V183: 0 | W183: 0 | X183: 0 | Y183: 0 | Z183: 0 | AA183: 0 | AC183: =L183-INDEX($C183:$L183,1,aux!$BA$1) -> 0 | AD183: 0 | AE183: =+IF(INDEX($C183:$L183,1,aux!$BA$1)>0,(L183/INDEX($C183:$L183,1,aux!$BA$1))^(1/($L$3-INDEX($C$3:$L$3,1,aux!$BA$1)))-1,"n.d.") -> n.d. | AF183: =IF(INDEX($C183:$L183,1,aux!$BA$1)>0,(L183-INDEX($C183:$L183,1,aux!$BA$1))/INDEX($C183:$L183,1,aux!$BA$1),"n.d.") -> n.d. | AH183: =X183-INDEX($O183:$X183,1,aux!$BA$1) -> 0 | AI183: 0 | AJ183: =+IF(INDEX($O183:$X183,1,aux!$BA$1)>0,(X183/INDEX($O183:$X183,1,aux!$BA$1))^(1/($X$3-INDEX($O$3:$X$3,1,aux!$BA$1)))-1,"n.d.") -> n.d. | AK183: =IF(INDEX($O183:$X183,1,aux!$BA$1)>0,(X183-INDEX($O183:$X183,1,aux!$BA$1))/INDEX($O183:$X183,1,aux!$BA$1),"n.d.") -> n.d. | BO183: 0 | CC183: =+IF(ISNA(MATCH('5.1'!A183,AUX_2d_pais!$G$2:$G$40000,0)),0,1) -> 0
A184: 0822 | B184: Polinésia Francesa | C184: 0 | D184: 0 | E184: 0 | F184: 0 | G184: 0 | H184: 0 | I184: 0 | J184: 0 | K184: 0 | L184: 0 | M184: 0 | N184: 0 | O184: 10.703 | P184: 15.71 | Q184: 0 | R184: 0 | S184: 0 | T184: 0.181 | U184: 9.69 | V184: 21.437 | W184: 4.86 | X184: 3.875 | Y184: 6.6456 | Z184: 6.078593258e-06 | AA184: 6.6456 | AC184: =L184-INDEX($C184:$L184,1,aux!$BA$1) -> 0 | AD184: 0 | AE184: =+IF(INDEX($C184:$L184,1,aux!$BA$1)>0,(L184/INDEX($C184:$L184,1,aux!$BA$1))^(1/($L$3-INDEX($C$3:$L$3,1,aux!$BA$1)))-1,"n.d.") -> n.d. | AF184: =IF(INDEX($C184:$L184,1,aux!$BA$1)>0,(L184-INDEX($C184:$L184,1,aux!$BA$1))/INDEX($C184:$L184,1,aux!$BA$1),"n.d.") -> n.d. | AH184: =X184-INDEX($O184:$X184,1,aux!$BA$1) -> -6.828 | AI184: -5.021470242e-05 | AJ184: =+IF(INDEX($O184:$X184,1,aux!$BA$1)>0,(X184/INDEX($O184:$X184,1,aux!$BA$1))^(1/($X$3-INDEX($O$3:$X$3,1,aux!$BA$1)))-1,"n.d.") -> -0.1067479529 | AK184: =IF(INDEX($O184:$X184,1,aux!$BA$1)>0,(X184-INDEX($O184:$X184,1,aux!$BA$1))/INDEX($O184:$X184,1,aux!$BA$1),"n.d.") -> -0.6379519761 | CC184: =+IF(ISNA(MATCH('5.1'!A184,AUX_2d_pais!$G$2:$G$40000,0)),0,1) -> 1
A185: 0060 | B185: Polónia | C185: 698.643 | D185: 789.049 | E185: 683.867 | F185: 729.364 | G185: 680.066 | H185: 486.551 | I185: 334.532 | J185: 383.657 | K185: 504.876 | L185: 1290.719 | M185: 658.1324 | N185: 0.001495699325 | O185: 10234.625 | P185: 11464.314 | Q185: 14273.099 | R185: 14753.527 | S185: 17977.141 | T185: 20003.606 | U185: 20677.598 | V185: 23567.377 | W185: 23031.47 | X185: 26740.699 | Y185: 18272.3456 | Z185: 0.01671333766 | AA185: 17614.2132 | AC185: =L185-INDEX($C185:$L185,1,aux!$BA$1) -> 592.076 | AD185: 0.008239502961 | AE185: =+IF(INDEX($C185:$L185,1,aux!$BA$1)>0,(L185/INDEX($C185:$L185,1,aux!$BA$1))^(1/($L$3-INDEX($C$3:$L$3,1,aux!$BA$1)))-1,"n.d.") -> 0.07058116635 | AF185: =IF(INDEX($C185:$L185,1,aux!$BA$1)>0,(L185-INDEX($C185:$L185,1,aux!$BA$1))/INDEX($C185:$L185,1,aux!$BA$1),"n.d.") -> 0.84746573 | AH185: =X185-INDEX($O185:$X185,1,aux!$BA$1) -> 16506.074 | AI185: 0.1213895129 | AJ185: =+IF(INDEX($O185:$X185,1,aux!$BA$1)>0,(X185/INDEX($O185:$X185,1,aux!$BA$1))^(1/($X$3-INDEX($O$3:$X$3,1,aux!$BA$1)))-1,"n.d.") -> 0.1126140392 | AK185: =IF(INDEX($O185:$X185,1,aux!$BA$1)>0,(X185-INDEX($O185:$X185,1,aux!$BA$1))/INDEX($O185:$X185,1,aux!$BA$1),"n.d.") -> 1.612767835 | CC185: =+IF(ISNA(MATCH('5.1'!A185,AUX_2d_pais!$G$2:$G$40000,0)),0,1) -> 1
A186: 0346 | B186: Quénia | C186: 0 | D186: 0 | E186: 0 | F186: 0 | G186: 0 | H186: 0 | I186: 0 | J186: 34.344 | K186: 0.269 | L186: 0 | M186: 3.4613 | N186: 7.86629571e-06 | O186: 24.79 | P186: 56.845 | Q186: 446.808 | R186: 30.401 | S186: 33.663 | T186: 16.348 | U186: 135.013 | V186: 113.613 | W186: 201.221 | X186: 89.102 | Y186: 114.7804 | Z186: 0.0001049872646 | AA186: 111.3191 | AC186: =L186-INDEX($C186:$L186,1,aux!$BA$1) -> 0 | AD186: 0 | AE186: =+IF(INDEX($C186:$L186,1,aux!$BA$1)>0,(L186/INDEX($C186:$L186,1,aux!$BA$1))^(1/($L$3-INDEX($C$3:$L$3,1,aux!$BA$1)))-1,"n.d.") -> n.d. | AF186: =IF(INDEX($C186:$L186,1,aux!$BA$1)>0,(L186-INDEX($C186:$L186,1,aux!$BA$1))/INDEX($C186:$L186,1,aux!$BA$1),"n.d.") -> n.d. | AH186: =X186-INDEX($O186:$X186,1,aux!$BA$1) -> 64.312 | AI186: 0.0004729654279 | AJ186: =+IF(INDEX($O186:$X186,1,aux!$BA$1)>0,(X186/INDEX($O186:$X186,1,aux!$BA$1))^(1/($X$3-INDEX($O$3:$X$3,1,aux!$BA$1)))-1,"n.d.") -> 0.152748451 | AK186: =IF(INDEX($O186:$X186,1,aux!$BA$1)>0,(X186-INDEX($O186:$X186,1,aux!$BA$1))/INDEX($O186:$X186,1,aux!$BA$1),"n.d.") -> 2.594271884 | CC186: =+IF(ISNA(MATCH('5.1'!A186,AUX_2d_pais!$G$2:$G$40000,0)),0,1) -> 1
A187: 0083 | B187: Quirguizistão | C187: 0 | D187: 0 | E187: 0 | F187: 0 | G187: 0 | H187: 0 | I187: 0 | J187: 0 | K187: 0 | L187: 0 | M187: 0 | N187: 0 | O187: 0 | P187: 0 | Q187: 0 | R187: 0 | S187: 0 | T187: 0 | U187: 0 | V187: 0 | W187: 4.174 | X187: 1.6 | Y187: 0.5774 | Z187: 5.281358715e-07 | AA187: 0.5774 | AC187: =L187-INDEX($C187:$L187,1,aux!$BA$1) -> 0 | AD187: 0 | AE187: =+IF(INDEX($C187:$L187,1,aux!$BA$1)>0,(L187/INDEX($C187:$L187,1,aux!$BA$1))^(1/($L$3-INDEX($C$3:$L$3,1,aux!$BA$1)))-1,"n.d.") -> n.d. | AF187: =IF(INDEX($C187:$L187,1,aux!$BA$1)>0,(L187-INDEX($C187:$L187,1,aux!$BA$1))/INDEX($C187:$L187,1,aux!$BA$1),"n.d.") -> n.d. | AH187: =X187-INDEX($O187:$X187,1,aux!$BA$1) -> 1.6 | AI187: 1.176677268e-05 | AJ187: =+IF(INDEX($O187:$X187,1,aux!$BA$1)>0,(X187/INDEX($O187:$X187,1,aux!$BA$1))^(1/($X$3-INDEX($O$3:$X$3,1,aux!$BA$1)))-1,"n.d.") -> n.d. | AK187: =IF(INDEX($O187:$X187,1,aux!$BA$1)>0,(X187-INDEX($O187:$X187,1,aux!$BA$1))/INDEX($O187:$X187,1,aux!$BA$1),"n.d.") -> n.d. | CC187: =+IF(ISNA(MATCH('5.1'!A187,AUX_2d_pais!$G$2:$G$40000,0)),0,1) -> 1
A188: 0890 | B188: Região Polar | C188: 0 | D188: 0 | E188: 0 | F188: 0 | G188: 0 | H188: 0 | I188: 0 | J188: 0 | K188: 0 | L188: 0 | M188: 0 | N188: 0 | O188: 0 | P188: 0 | Q188: 0 | R188: 0 | S188: 0 | T188: 0 | U188: 0 | V188: 0 | W188: 0 | X188: 0 | Y188: 0 | Z188: 0 | AA188: 0 | AC188: =L188-INDEX($C188:$L188,1,aux!$BA$1) -> 0 | AD188: 0 | AE188: =+IF(INDEX($C188:$L188,1,aux!$BA$1)>0,(L188/INDEX($C188:$L188,1,aux!$BA$1))^(1/($L$3-INDEX($C$3:$L$3,1,aux!$BA$1)))-1,"n.d.") -> n.d. | AF188: =IF(INDEX($C188:$L188,1,aux!$BA$1)>0,(L188-INDEX($C188:$L188,1,aux!$BA$1))/INDEX($C188:$L188,1,aux!$BA$1),"n.d.") -> n.d. | AH188: =X188-INDEX($O188:$X188,1,aux!$BA$1) -> 0 | AI188: 0 | AJ188: =+IF(INDEX($O188:$X188,1,aux!$BA$1)>0,(X188/INDEX($O188:$X188,1,aux!$BA$1))^(1/($X$3-INDEX($O$3:$X$3,1,aux!$BA$1)))-1,"n.d.") -> n.d. | AK188: =IF(INDEX($O188:$X188,1,aux!$BA$1)>0,(X188-INDEX($O188:$X188,1,aux!$BA$1))/INDEX($O188:$X188,1,aux!$BA$1),"n.d.") -> n.d. | BO188: 0 | CC188: =+IF(ISNA(MATCH('5.1'!A188,AUX_2d_pais!$G$2:$G$40000,0)),0,1) -> 0
A189: 0006 | B189: Reino Unido | C189: 62235.318 | D189: 34746.233 | E189: 50405.719 | F189: 33024.849 | G189: 36754.49 | H189: 34270.275 | I189: 36197.639 | J189: 32920.938 | K189: 46899.832 | L189: 27920.351 | M189: 39537.5644 | N189: 0.08985472893 | O189: 72276.745 | P189: 77981.985 | Q189: 78390.094 | R189: 79331.211 | S189: 85970.692 | T189: 82016.81 | U189: 87240.818 | V189: 83041.278 | W189: 86334.089 | X189: 103839.157 | Y189: 83642.2879 | Z189: 0.07650587567 | AA189: 44104.7235 | AC189: =L189-INDEX($C189:$L189,1,aux!$BA$1) -> -34314.967 | AD189: -0.4775371273 | AE189: =+IF(INDEX($C189:$L189,1,aux!$BA$1)>0,(L189/INDEX($C189:$L189,1,aux!$BA$1))^(1/($L$3-INDEX($C$3:$L$3,1,aux!$BA$1)))-1,"n.d.") -> -0.08521203982 | AF189: =IF(INDEX($C189:$L189,1,aux!$BA$1)>0,(L189-INDEX($C189:$L189,1,aux!$BA$1))/INDEX($C189:$L189,1,aux!$BA$1),"n.d.") -> -0.5513744945 | AH189: =X189-INDEX($O189:$X189,1,aux!$BA$1) -> 31562.412 | AI189: 0.2321173295 | AJ189: =+IF(INDEX($O189:$X189,1,aux!$BA$1)>0,(X189/INDEX($O189:$X189,1,aux!$BA$1))^(1/($X$3-INDEX($O$3:$X$3,1,aux!$BA$1)))-1,"n.d.") -> 0.04108150151 | AK189: =IF(INDEX($O189:$X189,1,aux!$BA$1)>0,(X189-INDEX($O189:$X189,1,aux!$BA$1))/INDEX($O189:$X189,1,aux!$BA$1),"n.d.") -> 0.4366883428 | CC189: =+IF(ISNA(MATCH('5.1'!A189,AUX_2d_pais!$G$2:$G$40000,0)),0,1) -> 1
A190: 0372 | B190: Reunião, Ilha da | C190: 0 | D190: 0 | E190: 0 | F190: 0 | G190: 0 | H190: 0 | I190: 0 | J190: 0 | K190: 0 | L190: 0 | M190: 0 | N190: 0 | O190: 0 | P190: 0 | Q190: 0 | R190: 0 | S190: 0 | T190: 0 | U190: 0 | V190: 0 | W190: 0 | X190: 0 | Y190: 0 | Z190: 0 | AA190: 0 | AC190: =L190-INDEX($C190:$L190,1,aux!$BA$1) -> 0 | AD190: 0 | AE190: =+IF(INDEX($C190:$L190,1,aux!$BA$1)>0,(L190/INDEX($C190:$L190,1,aux!$BA$1))^(1/($L$3-INDEX($C$3:$L$3,1,aux!$BA$1)))-1,"n.d.") -> n.d. | AF190: =IF(INDEX($C190:$L190,1,aux!$BA$1)>0,(L190-INDEX($C190:$L190,1,aux!$BA$1))/INDEX($C190:$L190,1,aux!$BA$1),"n.d.") -> n.d. | AH190: =X190-INDEX($O190:$X190,1,aux!$BA$1) -> 0 | AI190: 0 | AJ190: =+IF(INDEX($O190:$X190,1,aux!$BA$1)>0,(X190/INDEX($O190:$X190,1,aux!$BA$1))^(1/($X$3-INDEX($O$3:$X$3,1,aux!$BA$1)))-1,"n.d.") -> n.d. | AK190: =IF(INDEX($O190:$X190,1,aux!$BA$1)>0,(X190-INDEX($O190:$X190,1,aux!$BA$1))/INDEX($O190:$X190,1,aux!$BA$1),"n.d.") -> n.d. | BO190: 0 | CC190: =+IF(ISNA(MATCH('5.1'!A190,AUX_2d_pais!$G$2:$G$40000,0)),0,1) -> 0
A191: 0066 | B191: Roménia | C191: 0 | D191: 1.955 | E191: 1.014 | F191: 2.996 | G191: 0 | H191: 7.647 | I191: 0 | J191: 27.21 | K191: 3.194 | L191: 0 | M191: 4.4016 | N191: 1.000326097e-05 | O191: 177.835 | P191: 184.062 | Q191: 347.776 | R191: 263.275 | S191: 281.095 | T191: 476.158 | U191: 686.499 | V191: 952.657 | W191: 1149.962 | X191: 1344.559 | Y191: 586.3878 | Z191: 0.0005363568267 | AA191: 581.9862 | AC191: =L191-INDEX($C191:$L191,1,aux!$BA$1) -> 0 | AD191: 0 | AE191: =+IF(INDEX($C191:$L191,1,aux!$BA$1)>0,(L191/INDEX($C191:$L191,1,aux!$BA$1))^(1/($L$3-INDEX($C$3:$L$3,1,aux!$BA$1)))-1,"n.d.") -> n.d. | AF191: =IF(INDEX($C191:$L191,1,aux!$BA$1)>0,(L191-INDEX($C191:$L191,1,aux!$BA$1))/INDEX($C191:$L191,1,aux!$BA$1),"n.d.") -> n.d. | AH191: =X191-INDEX($O191:$X191,1,aux!$BA$1) -> 1166.724 | AI191: 0.008580360056 | AJ191: =+IF(INDEX($O191:$X191,1,aux!$BA$1)>0,(X191/INDEX($O191:$X191,1,aux!$BA$1))^(1/($X$3-INDEX($O$3:$X$3,1,aux!$BA$1)))-1,"n.d.") -> 0.2520396124 | AK191: =IF(INDEX($O191:$X191,1,aux!$BA$1)>0,(X191-INDEX($O191:$X191,1,aux!$BA$1))/INDEX($O191:$X191,1,aux!$BA$1),"n.d.") -> 6.560710771 | CC191: =+IF(ISNA(MATCH('5.1'!A191,AUX_2d_pais!$G$2:$G$40000,0)),0,1) -> 1
A192: 0324 | B192: Ruanda | C192: 0 | D192: 0 | E192: 0 | F192: 0 | G192: 0 | H192: 0 | I192: 0 | J192: 0 | K192: 0 | L192: 0 | M192: 0 | N192: 0 | O192: 0 | P192: 33.215 | Q192: 0 | R192: 0 | S192: 27.087 | T192: 0.09 | U192: 1.3 | V192: 77.969 | W192: 193.535 | X192: 199.604 | Y192: 53.28 | Z192: 4.873411713e-05 | AA192: 53.28 | AC192: =L192-INDEX($C192:$L192,1,aux!$BA$1) -> 0 | AD192: 0 | AE192: =+IF(INDEX($C192:$L192,1,aux!$BA$1)>0,(L192/INDEX($C192:$L192,1,aux!$BA$1))^(1/($L$3-INDEX($C$3:$L$3,1,aux!$BA$1)))-1,"n.d.") -> n.d. | AF192: =IF(INDEX($C192:$L192,1,aux!$BA$1)>0,(L192-INDEX($C192:$L192,1,aux!$BA$1))/INDEX($C192:$L192,1,aux!$BA$1),"n.d.") -> n.d. | AH192: =X192-INDEX($O192:$X192,1,aux!$BA$1) -> 199.604 | AI192: 0.001467934309 | AJ192: =+IF(INDEX($O192:$X192,1,aux!$BA$1)>0,(X192/INDEX($O192:$X192,1,aux!$BA$1))^(1/($X$3-INDEX($O$3:$X$3,1,aux!$BA$1)))-1,"n.d.") -> n.d. | AK192: =IF(INDEX($O192:$X192,1,aux!$BA$1)>0,(X192-INDEX($O192:$X192,1,aux!$BA$1))/INDEX($O192:$X192,1,aux!$BA$1),"n.d.") -> n.d. | BO192: 532.8 | CC192: =+IF(ISNA(MATCH('5.1'!A192,AUX_2d_pais!$G$2:$G$40000,0)),0,1) -> 1
A193: 0075 | B193: Rússia, Federação da | C193: 79.561 | D193: 65.594 | E193: 43.814 | F193: 56.202 | G193: 108.265 | H193: 85.087 | I193: 91.02 | J193: 91.326 | K193: 98.372 | L193: 100.008 | M193: 81.9249 | N193: 0.0001861859675 | O193: 1829.337 | P193: 2005.111 | Q193: 2266.95 | R193: 2138.187 | S193: 1587.749 | T193: 3766.655 | U193: 4527.924 | V193: 4553.68 | W193: 6399.779 | X193: 8391.559 | Y193: 3746.6931 | Z193: 0.003427022905 | AA193: 3664.7682 | AC193: =L193-INDEX($C193:$L193,1,aux!$BA$1) -> 20.447 | AD193: 0.0002845464384 | AE193: =+IF(INDEX($C193:$L193,1,aux!$BA$1)>0,(L193/INDEX($C193:$L193,1,aux!$BA$1))^(1/($L$3-INDEX($C$3:$L$3,1,aux!$BA$1)))-1,"n.d.") -> 0.02573970707 | AF193: =IF(INDEX($C193:$L193,1,aux!$BA$1)>0,(L193-INDEX($C193:$L193,1,aux!$BA$1))/INDEX($C193:$L193,1,aux!$BA$1),"n.d.") -> 0.2569977753 | AH193: =X193-INDEX($O193:$X193,1,aux!$BA$1) -> 6562.222 | AI193: 0.0482601091 | AJ193: =+IF(INDEX($O193:$X193,1,aux!$BA$1)>0,(X193/INDEX($O193:$X193,1,aux!$BA$1))^(1/($X$3-INDEX($O$3:$X$3,1,aux!$BA$1)))-1,"n.d.") -> 0.1844191951 | AK193: =IF(INDEX($O193:$X193,1,aux!$BA$1)>0,(X193-INDEX($O193:$X193,1,aux!$BA$1))/INDEX($O193:$X193,1,aux!$BA$1),"n.d.") -> 3.587213291 | CC193: =+IF(ISNA(MATCH('5.1'!A193,AUX_2d_pais!$G$2:$G$40000,0)),0,1) -> 1
A194: 0806 | B194: Salomão, Ilhas | C194: 0 | D194: 0 | E194: 0 | F194: 0 | G194: 0 | H194: 0 | I194: 0 | J194: 0 | K194: 0 | L194: 0 | M194: 0 | N194: 0 | O194: 0 | P194: 0 | Q194: 0 | R194: 0 | S194: 0 | T194: 0.337 | U194: 0 | V194: 0 | W194: 0 | X194: 0 | Y194: 0.0337 | Z194: 3.082469496e-08 | AA194: 0.0337 | AC194: =L194-INDEX($C194:$L194,1,aux!$BA$1) -> 0 | AD194: 0 | AE194: =+IF(INDEX($C194:$L194,1,aux!$BA$1)>0,(L194/INDEX($C194:$L194,1,aux!$BA$1))^(1/($L$3-INDEX($C$3:$L$3,1,aux!$BA$1)))-1,"n.d.") -> n.d. | AF194: =IF(INDEX($C194:$L194,1,aux!$BA$1)>0,(L194-INDEX($C194:$L194,1,aux!$BA$1))/INDEX($C194:$L194,1,aux!$BA$1),"n.d.") -> n.d. | AH194: =X194-INDEX($O194:$X194,1,aux!$BA$1) -> 0 | AI194: 0 | AJ194: =+IF(INDEX($O194:$X194,1,aux!$BA$1)>0,(X194/INDEX($O194:$X194,1,aux!$BA$1))^(1/($X$3-INDEX($O$3:$X$3,1,aux!$BA$1)))-1,"n.d.") -> n.d. | AK194: =IF(INDEX($O194:$X194,1,aux!$BA$1)>0,(X194-INDEX($O194:$X194,1,aux!$BA$1))/INDEX($O194:$X194,1,aux!$BA$1),"n.d.") -> n.d. | BO194: 0.337 | CC194: =+IF(ISNA(MATCH('5.1'!A194,AUX_2d_pais!$G$2:$G$40000,0)),0,1) -> 1
A195: 0819 | B195: Samoa | C195: 0 | D195: 0 | E195: 0 | F195: 0 | G195: 0 | H195: 0 | I195: 0 | J195: 0 | K195: 0 | L195: 0 | M195: 0 | N195: 0 | O195: 0 | P195: 0 | Q195: 0 | R195: 0 | S195: 0 | T195: 0 | U195: 0 | V195: 0 | W195: 0 | X195: 0 | Y195: 0 | Z195: 0 | AA195: 0 | AC195: =L195-INDEX($C195:$L195,1,aux!$BA$1) -> 0 | AD195: 0 | AE195: =+IF(INDEX($C195:$L195,1,aux!$BA$1)>0,(L195/INDEX($C195:$L195,1,aux!$BA$1))^(1/($L$3-INDEX($C$3:$L$3,1,aux!$BA$1)))-1,"n.d.") -> n.d. | AF195: =IF(INDEX($C195:$L195,1,aux!$BA$1)>0,(L195-INDEX($C195:$L195,1,aux!$BA$1))/INDEX($C195:$L195,1,aux!$BA$1),"n.d.") -> n.d. | AH195: =X195-INDEX($O195:$X195,1,aux!$BA$1) -> 0 | AI195: 0 | AJ195: =+IF(INDEX($O195:$X195,1,aux!$BA$1)>0,(X195/INDEX($O195:$X195,1,aux!$BA$1))^(1/($X$3-INDEX($O$3:$X$3,1,aux!$BA$1)))-1,"n.d.") -> n.d. | AK195: =IF(INDEX($O195:$X195,1,aux!$BA$1)>0,(X195-INDEX($O195:$X195,1,aux!$BA$1))/INDEX($O195:$X195,1,aux!$BA$1),"n.d.") -> n.d. | BO195: 0 | CC195: =+IF(ISNA(MATCH('5.1'!A195,AUX_2d_pais!$G$2:$G$40000,0)),0,1) -> 0
A196: 0830 | B196: Samoa Americana | C196: 0 | D196: 0 | E196: 0 | F196: 0 | G196: 0 | H196: 0 | I196: 0 | J196: 0 | K196: 0 | L196: 0 | M196: 0 | N196: 0 | O196: 0 | P196: 0 | Q196: 0 | R196: 0 | S196: 0 | T196: 0 | U196: 0 | V196: 0 | W196: 0 | X196: 0 | Y196: 0 | Z196: 0 | AA196: 0 | AC196: =L196-INDEX($C196:$L196,1,aux!$BA$1) -> 0 | AD196: 0 | AE196: =+IF(INDEX($C196:$L196,1,aux!$BA$1)>0,(L196/INDEX($C196:$L196,1,aux!$BA$1))^(1/($L$3-INDEX($C$3:$L$3,1,aux!$BA$1)))-1,"n.d.") -> n.d. | AF196: =IF(INDEX($C196:$L196,1,aux!$BA$1)>0,(L196-INDEX($C196:$L196,1,aux!$BA$1))/INDEX($C196:$L196,1,aux!$BA$1),"n.d.") -> n.d. | AH196: =X196-INDEX($O196:$X196,1,aux!$BA$1) -> 0 | AI196: 0 | AJ196: =+IF(INDEX($O196:$X196,1,aux!$BA$1)>0,(X196/INDEX($O196:$X196,1,aux!$BA$1))^(1/($X$3-INDEX($O$3:$X$3,1,aux!$BA$1)))-1,"n.d.") -> n.d. | AK196: =IF(INDEX($O196:$X196,1,aux!$BA$1)>0,(X196-INDEX($O196:$X196,1,aux!$BA$1))/INDEX($O196:$X196,1,aux!$BA$1),"n.d.") -> n.d. | BO196: =SUM(C196:L196,O196:X196) -> 0 | CC196: =+IF(ISNA(MATCH('5.1'!A196,AUX_2d_pais!$G$2:$G$40000,0)),0,1) -> 0
A197: 0329 | B197: Santa Helena | C197: 0 | D197: 0 | E197: 0 | F197: 0 | G197: 0 | H197: 0 | I197: 0 | J197: 0 | K197: 0 | L197: 0 | M197: 0 | N197: 0 | O197: 0 | P197: 0 | Q197: 0 | R197: 0 | S197: 0 | T197: 0 | U197: 0 | V197: 0 | W197: 0 | X197: 0 | Y197: 0 | Z197: 0 | AA197: 0 | AC197: =L197-INDEX($C197:$L197,1,aux!$BA$1) -> 0 | AD197: 0 | AE197: =+IF(INDEX($C197:$L197,1,aux!$BA$1)>0,(L197/INDEX($C197:$L197,1,aux!$BA$1))^(1/($L$3-INDEX($C$3:$L$3,1,aux!$BA$1)))-1,"n.d.") -> n.d. | AF197: =IF(INDEX($C197:$L197,1,aux!$BA$1)>0,(L197-INDEX($C197:$L197,1,aux!$BA$1))/INDEX($C197:$L197,1,aux!$BA$1),"n.d.") -> n.d. | AH197: =X197-INDEX($O197:$X197,1,aux!$BA$1) -> 0 | AI197: 0 | AJ197: =+IF(INDEX($O197:$X197,1,aux!$BA$1)>0,(X197/INDEX($O197:$X197,1,aux!$BA$1))^(1/($X$3-INDEX($O$3:$X$3,1,aux!$BA$1)))-1,"n.d.") -> n.d. | AK197: =IF(INDEX($O197:$X197,1,aux!$BA$1)>0,(X197-INDEX($O197:$X197,1,aux!$BA$1))/INDEX($O197:$X197,1,aux!$BA$1),"n.d.") -> n.d. | BO197: 0 | CC197: =+IF(ISNA(MATCH('5.1'!A197,AUX_2d_pais!$G$2:$G$40000,0)),0,1) -> 0
A198: 0465 | B198: Santa Lúcia | C198: 0 | D198: 0 | E198: 0 | F198: 0 | G198: 0 | H198: 0 | I198: 0 | J198: 0 | K198: 0 | L198: 0 | M198: 0 | N198: 0 | O198: 0 | P198: 0 | Q198: 0 | R198: 0 | S198: 0 | T198: 0.046 | U198: 0 | V198: 0 | W198: 0 | X198: 0 | Y198: 0.0046 | Z198: 4.207525128e-09 | AA198: 0.0046 | AC198: =L198-INDEX($C198:$L198,1,aux!$BA$1) -> 0 | AD198: 0 | AE198: =+IF(INDEX($C198:$L198,1,aux!$BA$1)>0,(L198/INDEX($C198:$L198,1,aux!$BA$1))^(1/($L$3-INDEX($C$3:$L$3,1,aux!$BA$1)))-1,"n.d.") -> n.d. | AF198: =IF(INDEX($C198:$L198,1,aux!$BA$1)>0,(L198-INDEX($C198:$L198,1,aux!$BA$1))/INDEX($C198:$L198,1,aux!$BA$1),"n.d.") -> n.d. | AH198: =X198-INDEX($O198:$X198,1,aux!$BA$1) -> 0 | AI198: 0 | AJ198: =+IF(INDEX($O198:$X198,1,aux!$BA$1)>0,(X198/INDEX($O198:$X198,1,aux!$BA$1))^(1/($X$3-INDEX($O$3:$X$3,1,aux!$BA$1)))-1,"n.d.") -> n.d. | AK198: =IF(INDEX($O198:$X198,1,aux!$BA$1)>0,(X198-INDEX($O198:$X198,1,aux!$BA$1))/INDEX($O198:$X198,1,aux!$BA$1),"n.d.") -> n.d. | BO198: 0.046 | CC198: =+IF(ISNA(MATCH('5.1'!A198,AUX_2d_pais!$G$2:$G$40000,0)),0,1) -> 1
A199: 0045 | B199: Santa Sé (Cidade Estado do Vaticano) | C199: 0 | D199: 0 | E199: 0 | F199: 0 | G199: 0 | H199: 0 | I199: 0 | J199: 0 | K199: 0 | L199: 0 | M199: 0 | N199: 0 | O199: 0 | P199: 0 | Q199: 0 | R199: 0 | S199: 0 | T199: 0 | U199: 0 | V199: 0.011 | W199: 0.015 | X199: 0 | Y199: 0.0026 | Z199: 2.378166376e-09 | AA199: 0.0026 | AC199: =L199-INDEX($C199:$L199,1,aux!$BA$1) -> 0 | AD199: 0 | AE199: =+IF(INDEX($C199:$L199,1,aux!$BA$1)>0,(L199/INDEX($C199:$L199,1,aux!$BA$1))^(1/($L$3-INDEX($C$3:$L$3,1,aux!$BA$1)))-1,"n.d.") -> n.d. | AF199: =IF(INDEX($C199:$L199,1,aux!$BA$1)>0,(L199-INDEX($C199:$L199,1,aux!$BA$1))/INDEX($C199:$L199,1,aux!$BA$1),"n.d.") -> n.d. | AH199: =X199-INDEX($O199:$X199,1,aux!$BA$1) -> 0 | AI199: 0 | AJ199: =+IF(INDEX($O199:$X199,1,aux!$BA$1)>0,(X199/INDEX($O199:$X199,1,aux!$BA$1))^(1/($X$3-INDEX($O$3:$X$3,1,aux!$BA$1)))-1,"n.d.") -> n.d. | AK199: =IF(INDEX($O199:$X199,1,aux!$BA$1)>0,(X199-INDEX($O199:$X199,1,aux!$BA$1))/INDEX($O199:$X199,1,aux!$BA$1),"n.d.") -> n.d. | BO199: 0.026 | CC199: =+IF(ISNA(MATCH('5.1'!A199,AUX_2d_pais!$G$2:$G$40000,0)),0,1) -> 1
A200: 0466 | B200: São Bartolomeu | C200: 0 | D200: 0 | E200: 0 | F200: 0 | G200: 0 | H200: 0 | I200: 0 | J200: 0 | K200: 0 | L200: 0 | M200: 0 | N200: 0 | O200: 0 | P200: 0 | Q200: 192.057 | R200: 253.81 | S200: 339.004 | T200: 327.07 | U200: 401.349 | V200: 375.317 | W200: 392.78 | X200: 460.383 | Y200: 274.177 | Z200: 0.0002507840472 | AA200: 274.177 | AC200: =L200-INDEX($C200:$L200,1,aux!$BA$1) -> 0 | AD200: 0 | AE200: =+IF(INDEX($C200:$L200,1,aux!$BA$1)>0,(L200/INDEX($C200:$L200,1,aux!$BA$1))^(1/($L$3-INDEX($C$3:$L$3,1,aux!$BA$1)))-1,"n.d.") -> n.d. | AF200: =IF(INDEX($C200:$L200,1,aux!$BA$1)>0,(L200-INDEX($C200:$L200,1,aux!$BA$1))/INDEX($C200:$L200,1,aux!$BA$1),"n.d.") -> n.d. | AH200: =X200-INDEX($O200:$X200,1,aux!$BA$1) -> 460.383 | AI200: 0.003385763817 | AJ200: =+IF(INDEX($O200:$X200,1,aux!$BA$1)>0,(X200/INDEX($O200:$X200,1,aux!$BA$1))^(1/($X$3-INDEX($O$3:$X$3,1,aux!$BA$1)))-1,"n.d.") -> n.d. | AK200: =IF(INDEX($O200:$X200,1,aux!$BA$1)>0,(X200-INDEX($O200:$X200,1,aux!$BA$1))/INDEX($O200:$X200,1,aux!$BA$1),"n.d.") -> n.d. | CC200: =+IF(ISNA(MATCH('5.1'!A200,AUX_2d_pais!$G$2:$G$40000,0)),0,1) -> 1
... 54 more rows

Sheet 5.1_var
A1: ="Principais contributos por país para a variação das trocas comerciais PT-Todo o Mundo_x000D_ no período " & INDEX('5.2'!P3:X3,1,aux!BA1) & "-2020 Bebidas, líquidos alcoólicos e vinagres (NC 22) (valores em milhares de euros)" -> Principais contributos por país para a variação das trocas comerciais PT-Todo o Mundo no período 2011-2020 Bebidas, líquidos alcoólicos e vinagres (NC 22) (valores em milhares de euros)
E5: aumento das importações | J5: aumento das exportações
E17: redução das importações | J17: redução das exportações
A28: Fonte: GPP a partir de dados INE/Comércio Internacional (2019 provisórios; 2020 preliminares) | H28: ='3'!Y62 -> 2021-12-30
A29: Cód. NC | B29: Descritivo | C29: ="Variação das Importações " & INDEX('5.2'!C3:L3,1,aux!BA1) & "-"& '5.2'!L3&"" -> Variação das Importações 2011-2020 | F29: Cód. NC | G29: Descritivo | H29: ="Variação das Exportações " & INDEX('5.2'!P3:X3,1,aux!BA1) & "-"& '5.2'!Y3 &"" -> Variação das Exportações 2011-2020
C30: variação total em valor | D30: % do aumento/ redução total | H30: variação total em valor | I30: % do aumento/ redução total
A31: =IF(C31>0,aux!CY6,"") -> 0011 | B31: =IF(C31>0,aux!CZ6,"") -> Espanha | C31: =IF(aux!DA6>0,aux!DA6,0) -> 66195.672 | D31: =IF(SUM($C$31:$C$41)<>0,C31/SUM($C$31:$C$41),0) -> 0.6355095637 | F31: =IF(H31>0,aux!DD6,"") -> 0011 | G31: =IF(H31>0,aux!DE6,"") -> Espanha | H31: =IF(aux!DF6>0,aux!DF6,0) -> 60220.032 | I31: =IF(SUM($H$31:$H$41)<>0,H31/SUM($H$31:$H$41),0) -> 0.1612761629
A32: =IF(C32>0,aux!CY7,"") -> 0003 | B32: =IF(C32>0,aux!CZ7,"") -> Países Baixos | C32: =IF(aux!DA7>0,aux!DA7,0) -> 17925.29 | D32: =IF(SUM($C$31:$C$41)<>0,C32/SUM($C$31:$C$41),0) -> 0.172091209 | F32: =IF(H32>0,aux!DD7,"") -> 0400 | G32: =IF(H32>0,aux!DE7,"") -> Estados Unidos | H32: =IF(aux!DF7>0,aux!DF7,0) -> 46063.227 | I32: =IF(SUM($H$31:$H$41)<>0,H32/SUM($H$31:$H$41),0) -> 0.123362613
A33: =IF(C33>0,aux!CY8,"") -> 0005 | B33: =IF(C33>0,aux!CZ8,"") -> Itália | C33: =IF(aux!DA8>0,aux!DA8,0) -> 5470.05 | D33: 0.05251505097 | F33: =IF(H33>0,aux!DD8,"") -> 0508 | G33: =IF(H33>0,aux!DE8,"") -> Brasil | H33: =IF(aux!DF8>0,aux!DF8,0) -> 38637.077 | I33: 0.1034745303
A34: =IF(C34>0,aux!CY9,"") -> 0004 | B34: =IF(C34>0,aux!CZ9,"") -> Alemanha | C34: =IF(aux!DA9>0,aux!DA9,0) -> 4086.812 | D34: 0.03923531604 | F34: =IF(H34>0,aux!DD9,"") -> 0006 | G34: =IF(H34>0,aux!DE9,"") -> Reino Unido | H34: =IF(aux!DF9>0,aux!DF9,0) -> 31562.412 | I34: 0.08452776475
A35: =IF(C35>0,aux!CY10,"") -> 0001 | B35: =IF(C35>0,aux!CZ10,"") -> França | C35: =IF(aux!DA10>0,aux!DA10,0) -> 2295.294 | D35: 0.02203590121 | F35: =IF(H35>0,aux!DD10,"") -> 0004 | G35: =IF(H35>0,aux!DE10,"") -> Alemanha | H35: =IF(aux!DF10>0,aux!DF10,0) -> 19167.821 | I35: 0.05133362635
A36: =IF(C36>0,aux!CY11,"") -> 0400 | B36: =IF(C36>0,aux!CZ11,"") -> Estados Unidos | C36: =IF(aux!DA11>0,aux!DA11,0) -> 1557.202 | D36: 0.0149498711 | F36: =IF(H36>0,aux!DD11,"") -> 0720 | G36: =IF(H36>0,aux!DE11,"") -> China, República Popular da | H36: =IF(aux!DF11>0,aux!DF11,0) -> 17197.719 | I36: 0.0460574669
A37: =IF(C37>0,aux!CY12,"") -> 0017 | B37: =IF(C37>0,aux!CZ12,"") -> Bélgica | C37: =IF(aux!DA12>0,aux!DA12,0) -> 1150.786 | D37: 0.01104808648 | F37: =IF(H37>0,aux!DD12,"") -> 0060 | G37: =IF(H37>0,aux!DE12,"") -> Polónia | H37: =IF(aux!DF12>0,aux!DF12,0) -> 16506.074 | I37: 0.04420516214
A38: =IF(C38>0,aux!CY13,"") -> 0018 | B38: =IF(C38>0,aux!CZ13,"") -> Luxemburgo | C38: =IF(aux!DA13>0,aux!DA13,0) -> 1066.61 | D38: 0.01023995732 | F38: =IF(H38>0,aux!DD13,"") -> 0039 | G38: =IF(H38>0,aux!DE13,"") -> Suíça | H38: =IF(aux!DF13>0,aux!DF13,0) -> 16153.842 | I38: 0.04326184439
A39: =IF(C39>0,aux!CY14,"") -> 0720 | B39: =IF(C39>0,aux!CZ14,"") -> China, República Popular da | C39: =IF(aux!DA14>0,aux!DA14,0) -> 933.316 | D39: 0.008960272266 | F39: =IF(H39>0,aux!DD14,"") -> 0404 | G39: =IF(H39>0,aux!DE14,"") -> Canadá | H39: =IF(aux!DF14>0,aux!DF14,0) -> 15489.408 | I39: 0.04148241381
A40: =IF(C40>0,aux!CY15,"") -> 0060 | B40: =IF(C40>0,aux!CZ15,"") -> Polónia | C40: =IF(aux!DA15>0,aux!DA15,0) -> 592.076 | D40: 0.005684207881 | F40: =IF(H40>0,aux!DD15,"") -> 0030 | G40: =IF(H40>0,aux!DE15,"") -> Suécia | H40: =IF(aux!DF15>0,aux!DF15,0) -> 14991.625 | I40: 0.04014929376
B41: Outros contributos para o aumento das importações | C41: =SUMIF(aux!DA16:DA252,">0") -> 2888.459 | D41: 0.027730564 | G41: Outros contributos para o aumento das exportações | H41: =SUMIF(aux!DF16:DF252,">0") -> 97407.742 | I41: 0.2608691218
B42: Outros contributos para a redução das importações | C42: =SUMIF(aux!DA6:DA242,"<0") -> -1223.043 | D42: =IF(SUM($C$42:$C$52)<>0,C42/SUM($C$42:$C$52),0) -> 0.02679686256 | G42: Outros contributos para a redução das exportações | H42: =SUMIF(aux!DF6:DF242,"<0") -> -1141.73 | I42: =IF(SUM($H$42:$H$52)<>0,H42/SUM($H$42:$H$52),0) -> 0.004804154289
A43: =IF(C43<>0,aux!CY243,"") -> 0804 | B43: =IF(C43<0,aux!CZ243,"") -> Nova Zelânda | C43: =IF(aux!DA243<0,aux!DA243,0) -> -227.05 | D43: =IF(SUM($C$42:$C$52)<>0,C43/SUM($C$42:$C$52),0) -> 0.004974663723 | F43: =IF(H43<>0,aux!DD243,"") -> 0600 | G43: =IF(H43<>0,aux!DE243,"") -> Chipre | H43: =IF(aux!DF243<0,aux!DF243,0) -> -193.183 | I43: =IF(SUM($H$42:$H$52)<>0,H43/SUM($H$42:$H$52),0) -> 0.0008128725163
A44: =IF(C44<>0,aux!CY244,"") -> 0054 | B44: =IF(C44<0,aux!CZ244,"") -> Letónia | C44: =IF(aux!DA244<0,aux!DA244,0) -> -309.425 | D44: 0.006779499329 | F44: =IF(H44<>0,aux!DD244,"") -> 0389 | G44: =IF(H44<>0,aux!DE244,"") -> Namíbia | H44: =IF(aux!DF244<0,aux!DF244,0) -> -208.44 | I44: 0.0008770706909
A45: =IF(C45<>0,aux!CY245,"") -> 0046 | B45: =IF(C45<0,aux!CZ245,"") -> Malta | C45: =IF(aux!DA245<0,aux!DA245,0) -> -370.543 | D45: 0.00811859423 | F45: =IF(H45<>0,aux!DD245,"") -> 0322 | G45: =IF(H45<>0,aux!DE245,"") -> Congo, República Democrática do | H45: =IF(aux!DF245<0,aux!DF245,0) -> -225.915 | I45: 0.0009506017326
A46: =IF(C46<>0,aux!CY246,"") -> 0508 | B46: =IF(C46<0,aux!CZ246,"") -> Brasil | C46: =IF(aux!DA246<0,aux!DA246,0) -> -418.056 | D46: 0.009159603689 | F46: =IF(H46<>0,aux!DD246,"") -> 0412 | G46: =IF(H46<>0,aux!DE246,"") -> México | H46: =IF(aux!DF246<0,aux!DF246,0) -> -856.759 | I46: 0.003605057609
A47: =IF(C47<>0,aux!CY247,"") -> 0008 | B47: =IF(C47<0,aux!CZ247,"") -> Dinamarca | C47: =IF(aux!DA247<0,aux!DA247,0) -> -575.407 | D47: 0.01260716287 | F47: =IF(H47<>0,aux!DD247,"") -> 0484 | G47: =IF(H47<>0,aux!DE247,"") -> Venezuela | H47: =IF(aux!DF247<0,aux!DF247,0) -> -1114.091 | I47: 0.004687855321
A48: =IF(C48<>0,aux!CY248,"") -> 0030 | B48: =IF(C48<0,aux!CZ248,"") -> Suécia | C48: =IF(aux!DA248<0,aux!DA248,0) -> -972.114 | D48: 0.02129901013 | F48: =IF(H48<>0,aux!DD248,"") -> 0001 | G48: =IF(H48<>0,aux!DE248,"") -> França | H48: =IF(aux!DF248<0,aux!DF248,0) -> -1127.153 | I48: 0.004742817408
A49: =IF(C49<>0,aux!CY249,"") -> 0076 | B49: =IF(C49<0,aux!CZ249,"") -> Geórgia | C49: =IF(aux!DA249<0,aux!DA249,0) -> -1682.472 | D49: 0.03686294835 | F49: =IF(H49<>0,aux!DD249,"") -> 0740 | G49: =IF(H49<>0,aux!DE249,"") -> HongKong | H49: =IF(aux!DF249<0,aux!DF249,0) -> -1303.687 | I49: 0.005485634513
A50: =IF(C50<>0,aux!CY250,"") -> 0038 | B50: =IF(C50<0,aux!CZ250,"") -> Áustria | C50: =IF(aux!DA250<0,aux!DA250,0) -> -2426.093 | D50: 0.05315567864 | F50: =IF(H50<>0,aux!DD250,"") -> 0366 | G50: =IF(H50<>0,aux!DE250,"") -> Moçambique | H50: =IF(aux!DF250<0,aux!DF250,0) -> -1999.485 | I50: 0.008413402852
A51: =IF(C51<>0,aux!CY251,"") -> 0007 | B51: =IF(C51<0,aux!CZ251,"") -> Irlanda | C51: =IF(aux!DA251<0,aux!DA251,0) -> -3122.106 | D51: 0.06840531803 | F51: =IF(H51<>0,aux!DD251,"") -> 0247 | G51: =IF(H51<>0,aux!DE251,"") -> Cabo Verde | H51: =IF(aux!DF251<0,aux!DF251,0) -> -2344.767 | I51: 0.009866275248
A52: =IF(C52<>0,aux!CY252,"") -> 0006 | B52: =IF(C52<0,aux!CZ252,"") -> Reino Unido | C52: =IF(aux!DA252<0,aux!DA252,0) -> -34314.967 | D52: 0.7518406584 | F52: =IF(H52<>0,aux!DD252,"") -> 0330 | G52: =IF(H52<>0,aux!DE252,"") -> Angola | H52: =IF(aux!DF252<0,aux!DF252,0) -> -227139.522 | I52: 0.9557542578
A53: TOTAL | C53: =SUM(C31:C52) -> 58520.291 | F53: TOTAL | H53: =SUM(H31:H52) -> 135742.247

Sheet 5.2 (hidden)
A1: Trocas comerciais Portugal-Todo o Mundo 2011-2020 em milhares de euros (NC 2 dígitos) | C1: Bebidas
A2: Cód. NC | B2: Descritivo | C2: Importações | P2: Exportações | AC2: Saldo período (exp-imp) | AD2: Evolução das importações | AE2: =+"Variação das Importações " & INDEX(C3:K3,1,aux!BA1) & "-"& L3 &"" -> Variação das Importações 2011-2020 | AJ2: Evolução das exportações | AK2: ="Variação das Exportações " & INDEX(P3:X3,1,aux!BA1) & "-"& Y3 &"" -> Variação das Exportações 2011-2020
C3: 2011 | D3: 2012 | E3: 2013 | F3: 2014 | G3: 2015 | H3: 2016 | I3: 2017 | J3: 2018 | K3: 2019 | L3: 2020 | M3: média período | N3: % Subtot | O3: % Total | P3: 2011 | Q3: 2012 | R3: 2013 | S3: 2014 | T3: 2015 | U3: 2016 | V3: 2017 | W3: 2018 | X3: 2019 | Y3: 2020 | Z3: média período | AA3: % Subtot | AB3: % Total | AE3: variação total em valor | AF3: % no subtotal de variação | AG3: % no total de variação | AH3: taxa de variação média anual | AI3: taxa de variação total | AK3: variação total em valor | AL3: % no subtotal de variação | AM3: % no total de variação | AN3: taxa de variação média anual | AO3: taxa de variação total | CC3: filtro
A4: 01 | B4: Animais vivos | C4: 0 | D4: 0 | E4: 0 | F4: 0 | G4: 0 | H4: 0 | I4: 0 | J4: 0 | K4: 0 | L4: 0 | M4: 0 | N4: 0 | O4: 0 | P4: 0 | Q4: 0 | R4: 0 | S4: 0 | T4: 0 | U4: 0 | V4: 0 | W4: 0 | X4: 0 | Y4: 0 | Z4: 0 | AA4: 0 | AB4: 0 | AC4: 0 | AE4: =L4-INDEX($C4:$L4,1,aux!$BA$1) -> 0 | AF4: =IF($AE$37<>0,AE4/$AE$37, "n.d.") -> 0 | AG4: =IF($AE$53<>0,AE4/$AE$53, "n.d.") -> 0 | AH4: =+IF(INDEX($C4:$L4,1,aux!$BA$1)>0,(L4/INDEX($C4:$L4,1,aux!$BA$1))^(1/($L$3-INDEX($C$3:$L$3,1,aux!$BA$1)))-1,"n.d.") -> n.d. | AI4: =IF(INDEX($C4:$L4,1,aux!$BA$1)>0,(L4-INDEX($C4:$L4,1,aux!$BA$1))/INDEX($C4:$L4,1,aux!$BA$1),"n.d.") -> n.d. | AK4: =Y4-INDEX($P4:$Y4,1,aux!$BA$1) -> 0 | AL4: =IF($AK$37<>0,AK4/$AK$37, "n.d.") -> 0 | AM4: =IF($AK$53<>0,AK4/$AK$53, "n.d.") -> 0 | AN4: =+IF(INDEX($P4:$Y4,1,aux!$BA$1)>0,(Y4/INDEX($P4:$Y4,1,aux!$BA$1))^(1/($Y$3-INDEX($P$3:$Y$3,1,aux!$BA$1)))-1,"n.d.") -> n.d. | AO4: =IF(INDEX($P4:$Y4,1,aux!$BA$1)>0,(Y4-INDEX($P4:$Y4,1,aux!$BA$1))/INDEX($P4:$Y4,1,aux!$BA$1),"n.d.") -> n.d. | AP4: =SUM(C4:AC4) -> 0 | CC4: =SUM(C4:L4,P4:Y4) -> 0
A5: 02 | B5: Carnes e miudezas | C5: 0 | D5: 0 | E5: 0 | F5: 0 | G5: 0 | H5: 0 | I5: 0 | J5: 0 | K5: 0 | L5: 0 | M5: 0 | N5: 0 | O5: 0 | P5: 0 | Q5: 0 | R5: 0 | S5: 0 | T5: 0 | U5: 0 | V5: 0 | W5: 0 | X5: 0 | Y5: 0 | Z5: 0 | AA5: 0 | AB5: 0 | AC5: 0 | AE5: =L5-INDEX($C5:$L5,1,aux!$BA$1) -> 0 | AF5: 0 | AG5: 0 | AH5: =+IF(INDEX($C5:$L5,1,aux!$BA$1)>0,(L5/INDEX($C5:$L5,1,aux!$BA$1))^(1/($L$3-INDEX($C$3:$L$3,1,aux!$BA$1)))-1,"n.d.") -> n.d. | AI5: =IF(INDEX($C5:$L5,1,aux!$BA$1)>0,(L5-INDEX($C5:$L5,1,aux!$BA$1))/INDEX($C5:$L5,1,aux!$BA$1),"n.d.") -> n.d. | AK5: =Y5-INDEX($P5:$Y5,1,aux!$BA$1) -> 0 | AL5: 0 | AM5: 0 | AN5: =+IF(INDEX($P5:$Y5,1,aux!$BA$1)>0,(Y5/INDEX($P5:$Y5,1,aux!$BA$1))^(1/($Y$3-INDEX($P$3:$Y$3,1,aux!$BA$1)))-1,"n.d.") -> n.d. | AO5: =IF(INDEX($P5:$Y5,1,aux!$BA$1)>0,(Y5-INDEX($P5:$Y5,1,aux!$BA$1))/INDEX($P5:$Y5,1,aux!$BA$1),"n.d.") -> n.d. | AP5: 0 | CC5: 0
A6: 04 | B6: Leite e laticínios; ovos; mel, etc. | C6: 0 | D6: 0 | E6: 0 | F6: 0 | G6: 0 | H6: 0 | I6: 0 | J6: 0 | K6: 0 | L6: 0 | M6: 0 | N6: 0 | O6: 0 | P6: 0 | Q6: 0 | R6: 0 | S6: 0 | T6: 0 | U6: 0 | V6: 0 | W6: 0 | X6: 0 | Y6: 0 | Z6: 0 | AA6: 0 | AB6: 0 | AC6: 0 | AE6: =L6-INDEX($C6:$L6,1,aux!$BA$1) -> 0 | AF6: 0 | AG6: 0 | AH6: =+IF(INDEX($C6:$L6,1,aux!$BA$1)>0,(L6/INDEX($C6:$L6,1,aux!$BA$1))^(1/($L$3-INDEX($C$3:$L$3,1,aux!$BA$1)))-1,"n.d.") -> n.d. | AI6: =IF(INDEX($C6:$L6,1,aux!$BA$1)>0,(L6-INDEX($C6:$L6,1,aux!$BA$1))/INDEX($C6:$L6,1,aux!$BA$1),"n.d.") -> n.d. | AK6: =Y6-INDEX($P6:$Y6,1,aux!$BA$1) -> 0 | AL6: 0 | AM6: 0 | AN6: =+IF(INDEX($P6:$Y6,1,aux!$BA$1)>0,(Y6/INDEX($P6:$Y6,1,aux!$BA$1))^(1/($Y$3-INDEX($P$3:$Y$3,1,aux!$BA$1)))-1,"n.d.") -> n.d. | AO6: =IF(INDEX($P6:$Y6,1,aux!$BA$1)>0,(Y6-INDEX($P6:$Y6,1,aux!$BA$1))/INDEX($P6:$Y6,1,aux!$BA$1),"n.d.") -> n.d. | AP6: 0 | CC6: 0
A7: 05a | B7: Outros produtos de origem animal (exc. NC 0508, 051191) (a) | C7: 0 | D7: 0 | E7: 0 | F7: 0 | G7: 0 | H7: 0 | I7: 0 | J7: 0 | K7: 0 | L7: 0 | M7: 0 | N7: 0 | O7: 0 | P7: 0 | Q7: 0 | R7: 0 | S7: 0 | T7: 0 | U7: 0 | V7: 0 | W7: 0 | X7: 0 | Y7: 0 | Z7: 0 | AA7: 0 | AB7: 0 | AC7: 0 | AE7: =L7-INDEX($C7:$L7,1,aux!$BA$1) -> 0 | AF7: 0 | AG7: 0 | AH7: =+IF(INDEX($C7:$L7,1,aux!$BA$1)>0,(L7/INDEX($C7:$L7,1,aux!$BA$1))^(1/($L$3-INDEX($C$3:$L$3,1,aux!$BA$1)))-1,"n.d.") -> n.d. | AI7: =IF(INDEX($C7:$L7,1,aux!$BA$1)>0,(L7-INDEX($C7:$L7,1,aux!$BA$1))/INDEX($C7:$L7,1,aux!$BA$1),"n.d.") -> n.d. | AK7: =Y7-INDEX($P7:$Y7,1,aux!$BA$1) -> 0 | AL7: 0 | AM7: 0 | AN7: =+IF(INDEX($P7:$Y7,1,aux!$BA$1)>0,(Y7/INDEX($P7:$Y7,1,aux!$BA$1))^(1/($Y$3-INDEX($P$3:$Y$3,1,aux!$BA$1)))-1,"n.d.") -> n.d. | AO7: =IF(INDEX($P7:$Y7,1,aux!$BA$1)>0,(Y7-INDEX($P7:$Y7,1,aux!$BA$1))/INDEX($P7:$Y7,1,aux!$BA$1),"n.d.") -> n.d. | AP7: 0 | CC7: 0
A8: 06 | B8: Plantas vivas e produtos de floricultura | C8: 0 | D8: 0 | E8: 0 | F8: 0 | G8: 0 | H8: 0 | I8: 0 | J8: 0 | K8: 0 | L8: 0 | M8: 0 | N8: 0 | O8: 0 | P8: 0 | Q8: 0 | R8: 0 | S8: 0 | T8: 0 | U8: 0 | V8: 0 | W8: 0 | X8: 0 | Y8: 0 | Z8: 0 | AA8: 0 | AB8: 0 | AC8: 0 | AE8: =L8-INDEX($C8:$L8,1,aux!$BA$1) -> 0 | AF8: 0 | AG8: 0 | AH8: =+IF(INDEX($C8:$L8,1,aux!$BA$1)>0,(L8/INDEX($C8:$L8,1,aux!$BA$1))^(1/($L$3-INDEX($C$3:$L$3,1,aux!$BA$1)))-1,"n.d.") -> n.d. | AI8: =IF(INDEX($C8:$L8,1,aux!$BA$1)>0,(L8-INDEX($C8:$L8,1,aux!$BA$1))/INDEX($C8:$L8,1,aux!$BA$1),"n.d.") -> n.d. | AK8: =Y8-INDEX($P8:$Y8,1,aux!$BA$1) -> 0 | AL8: 0 | AM8: 0 | AN8: =+IF(INDEX($P8:$Y8,1,aux!$BA$1)>0,(Y8/INDEX($P8:$Y8,1,aux!$BA$1))^(1/($Y$3-INDEX($P$3:$Y$3,1,aux!$BA$1)))-1,"n.d.") -> n.d. | AO8: =IF(INDEX($P8:$Y8,1,aux!$BA$1)>0,(Y8-INDEX($P8:$Y8,1,aux!$BA$1))/INDEX($P8:$Y8,1,aux!$BA$1),"n.d.") -> n.d. | AP8: 0 | CC8: 0
A9: 07 | B9: Produtos hortícolas | C9: 0 | D9: 0 | E9: 0 | F9: 0 | G9: 0 | H9: 0 | I9: 0 | J9: 0 | K9: 0 | L9: 0 | M9: 0 | N9: 0 | O9: 0 | P9: 0 | Q9: 0 | R9: 0 | S9: 0 | T9: 0 | U9: 0 | V9: 0 | W9: 0 | X9: 0 | Y9: 0 | Z9: 0 | AA9: 0 | AB9: 0 | AC9: 0 | AE9: =L9-INDEX($C9:$L9,1,aux!$BA$1) -> 0 | AF9: 0 | AG9: 0 | AH9: =+IF(INDEX($C9:$L9,1,aux!$BA$1)>0,(L9/INDEX($C9:$L9,1,aux!$BA$1))^(1/($L$3-INDEX($C$3:$L$3,1,aux!$BA$1)))-1,"n.d.") -> n.d. | AI9: =IF(INDEX($C9:$L9,1,aux!$BA$1)>0,(L9-INDEX($C9:$L9,1,aux!$BA$1))/INDEX($C9:$L9,1,aux!$BA$1),"n.d.") -> n.d. | AK9: =Y9-INDEX($P9:$Y9,1,aux!$BA$1) -> 0 | AL9: 0 | AM9: 0 | AN9: =+IF(INDEX($P9:$Y9,1,aux!$BA$1)>0,(Y9/INDEX($P9:$Y9,1,aux!$BA$1))^(1/($Y$3-INDEX($P$3:$Y$3,1,aux!$BA$1)))-1,"n.d.") -> n.d. | AO9: =IF(INDEX($P9:$Y9,1,aux!$BA$1)>0,(Y9-INDEX($P9:$Y9,1,aux!$BA$1))/INDEX($P9:$Y9,1,aux!$BA$1),"n.d.") -> n.d. | AP9: 0 | CC9: 0
A10: 08 | B10: Frutas | C10: 0 | D10: 0 | E10: 0 | F10: 0 | G10: 0 | H10: 0 | I10: 0 | J10: 0 | K10: 0 | L10: 0 | M10: 0 | N10: 0 | O10: 0 | P10: 0 | Q10: 0 | R10: 0 | S10: 0 | T10: 0 | U10: 0 | V10: 0 | W10: 0 | X10: 0 | Y10: 0 | Z10: 0 | AA10: 0 | AB10: 0 | AC10: 0 | AE10: =L10-INDEX($C10:$L10,1,aux!$BA$1) -> 0 | AF10: 0 | AG10: 0 | AH10: =+IF(INDEX($C10:$L10,1,aux!$BA$1)>0,(L10/INDEX($C10:$L10,1,aux!$BA$1))^(1/($L$3-INDEX($C$3:$L$3,1,aux!$BA$1)))-1,"n.d.") -> n.d. | AI10: =IF(INDEX($C10:$L10,1,aux!$BA$1)>0,(L10-INDEX($C10:$L10,1,aux!$BA$1))/INDEX($C10:$L10,1,aux!$BA$1),"n.d.") -> n.d. | AK10: =Y10-INDEX($P10:$Y10,1,aux!$BA$1) -> 0 | AL10: 0 | AM10: 0 | AN10: =+IF(INDEX($P10:$Y10,1,aux!$BA$1)>0,(Y10/INDEX($P10:$Y10,1,aux!$BA$1))^(1/($Y$3-INDEX($P$3:$Y$3,1,aux!$BA$1)))-1,"n.d.") -> n.d. | AO10: =IF(INDEX($P10:$Y10,1,aux!$BA$1)>0,(Y10-INDEX($P10:$Y10,1,aux!$BA$1))/INDEX($P10:$Y10,1,aux!$BA$1),"n.d.") -> n.d. | AP10: 0 | CC10: 0
A11: 09 | B11: Café, chá, mate e especiarias | C11: 0 | D11: 0 | E11: 0 | F11: 0 | G11: 0 | H11: 0 | I11: 0 | J11: 0 | K11: 0 | L11: 0 | M11: 0 | N11: 0 | O11: 0 | P11: 0 | Q11: 0 | R11: 0 | S11: 0 | T11: 0 | U11: 0 | V11: 0 | W11: 0 | X11: 0 | Y11: 0 | Z11: 0 | AA11: 0 | AB11: 0 | AC11: 0 | AE11: =L11-INDEX($C11:$L11,1,aux!$BA$1) -> 0 | AF11: 0 | AG11: 0 | AH11: =+IF(INDEX($C11:$L11,1,aux!$BA$1)>0,(L11/INDEX($C11:$L11,1,aux!$BA$1))^(1/($L$3-INDEX($C$3:$L$3,1,aux!$BA$1)))-1,"n.d.") -> n.d. | AI11: =IF(INDEX($C11:$L11,1,aux!$BA$1)>0,(L11-INDEX($C11:$L11,1,aux!$BA$1))/INDEX($C11:$L11,1,aux!$BA$1),"n.d.") -> n.d. | AK11: =Y11-INDEX($P11:$Y11,1,aux!$BA$1) -> 0 | AL11: 0 | AM11: 0 | AN11: =+IF(INDEX($P11:$Y11,1,aux!$BA$1)>0,(Y11/INDEX($P11:$Y11,1,aux!$BA$1))^(1/($Y$3-INDEX($P$3:$Y$3,1,aux!$BA$1)))-1,"n.d.") -> n.d. | AO11: =IF(INDEX($P11:$Y11,1,aux!$BA$1)>0,(Y11-INDEX($P11:$Y11,1,aux!$BA$1))/INDEX($P11:$Y11,1,aux!$BA$1),"n.d.") -> n.d. | AP11: 0 | CC11: 0
A12: 10 | B12: Cereais | C12: 0 | D12: 0 | E12: 0 | F12: 0 | G12: 0 | H12: 0 | I12: 0 | J12: 0 | K12: 0 | L12: 0 | M12: 0 | N12: 0 | O12: 0 | P12: 0 | Q12: 0 | R12: 0 | S12: 0 | T12: 0 | U12: 0 | V12: 0 | W12: 0 | X12: 0 | Y12: 0 | Z12: 0 | AA12: 0 | AB12: 0 | AC12: 0 | AE12: =L12-INDEX($C12:$L12,1,aux!$BA$1) -> 0 | AF12: 0 | AG12: 0 | AH12: =+IF(INDEX($C12:$L12,1,aux!$BA$1)>0,(L12/INDEX($C12:$L12,1,aux!$BA$1))^(1/($L$3-INDEX($C$3:$L$3,1,aux!$BA$1)))-1,"n.d.") -> n.d. | AI12: =IF(INDEX($C12:$L12,1,aux!$BA$1)>0,(L12-INDEX($C12:$L12,1,aux!$BA$1))/INDEX($C12:$L12,1,aux!$BA$1),"n.d.") -> n.d. | AK12: =Y12-INDEX($P12:$Y12,1,aux!$BA$1) -> 0 | AL12: 0 | AM12: 0 | AN12: =+IF(INDEX($P12:$Y12,1,aux!$BA$1)>0,(Y12/INDEX($P12:$Y12,1,aux!$BA$1))^(1/($Y$3-INDEX($P$3:$Y$3,1,aux!$BA$1)))-1,"n.d.") -> n.d. | AO12: =IF(INDEX($P12:$Y12,1,aux!$BA$1)>0,(Y12-INDEX($P12:$Y12,1,aux!$BA$1))/INDEX($P12:$Y12,1,aux!$BA$1),"n.d.") -> n.d. | AP12: 0 | CC12: 0
A13: 11 | B13: Produtos da indústria de moagem e outros | C13: 0 | D13: 0 | E13: 0 | F13: 0 | G13: 0 | H13: 0 | I13: 0 | J13: 0 | K13: 0 | L13: 0 | M13: 0 | N13: 0 | O13: 0 | P13: 0 | Q13: 0 | R13: 0 | S13: 0 | T13: 0 | U13: 0 | V13: 0 | W13: 0 | X13: 0 | Y13: 0 | Z13: 0 | AA13: 0 | AB13: 0 | AC13: 0 | AE13: =L13-INDEX($C13:$L13,1,aux!$BA$1) -> 0 | AF13: 0 | AG13: 0 | AH13: =+IF(INDEX($C13:$L13,1,aux!$BA$1)>0,(L13/INDEX($C13:$L13,1,aux!$BA$1))^(1/($L$3-INDEX($C$3:$L$3,1,aux!$BA$1)))-1,"n.d.") -> n.d. | AI13: =IF(INDEX($C13:$L13,1,aux!$BA$1)>0,(L13-INDEX($C13:$L13,1,aux!$BA$1))/INDEX($C13:$L13,1,aux!$BA$1),"n.d.") -> n.d. | AK13: =Y13-INDEX($P13:$Y13,1,aux!$BA$1) -> 0 | AL13: 0 | AM13: 0 | AN13: =+IF(INDEX($P13:$Y13,1,aux!$BA$1)>0,(Y13/INDEX($P13:$Y13,1,aux!$BA$1))^(1/($Y$3-INDEX($P$3:$Y$3,1,aux!$BA$1)))-1,"n.d.") -> n.d. | AO13: =IF(INDEX($P13:$Y13,1,aux!$BA$1)>0,(Y13-INDEX($P13:$Y13,1,aux!$BA$1))/INDEX($P13:$Y13,1,aux!$BA$1),"n.d.") -> n.d. | AP13: 0 | CC13: 0
A14: 12 | B14: Sementes e frutos oleaginosos | C14: 0 | D14: 0 | E14: 0 | F14: 0 | G14: 0 | H14: 0 | I14: 0 | J14: 0 | K14: 0 | L14: 0 | M14: 0 | N14: 0 | O14: 0 | P14: 0 | Q14: 0 | R14: 0 | S14: 0 | T14: 0 | U14: 0 | V14: 0 | W14: 0 | X14: 0 | Y14: 0 | Z14: 0 | AA14: 0 | AB14: 0 | AC14: 0 | AE14: =L14-INDEX($C14:$L14,1,aux!$BA$1) -> 0 | AF14: 0 | AG14: 0 | AH14: =+IF(INDEX($C14:$L14,1,aux!$BA$1)>0,(L14/INDEX($C14:$L14,1,aux!$BA$1))^(1/($L$3-INDEX($C$3:$L$3,1,aux!$BA$1)))-1,"n.d.") -> n.d. | AI14: =IF(INDEX($C14:$L14,1,aux!$BA$1)>0,(L14-INDEX($C14:$L14,1,aux!$BA$1))/INDEX($C14:$L14,1,aux!$BA$1),"n.d.") -> n.d. | AK14: =Y14-INDEX($P14:$Y14,1,aux!$BA$1) -> 0 | AL14: 0 | AM14: 0 | AN14: =+IF(INDEX($P14:$Y14,1,aux!$BA$1)>0,(Y14/INDEX($P14:$Y14,1,aux!$BA$1))^(1/($Y$3-INDEX($P$3:$Y$3,1,aux!$BA$1)))-1,"n.d.") -> n.d. | AO14: =IF(INDEX($P14:$Y14,1,aux!$BA$1)>0,(Y14-INDEX($P14:$Y14,1,aux!$BA$1))/INDEX($P14:$Y14,1,aux!$BA$1),"n.d.") -> n.d. | AP14: 0 | CC14: 0
A15: 13a | B15: Sucos e extratos vegetais (exc. NC 1301) (a) | C15: 0 | D15: 0 | E15: 0 | F15: 0 | G15: 0 | H15: 0 | I15: 0 | J15: 0 | K15: 0 | L15: 0 | M15: 0 | N15: 0 | O15: 0 | P15: 0 | Q15: 0 | R15: 0 | S15: 0 | T15: 0 | U15: 0 | V15: 0 | W15: 0 | X15: 0 | Y15: 0 | Z15: 0 | AA15: 0 | AB15: 0 | AC15: 0 | AE15: =L15-INDEX($C15:$L15,1,aux!$BA$1) -> 0 | AF15: 0 | AG15: 0 | AH15: =+IF(INDEX($C15:$L15,1,aux!$BA$1)>0,(L15/INDEX($C15:$L15,1,aux!$BA$1))^(1/($L$3-INDEX($C$3:$L$3,1,aux!$BA$1)))-1,"n.d.") -> n.d. | AI15: =IF(INDEX($C15:$L15,1,aux!$BA$1)>0,(L15-INDEX($C15:$L15,1,aux!$BA$1))/INDEX($C15:$L15,1,aux!$BA$1),"n.d.") -> n.d. | AK15: =Y15-INDEX($P15:$Y15,1,aux!$BA$1) -> 0 | AL15: 0 | AM15: 0 | AN15: =+IF(INDEX($P15:$Y15,1,aux!$BA$1)>0,(Y15/INDEX($P15:$Y15,1,aux!$BA$1))^(1/($Y$3-INDEX($P$3:$Y$3,1,aux!$BA$1)))-1,"n.d.") -> n.d. | AO15: =IF(INDEX($P15:$Y15,1,aux!$BA$1)>0,(Y15-INDEX($P15:$Y15,1,aux!$BA$1))/INDEX($P15:$Y15,1,aux!$BA$1),"n.d.") -> n.d. | AP15: 0 | CC15: 0
A16: 14 | B16: Matérias para entrançar e outros | C16: 0 | D16: 0 | E16: 0 | F16: 0 | G16: 0 | H16: 0 | I16: 0 | J16: 0 | K16: 0 | L16: 0 | M16: 0 | N16: 0 | O16: 0 | P16: 0 | Q16: 0 | R16: 0 | S16: 0 | T16: 0 | U16: 0 | V16: 0 | W16: 0 | X16: 0 | Y16: 0 | Z16: 0 | AA16: 0 | AB16: 0 | AC16: 0 | AE16: =L16-INDEX($C16:$L16,1,aux!$BA$1) -> 0 | AF16: 0 | AG16: 0 | AH16: =+IF(INDEX($C16:$L16,1,aux!$BA$1)>0,(L16/INDEX($C16:$L16,1,aux!$BA$1))^(1/($L$3-INDEX($C$3:$L$3,1,aux!$BA$1)))-1,"n.d.") -> n.d. | AI16: =IF(INDEX($C16:$L16,1,aux!$BA$1)>0,(L16-INDEX($C16:$L16,1,aux!$BA$1))/INDEX($C16:$L16,1,aux!$BA$1),"n.d.") -> n.d. | AK16: =Y16-INDEX($P16:$Y16,1,aux!$BA$1) -> 0 | AL16: 0 | AM16: 0 | AN16: =+IF(INDEX($P16:$Y16,1,aux!$BA$1)>0,(Y16/INDEX($P16:$Y16,1,aux!$BA$1))^(1/($Y$3-INDEX($P$3:$Y$3,1,aux!$BA$1)))-1,"n.d.") -> n.d. | AO16: =IF(INDEX($P16:$Y16,1,aux!$BA$1)>0,(Y16-INDEX($P16:$Y16,1,aux!$BA$1))/INDEX($P16:$Y16,1,aux!$BA$1),"n.d.") -> n.d. | AP16: 0 | CC16: 0
A17: 15 | B17: Gorduras e óleos animais ou vegetais | C17: 0 | D17: 0 | E17: 0 | F17: 0 | G17: 0 | H17: 0 | I17: 0 | J17: 0 | K17: 0 | L17: 0 | M17: 0 | N17: 0 | O17: 0 | P17: 0 | Q17: 0 | R17: 0 | S17: 0 | T17: 0 | U17: 0 | V17: 0 | W17: 0 | X17: 0 | Y17: 0 | Z17: 0 | AA17: 0 | AB17: 0 | AC17: 0 | AE17: =L17-INDEX($C17:$L17,1,aux!$BA$1) -> 0 | AF17: 0 | AG17: 0 | AH17: =+IF(INDEX($C17:$L17,1,aux!$BA$1)>0,(L17/INDEX($C17:$L17,1,aux!$BA$1))^(1/($L$3-INDEX($C$3:$L$3,1,aux!$BA$1)))-1,"n.d.") -> n.d. | AI17: =IF(INDEX($C17:$L17,1,aux!$BA$1)>0,(L17-INDEX($C17:$L17,1,aux!$BA$1))/INDEX($C17:$L17,1,aux!$BA$1),"n.d.") -> n.d. | AK17: =Y17-INDEX($P17:$Y17,1,aux!$BA$1) -> 0 | AL17: 0 | AM17: 0 | AN17: =+IF(INDEX($P17:$Y17,1,aux!$BA$1)>0,(Y17/INDEX($P17:$Y17,1,aux!$BA$1))^(1/($Y$3-INDEX($P$3:$Y$3,1,aux!$BA$1)))-1,"n.d.") -> n.d. | AO17: =IF(INDEX($P17:$Y17,1,aux!$BA$1)>0,(Y17-INDEX($P17:$Y17,1,aux!$BA$1))/INDEX($P17:$Y17,1,aux!$BA$1),"n.d.") -> n.d. | AP17: 0 | CC17: 0
A18: 16a | B18: Preparações de carnes (exc. NC 1604-05) (a) | C18: 0 | D18: 0 | E18: 0 | F18: 0 | G18: 0 | H18: 0 | I18: 0 | J18: 0 | K18: 0 | L18: 0 | M18: 0 | N18: 0 | O18: 0 | P18: 0 | Q18: 0 | R18: 0 | S18: 0 | T18: 0 | U18: 0 | V18: 0 | W18: 0 | X18: 0 | Y18: 0 | Z18: 0 | AA18: 0 | AB18: 0 | AC18: 0 | AE18: =L18-INDEX($C18:$L18,1,aux!$BA$1) -> 0 | AF18: 0 | AG18: 0 | AH18: =+IF(INDEX($C18:$L18,1,aux!$BA$1)>0,(L18/INDEX($C18:$L18,1,aux!$BA$1))^(1/($L$3-INDEX($C$3:$L$3,1,aux!$BA$1)))-1,"n.d.") -> n.d. | AI18: =IF(INDEX($C18:$L18,1,aux!$BA$1)>0,(L18-INDEX($C18:$L18,1,aux!$BA$1))/INDEX($C18:$L18,1,aux!$BA$1),"n.d.") -> n.d. | AK18: =Y18-INDEX($P18:$Y18,1,aux!$BA$1) -> 0 | AL18: 0 | AM18: 0 | AN18: =+IF(INDEX($P18:$Y18,1,aux!$BA$1)>0,(Y18/INDEX($P18:$Y18,1,aux!$BA$1))^(1/($Y$3-INDEX($P$3:$Y$3,1,aux!$BA$1)))-1,"n.d.") -> n.d. | AO18: =IF(INDEX($P18:$Y18,1,aux!$BA$1)>0,(Y18-INDEX($P18:$Y18,1,aux!$BA$1))/INDEX($P18:$Y18,1,aux!$BA$1),"n.d.") -> n.d. | AP18: 0 | CC18: 0
A19: 17 | B19: Açúcares e produtos de confeitaria | C19: 0 | D19: 0 | E19: 0 | F19: 0 | G19: 0 | H19: 0 | I19: 0 | J19: 0 | K19: 0 | L19: 0 | M19: 0 | N19: 0 | O19: 0 | P19: 0 | Q19: 0 | R19: 0 | S19: 0 | T19: 0 | U19: 0 | V19: 0 | W19: 0 | X19: 0 | Y19: 0 | Z19: 0 | AA19: 0 | AB19: 0 | AC19: 0 | AE19: =L19-INDEX($C19:$L19,1,aux!$BA$1) -> 0 | AF19: 0 | AG19: 0 | AH19: =+IF(INDEX($C19:$L19,1,aux!$BA$1)>0,(L19/INDEX($C19:$L19,1,aux!$BA$1))^(1/($L$3-INDEX($C$3:$L$3,1,aux!$BA$1)))-1,"n.d.") -> n.d. | AI19: =IF(INDEX($C19:$L19,1,aux!$BA$1)>0,(L19-INDEX($C19:$L19,1,aux!$BA$1))/INDEX($C19:$L19,1,aux!$BA$1),"n.d.") -> n.d. | AK19: =Y19-INDEX($P19:$Y19,1,aux!$BA$1) -> 0 | AL19: 0 | AM19: 0 | AN19: =+IF(INDEX($P19:$Y19,1,aux!$BA$1)>0,(Y19/INDEX($P19:$Y19,1,aux!$BA$1))^(1/($Y$3-INDEX($P$3:$Y$3,1,aux!$BA$1)))-1,"n.d.") -> n.d. | AO19: =IF(INDEX($P19:$Y19,1,aux!$BA$1)>0,(Y19-INDEX($P19:$Y19,1,aux!$BA$1))/INDEX($P19:$Y19,1,aux!$BA$1),"n.d.") -> n.d. | AP19: 0 | CC19: 0
A20: 18 | B20: Cacau e suas preparações | C20: 0 | D20: 0 | E20: 0 | F20: 0 | G20: 0 | H20: 0 | I20: 0 | J20: 0 | K20: 0 | L20: 0 | M20: 0 | N20: 0 | O20: 0 | P20: 0 | Q20: 0 | R20: 0 | S20: 0 | T20: 0 | U20: 0 | V20: 0 | W20: 0 | X20: 0 | Y20: 0 | Z20: 0 | AA20: 0 | AB20: 0 | AC20: 0 | AE20: =L20-INDEX($C20:$L20,1,aux!$BA$1) -> 0 | AF20: 0 | AG20: 0 | AH20: =+IF(INDEX($C20:$L20,1,aux!$BA$1)>0,(L20/INDEX($C20:$L20,1,aux!$BA$1))^(1/($L$3-INDEX($C$3:$L$3,1,aux!$BA$1)))-1,"n.d.") -> n.d. | AI20: =IF(INDEX($C20:$L20,1,aux!$BA$1)>0,(L20-INDEX($C20:$L20,1,aux!$BA$1))/INDEX($C20:$L20,1,aux!$BA$1),"n.d.") -> n.d. | AK20: =Y20-INDEX($P20:$Y20,1,aux!$BA$1) -> 0 | AL20: 0 | AM20: 0 | AN20: =+IF(INDEX($P20:$Y20,1,aux!$BA$1)>0,(Y20/INDEX($P20:$Y20,1,aux!$BA$1))^(1/($Y$3-INDEX($P$3:$Y$3,1,aux!$BA$1)))-1,"n.d.") -> n.d. | AO20: =IF(INDEX($P20:$Y20,1,aux!$BA$1)>0,(Y20-INDEX($P20:$Y20,1,aux!$BA$1))/INDEX($P20:$Y20,1,aux!$BA$1),"n.d.") -> n.d. | AP20: 0 | CC20: 0
A21: 19a | B21: Preparações à base de cereais (exc. NC 19022010) (a) | C21: 0 | D21: 0 | E21: 0 | F21: 0 | G21: 0 | H21: 0 | I21: 0 | J21: 0 | K21: 0 | L21: 0 | M21: 0 | N21: 0 | O21: 0 | P21: 0 | Q21: 0 | R21: 0 | S21: 0 | T21: 0 | U21: 0 | V21: 0 | W21: 0 | X21: 0 | Y21: 0 | Z21: 0 | AA21: 0 | AB21: 0 | AC21: 0 | AE21: =L21-INDEX($C21:$L21,1,aux!$BA$1) -> 0 | AF21: 0 | AG21: 0 | AH21: =+IF(INDEX($C21:$L21,1,aux!$BA$1)>0,(L21/INDEX($C21:$L21,1,aux!$BA$1))^(1/($L$3-INDEX($C$3:$L$3,1,aux!$BA$1)))-1,"n.d.") -> n.d. | AI21: =IF(INDEX($C21:$L21,1,aux!$BA$1)>0,(L21-INDEX($C21:$L21,1,aux!$BA$1))/INDEX($C21:$L21,1,aux!$BA$1),"n.d.") -> n.d. | AK21: =Y21-INDEX($P21:$Y21,1,aux!$BA$1) -> 0 | AL21: 0 | AM21: 0 | AN21: =+IF(INDEX($P21:$Y21,1,aux!$BA$1)>0,(Y21/INDEX($P21:$Y21,1,aux!$BA$1))^(1/($Y$3-INDEX($P$3:$Y$3,1,aux!$BA$1)))-1,"n.d.") -> n.d. | AO21: =IF(INDEX($P21:$Y21,1,aux!$BA$1)>0,(Y21-INDEX($P21:$Y21,1,aux!$BA$1))/INDEX($P21:$Y21,1,aux!$BA$1),"n.d.") -> n.d. | AP21: 0 | CC21: 0
A22: 20 | B22: Preparações de produtos vegetais | C22: 0 | D22: 0 | E22: 0 | F22: 0 | G22: 0 | H22: 0 | I22: 0 | J22: 0 | K22: 0 | L22: 0 | M22: 0 | N22: 0 | O22: 0 | P22: 0 | Q22: 0 | R22: 0 | S22: 0 | T22: 0 | U22: 0 | V22: 0 | W22: 0 | X22: 0 | Y22: 0 | Z22: 0 | AA22: 0 | AB22: 0 | AC22: 0 | AE22: =L22-INDEX($C22:$L22,1,aux!$BA$1) -> 0 | AF22: 0 | AG22: 0 | AH22: =+IF(INDEX($C22:$L22,1,aux!$BA$1)>0,(L22/INDEX($C22:$L22,1,aux!$BA$1))^(1/($L$3-INDEX($C$3:$L$3,1,aux!$BA$1)))-1,"n.d.") -> n.d. | AI22: =IF(INDEX($C22:$L22,1,aux!$BA$1)>0,(L22-INDEX($C22:$L22,1,aux!$BA$1))/INDEX($C22:$L22,1,aux!$BA$1),"n.d.") -> n.d. | AK22: =Y22-INDEX($P22:$Y22,1,aux!$BA$1) -> 0 | AL22: 0 | AM22: 0 | AN22: =+IF(INDEX($P22:$Y22,1,aux!$BA$1)>0,(Y22/INDEX($P22:$Y22,1,aux!$BA$1))^(1/($Y$3-INDEX($P$3:$Y$3,1,aux!$BA$1)))-1,"n.d.") -> n.d. | AO22: =IF(INDEX($P22:$Y22,1,aux!$BA$1)>0,(Y22-INDEX($P22:$Y22,1,aux!$BA$1))/INDEX($P22:$Y22,1,aux!$BA$1),"n.d.") -> n.d. | AP22: 0 | CC22: 0
A23: 21 | B23: Preparações alimentícias diversas | C23: 0 | D23: 0 | E23: 0 | F23: 0 | G23: 0 | H23: 0 | I23: 0 | J23: 0 | K23: 0 | L23: 0 | M23: 0 | N23: 0 | O23: 0 | P23: 0 | Q23: 0 | R23: 0 | S23: 0 | T23: 0 | U23: 0 | V23: 0 | W23: 0 | X23: 0 | Y23: 0 | Z23: 0 | AA23: 0 | AB23: 0 | AC23: 0 | AE23: =L23-INDEX($C23:$L23,1,aux!$BA$1) -> 0 | AF23: 0 | AG23: 0 | AH23: =+IF(INDEX($C23:$L23,1,aux!$BA$1)>0,(L23/INDEX($C23:$L23,1,aux!$BA$1))^(1/($L$3-INDEX($C$3:$L$3,1,aux!$BA$1)))-1,"n.d.") -> n.d. | AI23: =IF(INDEX($C23:$L23,1,aux!$BA$1)>0,(L23-INDEX($C23:$L23,1,aux!$BA$1))/INDEX($C23:$L23,1,aux!$BA$1),"n.d.") -> n.d. | AK23: =Y23-INDEX($P23:$Y23,1,aux!$BA$1) -> 0 | AL23: 0 | AM23: 0 | AN23: =+IF(INDEX($P23:$Y23,1,aux!$BA$1)>0,(Y23/INDEX($P23:$Y23,1,aux!$BA$1))^(1/($Y$3-INDEX($P$3:$Y$3,1,aux!$BA$1)))-1,"n.d.") -> n.d. | AO23: =IF(INDEX($P23:$Y23,1,aux!$BA$1)>0,(Y23-INDEX($P23:$Y23,1,aux!$BA$1))/INDEX($P23:$Y23,1,aux!$BA$1),"n.d.") -> n.d. | AP23: 0 | CC23: 0
A24: 22 | B24: Bebidas, líquidos alcoólicos e vinagres | C24: 407168.358 | D24: 379540.341 | E24: 415903.659 | F24: 402063.132 | G24: 419617.631 | H24: 414728.331 | I24: 469629.496 | J24: 489848.927 | K24: 522638.668 | L24: 479026.576 | M24: 440016.5119 | N24: 1 | O24: 1 | P24: 1031719.373 | Q24: 1106471.12 | R24: 1097151.762 | S24: 1159344.139 | T24: 1059288.431 | U24: 1006119.222 | V24: 1078398.257 | W24: 1090840.732 | X24: 1135764.179 | Y24: 1167695.485 | Z24: 1093279.27 | AA24: 1 | AB24: 1 | AC24: 653262.7581 | AE24: =L24-INDEX($C24:$L24,1,aux!$BA$1) -> 71858.218 | AF24: 1 | AG24: 1 | AH24: =+IF(INDEX($C24:$L24,1,aux!$BA$1)>0,(L24/INDEX($C24:$L24,1,aux!$BA$1))^(1/($L$3-INDEX($C$3:$L$3,1,aux!$BA$1)))-1,"n.d.") -> 0.01822285996 | AI24: =IF(INDEX($C24:$L24,1,aux!$BA$1)>0,(L24-INDEX($C24:$L24,1,aux!$BA$1))/INDEX($C24:$L24,1,aux!$BA$1),"n.d.") -> 0.176482815 | AK24: =Y24-INDEX($P24:$Y24,1,aux!$BA$1) -> 135976.112 | AL24: 1 | AM24: 1 | AN24: =+IF(INDEX($P24:$Y24,1,aux!$BA$1)>0,(Y24/INDEX($P24:$Y24,1,aux!$BA$1))^(1/($Y$3-INDEX($P$3:$Y$3,1,aux!$BA$1)))-1,"n.d.") -> 0.01385121028 | AO24: =IF(INDEX($P24:$Y24,1,aux!$BA$1)>0,(Y24-INDEX($P24:$Y24,1,aux!$BA$1))/INDEX($P24:$Y24,1,aux!$BA$1),"n.d.") -> 0.131795637 | CC24: 15332957.82
A25: 23a | B25: Resíduos indústrias alimentares; alimentos p/ animais (exc. NC 230120) (a) | C25: 0 | D25: 0 | E25: 0 | F25: 0 | G25: 0 | H25: 0 | I25: 0 | J25: 0 | K25: 0 | L25: 0 | M25: 0 | N25: 0 | O25: 0 | P25: 0 | Q25: 0 | R25: 0 | S25: 0 | T25: 0 | U25: 0 | V25: 0 | W25: 0 | X25: 0 | Y25: 0 | Z25: 0 | AA25: 0 | AB25: 0 | AC25: 0 | AE25: =L25-INDEX($C25:$L25,1,aux!$BA$1) -> 0 | AF25: 0 | AG25: 0 | AH25: =+IF(INDEX($C25:$L25,1,aux!$BA$1)>0,(L25/INDEX($C25:$L25,1,aux!$BA$1))^(1/($L$3-INDEX($C$3:$L$3,1,aux!$BA$1)))-1,"n.d.") -> n.d. | AI25: =IF(INDEX($C25:$L25,1,aux!$BA$1)>0,(L25-INDEX($C25:$L25,1,aux!$BA$1))/INDEX($C25:$L25,1,aux!$BA$1),"n.d.") -> n.d. | AK25: =Y25-INDEX($P25:$Y25,1,aux!$BA$1) -> 0 | AL25: 0 | AM25: 0 | AN25: =+IF(INDEX($P25:$Y25,1,aux!$BA$1)>0,(Y25/INDEX($P25:$Y25,1,aux!$BA$1))^(1/($Y$3-INDEX($P$3:$Y$3,1,aux!$BA$1)))-1,"n.d.") -> n.d. | AO25: =IF(INDEX($P25:$Y25,1,aux!$BA$1)>0,(Y25-INDEX($P25:$Y25,1,aux!$BA$1))/INDEX($P25:$Y25,1,aux!$BA$1),"n.d.") -> n.d. | AP25: 0 | CC25: 0
A26: 24 | B26: Tabaco | C26: 0 | D26: 0 | E26: 0 | F26: 0 | G26: 0 | H26: 0 | I26: 0 | J26: 0 | K26: 0 | L26: 0 | M26: 0 | N26: 0 | O26: 0 | P26: 0 | Q26: 0 | R26: 0 | S26: 0 | T26: 0 | U26: 0 | V26: 0 | W26: 0 | X26: 0 | Y26: 0 | Z26: 0 | AA26: 0 | AB26: 0 | AC26: 0 | AE26: =L26-INDEX($C26:$L26,1,aux!$BA$1) -> 0 | AF26: 0 | AG26: 0 | AH26: =+IF(INDEX($C26:$L26,1,aux!$BA$1)>0,(L26/INDEX($C26:$L26,1,aux!$BA$1))^(1/($L$3-INDEX($C$3:$L$3,1,aux!$BA$1)))-1,"n.d.") -> n.d. | AI26: =IF(INDEX($C26:$L26,1,aux!$BA$1)>0,(L26-INDEX($C26:$L26,1,aux!$BA$1))/INDEX($C26:$L26,1,aux!$BA$1),"n.d.") -> n.d. | AK26: =Y26-INDEX($P26:$Y26,1,aux!$BA$1) -> 0 | AL26: 0 | AM26: 0 | AN26: =+IF(INDEX($P26:$Y26,1,aux!$BA$1)>0,(Y26/INDEX($P26:$Y26,1,aux!$BA$1))^(1/($Y$3-INDEX($P$3:$Y$3,1,aux!$BA$1)))-1,"n.d.") -> n.d. | AO26: =IF(INDEX($P26:$Y26,1,aux!$BA$1)>0,(Y26-INDEX($P26:$Y26,1,aux!$BA$1))/INDEX($P26:$Y26,1,aux!$BA$1),"n.d.") -> n.d. | AP26: 0 | CC26: 0
